Workbook

Sheet 工事関係書類一覧表
A1: 土木工事関係書類一覧表
A2: 工 事 関 係 書 類 | H2: 工事関係書類の 標準様式 （様式No） | I2: 書類作成者 | K2: 受注者書類作成の位置付け | N2: 備 考
A3: 作成 時期 | B3: 種 別 | E3: No. | F3: 書 類 名 称 | G3: 書類作成の根拠 | I3: 発注者 | J3: 受注者 | K3: 提出 | L3: 提示 | M3: その他
K4: 発注者 保管 | L4: 受注者 保管 | M4: 監督員 へ連絡
A5: 工事着手前 | B5: 契約図書 | C5: 契約書 | E5: 1 | F5: 工事請負契約書 | H5: － | I5: ○
C6: 締結時 | E6: 2 | F6: 課税（免税）事業者届出書 | H6: 様式 | J6: 〇
E7: 3 | F7: 上天草市暴力団排除条例に係る誓約書 | H7: 別記様式 | J7: 〇
C8: 設計図書 | E8: 4 | F8: 共通仕様書 | H8: － | I8: ○
E9: 5 | F9: 特記仕様書 | H9: － | I9: ○
E10: 6 | F10: 発注図面 | H10: － | I10: ○
E11: 7 | F11: 現場説明書 | H11: － | I11: ○
E12: 8 | F12: 質問回答書 | H12: － | I12: ○
E13: 9 | F13: 工事数量総括表 | H13: － | I13: ○
B14: 工事着手関係書類 | E14: 10 | F14: 着工届 | H14: 様式－１ | J14: ○ | K14: ○
E15: 11 | F15: 請負代金内訳書 | G15: 上天草市公共工事請負契約約款第３条１項 | H15: 統一様式-2 | J15: ○ | K15: ○ | N15: 契約締結後１４日以内に提出。 ※法定福利費を明示した工事費内訳書を入札時に提出済みの場合は不要
E16: 12 | F16: 工程表 | G16: 上天草市公共工事請負契約約款第３条１項 | H16: 統一様式-3(1) | J16: ○ | K16: ○ | N16: 契約締結後１４日以内に提出。 ※着工届に含めて提出可
E17: 13 | F17: 現場代理人・主任（監理）技術者 通知書 | G17: 上天草市公共工事請負契約約款第１０条１項 | H17: 統一様式-1 | J17: ○ | K17: ○ | N17: 経歴書、資格証の写し、健康保険被保険者証の写し等を添付。 ※契約締結時にも確認のため提出。
E18: 14 | F18: 経歴書 | G18: 上天草市公共工事請負契約約款第１０条１項 | H18: 統一様式-1(2) | J18: ○ | K18: ○ | N18: 現場代理人・主任（監理）技術者通知書に添付。
E19: 15 | F19: 現場代理人・主任（監理）技術者 変更通知書 | G19: 上天草市公共工事請負契約約款第１０条１項 | H19: 統一様式-1(3) | J19: ○ | K19: ○ | N19: 現場代理人及び専任の主任（監理）技術者を変更する場合に提出。 ※真にやむを得ない事情のほか、発注者が交代を認める場合
E20: 16 | F20: 現場代理人及び主任(監理)技術者兼任調書 | G20: 上天草市が発注する建設工事に設置する現場代理人及び主任技術者等の取り扱い | H20: 別紙１ | J20: ○ | K20: ○ | N20: 現場代理人を他工事と兼任させる場合、契約時に提出。
E21: 17 | F21: 品質証明員通知書 | H21: 統一様式-7 | J21: ○ | K21: ○ | N21: 品質証明員を定めた場合に提出。資格証の写しを添付。
E22: 18 | F22: 建設業退職金共済制度の掛金収納書 | G22: 建設業退職金共済制度及び法定外労働災害補償制度の取扱要領 | H22: 統一様式-4 | J22: ○ | K22: ○ | N22: 契約締結後１ヶ月以内に提出。 購入遅延、無購入等の場合は、別途該当する様式を提出。
E23: 19 | F23: 建設業退職金共済証紙（購入遅延・無購入）申出書 | G23: 建設業退職金共済制度及び法定外労働災害補償制度の取扱要領 | H23: 様式－２ | J23: ○ | K23: ○ | N23: 建設業退職金共済証紙の購入遅延、無購入の場合に提出。 添付書類：様式-2（1）又は様式-2（2）
E24: 20 | F24: 建退共証紙受払簿 | G24: 建設業退職金共済制度及び法定外労働災害補償制度の取扱要領 | H24: 様式－２（１） | J24: ○ | K24: ○ | N24: 建設業退職金共済証紙（購入遅延・無購入）申出書の添付書類。 共済証紙を購入しない理由が、共済証紙の手持ちがある場合は提出。 共済証紙の購入状況を把握するため、共済証紙の受払簿その他関係資料について提出を求めることがある。
E25: 21 | F25: 建設業退職金共済制度以外の退職金制度加入申出書 | G25: 建設業退職金共済制度及び法定外労働災害補償制度の取扱要領 | H25: 様式－２（２） | J25: ○ | K25: ○ | N25: 建設業退職金共済証紙（購入遅延・無購入）申出書の添付書類。 共済証紙を購入しない理由が、建設業退職金共済制度以外の退職金制度に加入している場合は提出。
E26: 22 | F26: 法定外労働災害補償制度加入証明書 | G26: 建設業退職金共済制度及び法定外労働災害補償制度の取扱要領 | H26: 様式－３ | J26: ○ | K26: ○ | N26: 契約締結後１ヶ月以内に提出。※着工届に含めて提出可
E27: 23 | F27: 休日（現場閉所）取得計画実績表 | G27: 上天草市週休２日試行工事実施要領 | H27: 別紙４ | J27: ○ | K27: ○ | N27: 施工計画書提出時に併せて提出。※着手前に協議がなければ週休２日は未実施として請負代金を減額 翌月５日まで毎月末日現在の状況を提出。
E28: 24 | F28: 週休２日（交替制）工事 休日取得状況表 | G28: 上天草市週休２日試行工事実施要領 | H28: 別紙５ | J28: ○ | K28: ○ | N28: 施工計画書提出時に併せて提出。※着手前に協議がなければ週休２日は未実施として請負代金を減額 翌月５日まで毎月末日現在の状況を提出。
E29: 25 | F29: 請求書（前払金） | G29: 上天草市公共工事請負契約約款第３４条１項 | H29: 統一様式-5(1) | J29: ○ | K29: ○ | N29: 請負代金130万以上の工事が対象。保証証書添付、請負代金の4割が上限。
B30: その他 | E30: 26 | F30: 事前協議チェックシート | G30: 上天草市電子納品運用ガイドライン | H30: 様式－４ | J30: ○ | K30: ○ | N30: 電子納品対象工事の場合は、本様式により事前に受発注者間で協議。
E31: 27 | F31: 情報共有システム活用のための事前協議シート | G31: 上天草市情報共有システム活用要領 | H31: 様式－５ | J31: ○ | K31: ○ | N31: 情報共有システムを活用する工事の場合は、本様式により事前に受発注者間で協議。
E32: 28 | F32: 登録内容確認書（CORINS) | H32: － | J32: ○ | K32: ○ | N32: 請負代金500万円以上の工事について、受注・変更・完成・訂正時、土日祝日を除き１０日以内に登録し、それぞれ提出。（旧称：工事カルテ受領書）
E33: 29 | F33: 建設リサイクル法に基づく通知書 | G33: 建設工事に係る資材の再資源化等に関する法律第１１条 建設リサイクル法の取扱い | H33: － | I33: ○ | N33: 土木工事等は請負代金５００万円以上が対象。 実際に工事に着手する７日前までに提出。
E34: 30 | F34: 工事中標識設置届 | G34: 道路工事現場における表示施設等の設置基準 道路工事保安施設設置基準 | H34: 様式－６ | J34: ○ | K34: ○ | N34: 工事に着手する前に提出。 ※工事着手とは工期の始期日以降の実際の工事のための準備工事（現場事務所等の建設又は測量）に着手することをいう。契約変更により、工期の変更を行った場合、速やかに変更する標識の設置状況写真を打合せ簿に含めて提出。
E35: 31 | F35: 設計図書の照査確認資料 | H35: － | J35: ○ | K35: ○ | L35: ○ | N35: 設計図書と差異があった場合のみ提出とし、設計図書と一致している場合は提示と。施工前及び施工中に適宜行う。
E36: 32 | F36: 工事測量結果 | H36: － | J36: ○ | K36: ○ | L36: ○ | N36: 設計図書と差異があった場合のみ提出とし、設計図書と一致している場合は提示と。提出の時期は工事着手の前と。また、測量標（仮ＢＭ）及び工事用多角点を設置した場合は測量結果を提出。
E37: 33 | F37: 建設機械の写真 | H37: － | J37: ○ | K37: ○ | N37: 排出ガス対策型建設機械あるいは排出ガス浄化装置を装着した建設機械を使用する場合提出。
E38: 34 | F38: 工事使用材料承認願 | H38: － | J38: ○ | K38: ○ | N38: 工事材料を発注する前に提出。
B39: 工事書類 | C39: １施工計画 | D39: ①施工計画 | E39: 35 | F39: 施工計画書 | H39: － | J39: ○ | K39: ○ | N39: 維持工事等簡易な工事においては、監督員の承諾を得て記載内容の一部を省略することができる。提出時期は、工期開始日から３０日以内。 作成内容については、「施工計画書(土木工事)作成の手引き」を参照すること。
E40: 36 | F40: 工事登録証明書（計画） | H40: － | J40: ○ | K40: ○ | N40: 建設副産物情報交換システム（コブリス）により作成し、施工計画書へ含めて提出。
E41: 37 | F41: 再生資源利用〔促進〕計画書 | H41: － | J41: ○ | K41: ○ | N41: 建設資材の搬入、建設副産物の搬出について、建設副産物情報交換システムにより作成し、施工計画書へ含めて提出。
C42: ２施工体制 | D42: ②施工体制 | E42: 38 | F42: 施工体制台帳 | G42: 上天草市下請契約報告事務取扱要領第２条第１項 | H42: 別記様式１ | J42: ○ | K42: ○ | N42: 工事を施工するために、下請契約を締結するすべてのものが対象。 下請契約締結の日から２１日以内に提出。 詳細は市HPの下請契約報告事務取扱要領を確認すること。
E43: 39 | F43: 下請負人に関する事項 | G43: 上天草市下請契約報告事務取扱要領第２条第１項 | H43: 別記様式２ | J43: ○ | K43: ○
E44: 40 | F44: 工事作業所災害防止協議会 兼施工体系図 | G44: 上天草市下請契約報告事務取扱要領第２条第１項、第３項 | H44: 別記様式３ | J44: ○ | K44: ○
E45: 41 | F45: 作業員名簿 | G45: 上天草市下請契約報告事務取扱要領第２条第１項、第３項 | H45: 別記様式４ | J45: ○ | K45: ○
E46: 42 | F46: 下請確認票 | G46: 上天草市下請契約報告事務取扱要領第２条第２項 | H46: 別記様式５ | J46: ○ | K46: ○ | N46: 工事を施工するために、下請契約を締結する100万円以上のものが対象。 詳細は市HPの下請契約報告事務取扱要領を確認すること。
E47: 43 | F47: 元請・下請関係内容表 | G47: 上天草市下請契約報告事務取扱要領第２条第２項 | H47: 別記様式６ | J47: ○ | K47: ○
E48: 44 | F48: 再下請負通知書 | G48: 上天草市下請契約報告事務取扱要領第２条第３項 | H48: 別記様式７ | J48: ○ | K48: ○ | N48: 下請負人が建設工事を他の建設業を営む者に請け負わせた場合は、その都度、次の書類を提出。 詳細は市HPの下請契約報告事務取扱要領を確認すること。
A49: 施工中 | B49: 工事書類 | C49: ３施工状況 | D49: ③施工管理 | E49: 45 | F49: 工事打合せ簿 | H49: 統一様式-9 | I49: ○ | J49: ○ | K49: ○ | N49: 随時
E50: 46 | F50: 確認・立会依頼書 | H50: 統一様式-12 | J50: ○ | K50: ○ | N50: 添付資料は机上の場合のみ、施工管理記録、写真等を添付。 監督員が臨場して段階確認した箇所は、出来形管理写真の撮影を省略できる。
E51: 47 | F51: 関係機関協議資料 （許可後の資料） | H51: － | J51: ○ | L51: ○ | N51: 許可後の資料については、許可書の写しを監督員に提出するか、しゅん工検査時に原本を持参。
E52: 48 | F52: 説明書 (建設ﾘｻｲｸﾙ法第12条関係) | G52: 建設工事に係る資材の再資源化等に関する法律第１２条 建設リサイクル法の取扱い | H52: 別記様式1 (説明書) | J52: ○ | K52: ○ | N52: 変更契約を行う際に、分別解体等の方法、解体工事に要する費用及び再資源化等に要する費用や、再資源化等をするための施設の名称及び所在地に変更が生じた場合は提出。土木工事等は請負額５００万円以上が対象。
E53: 49 | F53: 契約書別紙 (建設ﾘｻｲｸﾙ法第13条関係) | G53: 建設工事に係る資材の再資源化等に関する法律第１３条 建設リサイクル法の取扱い | H53: 別表1～ 契約書別表3 | J53: ○ | K53: ○ | N53: 変更契約を行う際に、分別解体等の方法、解体工事に要する費用及び再資源化等に要する費用や、再資源化等をするための施設の名称及び所在地に変更が生じた場合は提出。土木工事等は請負額５００万円以上が対象。
E54: 50 | F54: 施工計画書（変更） | H54: － | J54: ○ | K54: ○ | N54: 重要な変更が生じた場合は、その都度着手する前に変更施工計画書を提出。工期や数量増減だけの軽微な変更で施工計画に大きく影響しない場合は 変更施工計画書の提出は不要。
E55: 51 | F55: 事故速報 | H55: 統一様式-13 | J55: ○ | K55: ○ | N55: 事故発生の場合、直ちに監督員に通報し、監督員が指示する期日までに提出。
E56: 52 | F56: 工事履行報告書 | H56: 統一様式-14 | J56: ○ | K56: ○ | N56: 工事進捗を把握するため、実施工程表と状況写真を添付し、翌月５日（土・日・祝日の場合は次の平日）までに提出。 週休２日試行工事の対象工事は、休日（現場閉所）取得計画実績表を併せて提出。
E57: 53 | F57: 変更工程表 | G57: 上天草市公共工事請負契約約款第３条１項 | H57: 統一様式-3(2) | J57: ○ | K57: ○ | N57: 契約約款に基づく工期変更の請求を行う際の協議資料として提出。変更契約締結後においては１４日以内に提出。 また、変更契約締結前であっても、計画工程との差異が生じる場合は、監督員の指示により随時提出。
E58: 54 | F58: 出来形数量 | H58: － | J58: ○ | K58: ○ | N58: 監督員から請求があった場合速やかに提示し、工事完成時までに提出。 工事数量の計算等にあたっては、土木工事数量算出要領等及び設計図書を適用。
B59: 契約関係書類 | C59: 中間前払金 | E59: 55 | F59: 認定請求書 | G59: 上天草市公共工事請負契約約款第３４条５項 上天草市公共工事の代価の中間前金払制度要綱 | H59: 統一様式-15 | J59: ○ | K59: ○ | N59: 中間前金払を請求する場合に提出。
E60: 56 | F60: 進捗額算定内訳書 | G60: 上天草市公共工事の代価の中間前金払制度要綱 | H60: 様式-７ | J60: ○ | K60: ○ | N60: 中間前金払を請求する場合は、認定請求書と併せて提出。
E61: 57 | F61: 認定調書 | G61: 上天草市公共工事請負契約約款第３４条５項 上天草市公共工事の代価の中間前金払制度要綱 | H61: 様式-８ | I61: ○ | N61: 請求内容が妥当である場合は、受注者に交付。
E62: 58 | F62: 請求書（中間前金払） | G62: 上天草市公共工事請負契約約款第３４条４項 | H62: 統一様式-5(1)（中間） | J62: ○ | K62: ○
C63: 完済部分 検査 | E63: 59 | F63: 指定部分完成通知書 | G63: 上天草市公共工事請負契約約款第３８条１項 | H63: 統一様式-16 | J63: ○ | K63: ○ | N63: 発注者が設計図書において工事の完成に先立って引渡しを受けるべきことを指定した部分がある場合は、指定部分の工事が完了した際に提出。
E64: 60 | F64: 指定部分引渡書 | G64: 上天草市公共工事請負契約約款第３８条１項 | H64: 統一様式-17 | J64: ○ | K64: ○
E65: 61 | F65: 請求書（指定部分完済払金） | G65: 上天草市公共工事請負契約約款第３８条１項 | H65: 統一様式-5(1)（指定） | J65: ○ | K65: ○
C66: 既済部分 検査 | E66: 62 | F66: 出来形部分確認請求書 | G66: 上天草市公共工事請負契約約款第３７条２項 | H66: 統一様式-19 | J66: ○ | K66: ○ | N66: 部分払を請求する場合に提出。
E67: 63 | F67: 工事出来高内訳書 | G67: 上天草市公共工事請負契約約款第３７条２項 | H67: 様式－９ | J67: ○ | K67: ○ | N67: 部分払を請求する場合は、出来形部分確認請求書と併せて提出。
E68: 64 | F68: 請求書（部分払金） | G68: 上天草市公共工事請負契約約款第３７条５項 | H68: 統一様式-5(1)（部分） | J68: ○ | K68: ○
E69: 65 | F69: 請求内訳書 | G69: 上天草市公共工事請負契約約款第３７条５項 | H69: 統一様式-5(2) | J69: ○ | K69: ○ | N69: 部分払を請求する場合は、請求書（部分払金）と併せて提出。
C70: 部分使用 | E70: 66 | F70: 部分使用協議書・承諾書 | G70: 上天草市公共工事請負契約約款第３３条１項 | H70: 統一様式-22 | I70: ○ | J70: ○ | K70: ○ | N70: 部分使用がある場合に提出。
C71: 工期延期 | E71: 67 | F71: 工期延期届 | G71: 上天草市公共工事請負契約約款第２１条 | H71: 統一様式-23 | J71: ○ | K71: ○ | N71: 工期の延長を請求する場合に提出。
A72: 施工中 | B72: 契約関係書類 | C72: 支給材料・貸与品 | D72: 支給品 | E72: 68 | F72: 支給品受領書 | G72: 上天草市公共工事請負契約約款第１５条３項 | H72: 統一様式-24 | J72: ○ | K72: ○ | N72: 支給品の受領または貸与を受けた場合に提出。
E73: 69 | F73: 支給品精算書 | G73: 上天草市公共工事請負契約約款第１５条９項 | H73: 統一様式-25 | J73: ○ | K73: ○ | N73: 受領または貸与を受けた支給品を精算する場合に提出。
C74: 現場発生品 | E74: 70 | F74: 現場発生品調書 | H74: 統一様式-28 | J74: ○ | K74: ○ | N74: 現場発生品がある場合に提出。
A75: 工事完成時 | B75: 工事書類 （しゅん工書類として一括して提出） | E75: 71 | F75: 工事完成通知書（しゅん工届） | G75: 上天草市公共工事請負契約約款第３１条１項 | H75: 統一様式-29 | J75: ○ | K75: ○ | N75: 工事を完了した時に提出。
E76: 72 | F76: 着工前、竣工写真 | H76: － | J76: ○ | K76: ○ | N76: 着手前写真と完成写真は同一構図となるよう撮影し、起終点位置や重要な中間点にはポール等を立てて撮影。
E77: 73 | F77: 実施工程表 | H77: － | J77: ○ | K77: ○ | N77: 計画は黒、実績は赤で記載。
E78: 74 | F78: 出来形管理表 | H78: 様式－１０ | J78: ○ | K78: ○
E79: 75 | F79: 品質管理表 | H79: 様式－１１ | J79: ○ | K79: ○
E80: 76 | F80: 出来形管理資料 | H80: － | J80: ○ | K80: ○ | N80: 工程能力図、測定結果一覧表、出来形管理測定表等
E81: 77 | F81: 品質管理資料 | H81: － | J81: ○ | K81: ○ | N81: 試験（測定）結果報告書、試験成績表、記録表、配合報告書、検査規格書等
E82: 78 | F82: 安全管理資料 | H82: － | J82: ○ | L82: ○ | N82: 災害防止協議会活動記録、店社パトロール実施記録、安全巡視・ＴＢＭ・ＫＹ実施記録、新規入場者教育実施記録、過積載防止記録、使用機械等の点検整備記録、仮設物の点検管理記録、保安施設の点検管理記録はしゅん工検査時に持参。
E83: 79 | F83: 工事写真 | H83: － | J83: ○ | K83: ○ | N83: 施工状況写真、安全管理写真、使用材料写真、品質管理写真、出来形管理写真、検査写真、災害写真、事故写真、その他（公害、環境、補償等）
E84: 80 | F84: 再資源化等報告書 (建設ﾘｻｲｸﾙ法第18条関係) | G84: 建設工事に係る資材の再資源化等に関する法律第１８条 建設リサイクル法の取扱い | H84: 様式－２０ | J84: ○ | K84: ○ | N84: 土木工事等は請負額５００万円以上が対象。 特定建設資材を再資源化しなかった場合は不要。
E85: 81 | F85: 工事登録証明書（計画・実施） | H85: － | J85: ○ | K85: ○ | N85: 建設副産物情報交換システム（コブリス）により作成して提出。
E86: 82 | F86: 再生資源利用〔促進〕実施書 | H86: － | J86: ○ | K86: ○ | N86: 該当する建設資材を搬入または建設副産物を搬出した場合、建設副産物情報交換システムにより作成して提出。
E87: 83 | F87: 建設廃棄物処理実績集計表 | H87: 様式－１２ | J87: ○ | K87: ○ | N87: 建設廃棄物を処理した場合提出。
E88: 84 | F88: 産業廃棄物管理表（マニュフェスト） | H88: － | J88: ○ | L88: ○ | N88: 建設廃棄物を搬出した場合は監督員に提示し、建設廃棄物処理実績集計表と照合し確認を受け、しゅん工検査時に持参。
E89: 85 | F89: 安全・訓練等の実施状況報告書 | H89: 様式－１３ | J89: ○ | K89: ○ | N89: 実施内容に関する資料及び工事日報については、しゅん工検査時に持参し提示。
E90: 86 | F90: 工事特性・創意工夫・社会性等に関する実施状況調書 | H90: 統一様式-34(1) 様式－１４ | J90: ○ | K90: ○ | N90: 工事特性、創意工夫、地域社会への貢献等を実施した場合に提出。 説明資料として、写真・位置図等を添付。
E91: 87 | F91: 電子媒体納品書 | H91: 様式－１５ | J91: ○ | K91: ○ | N91: 電子納品対象工事の場合は電子媒体と併せて提出。
E92: 88 | F92: 資材等出荷伝票 | H92: － | J92: ○ | L92: ○ | N92: コンクリートについては、材料承認時の配合計画書と照合するため、しゅん工検査時に持参。
A93: 工事完成時 | B93: しゅん工検査後 | E93: 89 | F93: 破壊検査箇所復築完了届 | G93: 上天草市工事等検査規程第９条３項 上天草市工事等検査規程取扱要領第８条２項 | H93: 様式－１６ | J93: ○ | K93: ○ | N93: 破壊検査を実施した場合のみ提出。
E94: 90 | F94: 検査写真・破壊検査復旧写真 | H94: － | J94: ○ | K94: ○ | N94: 検査後速やかに提出。
E95: 91 | F95: 工事手直し請書 | G95: 上天草市工事等検査規程取扱要領第９条１項 | H95: 様式－１７ | J95: ○ | K95: ○ | N95: 検査の結果、不合格と認定された場合提出。
E96: 92 | F96: 手直し工事完了届 | G96: 上天草市公共工事請負契約約款第３１条６項 上天草市工事等検査規程取扱要領第１０条 | H96: 統一様式-21 | J96: ○ | K96: ○ | N96: 工事の手直しが完了した際に提出。
E97: 93 | F97: しゅん工認定書 | G97: 上天草市公共工事請負契約約款第３１条２項 | H97: － | I97: ○
E98: 94 | F98: 工事成績（修正）評定通知書 項目別評定点 | G98: 上天草市工事成績評定通知要領第３条 | H98: － | I98: ○ | N98: 河川掘削、崩土取除き、取壊し、草刈、点検、解体、設備機器の更新等を施工する工事を除く、最終請負金額１３０万以上の工事が対象。
E99: 95 | F99: 工事目的物引渡し申出書 | G99: 上天草市公共工事請負契約約款第３１条４項 | H99: 統一様式-30 | J99: ○ | K99: ○ | N99: しゅん工認定を受けた後、速やかに提出。
E100: 96 | F100: 請求書（完成代金） | G100: 上天草市公共工事請負契約約款第３２条１項 | H100: 統一様式-5(1)（完成） | J100: ○ | K100: ○
E101: 97 | F101: 保証書に係る受領書 | H101: 様式－１８ | J101: ○ | K101: ○ | N101: 入札工事は監理課、随意契約は発注課へ提出
E102: 98 | F102: 契約保証金還付請求書 | H102: 様式－１９ | J102: ○ | K102: ○ | N102: 入札工事は監理課、随意契約は発注課へ提出

Sheet 入力表
A2: 工事番号
A3: 工事名
A4: 工事場所
A5: 契約締結日
A6: 工期 | D6: ～
A7: 契約金額
A8: 現場代理人
A9: 主任（監理）技術者
A11: 住所
A12: 会社名
A13: 代表者肩書および氏名
A15: ※黄色着色セル書類は提出が必須です。 無着色セルの書類は状況に応じて提出下さい。
A16: 書類名 | D16: 提出年月日
A17: 課税（免税）事業者届出書
A18: 別記様式 上天草市暴力団排除条例に係る誓約書
A19: 様式－１ 着工届
A20: 統一様式-2 請負代金内訳書
A21: 統一様式-3(1) 工程表
A22: 統一様式-3(2) 変更工程表
A23: 統一様式-1 現場代理人・主任（監理）技術者通知書
A24: 統一様式-1(2) 経歴書
A25: 統一様式-1(3) 代理人・技術者 変更
A26: 統一様式-7 品質証明員通知書
A27: 統一様式-4 建設業退職金共済掛金収納書
A28: 様式－２ 購入遅延・無購入申出書
A29: 様式－３ 法定外労働災害補償制度加入証明書
A30: 統一様式-5(1) 請求書（前払金）
A31: 様式－４ 事前協議チェックシート（電子納品）
A32: 様式－５ 事前協議シート（情報共有システム）
A33: 様式－６ 工事中標識設置届
A34: 別記様式１ 施工体制台帳
A35: 別記様式４ 作業員名簿
A36: 別記様式７ 再下請負通知書
A37: 統一様式-9 工事打合せ簿
A38: 統一様式-12 確認・立会依頼書
A39: 統一様式-14 工事履行報告書
A40: 統一様式-15 認定請求書（中間前金払）
A41: 様式-７ 進捗額算定内訳書
A42: 統一様式-5(1) 請求書（中間前払金）
A43: 統一様式-16 指定部分完成通知書
A44: 統一様式-17 指定部分引渡書
A45: 統一様式-5(1) 請求書（指定部分完済払金）
A46: 統一様式-19 出来形部分確認請求書
A47: 統一様式-5(1) 請求書（部分払金）
A48: 統一様式-22 部分使用協議書・承諾書
A49: 統一様式-23 工事延期届
A50: 統一様式-24 支給品受領書
A51: 統一様式-25 支給品精算書
A52: 統一様式-28 現場発生品調書
A53: 統一様式-29 工事完成通知書（しゅん工届）
A54: 様式-２０ 再資源化等報告書
A55: 様式－１４ 創意工夫・社会性等に関する実施状況に係る開示の同意
A56: 様式-１６ 破壊検査箇所復築完了届
A57: 様式-１７ 工事手直し請書
A58: 統一様式-21 手直し工事完了届
A59: 統一様式-30 工事目的物引渡し申出書
A60: 統一様式-5(1) 請求書（完成代金）
A61: 様式－１８ 保証書に係る受領書
A62: 様式－１９ 契約保証金還付請求書

Sheet 建設ﾘｻｲｸﾙ用入力表
A1: リサイクル法関連提出書類の作成について
A3: ↓ 下記事項を入力してください
AG4: 一覧表へ戻る
A5: 商号又は名称 | F5: =IF(入力表!B12="","入力表に入力して下さい。",入力表!B12) -> 入力表に入力して下さい。 | AG5: 別記様式1（説明書）へ
A6: 代表者名 | F6: =IF(入力表!B13="","入力表に入力して下さい。",入力表!B13) -> 入力表に入力して下さい。
A7: 郵便番号
A8: 住所 | F8: =IF(入力表!B11="","入力表に入力して下さい。",入力表!B11) -> 入力表に入力して下さい。
A9: 電話番号
A10: 提出日
A11: 工事名 | F11: =IF(入力表!B3="","入力表に入力して下さい。",入力表!B3) -> 入力表に入力して下さい。
A12: 工事場所 | F12: =IF(入力表!B4="","入力表に入力して下さい。",入力表!B4) -> 入力表に入力して下さい。
B13: ↓ 今回の対象工事にチェック
A14: FALSE | C14: 建築物に係る解体工事（床面積８０㎡以上） | W14: 別表１ | AA14: 契約書別紙１
A15: FALSE | C15: 建築物（建築設備含む）の新築・増築工事（床面積５００㎡以上） | W15: 別表２ | AA15: 契約書別紙２
C16: 建築物（建築設備含む）の修繕・模様替え（リフォーム含む）工事（請負金額１億円以上）
A17: FALSE | C17: 建築物以外の工事（土木工事・土木関連設備工事）（請負金額５００万円以上） | W17: 別表３ | AA17: 契約書別紙３
A19: =IF(OR(A15=TRUE,A16=TRUE),TRUE,FALSE) -> FALSE | B19: 今回の対象のチェックの右側のリンク先の様式及び説明書を作成し印刷して主任監督員の確認印を押してもらうこと。

Sheet 別記様式1(説明書)
A1: 建設リサイクル法第１２条関係様式
A2: （別記様式１） | S2: 確認印
W3: 一覧表へ戻る
W4: 建設ﾘｻｲｸﾙ用入力表へ戻る
A7: 説 明 書
N8: 令和 | P8: =IF(建設ﾘｻｲｸﾙ用入力表!F10="","",建設ﾘｻｲｸﾙ用入力表!F10) ->  | Q8: 年 | R8: =IF(建設ﾘｻｲｸﾙ用入力表!F10="","",建設ﾘｻｲｸﾙ用入力表!F10) ->  | S8: 月 | T8: =IF(建設ﾘｻｲｸﾙ用入力表!F10="","",建設ﾘｻｲｸﾙ用入力表!F10) ->  | U8: 日
A10: （発注者）
A11: 上天草市長 | D11: 堀江 隆臣 | G11: 様
K12: =IF(建設ﾘｻｲｸﾙ用入力表!F5="","",建設ﾘｻｲｸﾙ用入力表!F5) -> 入力表に入力して下さい。
I13: 氏 名 | K13: =IF(建設ﾘｻｲｸﾙ用入力表!F6="",""," "&建設ﾘｻｲｸﾙ用入力表!F6) -> 入力表に入力して下さい。 | U13: 印
I14: =IF(建設ﾘｻｲｸﾙ用入力表!F7="","","(郵便番号"&建設ﾘｻｲｸﾙ用入力表!F7&")"&" 電話番号 "&建設ﾘｻｲｸﾙ用入力表!F9) -> 
I15: 住 所 | K15: =IF(建設ﾘｻｲｸﾙ用入力表!F8="","",建設ﾘｻｲｸﾙ用入力表!F8) -> 入力表に入力して下さい。
A18: 建設工事に係る資材の再資源化等に関する法律第１２条第１項の規定により、対象建設工事
A19: の分別解体等の計画等に係る事項について説明します。
A21: 記
B23: １．工事の名称 | G23: =IF(建設ﾘｻｲｸﾙ用入力表!F11="","",建設ﾘｻｲｸﾙ用入力表!F11) -> 入力表に入力して下さい。
B24: ２．工事の場所 | G24: =IF(建設ﾘｻｲｸﾙ用入力表!F12="","",建設ﾘｻｲｸﾙ用入力表!F12) -> 入力表に入力して下さい。
B25: ３．説明の内容 | G25: 添付資料のとおり
B26: ４．添付資料
D27: 別表（別紙１～３のいずれかに必要事項を記載したもの）
E28: 別表１（建築物に係る解体工事）
E29: 別表２（建築物に係る新築工事等（新築・増築・修繕・模様替等））
E30: 別表３（建築物以外のものに係る解体工事又は新築工事等（土木工事等））

Sheet 別表1
A1: 別表１
X2: 建築物に係る解体工事 | AO2: 建設ﾘｻｲｸﾙ用入力表へ戻る
A3: 分別解体等の計画等
A4: 建築物の構造 | L4: 木造 | P4: 鉄骨鉄筋コンクリート造 | AA4: 鉄筋コンクリート造
L5: 鉄骨造 | Q5: コンクリートブロック造 | Z5: FALSE | AB5: その他( | AH5: )
A6: 建築物に関する調査の結果 | E6: 建築物の状況 | K6: 築年数 | P6: 年、棟数 | V6: 棟
K7: その他（ | AE7: ）
E8: 周辺状況 | K8: 周辺にある施設 | R8: 住宅 | V8: 商業施設 | AB8: 学校
R9: 病院 | U9: FALSE | V9: その他( | AF9: )
K10: 敷地境界との最短距離 | T10: 約 | W10: ｍ
K11: その他（ | AE11: ）
A12: 建築物に関する調査の結果及び工事着手前に実施する措置の内容 | K12: 建築物に関する調査の結果 | W12: 工事着手前に実施する措置の内容
E13: 作業場所 | K13: 作業場所 | P13: 十分 | T13: 不十分
K14: その他( | V14: )
E15: 搬出経路 | K15: 障害物 | N15: FALSE | O15: 有 | V15: 無
K16: 前面通路の幅員 約 | T16: ｍ
K17: 通学路 | P17: 有 | T17: 無
K18: その他( | V18: )
E19: 残存物品 | L19: FALSE | M19: 有
L20: ( | V20: )
M21: 無
E22: 特定建設資材への付着物 | L22: FALSE | M22: 有
L23: ( | V23: )
M24: 無
E25: その他
A27: 工程ごとの作業内容及び解体方法 | B27: 工程 | L27: 作業内容 | X27: 分別解体等の方法
B28: ①建築設備・内装材等 | L28: 建築設備・内装材等の取り外し | Y28: 手作業
N29: 有 | S29: 無 | Y29: 手作業・機械作業の併用
X30: 併用の理由（ | AH30: )
B31: ②屋根ふき材 | L31: 屋根ふき材の取り外し | Y31: 手作業
N32: 有 | S32: 無 | Y32: 手作業・機械作業の併用
X33: 併用の理由（ | AH33: )
B34: ③外装材・上部構造部分 | L34: 外装材・上部構造物分の取り壊し | Y34: 手作業
N35: 有 | S35: 無 | Y35: 手作業・機械作業の併用
B36: ④基礎・基礎ぐい | L36: 基礎・基礎ぐいの取り壊し | Y36: 手作業
N37: 有 | S37: 無 | Y37: 手作業・機械作業の併用
B38: ⑤その他 | L38: その他の取り壊し | Y38: 手作業
B39: （ | K39: ) | N39: 有 | S39: 無 | Y39: 手作業・機械作業の併用
A40: 工事の工程の順序 | M40: 上の工程における①→②→③→④の順序
L41: FALSE | M41: その他( | AA41: ）
M42: その他の理由（ | AD42: ）
A43: 内装材に木材が含まれる場合 | L43: ①の工程における木材の分別に支障となる建設資材の事前の取り外し
N44: 可 | R44: FALSE | S44: 不可
M45: 不可の理由（ | AH45: )
A46: 建築物に用いられた建設資材の量の見込み | S46: トン
A47: 廃棄物発生見込量 | B47: 特定建設資材廃棄物の種類ごとの量の見込み及びその発生が見込まれる建築物の部分 | L47: 種類 | V47: 量の見込み | Z47: 発生が見込まれる部分(注)
L48: FALSE | M48: コンクリート塊 | Y48: ｔ | AA48: ① | AC48: ② | AE48: ③ | AG48: ④
AA49: ⑤
L50: FALSE | M50: アスファルト・コンクリート塊 | Y50: ｔ | AA50: ① | AC50: ② | AE50: ③ | AG50: ④
AA51: ⑤
L52: FALSE | M52: 建設発生木材 | Y52: ｔ | AA52: ① | AC52: ② | AE52: ③ | AG52: ④
AA53: ⑤
B54: (注)①建築設備・内装材等 ②屋根ふき材 ③外装材・上部構造部分 ④基礎・基礎ぐい ⑤その他
A55: 備考

Sheet 契約書別紙1
A1: 建設リサイクル法第１３条関係様式
A2: （別記様式２）契約書別紙
A3: 別表１ | AA3: 建設ﾘｻｲｸﾙ用入力表へ戻る
Q4: 建築物に係る解体工事
A5: １．分別解体等の方法
A7: 工程ごとの作業内容及び解体方法 | B7: 工程 | G7: 作業内容 | P7: 分別解体等の方法
B8: ①建築設備・内装材等 | G8: 建築設備・内装材等の取り外し | Q8: 手作業
I9: 有 | L9: 無 | Q9: 手作業・機械作業の併用
P10: 併用の場合は理由( | U10: =IF(別表1!AC30="","",別表1!AC30) ->  | X10: )
B11: ②屋根ふき材 | G11: 屋根ふき材の取り外し | Q11: 手作業
I12: 有 | L12: 無 | Q12: 手作業・機械作業の併用
P13: 併用の場合は理由( | U13: =IF(別表1!AC33="","",別表1!AC33) ->  | X13: )
B14: ③外装材・上部構造部分 | G14: 外装材・上部構造物の取り壊し | Q14: 手作業
I15: 有 | L15: 無 | Q15: 手作業・機械作業の併用
B16: ④基礎・基礎ぐい | G16: 基礎・基礎ぐいの取り壊し | Q16: 手作業
I17: 有 | L17: 無 | Q17: 手作業・機械作業の併用
B18: ⑤その他 | G18: その他の取り壊し | Q18: 手作業
B19: （ | C19: =IF(別表1!C39="","",別表1!C39) ->  | F19: ） | I19: 有 | L19: 無 | Q19: 手作業・機械作業の併用
A21: （注）分別解体等の方法については、該当がない場合は記載の必要はない。
A23: ２．解体工事に要する費用（直接工事費） | S23: 円（税抜き）
A24: （注）・解体工事の場合のみ記載。
A25: ・解体工事に伴う分別解体及び積込みに要する費用と。
A26: ・解体工事に伴う仮設費及び運搬費は含まない。
A28: ３．再資源化等をする施設の名称及び所在地
A30: 特定建設資材廃棄物の種類 | J30: 施設の名称 | Q30: 所在地
A35: ４．再資源化等に要する費用（直接工事費） | S35: 円（税抜き）
E36: [運搬費を含む]
B38: （注）・記載に当たっては、設計図書等に基づく金額を記入すること。

Sheet 別表2
A1: 別表２
O2: 建築物に係る新築工事等（新築・増築・修繕・模様替）
A3: 分別解体等の計画等 | AJ3: 建設ﾘｻｲｸﾙ用入力表へ戻る
A4: 使用する特定建設 資材の種類 | L4: コンクリート | S4: コンクリート及び鉄から成る建設資材
L5: アスファルト・コンクリート | Y5: 木材
A6: 建築物に関する調査の結果 | E6: 建築物の状況 | K6: 築年数 | P6: 年、棟数 | V6: 棟
K7: その他（ | AE7: ）
E8: 周辺状況 | K8: 周辺にある施設 | R8: 住宅 | V8: 商業施設 | AB8: 学校
R9: 病院 | U9: FALSE | V9: その他( | AF9: )
K10: 敷地境界との最短距離 | T10: 約 | W10: ｍ
K11: その他（ | AE11: ）
A12: 建築物に関する調査の結果及び工事着手前に実施する措置の内容 | K12: 建築物に関する調査の結果 | W12: 工事着手前に実施する措置の内容
E13: 作業場所 | K13: 作業場所 | P13: 十分 | T13: 不十分
K14: その他( | V14: )
E16: 搬出経路 | K16: 障害物 | N16: FALSE | O16: 有 | V16: 無
K17: 前面通路の幅員 約 | T17: ｍ
K18: 通学路 | P18: 有 | T18: 無
K19: その他( | V19: )
E20: 特定建設資材への付着物（修繕・模様替工事のみ） | L20: FALSE | M20: 有
L21: ( | V21: )
M22: 無
E23: その他
A25: 工程ごとの作業内容 | B25: 工程 | L25: 作業内容
B26: ①造成等 | L26: 造成等の工事 | X26: 有 | AB26: 無
B27: ②基礎・基礎ぐい | L27: 基礎・基礎ぐいの工事 | X27: 有 | AB27: 無
B28: ③上部構造部分・外装 | L28: 上部構造部分・外装の工事 | X28: 有 | AB28: 無
B29: ④屋根 | L29: 屋根の工事 | X29: 有 | AB29: 無
B30: ⑤建築設備・内装 | L30: 建築設備・内装等の工事 | X30: 有 | AB30: 無
B31: ⑥その他 | L31: その他の工事 | X31: 有 | AB31: 無 | AK31: FALSE
B32: （ | K32: )
A33: 廃棄物発生見込量 | B33: 特定建設資材廃棄物の種類ごとの量の見込み並びに特定建設資材が使用される建築物の部分及び特定建設資材廃棄物の発生が見込まれる建築物の部分 | L33: 種類 | V33: 量の見込み | Z33: 発生が見込まれる部分(注)
L34: FALSE | M34: コンクリート塊 | Y34: ｔ | AA34: ① | AC34: ② | AE34: ③ | AG34: ④
AA35: ⑤ | AC35: ⑥
L36: FALSE | M36: アスファルト・コンクリート塊 | Y36: ｔ | AA36: ① | AC36: ② | AE36: ③ | AG36: ④
AA37: ⑤ | AC37: ⑥
L38: FALSE | M38: 建設発生木材 | Y38: ｔ | AA38: ① | AC38: ② | AE38: ③ | AG38: ④
AA39: ⑤ | AC39: ⑥
B40: (注)①造成等 ②基礎 ③上部構造部分・外装 ④屋根 ⑤建築設備・内装等 ⑥その他
A41: 備考

Sheet 契約書別紙2
A1: 建設リサイクル法第１３条関係様式
A2: （別記様式２）契約書別紙
A3: 別表２ | Z3: 建設ﾘｻｲｸﾙ用入力表へ戻る
J4: 建築物に係る新築工事等（新築・増築・修繕・模様替等）
A5: １．分別解体等の方法
A7: 工程ごとの作業内容及び解体方法 | B7: 工程及び作業内容
B8: ①造成等 | J8: 造成等の工事
L9: 有 | O9: 無
B11: ②基礎・基礎ぐい | J11: 基礎・基礎ぐいの工事
L12: 有 | O12: 無
B14: ③上部構造物・外装 | J14: 上部構造物・外装の工事
L15: 有 | O15: 無
B17: ④屋根 | J17: 屋根の工事
L18: 有 | O18: 無
B20: ⑤建築設備・内装等 | J20: 建築設備・内装等の工事
L21: 有 | O21: 無
B23: ⑥その他 | J23: その他の工事
L24: 有 | O24: 無
B25: （ | C25: =IF(別表2!C32="","",別表2!C32) ->  | I25: ）
A27: （注）分別解体等の方法については、該当がない場合は記載の必要はない。
A29: ２．解体工事に要する費用（直接工事費） | S29: 円（税抜き）
A31: ３．再資源化等をする施設の名称及び所在地
A33: 特定建設資材廃棄物の種類 | J33: 施設の名称 | Q33: 所在地
A39: ４．再資源化等に要する費用（直接工事費） | S39: 円（税抜き）
E40: [運搬費を含む]
B42: （注）・記載に当たっては、設計図書等に基づく金額を記入すること。

Sheet 別表3
A1: 別表３
K2: 建築物以外のものに係る解体工事又は新築工事等(土木工事等)
A3: 分別解体等の計画等 | AO3: 建設ﾘｻｲｸﾙ用入力表へ戻る
A4: 工作物の構造 （解体工事のみ） | L4: 鉄筋コンクリート造 | V4: その他( | AH4: ) | AJ4: FALSE
A6: 工事の種類 | L6: 新築工事 | R6: 維持・修繕工事 | Z6: 解体工事
L7: 電気 | P7: 水道 | T7: ガス | X7: 下水道 | AC7: 鉄道 | AG7: 電話
L8: その他 | O8: ( | AG8: ） | AJ8: FALSE
A9: 使用する特定建設資材の種類 （新築・維持・修繕工事のみ） | L9: コンクリート | S9: コンクリート及び鉄から成る建設資材
L10: アスファルト・コンクリート | Y10: 木材
A11: 工作物に関する調査の結果 | E11: 工作物の状況 | K11: 築年数 | P11: 年
K12: その他（ | AE12: ）
E13: 周辺状況 | K13: 周辺にある施設 | R13: 住宅 | V13: 商業施設 | AB13: 学校
R14: 病院 | V14: その他( | AF14: ) | AJ14: FALSE
K15: 敷地境界との最短距離 | T15: 約 | W15: ｍ
K16: その他（ | AE16: ）
A17: 工作物に関する調査の結果及び工事着手前に実施する措置の内容 | K17: 建築物に関する調査の結果 | W17: 工事着手前に実施する措置の内容
E18: 作業場所 | K18: 作業場所 | P18: 十分 | T18: 不十分
K19: その他( | V19: )
E20: 搬出経路 | K20: 障害物 | N20: FALSE | O20: 有 | V20: 無
K21: 前面通路の幅員 約 | T21: ｍ
K22: 通学路 | P22: 有 | T22: 無
K23: その他( | V23: )
E24: 特定建設資材への付着物（解体・維持・修繕工事のみ) | L24: FALSE | M24: 有
L25: ( | V25: )
M26: 無
E27: その他
A29: 工程ごとの作業内容及び解体方法 | B29: 工程 | L29: 作業内容 | X29: 分別解体等の方法
B30: ①仮設 | L30: 仮設工事 | Y30: 手作業
N31: 有 | S31: 無 | Y31: 手作業・機械作業の併用
B32: ②土工 | L32: 土工事 | Y32: 手作業
N33: 有 | S33: 無 | Y33: 手作業・機械作業の併用
B34: ③基礎 | L34: 基礎工事 | Y34: 手作業
N35: 有 | S35: 無 | Y35: 手作業・機械作業の併用
B36: ④本体構造 | L36: 本体構造の工事 | Y36: 手作業
N37: 有 | S37: 無 | Y37: 手作業・機械作業の併用
B38: ⑤本体付属品 | L38: 本体付属品の工事 | Y38: 手作業
N39: 有 | S39: 無 | Y39: 手作業・機械作業の併用
B40: ⑥その他 | L40: その他の工事 | Y40: 手作業
B41: （ | K41: ) | N41: 有 | S41: 無 | Y41: 手作業・機械作業の併用
A42: 工事の工程の順序 （解体工事のみ） | M42: 上の工程における⑤→④→③の順序
L43: FALSE | M43: その他( | AA43: ）
M44: その他の理由（ | AD44: ）
A45: 工作物に用いられた建設資材の量の見込み（解体工事のみ） | S45: トン
A46: 廃棄物発生見込量 | B46: 特定建設資材廃棄物の種類ごとの量の見込み(全工事)並びに特定建設資材が使用される工作物の部分(新築・維持・修繕工事のみ)及び特定建設資材廃棄物の発生が見込まれる工作物の部分(維持・修繕・解体工事のみ) | L46: 種類 | V46: 量の見込み | Z46: 使用する部分又は発生が見込まれる部分(注)
L47: FALSE | M47: コンクリート塊 | Y47: ｔ | AA47: ① | AC47: ② | AE47: ③ | AG47: ④
AA48: ⑤ | AC48: ⑥
L49: FALSE | M49: アスファルト・コンクリート塊 | Y49: ｔ | AA49: ① | AC49: ② | AE49: ③ | AG49: ④
AA50: ⑤ | AC50: ⑥
L51: FALSE | M51: 建設発生木材 | Y51: ｔ | AA51: ① | AC51: ② | AE51: ③ | AG51: ④
AA52: ⑤ | AC52: ⑥
B53: (注)①仮設 ②土工 ③基礎 ④本体構造 ⑤本体付属品 ⑥その他
A54: 備考

Sheet 契約書別紙3
A1: 建設リサイクル法第１３条関係様式
A2: （別記様式２）契約書別紙
A3: 別表３ | Z3: 建設ﾘｻｲｸﾙ用入力表へ戻る
H4: 建築物以外のものに係る解体工事又は新築工事（土木工事等）
A5: １．分別解体等の方法
A6: 工程ごとの作業内容及び解体方法 | B6: 工程及び作業内容 | P6: 分別解体等の方法
B7: ①仮設 | G7: 工事 | Q7: 手作業
I8: 有 | L8: 無 | Q8: 手作業・機械作業の併用
B10: ②土工 | G10: 工事 | Q10: 手作業
I11: 有 | L11: 無 | Q11: 手作業・機械作業の併用
B13: ③基礎 | G13: 工事 | Q13: 手作業
I14: 有 | L14: 無 | Q14: 手作業・機械作業の併用
B16: ④本体構造 | G16: 工事 | Q16: 手作業
I17: 有 | L17: 無 | Q17: 手作業・機械作業の併用
B19: ⑤本体付属品 | G19: 工事 | Q19: 手作業
I20: 有 | L20: 無 | Q20: 手作業・機械作業の併用
B22: ⑥その他 | G22: 工事 | Q22: 手作業
I23: 有 | L23: 無 | Q23: 手作業・機械作業の併用
B24: （ | C24: =IF(別表3!C41="","",別表3!C41) ->  | F24: ）
A25: （注）分別解体等の方法については、該当がない場合は記載の必要はない。
A27: ２．解体工事に要する費用（直接工事費） | S27: 円（税抜き）
A28: （注）・解体工事の場合のみ記載。
A29: ・解体工事に伴う分別解体及び積込みに要する費用と。
A30: ・解体工事に伴う仮設費及び運搬費は含まない。
A32: ３．再資源化等をする施設の名称及び所在地
A33: 特定建設資材廃棄物の種類 | J33: 施設の名称 | Q33: 所在地
A39: ４．再資源化等に要する費用（直接工事費） | S39: 円（税抜き）
E40: [運搬費を含む]
B42: （注）・記載に当たっては、設計図書等に基づく金額を記入すること。

Sheet 様式
AD1: 一覧表へ戻る
J2: 課税事業者届出書 | AD2: 入力表へ戻る
V4: =IF(入力表!D17="","令和 年 月 日",入力表!D17) -> 令和 年 月 日
A6: 上天草市長 堀江 隆臣 様
N8: 住 所 | T8: =IF(入力表!B11="","",入力表!B11) ->  | AG8: 課税事業者届出書
N9: 商号又は名称 | T9: =IF(入力表!B12="","",入力表!B12) ->  | AG9: 免税事業者届出書
N10: 代表者氏名 | T10: =IF(入力表!B13="","",入力表!B13) ->  | AC10: ㊞
AG11: 下記の期間について、消費税及び地方消費税の課税事業者（消費税法第9条第1項本文の規定により消費税及び地方消費税を納める義務が免除される事業者でない）であるのでその旨届け出ます。
A12: =IF(J2=AG8,AG11,AG12) -> 下記の期間について、消費税及び地方消費税の課税事業者（消費税法第9条第1項本文の規定により消費税及び地方消費税を納める義務が免除される事業者でない）であるのでその旨届け出ます。 | AG12: 下記の期間について、消費税及び地方消費税の免税事業者（消費税法第9条第1項本文の規定により消費税及び地方消費税を納める義務が免除される事業者である）であるのでその旨届け出ます。
A14: 記
C17: 課税期間 | M17: ～

Sheet 別記様式
A1: 別記様式
AF2: 一覧表へ戻る
V3: =IF(入力表!D18="","令和 年 月 日",入力表!D18) -> 令和 年 月 日 | AF3: 入力表へ戻る
A5: 上天草市長 堀江 隆臣 様
M7: 住 所 | S7: =IF(入力表!B11="","",入力表!B11) -> 
M8: 商号又は名称 | S8: =IF(入力表!B12="","",入力表!B12) -> 
M9: 代表者氏名 | S9: =IF(入力表!B13="","",入力表!B13) ->  | AD9: ㊞
A11: 上天草市暴力団排除条例に係る誓約書
A12: 私は、上天草市暴力団排除条例（以下「条例」という。）に基づき、条例の趣旨を理解した上で、上天草市が行う公共工事により暴力団を利することとならないように、下記の事項について誓約します。 これらの事項と相違することが判明した場合には、上天草市長が行う契約解除等の措置について、異議の申立てを行いません。 なお、誓約事項の確認等のために、上天草市長が熊本県警察本部等に対し照会を行うことについて同意します。
A14: 記
B16: １ | C16: 次に掲げる者が条例第２条に規定する暴力団員等ではないこと。
C17: （１） 法人である場合 代表者及び役員
C18: （２） 個人事業主である場合 代表者
C19: （３） 個人である場合 個人本人
B20: ２ | C20: 上記１の各号に掲げる者が、暴力団員等と社会的に非難される関係を有していないこと。
B21: ３ | C21: 暴力団員等を雇用していないこと。
B22: ４ | C22: 暴力団及び暴力団員等が実質的に経営に参加しないこと。
B23: ５ | C23: 上天草市の発注する公共工事について、下請負人に発注する場合は、上記１から４までの事項を満たす者のみを下請負人とすること。
B24: ６ | C24: 条例第１３条の規定により、業務に関して報告又は資料の提出を求められたときは、速やかに提出すること。
A25: 以上
A28: 工事番号： | E28: =IF(入力表!B2="","",入力表!B2) -> 
A29: 工 事 名： | E29: =IF(入力表!B3="","",入力表!B3) -> 

Sheet 様式-1
A1: 様式-１
A4: 着 工 届 | AG4: 一覧表へ戻る
AG5: 入力表へ戻る
C10: １ | E10: 工事番号 | J10: =IF(入力表!B2="","",入力表!B2) -> 
C11: ２ | E11: 工事名 | J11: =IF(入力表!B3="","",入力表!B3) -> 
C12: ３ | E12: 工事場所 | J12: =IF(入力表!B4="","",入力表!B4) -> 
C13: ４ | E13: 契約年月日 | J13: =IF(入力表!B5="","令和 年 月 日",入力表!B5) -> 令和 年 月 日
C14: ５ | E14: 工事期間 | J14: 自 | K14: =IF(入力表!B6="","令和 年 月 日",入力表!B6) -> 令和 年 月 日
J15: 至 | K15: =IF(入力表!E6="","令和 年 月 日",入力表!E6) -> 令和 年 月 日
C17: ６ | E17: 着工年月日
E20: 上記のとおり着工しましたので届けます。
L26: =IF(入力表!D19="","令和 年 月 日",入力表!D19) -> 令和 年 月 日
M29: 住所 | R29: =IF(入力表!B11="","",入力表!B11) -> 
M30: 商号又は名称 | R30: =IF(入力表!B12="","",入力表!B12) -> 
M31: 代表者氏名 | R31: =IF(入力表!B13="","",入力表!B13) ->  | AC31: ㊞
F40: 上天草市長 堀 江 隆 臣 様

Sheet 統一様式-2
A1: 統一様式－２
S2: =IF(入力表!D20="","令和 年 月 日",入力表!D20) -> 令和 年 月 日
AB3: 一覧表へ戻る
A5: 上天草市長 堀江 隆臣 様 | AB5: 入力表へ戻る
P8: =IF(入力表!B11="","",入力表!B11) -> 
N9: （受注者） | P9: =IF(入力表!B12="","",入力表!B12) -> 
P10: =IF(入力表!B13="","",入力表!B13) ->  | Y10: ㊞
A12: 請負代金内訳書
A13: 工事番号 | D13: =IF(入力表!B2="","",入力表!B2) -> 
A14: 工事名 | D14: =IF(入力表!B3="","",入力表!B3) -> 
A15: 契約年月日 | D15: =IF(入力表!B5="","令和 年 月 日",入力表!B5) -> 令和 年 月 日
A16: 工 期 | D16: =IF(入力表!B6="","令和 年 月 日",入力表!B6) -> 令和 年 月 日 | J16: ～ | K16: =IF(入力表!E6="","令和 年 月 日",入力表!E6) -> 令和 年 月 日
Y17: （単位：千円）
A18: 工事区分 | D18: 工 種 | I18: 種別 | K18: 細別 | M18: 規 格 | P18: 単位 | R18: 員数 | T18: 単価 | W18: 金 額
A19: Ａ 直接工事費
A29: Ｂ その他の経費
A30: 共通仮設費
A31: 現場管理費
A32: 一般管理費
A33: Ｃ 産廃税
A34: Ｄ 工事価格計（Ａ＋Ｂ＋Ｃ）
A35: Ｅ 消費税及び地方消費税相当額
A36: Ｆ 工事費計（Ｄ＋Ｅ）
A37: 工事価格のうち、現場労働者に関する健康保険、厚生年金保険及び雇用保険の法定の
A38: 事業主負担額 | I38: 円

Sheet 統一様式-3(1)
A1: 統一様式－３(1)
A2: 工 程 表 | AV2: 一覧表へ戻る
AM3: =IF(入力表!D21="","令和 年 月 日",入力表!D21) -> 令和 年 月 日 | AV3: 入力表へ戻る
A4: 上天草市長 堀江 隆臣 様
A7: 工事番号 | F7: =IF(入力表!B2="","",入力表!B2) ->  | AH7: =IF(入力表!B11="","",入力表!B11) -> 
A8: 工事名 | F8: =IF(入力表!B3="","",入力表!B3) ->  | AF8: （受注者） | AH8: =IF(入力表!B12="","",入力表!B12) -> 
A9: 工 期 | F9: 自 | G9: =IF(入力表!B6="","令和 年 月 日",入力表!B6) -> 令和 年 月 日 | P9: 至 | Q9: =IF(入力表!E6="","令和 年 月 日",入力表!E6) -> 令和 年 月 日 | AH9: =IF(入力表!B13="","",入力表!B13) -> 
H11: 月 | O11: 月 | U11: 月 | AA11: 月 | AG11: 月 | AM11: 月 | AS11: 月
H13: 日 | J13: 1 | L13: 11 | N13: 21 | P13: 1 | R13: 11 | T13: 21 | V13: 1 | X13: 11 | Z13: 21 | AB13: 1 | AD13: 11 | AF13: 21 | AH13: 1 | AJ13: 11 | AL13: 21 | AN13: 1 | AP13: 11 | AR13: 21
B14: 工 種
A33: 記載要領 | E33: 1 工種は工事数量総括表の工種を記載。（工種以外でも必要なものは、記載。）
E34: 2 予定工程は黒実線をもって表示。

Sheet 統一様式-3(2)
A1: 統一様式－３(2)
A2: 変 更 工 程 表 | AV2: 一覧表へ戻る
AM3: =IF(入力表!D22="","令和 年 月 日",入力表!D22) -> 令和 年 月 日 | AV3: 入力表へ戻る
A4: 上天草市長 堀江 隆臣 様
A7: 工事番号 | F7: =IF(入力表!B2="","",入力表!B2) ->  | AH7: =IF(入力表!B11="","",入力表!B11) -> 
A8: 工事名 | F8: =IF(入力表!B3="","",入力表!B3) ->  | AF8: （受注者） | AH8: =IF(入力表!B12="","",入力表!B12) -> 
A9: 工 期 | F9: 自 | G9: =IF(入力表!B6="","令和 年 月 日",入力表!B6) -> 令和 年 月 日 | P9: 至 | Q9: =IF(入力表!E6="","令和 年 月 日",入力表!E6) -> 令和 年 月 日 | AH9: =IF(入力表!B13="","",入力表!B13) -> 
H11: 月 | O11: 月 | U11: 月 | AA11: 月 | AG11: 月 | AM11: 月 | AS11: 月
H13: 日 | J13: 1 | L13: 11 | N13: 21 | P13: 1 | R13: 11 | T13: 21 | V13: 1 | X13: 11 | Z13: 21 | AB13: 1 | AD13: 11 | AF13: 21 | AH13: 1 | AJ13: 11 | AL13: 21 | AN13: 1 | AP13: 11 | AR13: 21
B14: 工 種
A33: 記載要領 | E33: 1 工種は工事数量総括表の工種を記載。（工種以外でも必要なものは、記載。）
E34: 2 当初契約の工程は黒実線をもって表示。また、変更契約の工程は下段に黒点線もしくは赤実線をもって表示。

Sheet 統一様式-1
A1: 統一様式－１
AA3: 一覧表へ戻る
A4: 現場代理人・主任（監理）技術者 通知書 | AA4: 入力表へ戻る
S7: =IF(入力表!D23="","令和 年 月 日",入力表!D23) -> 令和 年 月 日
D10: 上天草市長 堀江 隆臣 様
P13: =IF(入力表!B11="","",入力表!B11) -> 
N14: （受注者） | P14: =IF(入力表!B12="","",入力表!B12) -> 
P15: =IF(入力表!B13="","",入力表!B13) ->  | W15: ㊞
D20: =" "&IF(入力表!B5="","令和 年 月 日",TEXT(入力表!B5,"ggge年m月d日"))&"付けをもって請負契約を締結した "&IF(入力表!B2="","",入力表!B2)&" "&IF(入力表!B3="","",入力表!B3)&" について上天草市公共工事請負契約約款第10条に基づき現場代理人等を下記のとおり定めたので通知します。" -> 令和 年 月 日付けをもって請負契約を締結した について上天草市公共工事請負契約約款第10条に基づき現場代理人等を下記のとおり定めたので通知します。
A27: 記
D30: 現場代理人氏名 | I30: =IF(入力表!B8="","",入力表!B8) -> 
D33: 主任技術者又は | I33: =IF(入力表!B9="","",入力表!B9) -> 
D34: 監理技術者氏名※
D37: 専門技術者氏名
D40: ※ | E40: 「経歴書」、「資格者証（写し）」及び「３ヶ月以上の雇用が証明できるもの」を添付。

Sheet 統一様式-1(2)
A1: 統一様式－１(2)
AB2: 一覧表へ戻る
AB3: 入力表へ戻る
U5: =IF(入力表!D24="","令和 年 月 日",入力表!D24) -> 令和 年 月 日
A9: 経 歴 書
G14: 印
C17: 現 住 所
C20: 生 年 月 日
C23: ＊最 終 学 歴
C26: 資格及び資格番号
C29: 職 歴
C32: ＊工 事 経 歴
N35: ＊は、必要により記載。

Sheet 統一様式-1(3)
A1: 統一様式－１(3)
K2: 一覧表へ戻る
K3: 入力表へ戻る
G4: =IF(入力表!D25="","令和 年 月 日",入力表!D25) -> 令和 年 月 日
A7: 上天草市長 堀江 隆臣 様
F9: =IF(入力表!B11="","",入力表!B11) -> 
E10: （受注者） | F10: =IF(入力表!B12="","",入力表!B12) -> 
F11: =IF(入力表!B13="","",入力表!B13) ->  | I11: ㊞
A14: 現場代理人・主任（監理）技術者 変更通知書
A17: 工事番号 | B17: =IF(入力表!B2="","",入力表!B2) -> 
A18: 工事名 | B18: =IF(入力表!B3="","",入力表!B3) -> 
A21: =" "&IF(入力表!D23="","令和 年 月 日",TEXT(入力表!D23,"ggge年m月d日"))&"付けで通知した上記工事の現場代理人及び技術者を下記のとおり変更したいので、" -> 令和 年 月 日付けで通知した上記工事の現場代理人及び技術者を下記のとおり変更したいので、
A23: 上天草市公共工事請負契約約款第10条第1項に基づき通知します。
A25: 記
A27: 現場代理人等変更年月日
A28: 変更する現場代理人等区分
A30: 旧現場代理人等氏名 | E30: 新現場代理人等氏名
A32: 変 更 事 由
A37: ※「資格者証（写し）」を添付。
A40: (注)1． | B40: 新現場代理人等の記入内容は統一様式－1に準ずる。
A42: 2． | B42: 変更する現場代理人等区分には、下記から該当する区分を記載する
C43: 現場代理人
C44: 主任技術者
C45: 監理技術者
C46: 専門技術者

Sheet 統一様式-7
A1: 統一様式－７
A3: 品 質 証 明 員 通 知 書 | Z3: 一覧表へ戻る
Z4: 入力表へ戻る
R6: =IF(入力表!D26="","令和 年 月 日",入力表!D26) -> 令和 年 月 日
D9: 上天草市長 堀江 隆臣 様
Q12: =IF(入力表!B11="","",入力表!B11) -> 
O13: （受注者） | Q13: =IF(入力表!B12="","",入力表!B12) -> 
Q14: =IF(入力表!B13="","",入力表!B13) ->  | X14: ㊞
D19: =" "&IF(入力表!B5="","令和 年 月 日",TEXT(入力表!B5,"ggge年m月d日"))&"付けをもって請負契約を締結した"&IF(入力表!B3=""," 工事",入力表!B3)&"の品質証明員を下記のとおり定めたので、資格及び経歴を添えて通知します。" -> 令和 年 月 日付けをもって請負契約を締結した 工事の品質証明員を下記のとおり定めたので、資格及び経歴を添えて通知します。
A24: 記
D27: 品質証明員氏名
D31: 生年月日 年 月 日
D35: 資格及び資格番号
D39: 経歴
E41: 工事名 | N41: 職名 | R41: 工期（従事期間）
C48: ※「資格者証（写し）」を添付。

Sheet 別紙１
A1: 別紙１ | G1: 一覧表へ戻る
A2: 現場代理人及び主任(監理)技術者兼任調書 | G2: 入力表へ戻る
A4: 受注者 | B4: =IF(入力表!B12="","",入力表!B12) -> 
A5: 現場代理人氏名 | B5: =IF(入力表!B8="","",入力表!B8) ->  | C5: 連絡先
A6: 主任技術者氏名 | B6: =IF(入力表!B9="","",入力表!B9) ->  | C6: 連絡先
A7: 特例監理技術者氏名 ※監理技術者を兼任する場合 | C7: 連絡先
A8: 兼任する工事１ | B8: 工事番号 | C8: =IF(入力表!B2="","",入力表!B2) -> 
B9: 工事名 | C9: =IF(入力表!B3="","",入力表!B3) -> 
B10: 工事場所 | C10: =IF(入力表!B4="","",入力表!B4) -> 
B11: 工期 | C11: =IF(入力表!B6="","令和 年 月 日",入力表!B6) -> 令和 年 月 日 | E11: ～ | F11: =IF(入力表!E6="","令和 年 月 日",入力表!E6) -> 令和 年 月 日
B12: 契約金額(税込) | C12: =IF(入力表!B7="","",入力表!B7) -> 
B13: 発注機関
B14: 監督員氏名
B15: 監理技術者補佐氏名 ※特例監理技術者を配置する場合
A16: 兼任する工事２ | B16: 工事番号
B17: 工事名
B18: 工事場所
B19: 工期 | E19: ～
B20: 契約金額(税込)
B21: 発注機関
B22: 監督員氏名
B23: 監理技術者補佐氏名 ※特例監理技術者を配置する場合
A24: 兼任する工事３ | B24: 工事番号
B25: 工事名
B26: 工事場所
B27: 工期 | E27: ～
B28: 契約金額(税込)
B29: 発注機関
B30: 監督員氏名
B31: 監理技術者補佐氏名 ※特例監理技術者を配置する場合
A33: １ 現場代理人、主任技術者又は監理技術者が兼任する場合に記入すること（兼任する部分を記入）。
A34: ２ 設計変更により現場代理人を兼任する2件以上の工事が専任の主任技術者の設置を必要とする工事（1件当たりの契約金額（税込） が4,000万円（建築一式工事の場合、8,000万円）以上）となった場合は、「現場代理人及び主任（監理）技術者変更通知」により 変更手続を行うこと。
A35: ３ 主任技術者を兼任する1件以上の工事のうち、どちらか一方でも工事途中で、下請契約請負額（税込）の合計が4,500万円（建築一 式工事の場合、7,000万円）以上となる場合は、兼任できなくなるため、注意すること。
A36: ４ 現場代理人、主任技術者又は監理技術者を兼任させる工事の工事場所及び工事概要がわかる仕様書、図面、位置図（様式自由）等 の兼任要件を満たすことが確認できる資料を添付すること。
A37: ５ 施工に当たり相互に調整を要する工事（資機材の調達を一括で行う場合、工事の相当の部分を同一の下請業者で施工する場合等を 含む。）の場合は、上記４に加え、施工計画書等の兼任要件を満たすことが確認できる資料を添付すること。
A38: ６ 発注者が上天草市及び他の公共機関（国、地方公共団体、公社等）の工事の現場代理人、主任技術者又は監理技術者を兼任させる 場合は、発注者が兼任を承諾していることがわかる書類（工事打合簿等の写し）を添付すること。

Sheet 統一様式-4
A1: 統一様式－４
A5: 建設業退職金共済制度の掛金収納書 | L5: 一覧表へ戻る
L6: 入力表へ戻る
L7: 様式－４（裏面）へ
H9: =IF(入力表!D27="","令和 年 月 日",入力表!D27) -> 令和 年 月 日
B10: （発注者）
B12: 上天草市長 堀江 隆臣 様
G16: =IF(入力表!B11="","",入力表!B11) -> 
F17: （受注者） | G17: =IF(入力表!B12="","",入力表!B12) -> 
G18: =IF(入力表!B13="","",入力表!B13) -> 
A21: 建設業退職金共済組合証紙購入報告
B24: 下記のとおり証紙を購入したので当該掛金収納書を添付して報告します。
B27: 工事番号及び工事名 | C27: =IF(入力表!B2="","",入力表!B2) ->  | F27: 工 期 | G27: =IF(入力表!B6="","令和 年 月 日",入力表!B6) -> 令和 年 月 日
C28: =IF(入力表!B3="","",入力表!B3) ->  | G28: ～
G29: =IF(入力表!E6="","令和 年 月 日",入力表!E6) -> 令和 年 月 日
B30: 契約年月日 | C30: =IF(入力表!B5="","令和 年 月 日",入力表!B5) -> 令和 年 月 日 | F30: 契約金額 | G30: =IF(入力表!B7="","",入力表!B7) -> 
B31: 共済証紙購入金額 | D31: ￥
C33: 掛金収納書を貼る（契約者から発注者用）
B47: (注) | C47: 添付する掛け金収納書は中小企業主に雇われる場合は赤色、
C48: 大手事業主に雇われる場合は青色

Sheet 様式-4(統一様式-4 裏面)
A1: 統一様式－４ 裏面
U2: 一覧表へ戻る
U3: 入力表へ戻る
U4: 統一様式-４へ
A5: 掛金収納金額
A6: (1) | B6: 的確な把握が可能な場合 | G6: ： | L6: 円
A9: (2) | B9: 的確な把握が困難な場合
B10: ① | C10: 総工事費（消費税相当額等を含む） | J10: ： | O10: 円
B11: ② | C11: 「共済証紙購入の考え方」の数値 | J11: ： | M11: ／1000
B12: ③ | C12: 対象工事における労働者の建退共制度加入率
C13: イ | D13: 把握している場合
D14: Ａ | E14: 対象工事における労働者数 | M14: ： | O14: 人
D15: Ｂ | E15: 対象工事における建退共制度加入労働者数 | M15: ： | O15: 人
L16: （Ｂ／Ａ×100） | M16: ： | N16: =IF(OR(K10="",K11="",N14="",N15=""),"",N15/N14*100) ->  | O16: ％ | P16: ・・・Ｃ
J18: ∴ ①×②×（Ｃ÷７０％）＝ | K18: =IF(N16="","",K10*K11/1000*N16/100/0.7) ->  | O18: 円
C20: ロ | D20: 把握していない場合
J21: ∴ ①×②×（７０％÷７０％）＝ | K21: =IF(OR(K10="",K11="",NOT(K18="")),"",ROUND(K10*K11/1000,0)) ->  | O21: 円
D23: (注)小数点未満の端数については、当該端数を四捨五入する。

Sheet 様式-2
A1: 様式－２
I2: =IF(入力表!D28="","令和 年 月 日",入力表!D28) -> 令和 年 月 日
F5: 契約者氏名 | H5: =IF(入力表!B12="","",入力表!B12) -> 
H6: =IF(入力表!B13="","",入力表!B13) ->  | K6: ㊞
M7: 一覧表へ戻る
M8: 入力表へ戻る
B9: 建設業退職金共済証紙（購入遅延・無購入）申出書 | M9: 様式-2(1)へ
M10: 様式-2(2)へ | P10: ※右側の▼を押下して、いずれかを選択してください。
P11: 次の工事については、共済証紙の購入が遅延しますので申出ます。
B12: ※右側の▼を押下して、いずれかを選択してください。 | P12: 次の工事については、共済証紙を購入しませんので申出ます。
B13: なお、今後証紙を購入したときは、速やかに｢建設業退職金共済掛金収納書｣（別記様式1）を提出します。
A16: 工事名 | D16: =IF(入力表!B3="","",入力表!B3) -> 
A19: 契約年月日 | D19: =IF(入力表!B5="","",入力表!B5) -> 
A20: 契約金額 | D20: =IF(入力表!B7="","",入力表!B7) -> 
A21: 購入予定時期
A22: ＜共済証紙の購入が遅延する理由、又は共済証書を購入しない理由＞
A26: ※ | B26: 共済証紙を購入しない理由が、共済証紙の手持ちがある場合は様式－２（１）を添付するとともに、以下に今回受注した工事に必要な掛け金収納額の算定根拠を記入してください。
A29: ※ | B29: 共済証紙を購入しない理由が、建設業退職金共済制度以外の退職金制度に加入している場合は様式－２（２）を添付してください。

Sheet 様式-2(1)
B1: 様式－２（１）
B2: 共 済 証 紙 受 払 簿
B4: 共済契約者名 | T4: ⑨決算日 | W4: 令和 | Y4: 年 | AA4: 月 | AC4: 日 | AF4: ◎ | AG4: この受払簿は、受入・払出の都度、掛金収納書などをみて日付 | BA4: 一覧表へ戻る
T5: 決算 期間 | W5: 令和 | Y5: 年 | AA5: 月 | AC5: 日 | AG5: を所定欄に記入し、決算毎に合計を出して整理してください。 | BA5: 様式-2へ
B6: ①共済契約成立年月日（Ｈ・Ｒ） | M6: 年 | O6: 月 | Q6: 日 | Z6: ～ | AF6: ◎ | AG6: 共済手帳に２５０日（掛金助成手帳は２００日）分の証紙を貼り、
B7: ②共済契約者番号 | K7: － | W7: 令和 | Y7: 年 | AA7: 月 | AC7: 日 | AG7: 手帳の更新をすませた時にはこの受払簿にも記帳してください。
B8: 受入・払出 | H8: 受 入 | T8: 払 出 | AF8: 残 高 | AI8: 払出欄の貼付の内訳 | AQ8: 更新年月日 | AW8: 備 考
B9: 年 月 日 | H9: 購 入 | K9: 元請から受入 | Q9: 計 （Ａ） | T9: 貼 付 | W9: 下請へ交付 | AC9: 計 （Ｂ） | AF9: （Ａ）－（Ｂ） | AI9: 貼付人員 | AL9: 就 労 月 | AQ9: 手帳更新数
B10: 前期（前頁）繰越 | J10: 日分 | K10: 元請名 | S10: 日分 | V10: 日分 | W10: 下請名 | AE10: 日分 | AH10: 日分 | AK10: 人
C11: 年 | E11: 月 | G11: 日 | Q11: =IF(F11="","",Q10+H11+K11) ->  | AC11: =IF(F11="","",T11+W11) ->  | AF11: =IF(F11="","",Q11-AC11) ->  | AM11: 年 | AO11: 月分 | AR11: 年 | AT11: 月 | AV11: 日
P12: 日分 | AB12: 日分 | AQ12: （ | AU12: ） | AV12: 冊
J13: 日分 | K13: 元請名 | S13: 日分 | V13: 日分 | W13: 下請名 | AE13: 日分 | AH13: 日分 | AK13: 人
C14: 年 | E14: 月 | G14: 日 | Q14: =IF(F14="","",Q11+H14+K14) ->  | AC14: =IF(F14="","",AC11+T14+W14) ->  | AF14: =IF(F14="","",Q14-AC14) ->  | AM14: 年 | AO14: 月分 | AR14: 年 | AT14: 月 | AV14: 日
P15: 日分 | AB15: 日分 | AQ15: （ | AU15: ） | AV15: 冊
J16: 日分 | K16: 元請名 | S16: 日分 | V16: 日分 | W16: 下請名 | AE16: 日分 | AH16: 日分 | AK16: 人
C17: 年 | E17: 月 | G17: 日 | Q17: =IF(F17="","",Q14+H17+K17) ->  | AC17: =IF(F17="","",AC14+T17+W17) ->  | AF17: =IF(F17="","",Q17-AC17) ->  | AM17: 年 | AO17: 月分 | AR17: 年 | AT17: 月 | AV17: 日
P18: 日分 | AB18: 日分 | AQ18: （ | AU18: ） | AV18: 冊
J19: 日分 | K19: 元請名 | S19: 日分 | V19: 日分 | W19: 下請名 | AE19: 日分 | AH19: 日分 | AK19: 人
C20: 年 | E20: 月 | G20: 日 | Q20: =IF(F20="","",Q17+H20+K20) ->  | AC20: =IF(F20="","",AC17+T20+W20) ->  | AF20: =IF(F20="","",Q20-AC20) ->  | AM20: 年 | AO20: 月分 | AR20: 年 | AT20: 月 | AV20: 日
P21: 日分 | AB21: 日分 | AQ21: （ | AU21: ） | AV21: 冊
J22: 日分 | K22: 元請名 | S22: 日分 | V22: 日分 | W22: 下請名 | AE22: 日分 | AH22: 日分 | AK22: 人
C23: 年 | E23: 月 | G23: 日 | Q23: =IF(F23="","",Q20+H23+K23) ->  | AC23: =IF(F23="","",AC20+T23+W23) ->  | AF23: =IF(F23="","",Q23-AC23) ->  | AM23: 年 | AO23: 月分 | AR23: 年 | AT23: 月 | AV23: 日
P24: 日分 | AB24: 日分 | AQ24: （ | AU24: ） | AV24: 冊
J25: 日分 | K25: 元請名 | S25: 日分 | V25: 日分 | W25: 下請名 | AE25: 日分 | AH25: 日分 | AK25: 人
C26: 年 | E26: 月 | G26: 日 | Q26: =IF(F26="","",Q23+H26+K26) ->  | AC26: =IF(F26="","",AC23+T26+W26) ->  | AF26: =IF(F26="","",Q26-AC26) ->  | AM26: 年 | AO26: 月分 | AR26: 年 | AT26: 月 | AV26: 日
P27: 日分 | AB27: 日分 | AQ27: （ | AU27: ） | AV27: 冊
J28: 日分 | K28: 元請名 | S28: 日分 | V28: 日分 | W28: 下請名 | AE28: 日分 | AH28: 日分 | AK28: 人
C29: 年 | E29: 月 | G29: 日 | Q29: =IF(F29="","",Q26+H29+K29) ->  | AC29: =IF(F29="","",AC26+T29+W29) ->  | AF29: =IF(F29="","",Q29-AC29) ->  | AM29: 年 | AO29: 月分 | AR29: 年 | AT29: 月 | AV29: 日
P30: 日分 | AB30: 日分 | AQ30: （ | AU30: ） | AV30: 冊
J31: 日分 | K31: 元請名 | S31: 日分 | V31: 日分 | W31: 下請名 | AE31: 日分 | AH31: 日分 | AK31: 人
C32: 年 | E32: 月 | G32: 日 | Q32: =IF(F32="","",Q29+H32+K32) ->  | AC32: =IF(F32="","",AC29+T32+W32) ->  | AF32: =IF(F32="","",Q32-AC32) ->  | AM32: 年 | AO32: 月分 | AR32: 年 | AT32: 月 | AV32: 日
P33: 日分 | AB33: 日分 | AQ33: （ | AU33: ） | AV33: 冊
J34: 日分 | K34: 元請名 | S34: 日分 | V34: 日分 | W34: 下請名 | AE34: 日分 | AH34: 日分 | AK34: 人
C35: 年 | E35: 月 | G35: 日 | Q35: =IF(F35="","",Q32+H35+K35) ->  | AC35: =IF(F35="","",AC32+T35+W35) ->  | AF35: =IF(F35="","",Q35-AC35) ->  | AM35: 年 | AO35: 月分 | AR35: 年 | AT35: 月 | AV35: 日
P36: 日分 | AB36: 日分 | AQ36: （ | AU36: ） | AV36: 冊
J37: 日分 | K37: 元請名 | S37: 日分 | V37: 日分 | W37: 下請名 | AE37: 日分 | AH37: 日分 | AK37: 人
C38: 年 | E38: 月 | G38: 日 | Q38: =IF(F38="","",Q35+H38+K38) ->  | AC38: =IF(F38="","",AC35+T38+W38) ->  | AF38: =IF(F38="","",Q38-AC38) ->  | AM38: 年 | AO38: 月分 | AR38: 年 | AT38: 月 | AV38: 日
P39: 日分 | AB39: 日分 | AQ39: （ | AU39: ） | AV39: 冊
J40: 日分 | K40: 元請名 | S40: 日分 | V40: 日分 | W40: 下請名 | AE40: 日分 | AH40: 日分 | AK40: 人
C41: 年 | E41: 月 | G41: 日 | Q41: =IF(F41="","",Q38+H41+K41) ->  | AC41: =IF(F41="","",AC38+T41+W41) ->  | AF41: =IF(F41="","",Q41-AC41) ->  | AM41: 年 | AO41: 月分 | AR41: 年 | AT41: 月 | AV41: 日
P42: 日分 | AB42: 日分 | AQ42: （ | AU42: ） | AV42: 冊
J43: 日分 | K43: 元請名 | S43: 日分 | V43: 日分 | W43: 下請名 | AE43: 日分 | AH43: 日分 | AK43: 人
C44: 年 | E44: 月 | G44: 日 | Q44: =IF(F44="","",Q41+H44+K44) ->  | AC44: =IF(F44="","",AC41+T44+W44) ->  | AF44: =IF(F44="","",Q44-AC44) ->  | AM44: 年 | AO44: 月分 | AR44: 年 | AT44: 月 | AV44: 日
P45: 日分 | AB45: 日分 | AQ45: （ | AU45: ） | AV45: 冊
B46: 決算期間内 の 合 計 | J46: 日分 | P46: 日分 | AB46: 日分 | AF46: 次頁へ （次年度へ） 転 記 | AI46: ③決算日の 被共済者数 | AL46: 建 退 共 | AQ46: ④決算期間内 の手帳更新数
H47: =IF(SUM(H11,H14,H17,H20,H23,H26,H29,H32,H35,H38,H41,H44)=0,"",SUM(H11,H14,H17,H20,H23,H26,H29,H32,H35,H38,H41,H44)) ->  | K47: =IF(SUM(K11,K14,K17,K20,K23,K26,K29,K32,K35,K38,K41,K44)=0,"",SUM(K11,K14,K17,K20,K23,K26,K29,K32,K35,K38,K41,K44)) ->  | W47: =IF(SUM(W11,W14,W17,W20,W23,W26,W29,W32,W35,W38,W41,W44)=0,"",SUM(W11,W14,W17,W20,W23,W26,W29,W32,W35,W38,W41,W44)) ->  | AL47: 確 認 印
AV48: 冊
H49: ⑤ | J49: 円 | K49: ⑥ | P49: 円 | W49: ⑦ | AB49: 円 | AK49: 人 | AQ49: =IF(SUM(AR12,AR15,AR18,AR21,AR24,AR27,AR30,AR33,AR36,AR39,AR42,AR45)=0,"",SUM(AR12,AR15,AR18,AR21,AR24,AR27,AR30,AR33,AR36,AR39,AR42,AR45)) -> 
H50: =IF(H47="","",H47*310) ->  | K50: =IF(K47="","",K47*310) ->  | W50: =IF(W47="","",W47*310) -> 
F53: （注） | K53: の箇所に必要事項入力。必ず、受入・払出年月日を入力。

Sheet 様式-2(2)
A1: 様式－２（２）
A3: 建設業退職金共済制度以外の退職金制度加入申出書 | G3: 一覧表へ戻る
G4: 様式-2へ
B5: 所在地 | C5: =IF(入力表!B11="","",入力表!B11) -> 
B6: 称号又は名称 | C6: =IF(入力表!B12="","",入力表!B12) -> 
B7: 代表者名 | C7: =IF(入力表!B13="","",入力表!B13) -> 
A9: =IF(入力表!B3="","",入力表!B3) -> 
A11: 当社及び本工事にかかわる下請業者は、下記の退職金制度を有しており、退職金制度に未加入の従業者がいないことを申出ます。
A13: １．当社の退職金制度
A14: 退職金制度の名称
A17: ２．下請業者の退職金制度
A18: 業者名 | B18: 退職金制度の名称
A24: ※退職金制度の名称欄に記入できるものは次に該当するもの。
A25: (1)自社退職金制度（労働協約若しくは就業規則等に定めがある）
A26: (2)中小企業退職金共済法に規定する中小企業退職金共済契約
A27: (3)所得税法に規定する特定退職金共済団体との退職金共済契約
A28: (4)厚生年金基金
A29: (5)法人税法に規定する適格退職年金
A30: (6)確定給付企業年金法に規定する確定給付企業年金
A31: (7)確定拠出年金法に規定する企業型年金
A33: ※確認資料は求めないが、必要に応じて「建設業退職金共済制度及び法定外労働災害補償制度の取扱要領」第7項により、資料の提出を求める場合がある。

Sheet 様式-3
A1: 様式－３
A2: 法定外労働災害補償制度加入証明書 | I2: 一覧表へ戻る
I3: 入力表へ戻る
A4: =IF(入力表!D29="","令和 年 月 日",入力表!D29) -> 令和 年 月 日
C7: 住 所 | E7: =IF(入力表!B11="","",入力表!B11) -> 
C8: 商号又は名称 | E8: =IF(入力表!B12="","",入力表!B12) -> 
C9: 代表者氏名 | E9: =IF(入力表!B13="","",入力表!B13) ->  | F9: ㊞
A12: １ 工事番号 | B12: =IF(入力表!B2="","",入力表!B2) -> 
A14: ２ 工 事 名 | B14: =IF(入力表!B3="","",入力表!B3) -> 
A16: ３ 契約金額 | B16: =IF(入力表!B7="","",入力表!B7) -> 
A18: 加入証明書添付又は別添

Sheet 別紙４
B1: （別紙４） | AZ1: （別紙４） | CV1: （別紙４）
C2: 休日（現場閉所）取得計画実績表 | BA2: 休日（現場閉所）取得計画実績表 | CW2: 休日（現場閉所）取得計画実績表
C4: ="工事名："&入力表!B3 -> 工事名： | BA4: ="工事名："&入力表!BA3 -> 工事名： | CW4: ="工事名："&入力表!CW3 -> 工事名：
C5: ="期 間："&IF(入力表!B6="","令和 年 月 日",TEXT(入力表!B6,"ggge年m月d日"))&" ～ "&IF(入力表!E6="","令和 年 月 日",TEXT(入力表!E6,"ggge年m月d日")) -> 期 間：令和 年 月 日 ～ 令和 年 月 日 | AW5: 一覧表へ戻る | BA5: 期 間： | BD5: 2025-04-20 | BJ5: ～ | BL5: 2026-03-25 | CW5: 期 間： | CZ5: 2025-04-20 | DF5: ～ | DH5: 2026-03-25
AW6: 入力表へ戻る
C7: カレンダー開始日 | H7: =IF(入力表!B6="",DATE(IF(MONTH(TODAY())>=4,YEAR(TODAY()),YEAR(TODAY())-1),4,1),DATE(YEAR(入力表!B6),MONTH(入力表!B6),1)) -> 2025-04-01 | AB7: 【凡例】 | AW7: 記載例へ | BA7: カレンダー開始日 | BF7: 2025-04-01 | BJ7: 年 | BZ7: 【凡例】 | CW7: カレンダー開始日 | DB7: 2025-04-01 | DF7: 年 | DV7: 【凡例】
AB8: ○ | AC8: 休日（予定） | BZ8: ○ | CA8: 休日（予定） | DV8: ○ | DW8: 休日（予定）
AB9: ● | AC9: 休日（実施） | BZ9: ● | CA9: 休日（実施） | DV9: ● | DW9: 休日（実施）
AC10: 作業日（※空欄） | CA10: 作業日（※空欄） | DW10: 作業日（※空欄）
AB11: ／ | AC11: 対象期間外 | BZ11: ／ | CA11: 対象期間外 | DV11: ／ | DW11: 対象期間外
A13: 対象期間選択 | AR13: 月毎の確認 | CP13: 月毎の確認 | EL13: 月毎の確認
A14: =IF($AT$14="","","対象期間") ->  | C14: 月 | D14: =DATE(YEAR(H7),MONTH(H7),1) -> 2025-04-01 | AI14: =DATE(YEAR(D14),MONTH(D14)+1,1) -> 2025-05-01 | AO14: 現場閉所計 | AP14: 現場閉所累計 | AR14: 計画 | AS14: 対象期間 | AT14: =IF(IF(MONTH(入力表!$E$6)=12,YEAR(入力表!$E$6)+1&"01",YEAR(入力表!$E$6)&TEXT(MONTH(入力表!$E$6)+1,"00"))>YEAR($D14)&TEXT(MONTH($D14),"00"),COUNTIF(D18:AH18,"")+COUNTIF(D18:AH18,"○"),"") ->  | AU14: =IF(COUNTIF(D15:AH15,"／")=0,"",IF(COUNTIF(D15:AH15,"／")=1,IF(AH18="／","","月末「／」漏れ"),IF(COUNTIF(D15:AH15,"／")=2,IF(AND(AG18="／",AH18="／"),"","月末「／」漏れ"),IF(AND(AF18="／",AG18="／",AH18="／"),"","月末「／」漏れ")))) -> 月末「／」漏れ | BA14: 月 | BB14: =DATE(YEAR(BF7),MONTH(BF7),1) -> 2025-04-01 | CG14: =DATE(YEAR(BB14),MONTH(BB14)+1,1) -> 2025-05-01 | CM14: 現場閉所計 | CN14: 現場閉所累計 | CP14: 計画 | CQ14: 対象期間 | CR14: =IF(IF(MONTH(入力表!$E$6)=12,YEAR(入力表!$E$6)+1&"01",YEAR(入力表!$E$6)&TEXT(MONTH(入力表!$E$6)+1,"00"))>YEAR($BB14)&TEXT(MONTH($BB14),"00"),COUNTIF(BB18:CF18,"")+COUNTIF(BB18:CF18,"○"),"") ->  | CS14: =IF(COUNTIF(BB15:CF15,"／")=0,"",IF(COUNTIF(BB15:CF15,"／")=1,IF(CF18="／","","月末「／」漏れ"),IF(COUNTIF(BB15:CF15,"／")=2,IF(AND(CE18="／",CF18="／"),"","月末「／」漏れ"),IF(AND(CD18="／",CE18="／",CF18="／"),"","月末「／」漏れ")))) ->  | CW14: 月 | CX14: =DATE(YEAR(DB7),MONTH(DB7),1) -> 2025-04-01 | EC14: =DATE(YEAR(CX14),MONTH(CX14)+1,1) -> 2025-05-01 | EI14: 現場閉所計 | EJ14: 現場閉所累計 | EL14: 計画 | EM14: 対象期間 | EN14: =IF(IF(MONTH($BL$5)=12,YEAR($BL$5)+1&"01",YEAR($BL$5)&TEXT(MONTH($BL$5)+1,"00"))>YEAR($CX14)&TEXT(MONTH($CX14),"00"),COUNTIF(CX18:EB18,"")+COUNTIF(CX18:EB18,"○"),"") -> 0 | EO14: =IF(COUNTIF(CX15:EB15,"／")=0,"",IF(COUNTIF(CX15:EB15,"／")=1,IF(EB18="／","","月末「／」漏れ"),IF(COUNTIF(CX15:EB15,"／")=2,IF(AND(EA18="／",EB18="／"),"","月末「／」漏れ"),IF(AND(DZ18="／",EA18="／",EB18="／"),"","月末「／」漏れ")))) -> 
A15: =IF($AT$14="","","対象期間") ->  | C15: 日 | D15: =D14 -> 2025-04-01 | E15: =D15+1 -> 2025-04-02 | F15: =E15+1 -> 2025-04-03 | G15: =F15+1 -> 2025-04-04 | H15: 2025-04-05 | I15: 2025-04-06 | J15: 2025-04-07 | K15: 2025-04-08 | L15: 2025-04-09 | M15: 2025-04-10 | N15: 2025-04-11 | O15: 2025-04-12 | P15: 2025-04-13 | Q15: 2025-04-14 | R15: 2025-04-15 | S15: 2025-04-16 | T15: 2025-04-17 | U15: 2025-04-18 | V15: 2025-04-19 | W15: 2025-04-20 | X15: 2025-04-21 | Y15: 2025-04-22 | Z15: 2025-04-23 | AA15: 2025-04-24 | AB15: 2025-04-25 | AC15: 2025-04-26 | AD15: 2025-04-27 | AE15: 2025-04-28 | AF15: =IF(AE15="／","／",IF(YEAR($D14)&TEXT(MONTH($D14),"00")<YEAR(AE15+1)&TEXT(MONTH(AE15+1),"00"),"／",AE15+1)) -> 2025-04-29 | AG15: =IF(AF15="／","／",IF(YEAR($D14)&TEXT(MONTH($D14),"00")<YEAR(AF15+1)&TEXT(MONTH(AF15+1),"00"),"／",AF15+1)) -> 2025-04-30 | AH15: ／ | AI15: =AI14 -> 2025-05-01 | AJ15: =AI15+1 -> 2025-05-02 | AK15: 2025-05-03 | AL15: 2025-05-04 | AM15: 2025-05-05 | AN15: 2025-05-06 | AS15: 閉所日数 | AT15: =IF(IF(MONTH(入力表!$E$6)=12,YEAR(入力表!$E$6)+1&"01",YEAR(入力表!$E$6)&TEXT(MONTH(入力表!$E$6)+1,"00"))>YEAR($D14)&TEXT(MONTH($D14),"00"),COUNTIF(D18:AH18,"○"),"") ->  | AU15: =IF(OR(MONTH(D14)=1,MONTH(D14)=8,MONTH(D14)=12),IF(COUNTIF(D18:AH18,"／")>=3,"","算定除外「／」漏れ"),"") ->  | BA15: 日 | BB15: =BB14 -> 2025-04-01 | BC15: =BB15+1 -> 2025-04-02 | BD15: =BC15+1 -> 2025-04-03 | BE15: =BD15+1 -> 2025-04-04 | BF15: =BE15+1 -> 2025-04-05 | BG15: =BF15+1 -> 2025-04-06 | BH15: =BG15+1 -> 2025-04-07 | BI15: =BH15+1 -> 2025-04-08 | BJ15: =BI15+1 -> 2025-04-09 | BK15: =BJ15+1 -> 2025-04-10 | BL15: =BK15+1 -> 2025-04-11 | BM15: =BL15+1 -> 2025-04-12 | BN15: =BM15+1 -> 2025-04-13 | BO15: =BN15+1 -> 2025-04-14 | BP15: =BO15+1 -> 2025-04-15 | BQ15: =BP15+1 -> 2025-04-16 | BR15: =BQ15+1 -> 2025-04-17 | BS15: =BR15+1 -> 2025-04-18 | BT15: =BS15+1 -> 2025-04-19 | BU15: =BT15+1 -> 2025-04-20 | BV15: =BU15+1 -> 2025-04-21 | BW15: =BV15+1 -> 2025-04-22 | BX15: =BW15+1 -> 2025-04-23 | BY15: =BX15+1 -> 2025-04-24 | BZ15: =BY15+1 -> 2025-04-25 | CA15: =BZ15+1 -> 2025-04-26 | CB15: =CA15+1 -> 2025-04-27 | CC15: =CB15+1 -> 2025-04-28 | CD15: =IF(CC15="／","／",IF(YEAR(BB14)&TEXT(MONTH(BB14),"00")<YEAR(CC15+1)&TEXT(MONTH(CC15+1),"00"),"／",CC15+1)) -> 2025-04-29 | CE15: =IF(CD15="／","／",IF(YEAR(BB14)&TEXT(MONTH(BB14),"00")<YEAR(CD15+1)&TEXT(MONTH(CD15+1),"00"),"／",CD15+1)) -> 2025-04-30 | CF15: =IF(CE15="／","／",IF(YEAR(BB14)&TEXT(MONTH(BB14),"00")<YEAR(CE15+1)&TEXT(MONTH(CE15+1),"00"),"／",CE15+1)) -> ／ | CG15: =CG14 -> 2025-05-01 | CH15: =CG15+1 -> 2025-05-02 | CI15: =CH15+1 -> 2025-05-03 | CJ15: =CI15+1 -> 2025-05-04 | CK15: =CJ15+1 -> 2025-05-05 | CL15: =CK15+1 -> 2025-05-06 | CQ15: 閉所日数 | CR15: =IF(IF(MONTH(入力表!$E$6)=12,YEAR(入力表!$E$6)+1&"01",YEAR(入力表!$E$6)&TEXT(MONTH(入力表!$E$6)+1,"00"))>YEAR($BB14)&TEXT(MONTH($BB14),"00"),COUNTIF(BB18:CF18,"○"),"") ->  | CS15: =IF(OR(MONTH(BB14)=1,MONTH(BB14)=8,MONTH(BB14)=12),IF(COUNTIF(BB18:CF18,"／")>=3,"","算定除外「／」漏れ"),"") ->  | CW15: 日 | CX15: =CX14 -> 2025-04-01 | CY15: =CX15+1 -> 2025-04-02 | CZ15: =CY15+1 -> 2025-04-03 | DA15: =CZ15+1 -> 2025-04-04 | DB15: =DA15+1 -> 2025-04-05 | DC15: =DB15+1 -> 2025-04-06 | DD15: =DC15+1 -> 2025-04-07 | DE15: =DD15+1 -> 2025-04-08 | DF15: =DE15+1 -> 2025-04-09 | DG15: =DF15+1 -> 2025-04-10 | DH15: =DG15+1 -> 2025-04-11 | DI15: =DH15+1 -> 2025-04-12 | DJ15: =DI15+1 -> 2025-04-13 | DK15: =DJ15+1 -> 2025-04-14 | DL15: =DK15+1 -> 2025-04-15 | DM15: =DL15+1 -> 2025-04-16 | DN15: =DM15+1 -> 2025-04-17 | DO15: =DN15+1 -> 2025-04-18 | DP15: =DO15+1 -> 2025-04-19 | DQ15: =DP15+1 -> 2025-04-20 | DR15: =DQ15+1 -> 2025-04-21 | DS15: =DR15+1 -> 2025-04-22 | DT15: =DS15+1 -> 2025-04-23 | DU15: =DT15+1 -> 2025-04-24 | DV15: =DU15+1 -> 2025-04-25 | DW15: =DV15+1 -> 2025-04-26 | DX15: =DW15+1 -> 2025-04-27 | DY15: =DX15+1 -> 2025-04-28 | DZ15: =IF(DY15="／","／",IF(YEAR(CX14)&TEXT(MONTH(CX14),"00")<YEAR(DY15+1)&TEXT(MONTH(DY15+1),"00"),"／",DY15+1)) -> 2025-04-29 | EA15: =IF(DZ15="／","／",IF(YEAR(CX14)&TEXT(MONTH(CX14),"00")<YEAR(DZ15+1)&TEXT(MONTH(DZ15+1),"00"),"／",DZ15+1)) -> 2025-04-30 | EB15: =IF(EA15="／","／",IF(YEAR(CX14)&TEXT(MONTH(CX14),"00")<YEAR(EA15+1)&TEXT(MONTH(EA15+1),"00"),"／",EA15+1)) -> ／ | EC15: =EC14 -> 2025-05-01 | ED15: =EC15+1 -> 2025-05-02 | EE15: =ED15+1 -> 2025-05-03 | EF15: =EE15+1 -> 2025-05-04 | EG15: =EF15+1 -> 2025-05-05 | EH15: =EG15+1 -> 2025-05-06 | EM15: 閉所日数 | EN15: =IF(IF(MONTH($BL$5)=12,YEAR($BL$5)+1&"01",YEAR($BL$5)&TEXT(MONTH($BL$5)+1,"00"))>YEAR($CX14)&TEXT(MONTH($CX14),"00"),COUNTIF(CX18:EB18,"○"),"") -> 0 | EO15: =IF(OR(MONTH(CX14)=1,MONTH(CX14)=8,MONTH(CX14)=12),IF(COUNTIF(CX18:EB18,"／")>=3,"","算定除外「／」漏れ"),"") -> 
C16: 曜日 | D16: =TEXT(WEEKDAY(+D15),"aaa") -> 火 | E16: =TEXT(WEEKDAY(+E15),"aaa") -> 水 | F16: 木 | G16: 金 | H16: 土 | I16: =TEXT(WEEKDAY(+I15),"aaa") -> 日 | J16: 月 | K16: 火 | L16: 水 | M16: 木 | N16: 金 | O16: 土 | P16: 日 | Q16: 月 | R16: 火 | S16: 水 | T16: 木 | U16: 金 | V16: 土 | W16: 日 | X16: 月 | Y16: 火 | Z16: =TEXT(WEEKDAY(+Z15),"aaa") -> 水 | AA16: 木 | AB16: 金 | AC16: 土 | AD16: 日 | AE16: 月 | AF16: =IF(AF15="／","／",TEXT(WEEKDAY(+AF15),"aaa")) -> 火 | AG16: =IF(AG15="／","／",TEXT(WEEKDAY(+AG15),"aaa")) -> 水 | AH16: ／ | AI16: =TEXT(WEEKDAY(+AI15),"aaa") -> 木 | AJ16: =TEXT(WEEKDAY(+AJ15),"aaa") -> 金 | AK16: 土 | AL16: 日 | AM16: 月 | AN16: 火 | AS16: 現場閉所率 | AT16: =IFERROR(+AT15/AT14,"") ->  | AU16: =IF(AT16="","",IF(COUNTIF(D18:AH18,"○")>=COUNTIF(D21:AH21,"◎"),"4週8休以上",IF(AT16>=0.285,"4週8休以上","週休2日未達成"))) ->  | BA16: 曜日 | BB16: =TEXT(WEEKDAY(+BB15),"aaa") -> 火 | BC16: =TEXT(WEEKDAY(+BC15),"aaa") -> 水 | BD16: 木 | BE16: 金 | BF16: 土 | BG16: =TEXT(WEEKDAY(+BG15),"aaa") -> 日 | BH16: =TEXT(WEEKDAY(+BH15),"aaa") -> 月 | BI16: 火 | BJ16: 水 | BK16: 木 | BL16: 金 | BM16: 土 | BN16: 日 | BO16: 月 | BP16: 火 | BQ16: 水 | BR16: 木 | BS16: 金 | BT16: 土 | BU16: 日 | BV16: 月 | BW16: 火 | BX16: =TEXT(WEEKDAY(+BX15),"aaa") -> 水 | BY16: =TEXT(WEEKDAY(+BY15),"aaa") -> 木 | BZ16: 金 | CA16: 土 | CB16: 日 | CC16: 月 | CD16: =IF(CD15="／","／",TEXT(WEEKDAY(+CD15),"aaa")) -> 火 | CE16: =IF(CE15="／","／",TEXT(WEEKDAY(+CE15),"aaa")) -> 水 | CF16: ／ | CG16: =TEXT(WEEKDAY(+CG15),"aaa") -> 木 | CH16: =TEXT(WEEKDAY(+CH15),"aaa") -> 金 | CI16: 土 | CJ16: 日 | CK16: 月 | CL16: 火 | CQ16: 現場閉所率 | CR16: =IFERROR(+CR15/CR14,"") ->  | CS16: =IF(CR16="","",IF(COUNTIF(BB18:CF18,"○")>=COUNTIF(BB21:CF21,"◎"),"4週8休以上",IF(CR16>=0.285,"4週8休以上","週休2日未達成"))) ->  | CW16: 曜日 | CX16: =TEXT(WEEKDAY(+CX15),"aaa") -> 火 | CY16: =TEXT(WEEKDAY(+CY15),"aaa") -> 水 | CZ16: 木 | DA16: 金 | DB16: 土 | DC16: =TEXT(WEEKDAY(+DC15),"aaa") -> 日 | DD16: =TEXT(WEEKDAY(+DD15),"aaa") -> 月 | DE16: 火 | DF16: 水 | DG16: 木 | DH16: 金 | DI16: 土 | DJ16: 日 | DK16: 月 | DL16: 火 | DM16: 水 | DN16: 木 | DO16: 金 | DP16: 土 | DQ16: 日 | DR16: 月 | DS16: 火 | DT16: =TEXT(WEEKDAY(+DT15),"aaa") -> 水 | DU16: =TEXT(WEEKDAY(+DU15),"aaa") -> 木 | DV16: 金 | DW16: 土 | DX16: 日 | DY16: 月 | DZ16: =IF(DZ15="／","／",TEXT(WEEKDAY(+DZ15),"aaa")) -> 火 | EA16: =IF(EA15="／","／",TEXT(WEEKDAY(+EA15),"aaa")) -> 水 | EB16: ／ | EC16: =TEXT(WEEKDAY(+EC15),"aaa") -> 木 | ED16: =TEXT(WEEKDAY(+ED15),"aaa") -> 金 | EE16: 土 | EF16: 日 | EG16: 月 | EH16: 火 | EM16: 現場閉所率 | EN16: =IFERROR(+EN15/EN14,"") ->  | EO16: =IF(EN16="","",IF(COUNTIF(CX18:EB18,"○")>=COUNTIF(CX21:EB21,"◎"),"4週8休以上",IF(EN16>=0.285,"4週8休以上","週休2日未達成"))) -> 
C17: 行事 | AI17: =IF(D46="","",D46) ->  | AJ17: =IF(E46="","",E46) ->  | AK17: =IF(F46="","",F46) ->  | AL17: =IF(G46="","",G46) ->  | AM17: =IF(H46="","",H46) ->  | AN17: =IF(I46="","",I46) ->  | AR17: 実施 | AS17: 対象期間 | AT17: =IF(IF(MONTH(入力表!$E$6)=12,YEAR(入力表!$E$6)+1&"01",YEAR(入力表!$E$6)&TEXT(MONTH(入力表!$E$6)+1,"00"))>YEAR($D14)&TEXT(MONTH($D14),"00"),COUNTIF(D19:AH19,"")+COUNTIF(D19:AH19,"●"),"") ->  | AU17: =IF(COUNTIF(D15:AH15,"／")=0,"",IF(COUNTIF(D15:AH15,"／")=1,IF(AH19="／","","月末「／」漏れ"),IF(COUNTIF(D15:AH15,"／")=2,IF(AND(AG19="／",AH19="／"),"","月末「／」漏れ"),IF(AND(AF19="／",AG19="／",AH19="／"),"","月末「／」漏れ")))) -> 月末「／」漏れ | BA17: 行事 | CG17: =IF(BB46="","",BB46) ->  | CH17: =IF(BC46="","",BC46) ->  | CI17: =IF(BD46="","",BD46) ->  | CJ17: =IF(BE46="","",BE46) ->  | CK17: =IF(BF46="","",BF46) ->  | CL17: =IF(BG46="","",BG46) ->  | CP17: 実施 | CQ17: 対象期間 | CR17: =IF(IF(MONTH(入力表!$E$6)=12,YEAR(入力表!$E$6)+1&"01",YEAR(入力表!$E$6)&TEXT(MONTH(入力表!$E$6)+1,"00"))>YEAR($BB14)&TEXT(MONTH($BB14),"00"),COUNTIF(BB19:CF19,"")+COUNTIF(BB19:CF19,"●"),"") ->  | CS17: =IF(COUNTIF(BB15:CF15,"／")=0,"",IF(COUNTIF(BB15:CF15,"／")=1,IF(CF19="／","","月末「／」漏れ"),IF(COUNTIF(BB15:CF15,"／")=2,IF(AND(CE19="／",CF19="／"),"","月末「／」漏れ"),IF(AND(CD19="／",CE19="／",CF19="／"),"","月末「／」漏れ")))) ->  | CW17: 行事 | EC17: =IF(CX46="","",CX46) ->  | ED17: =IF(CY46="","",CY46) ->  | EE17: =IF(CZ46="","",CZ46) ->  | EF17: =IF(DA46="","",DA46) ->  | EG17: =IF(DB46="","",DB46) ->  | EH17: =IF(DC46="","",DC46) ->  | EL17: 実施 | EM17: 対象期間 | EN17: =IF(IF(MONTH($BL$5)=12,YEAR($BL$5)+1&"01",YEAR($BL$5)&TEXT(MONTH($BL$5)+1,"00"))>YEAR($CX14)&TEXT(MONTH($CX14),"00"),COUNTIF(CX19:EB19,"")+COUNTIF(CX19:EB19,"●"),"") -> 0 | EO17: =IF(COUNTIF(CX15:EB15,"／")=0,"",IF(COUNTIF(CX15:EB15,"／")=1,IF(EB19="／","","月末「／」漏れ"),IF(COUNTIF(CX15:EB15,"／")=2,IF(AND(EA19="／",EB19="／"),"","月末「／」漏れ"),IF(AND(DZ19="／",EA19="／",EB19="／"),"","月末「／」漏れ")))) -> 
C18: 計画 | AI18: =IF(D47="","",D47) ->  | AJ18: =IF(E47="","",E47) ->  | AO18: =COUNTIF(D18:AG18,"○") -> 0 | AP18: =+AO18 -> 0 | AS18: 閉所日数 | AT18: =IF(IF(MONTH(入力表!$E$6)=12,YEAR(入力表!$E$6)+1&"01",YEAR(入力表!$E$6)&TEXT(MONTH(入力表!$E$6)+1,"00"))>YEAR($D14)&TEXT(MONTH($D14),"00"),COUNTIF(D19:AH19,"●"),"") ->  | AU18: =IF(OR(MONTH(D14)=1,MONTH(D14)=8,MONTH(D14)=12),IF(COUNTIF(D19:AH19,"／")>=3,"","算定除外「／」漏れ"),"") ->  | BA18: 計画 | BB18: ／ | BC18: ／ | BD18: ／ | BE18: ／ | BF18: ／ | BG18: ／ | BH18: ／ | BI18: ／ | BJ18: ／ | BK18: ／ | BL18: ／ | BM18: ／ | BN18: ／ | BO18: ／ | BP18: ／ | BQ18: ／ | BR18: ／ | BS18: ／ | BT18: ／ | BU18: ／ | BV18: ／ | BW18: ／ | BX18: ／ | BY18: ／ | BZ18: ／ | CA18: ／ | CB18: ／ | CC18: ／ | CD18: ／ | CE18: ／ | CF18: ／ | CG18: =IF(BB47="","",BB47) -> ／ | CH18: ／ | CI18: ／ | CJ18: ／ | CK18: ／ | CL18: ／ | CM18: =COUNTIF(BB18:CE18,"○") -> 0 | CN18: =+CM18 -> 0 | CQ18: 閉所日数 | CR18: =IF(IF(MONTH(入力表!$E$6)=12,YEAR(入力表!$E$6)+1&"01",YEAR(入力表!$E$6)&TEXT(MONTH(入力表!$E$6)+1,"00"))>YEAR($BB14)&TEXT(MONTH($BB14),"00"),COUNTIF(BB19:CF19,"●"),"") ->  | CS18: =IF(OR(MONTH(BB14)=1,MONTH(BB14)=8,MONTH(BB14)=12),IF(COUNTIF(BB19:CF19,"／")>=3,"","算定除外「／」漏れ"),"") ->  | CW18: 計画 | CX18: ／ | CY18: ／ | CZ18: ／ | DA18: ／ | DB18: ／ | DC18: ／ | DD18: ／ | DE18: ／ | DF18: ／ | DG18: ／ | DH18: ／ | DI18: ／ | DJ18: ／ | DK18: ／ | DL18: ／ | DM18: ／ | DN18: ／ | DO18: ／ | DP18: ／ | DQ18: ／ | DR18: ／ | DS18: ／ | DT18: ／ | DU18: ／ | DV18: ／ | DW18: ／ | DX18: ／ | DY18: ／ | DZ18: ／ | EA18: ／ | EB18: ／ | EC18: =IF(CX47="","",CX47) -> ／ | ED18: ／ | EE18: ／ | EF18: ／ | EG18: ／ | EH18: ／ | EI18: =COUNTIF(CX18:EA18,"○") -> 0 | EJ18: =+EI18 -> 0 | EM18: 閉所日数 | EN18: =IF(IF(MONTH($BL$5)=12,YEAR($BL$5)+1&"01",YEAR($BL$5)&TEXT(MONTH($BL$5)+1,"00"))>YEAR($CX14)&TEXT(MONTH($CX14),"00"),COUNTIF(CX19:EB19,"●"),"") -> 0 | EO18: =IF(OR(MONTH(CX14)=1,MONTH(CX14)=8,MONTH(CX14)=12),IF(COUNTIF(CX19:EB19,"／")>=3,"","算定除外「／」漏れ"),"") -> 
C19: 実施 | AI19: =IF(D48="","",D48) ->  | AJ19: =IF(E48="","",E48) ->  | AK19: =IF(F48="","",F48) ->  | AL19: =IF(G48="","",G48) ->  | AM19: =IF(H48="","",H48) ->  | AN19: =IF(I48="","",I48) ->  | AO19: =COUNTIF(D19:AG19,"●") -> 0 | AP19: =+AO19 -> 0 | AS19: 現場閉所率 | AT19: =IFERROR(+AT18/AT17,"") ->  | AU19: =IF(AT19="","",IF(COUNTIF(D19:AH19,"●")>=COUNTIF(D22:AH22,"◎"),"4週8休以上",IF(AT19>=0.285,"4週8休以上","週休2日未達成"))) ->  | BA19: 実施 | BB19: ／ | BC19: ／ | BD19: ／ | BE19: ／ | BF19: ／ | BG19: ／ | BH19: ／ | BI19: ／ | BJ19: ／ | BK19: ／ | BL19: ／ | BM19: ／ | BN19: ／ | BO19: ／ | BP19: ／ | BQ19: ／ | BR19: ／ | BS19: ／ | BT19: ／ | BU19: ／ | BV19: ／ | BW19: ／ | BX19: ／ | BY19: ／ | BZ19: ／ | CA19: ／ | CB19: ／ | CC19: ／ | CD19: ／ | CE19: ／ | CF19: ／ | CG19: =IF(BB48="","",BB48) -> ／ | CH19: =IF(BC48="","",BC48) -> ／ | CI19: =IF(BD48="","",BD48) -> ／ | CJ19: =IF(BE48="","",BE48) -> ／ | CK19: =IF(BF48="","",BF48) -> ／ | CL19: =IF(BG48="","",BG48) -> ／ | CM19: =COUNTIF(BB19:CE19,"●") -> 0 | CN19: =+CM19 -> 0 | CQ19: 現場閉所率 | CR19: =IFERROR(+CR18/CR17,"") ->  | CS19: =IF(CR19="","",IF(COUNTIF(BB19:CF19,"●")>=COUNTIF(BB22:CF22,"◎"),"4週8休以上",IF(CR19>=0.285,"4週8休以上","週休2日未達成"))) ->  | CW19: 実施 | CX19: ／ | CY19: ／ | CZ19: ／ | DA19: ／ | DB19: ／ | DC19: ／ | DD19: ／ | DE19: ／ | DF19: ／ | DG19: ／ | DH19: ／ | DI19: ／ | DJ19: ／ | DK19: ／ | DL19: ／ | DM19: ／ | DN19: ／ | DO19: ／ | DP19: ／ | DQ19: ／ | DR19: ／ | DS19: ／ | DT19: ／ | DU19: ／ | DV19: ／ | DW19: ／ | DX19: ／ | DY19: ／ | DZ19: ／ | EA19: ／ | EB19: ／ | EC19: =IF(CX48="","",CX48) -> ／ | ED19: =IF(CY48="","",CY48) -> ／ | EE19: =IF(CZ48="","",CZ48) -> ／ | EF19: =IF(DA48="","",DA48) -> ／ | EG19: =IF(DB48="","",DB48) -> ／ | EH19: =IF(DC48="","",DC48) -> ／ | EI19: =COUNTIF(CX19:EA19,"●") -> 0 | EJ19: =+EI19 -> 0 | EM19: 現場閉所率 | EN19: =IFERROR(+EN18/EN17,"") ->  | EO19: =IF(EN19="","",IF(COUNTIF(CX19:EB19,"●")>=COUNTIF(CX22:EB22,"◎"),"4週8休以上",IF(EN19>=0.285,"4週8休以上","週休2日未達成"))) -> 
D20: 1 | E20: 2 | F20: 3 | G20: 4 | H20: 5 | I20: 6 | J20: 7 | K20: 8 | L20: 9 | M20: 10 | N20: 11 | O20: 12 | P20: 13 | Q20: 14 | R20: 15 | S20: 16 | T20: 17 | U20: 18 | V20: 19 | W20: 20 | X20: 21 | Y20: 22 | Z20: 23 | AA20: 24 | AB20: 25 | AC20: 26 | AD20: 27 | AE20: 28 | AF20: 29 | AG20: 30 | AH20: 31 | AI20: 32 | AJ20: 33 | AK20: 34 | AL20: 35 | AM20: 36 | AN20: 37 | AS20: =AU19 ->  | BB20: 1 | BC20: 2 | BD20: 3 | BE20: 4 | BF20: 5 | BG20: 6 | BH20: 7 | BI20: 8 | BJ20: 9 | BK20: 10 | BL20: 11 | BM20: 12 | BN20: 13 | BO20: 14 | BP20: 15 | BQ20: 16 | BR20: 17 | BS20: 18 | BT20: 19 | BU20: 20 | BV20: 21 | BW20: 22 | BX20: 23 | BY20: 24 | BZ20: 25 | CA20: 26 | CB20: 27 | CC20: 28 | CD20: 29 | CE20: 30 | CF20: 31 | CG20: 32 | CH20: 33 | CI20: 34 | CJ20: 35 | CK20: 36 | CL20: 37 | CQ20: =CS19 ->  | CX20: 1 | CY20: 2 | CZ20: 3 | DA20: 4 | DB20: 5 | DC20: 6 | DD20: 7 | DE20: 8 | DF20: 9 | DG20: 10 | DH20: 11 | DI20: 12 | DJ20: 13 | DK20: 14 | DL20: 15 | DM20: 16 | DN20: 17 | DO20: 18 | DP20: 19 | DQ20: 20 | DR20: 21 | DS20: 22 | DT20: 23 | DU20: 24 | DV20: 25 | DW20: 26 | DX20: 27 | DY20: 28 | DZ20: 29 | EA20: 30 | EB20: 31 | EC20: 32 | ED20: 33 | EE20: 34 | EF20: 35 | EG20: 36 | EH20: 37 | EM20: =EO19 -> 
C21: 計画 | D21: =IF(D18="／","／",IF(OR(D16="土",D16="日"),"◎","")) ->  | H21: ◎ | I21: ◎ | O21: ◎ | P21: =IF(P18="／","／",IF(OR(P16="土",P16="日"),"◎","")) -> ◎ | V21: ◎ | W21: ◎ | AC21: ◎ | AD21: =IF(AD18="／","／",IF(OR(AD16="土",AD16="日"),"◎","")) -> ◎ | AE21: =IF(AE18="／","／",IF(OR(AE16="土",AE16="日"),"◎","")) ->  | AK21: ◎ | AL21: ◎ | AS21: =AT23 ->  | BA21: 計画 | BB21: =IF(BB18="／","／",IF(OR(BB16="土",BB16="日"),"◎","")) -> ／ | BC21: ／ | BD21: ／ | BE21: ／ | BF21: ／ | BG21: ／ | BH21: ／ | BI21: ／ | BJ21: ／ | BK21: ／ | BL21: ／ | BM21: ／ | BN21: =IF(BN18="／","／",IF(OR(BN16="土",BN16="日"),"◎","")) -> ／ | BO21: =IF(BO18="／","／",IF(OR(BO16="土",BO16="日"),"◎","")) -> ／ | BP21: ／ | BQ21: ／ | BR21: ／ | BS21: ／ | BT21: ／ | BU21: ／ | BV21: ／ | BW21: ／ | BX21: ／ | BY21: ／ | BZ21: ／ | CA21: ／ | CB21: =IF(CB18="／","／",IF(OR(CB16="土",CB16="日"),"◎","")) -> ／ | CC21: =IF(CC18="／","／",IF(OR(CC16="土",CC16="日"),"◎","")) -> ／ | CD21: ／ | CE21: ／ | CF21: ／ | CG21: ／ | CH21: ／ | CI21: ／ | CJ21: ／ | CK21: ／ | CL21: ／ | CQ21: =CR23 ->  | CW21: 計画 | CX21: =IF(CX18="／","／",IF(OR(CX16="土",CX16="日"),"◎","")) -> ／ | CY21: ／ | CZ21: ／ | DA21: ／ | DB21: ／ | DC21: ／ | DD21: ／ | DE21: ／ | DF21: ／ | DG21: ／ | DH21: ／ | DI21: ／ | DJ21: =IF(DJ18="／","／",IF(OR(DJ16="土",DJ16="日"),"◎","")) -> ／ | DK21: =IF(DK18="／","／",IF(OR(DK16="土",DK16="日"),"◎","")) -> ／ | DL21: ／ | DM21: ／ | DN21: ／ | DO21: ／ | DP21: ／ | DQ21: ／ | DR21: ／ | DS21: ／ | DT21: ／ | DU21: ／ | DV21: ／ | DW21: ／ | DX21: =IF(DX18="／","／",IF(OR(DX16="土",DX16="日"),"◎","")) -> ／ | DY21: =IF(DY18="／","／",IF(OR(DY16="土",DY16="日"),"◎","")) -> ／ | DZ21: ／ | EA21: ／ | EB21: ／ | EC21: ／ | ED21: ／ | EE21: ／ | EF21: ／ | EG21: ／ | EH21: ／ | EM21: =EN23 -> OK
C22: 実施 | D22: =IF(D19="／","／",IF(OR(D16="土",D16="日"),"◎","")) ->  | E22: =IF(E19="／","／",IF(OR(E16="土",E16="日"),"◎","")) ->  | H22: ◎ | I22: ◎ | O22: ◎ | P22: ◎ | V22: ◎ | W22: ◎ | AC22: ◎ | AD22: ◎ | AK22: ◎ | AL22: ◎ | BA22: 実施 | BB22: =IF(BB19="／","／",IF(OR(BB16="土",BB16="日"),"◎","")) -> ／ | BC22: =IF(BC19="／","／",IF(OR(BC16="土",BC16="日"),"◎","")) -> ／ | BD22: ／ | BE22: ／ | BF22: ／ | BG22: ／ | BH22: ／ | BI22: ／ | BJ22: ／ | BK22: ／ | BL22: ／ | BM22: ／ | BN22: ／ | BO22: ／ | BP22: ／ | BQ22: ／ | BR22: ／ | BS22: ／ | BT22: ／ | BU22: ／ | BV22: ／ | BW22: ／ | BX22: ／ | BY22: ／ | BZ22: ／ | CA22: ／ | CB22: ／ | CC22: ／ | CD22: ／ | CE22: ／ | CF22: ／ | CG22: ／ | CH22: ／ | CI22: ／ | CJ22: ／ | CK22: ／ | CL22: ／ | CW22: 実施 | CX22: =IF(CX19="／","／",IF(OR(CX16="土",CX16="日"),"◎","")) -> ／ | CY22: =IF(CY19="／","／",IF(OR(CY16="土",CY16="日"),"◎","")) -> ／ | CZ22: ／ | DA22: ／ | DB22: ／ | DC22: ／ | DD22: ／ | DE22: ／ | DF22: ／ | DG22: ／ | DH22: ／ | DI22: ／ | DJ22: ／ | DK22: ／ | DL22: ／ | DM22: ／ | DN22: ／ | DO22: ／ | DP22: ／ | DQ22: ／ | DR22: ／ | DS22: ／ | DT22: ／ | DU22: ／ | DV22: ／ | DW22: ／ | DX22: ／ | DY22: ／ | DZ22: ／ | EA22: ／ | EB22: ／ | EC22: ／ | ED22: ／ | EE22: ／ | EF22: ／ | EG22: ／ | EH22: ／
C23: 完全 | D23: =D14 -> 2025-04-01 | E23: ～ | F23: =DATE(YEAR(D14),MONTH(D14),1)+MOD(7-WEEKDAY(DATE(YEAR(D14),MONTH(D14),1),2),7) -> 2025-04-06 | G23: =IF(COUNTIF(INDEX($D$19:$AN$19,DAY(D23)):INDEX($D$19:$AN$19,HLOOKUP(F23,D15:AN20,6,FALSE)),"")+COUNTIF(INDEX($D$19:$AN$19,DAY(D23)):INDEX($D$19:$AN$19,HLOOKUP(F23,D15:AN20,6,FALSE)),"●")=7,IF(COUNTIF(INDEX($D$19:$AN$19,DAY(D23)):INDEX($D$19:$AN$19,HLOOKUP(F23,D15:AN20,6,FALSE)),"●")>=2,"OK","OUT"),"対象外") -> 対象外 | J23: =F23+1 -> 2025-04-07 | K23: ～ | L23: =F23+7 -> 2025-04-13 | M23: =IF(COUNTIF(INDEX(D19:AN19,DAY(J23)):INDEX(D19:AN19,HLOOKUP(L23,D15:AN20,6,FALSE)),"")+COUNTIF(INDEX(D19:AN19,DAY(J23)):INDEX(D19:AN19,HLOOKUP(L23,D15:AN20,6,FALSE)),"●")=7,IF(COUNTIF(INDEX(D19:AN19,DAY(J23)):INDEX(D19:AN19,HLOOKUP(L23,D15:AN20,6,FALSE)),"●")>=2,"OK","OUT"),"対象外") -> OUT | P23: =L23+1 -> 2025-04-14 | Q23: ～ | R23: =L23+7 -> 2025-04-20 | S23: =IF(COUNTIF(INDEX(D19:AN19,DAY(P23)):INDEX(D19:AN19,HLOOKUP(R23,D15:AN20,6,FALSE)),"")+COUNTIF(INDEX(D19:AN19,DAY(P23)):INDEX(D19:AN19,HLOOKUP(R23,D15:AN20,6,FALSE)),"●")=7,IF(COUNTIF(INDEX(D19:AN19,DAY(P23)):INDEX(D19:AN19,HLOOKUP(R23,D15:AN20,6,FALSE)),"●")>=2,"OK","OUT"),"対象外") -> OUT | V23: =R23+1 -> 2025-04-21 | W23: ～ | X23: =R23+7 -> 2025-04-27 | Y23: =IF(COUNTIF(INDEX(D19:AN19,DAY(V23)):INDEX(D19:AN19,HLOOKUP(X23,D15:AN20,6,FALSE)),"")+COUNTIF(INDEX(D19:AN19,DAY(V23)):INDEX(D19:AN19,HLOOKUP(X23,D15:AN20,6,FALSE)),"●")=7,IF(COUNTIF(INDEX(D19:AN19,DAY(V23)):INDEX(D19:AN19,HLOOKUP(X23,D15:AN20,6,FALSE)),"●")>=2,"OK","OUT"),"対象外") -> OUT | AB23: =IF(AND(DAY(X23+7)<23,DAY(X23+7)>=7),"",X23+1) -> 2025-04-28 | AC23: =IF(AND(DAY(X23+7)<23,DAY(X23+7)>=7),"","～") -> ～ | AD23: =IF(AND(DAY(X23+7)<23,DAY(X23+7)>=7),"",X23+7) -> 2025-05-04 | AE23: =IF(AND(DAY(X23+7)<23,DAY(X23+7)>=7),"",IF(COUNTIF(INDEX(D19:AN19,DAY(AB23)):INDEX(D19:AN19,HLOOKUP(AD23,D15:AN20,6,FALSE)),"")+COUNTIF(INDEX(D19:AN19,DAY(AB23)):INDEX(D19:AN19,HLOOKUP(AD23,D15:AN20,6,FALSE)),"●")=7,IF(COUNTIF(INDEX(D19:AN19,DAY(AB23)):INDEX(D19:AN19,HLOOKUP(AD23,D15:AN20,6,FALSE)),"●")>=2,"OK","OUT"),IF(COUNTIF(INDEX(D19:AN19,DAY(AB23)):INDEX(D19:AN19,HLOOKUP(AD23,D15:AN20,6,FALSE)),"")+COUNTIF(INDEX(D19:AN19,DAY(AB23)):INDEX(D19:AN19,HLOOKUP(AD23,D15:AN20,6,FALSE)),"●")>7,"「／」漏れ","対象外"))) -> 「／」漏れ | AH23: =IF(AE23="","",IF(AND(DAY(AD23+7)<23,DAY(AD23+7)>=7),"",AD23+1)) ->  | AI23: =IF(AE23="","",IF(AND(DAY(AD23+7)<23,DAY(AD23+7)>=7),"","～")) ->  | AJ23: =IF(AE23="","",IF(AND(DAY(AD23+7)<23,DAY(AD23+7)>=7),"",AD23+7)) ->  | AK23: =IF(AE23="","",IF(AND(DAY(AD23+7)<23,DAY(AD23+7)>=7),"",IF(COUNTIF(INDEX(D19:AN19,DAY(AH23)):INDEX(D19:AN19,HLOOKUP(AJ23,D15:AN20,6,FALSE)),"")+COUNTIF(INDEX(D19:AN19,DAY(AH23)):INDEX(D19:AN19,HLOOKUP(AJ23,D15:AN20,6,FALSE)),"●")=7,IF(COUNTIF(INDEX(D19:AN19,DAY(AH23)):INDEX(D19:AN19,HLOOKUP(AJ23,D15:AN20,6,FALSE)),"●")>=2,"OK","OUT"),IF(COUNTIF(INDEX(D19:AN19,HLOOKUP(AH23,D15:AN20,6,FALSE)):INDEX(D19:AN19,HLOOKUP(AJ23,D15:AN20,6,FALSE)),"")+COUNTIF(INDEX(D19:AN19,HLOOKUP(AH23,D15:AN20,6,FALSE)):INDEX(D19:AN19,HLOOKUP(AJ23,D15:AN20,6,FALSE)),"●")>7,"「／」漏れ","対象外")))) ->  | AS23: 完全週休二日 | AT23: =IF(AT14="","",IF(COUNTIF(D23:AN23,"OUT")>=1,"OUT","OK")) ->  | BA23: 完全 | BB23: =BB14 -> 2025-04-01 | BC23: ～ | BD23: =DATE(YEAR(BB14),MONTH(BB14),1)+MOD(7-WEEKDAY(DATE(YEAR(BB14),MONTH(BB14),1),2),7) -> 2025-04-06 | BE23: =IF(COUNTIF(INDEX($D$19:$AN$19,DAY(BB23)):INDEX($D$19:$AN$19,HLOOKUP(BD23,BB15:CL20,6,FALSE)),"")+COUNTIF(INDEX($D$19:$AN$19,DAY(BB23)):INDEX($D$19:$AN$19,HLOOKUP(BD23,BB15:CL20,6,FALSE)),"●")=7,IF(COUNTIF(INDEX($D$19:$AN$19,DAY(BB23)):INDEX($D$19:$AN$19,HLOOKUP(BD23,BB15:CL20,6,FALSE)),"●")>=2,"OK","OUT"),"対象外") -> 対象外 | BH23: =BD23+1 -> 2025-04-07 | BI23: ～ | BJ23: =BD23+7 -> 2025-04-13 | BK23: =IF(COUNTIF(INDEX(BB19:CL19,DAY(BH23)):INDEX(BB19:CL19,HLOOKUP(BJ23,BB15:CL20,6,FALSE)),"")+COUNTIF(INDEX(BB19:CL19,DAY(BH23)):INDEX(BB19:CL19,HLOOKUP(BJ23,BB15:CL20,6,FALSE)),"●")=7,IF(COUNTIF(INDEX(BB19:CL19,DAY(BH23)):INDEX(BB19:CL19,HLOOKUP(BJ23,BB15:CL20,6,FALSE)),"●")>=2,"OK","OUT"),"対象外") -> 対象外 | BN23: =BJ23+1 -> 2025-04-14 | BO23: ～ | BP23: =BJ23+7 -> 2025-04-20 | BQ23: =IF(COUNTIF(INDEX(BB19:CL19,DAY(BN23)):INDEX(BB19:CL19,HLOOKUP(BP23,BB15:CL20,6,FALSE)),"")+COUNTIF(INDEX(BB19:CL19,DAY(BN23)):INDEX(BB19:CL19,HLOOKUP(BP23,BB15:CL20,6,FALSE)),"●")=7,IF(COUNTIF(INDEX(BB19:CL19,DAY(BN23)):INDEX(BB19:CL19,HLOOKUP(BP23,BB15:CL20,6,FALSE)),"●")>=2,"OK","OUT"),"対象外") -> 対象外 | BT23: =BP23+1 -> 2025-04-21 | BU23: ～ | BV23: =BP23+7 -> 2025-04-27 | BW23: =IF(COUNTIF(INDEX(BB19:CL19,DAY(BT23)):INDEX(BB19:CL19,HLOOKUP(BV23,BB15:CL20,6,FALSE)),"")+COUNTIF(INDEX(BB19:CL19,DAY(BT23)):INDEX(BB19:CL19,HLOOKUP(BV23,BB15:CL20,6,FALSE)),"●")=7,IF(COUNTIF(INDEX(BB19:CL19,DAY(BT23)):INDEX(BB19:CL19,HLOOKUP(BV23,BB15:CL20,6,FALSE)),"●")>=2,"OK","OUT"),"対象外") -> 対象外 | BZ23: =IF(AND(DAY(BV23+7)<23,DAY(BV23+7)>=7),"",BV23+1) -> 2025-04-28 | CA23: =IF(AND(DAY(BV23+7)<23,DAY(BV23+7)>=7),"","～") -> ～ | CB23: =IF(AND(DAY(BV23+7)<23,DAY(BV23+7)>=7),"",BV23+7) -> 2025-05-04 | CC23: =IF(AND(DAY(BV23+7)<23,DAY(BV23+7)>=7),"",IF(COUNTIF(INDEX(BB19:CL19,DAY(BZ23)):INDEX(BB19:CL19,HLOOKUP(CB23,BB15:CL20,6,FALSE)),"")+COUNTIF(INDEX(BB19:CL19,DAY(BZ23)):INDEX(BB19:CL19,HLOOKUP(CB23,BB15:CL20,6,FALSE)),"●")=7,IF(COUNTIF(INDEX(BB19:CL19,DAY(BZ23)):INDEX(BB19:CL19,HLOOKUP(CB23,BB15:CL20,6,FALSE)),"●")>=2,"OK","OUT"),IF(COUNTIF(INDEX(BB19:CL19,DAY(BZ23)):INDEX(BB19:CL19,HLOOKUP(CB23,BB15:CL20,6,FALSE)),"")+COUNTIF(INDEX(BB19:CL19,DAY(BZ23)):INDEX(BB19:CL19,HLOOKUP(CB23,BB15:CL20,6,FALSE)),"●")>7,"「／」漏れ","対象外"))) -> 対象外 | CF23: =IF(CC23="","",IF(AND(DAY(CB23+7)<23,DAY(CB23+7)>=7),"",CB23+1)) ->  | CG23: =IF(CC23="","",IF(AND(DAY(CB23+7)<23,DAY(CB23+7)>=7),"","～")) ->  | CH23: =IF(CC23="","",IF(AND(DAY(CB23+7)<23,DAY(CB23+7)>=7),"",CB23+7)) ->  | CI23: =IF(CC23="","",IF(AND(DAY(CB23+7)<23,DAY(CB23+7)>=7),"",IF(COUNTIF(INDEX(BB19:CL19,DAY(CF23)):INDEX(BB19:CL19,HLOOKUP(CH23,BB15:CL20,6,FALSE)),"")+COUNTIF(INDEX(BB19:CL19,DAY(CF23)):INDEX(BB19:CL19,HLOOKUP(CH23,BB15:CL20,6,FALSE)),"●")=7,IF(COUNTIF(INDEX(BB19:CL19,DAY(CF23)):INDEX(BB19:CL19,HLOOKUP(CH23,BB15:CL20,6,FALSE)),"●")>=2,"OK","OUT"),IF(COUNTIF(INDEX(BB19:CL19,HLOOKUP(CF23,BB15:CL20,6,FALSE)):INDEX(BB19:CL19,HLOOKUP(CH23,BB15:CL20,6,FALSE)),"")+COUNTIF(INDEX(BB19:CL19,HLOOKUP(CF23,BB15:CL20,6,FALSE)):INDEX(BB19:CL19,HLOOKUP(CH23,BB15:CL20,6,FALSE)),"●")>7,"「／」漏れ","対象外")))) ->  | CQ23: 完全週休二日 | CR23: =IF(CR14="","",IF(COUNTIF(BB23:CL23,"OUT")>=1,"OUT","OK")) ->  | CW23: 完全 | CX23: =CX14 -> 2025-04-01 | CY23: ～ | CZ23: =DATE(YEAR(CX14),MONTH(CX14),1)+MOD(7-WEEKDAY(DATE(YEAR(CX14),MONTH(CX14),1),2),7) -> 2025-04-06 | DA23: =IF(COUNTIF(INDEX($D$19:$AN$19,DAY(CX23)):INDEX($D$19:$AN$19,HLOOKUP(CZ23,CX15:EH20,6,FALSE)),"")+COUNTIF(INDEX($D$19:$AN$19,DAY(CX23)):INDEX($D$19:$AN$19,HLOOKUP(CZ23,CX15:EH20,6,FALSE)),"●")=7,IF(COUNTIF(INDEX($D$19:$AN$19,DAY(CX23)):INDEX($D$19:$AN$19,HLOOKUP(CZ23,CX15:EH20,6,FALSE)),"●")>=2,"OK","OUT"),"対象外") -> 対象外 | DD23: =CZ23+1 -> 2025-04-07 | DE23: ～ | DF23: =CZ23+7 -> 2025-04-13 | DG23: =IF(COUNTIF(INDEX(CX19:EH19,DAY(DD23)):INDEX(CX19:EH19,HLOOKUP(DF23,CX15:EH20,6,FALSE)),"")+COUNTIF(INDEX(CX19:EH19,DAY(DD23)):INDEX(CX19:EH19,HLOOKUP(DF23,CX15:EH20,6,FALSE)),"●")=7,IF(COUNTIF(INDEX(CX19:EH19,DAY(DD23)):INDEX(CX19:EH19,HLOOKUP(DF23,CX15:EH20,6,FALSE)),"●")>=2,"OK","OUT"),"対象外") -> 対象外 | DJ23: =DF23+1 -> 2025-04-14 | DK23: ～ | DL23: =DF23+7 -> 2025-04-20 | DM23: =IF(COUNTIF(INDEX(CX19:EH19,DAY(DJ23)):INDEX(CX19:EH19,HLOOKUP(DL23,CX15:EH20,6,FALSE)),"")+COUNTIF(INDEX(CX19:EH19,DAY(DJ23)):INDEX(CX19:EH19,HLOOKUP(DL23,CX15:EH20,6,FALSE)),"●")=7,IF(COUNTIF(INDEX(CX19:EH19,DAY(DJ23)):INDEX(CX19:EH19,HLOOKUP(DL23,CX15:EH20,6,FALSE)),"●")>=2,"OK","OUT"),"対象外") -> 対象外 | DP23: =DL23+1 -> 2025-04-21 | DQ23: ～ | DR23: =DL23+7 -> 2025-04-27 | DS23: =IF(COUNTIF(INDEX(CX19:EH19,DAY(DP23)):INDEX(CX19:EH19,HLOOKUP(DR23,CX15:EH20,6,FALSE)),"")+COUNTIF(INDEX(CX19:EH19,DAY(DP23)):INDEX(CX19:EH19,HLOOKUP(DR23,CX15:EH20,6,FALSE)),"●")=7,IF(COUNTIF(INDEX(CX19:EH19,DAY(DP23)):INDEX(CX19:EH19,HLOOKUP(DR23,CX15:EH20,6,FALSE)),"●")>=2,"OK","OUT"),"対象外") -> 対象外 | DV23: =IF(AND(DAY(DR23+7)<23,DAY(DR23+7)>=7),"",DR23+1) -> 2025-04-28 | DW23: =IF(AND(DAY(DR23+7)<23,DAY(DR23+7)>=7),"","～") -> ～ | DX23: =IF(AND(DAY(DR23+7)<23,DAY(DR23+7)>=7),"",DR23+7) -> 2025-05-04 | DY23: =IF(AND(DAY(DR23+7)<23,DAY(DR23+7)>=7),"",IF(COUNTIF(INDEX(CX19:EH19,DAY(DV23)):INDEX(CX19:EH19,HLOOKUP(DX23,CX15:EH20,6,FALSE)),"")+COUNTIF(INDEX(CX19:EH19,DAY(DV23)):INDEX(CX19:EH19,HLOOKUP(DX23,CX15:EH20,6,FALSE)),"●")=7,IF(COUNTIF(INDEX(CX19:EH19,DAY(DV23)):INDEX(CX19:EH19,HLOOKUP(DX23,CX15:EH20,6,FALSE)),"●")>=2,"OK","OUT"),IF(COUNTIF(INDEX(CX19:EH19,DAY(DV23)):INDEX(CX19:EH19,HLOOKUP(DX23,CX15:EH20,6,FALSE)),"")+COUNTIF(INDEX(CX19:EH19,DAY(DV23)):INDEX(CX19:EH19,HLOOKUP(DX23,CX15:EH20,6,FALSE)),"●")>7,"「／」漏れ","対象外"))) -> 対象外 | EB23: =IF(DY23="","",IF(AND(DAY(DX23+7)<23,DAY(DX23+7)>=7),"",DX23+1)) ->  | EC23: =IF(DY23="","",IF(AND(DAY(DX23+7)<23,DAY(DX23+7)>=7),"","～")) ->  | ED23: =IF(DY23="","",IF(AND(DAY(DX23+7)<23,DAY(DX23+7)>=7),"",DX23+7)) ->  | EE23: =IF(DY23="","",IF(AND(DAY(DX23+7)<23,DAY(DX23+7)>=7),"",IF(COUNTIF(INDEX(CX19:EH19,DAY(EB23)):INDEX(CX19:EH19,HLOOKUP(ED23,CX15:EH20,6,FALSE)),"")+COUNTIF(INDEX(CX19:EH19,DAY(EB23)):INDEX(CX19:EH19,HLOOKUP(ED23,CX15:EH20,6,FALSE)),"●")=7,IF(COUNTIF(INDEX(CX19:EH19,DAY(EB23)):INDEX(CX19:EH19,HLOOKUP(ED23,CX15:EH20,6,FALSE)),"●")>=2,"OK","OUT"),IF(COUNTIF(INDEX(CX19:EH19,HLOOKUP(EB23,CX15:EH20,6,FALSE)):INDEX(CX19:EH19,HLOOKUP(ED23,CX15:EH20,6,FALSE)),"")+COUNTIF(INDEX(CX19:EH19,HLOOKUP(EB23,CX15:EH20,6,FALSE)):INDEX(CX19:EH19,HLOOKUP(ED23,CX15:EH20,6,FALSE)),"●")>7,"「／」漏れ","対象外")))) ->  | EM23: 完全週休二日 | EN23: =IF(EN14="","",IF(COUNTIF(CX23:EH23,"OUT")>=1,"OUT","OK")) -> OK
A25: =IF(AND(NOT($AT$14=""),$AT$43=""),"対象期間","") -> 
A26: =IF(AND(NOT($AT$14=""),$AT$43=""),"対象期間","") ->  | C26: ※１工事着手日：始期日以降に準備工事（現場事務所の建設・測量等）、工場製作を含む工事における工場製作工に着手した日 | AR26: 工事全体の確認 | BA26: ※１工事着手日：始期日以降に準備工事（現場事務所の建設・測量等）、工場製作を含む工事における工場製作工に着手した日 | CP26: 工事全体の確認 | CW26: ※１工事着手日：始期日以降に準備工事（現場事務所の建設・測量等）、工場製作を含む工事における工場製作工に着手した日 | EL26: 工事全体の確認
C27: ※２作業完了日：工事施工範囲内で全ての作業（後片付けを含む）が完了した日 （工事現場事務所は工事施工範囲外に設置するため、ここでいう後片付けの対象に含まない） | AR27: 計画 | AS27: 全対象期間 | AT27: =AT14 ->  | BA27: ※２作業完了日：工事施工範囲内で全ての作業（後片付けを含む）が完了した日 （工事現場事務所は工事施工範囲外に設置するため、ここでいう後片付けの対象に含まない） | CP27: 計画 | CQ27: 全対象期間 | CR27: =CR14 ->  | CW27: ※２作業完了日：工事施工範囲内で全ての作業（後片付けを含む）が完了した日 （工事現場事務所は工事施工範囲外に設置するため、ここでいう後片付けの対象に含まない） | EL27: 計画 | EM27: 全対象期間 | EN27: =EN14 -> 0
AS28: 全現場閉所日数 | AT28: =AT15 ->  | CQ28: 全現場閉所日数 | CR28: =CR15 ->  | EM28: 全現場閉所日数 | EN28: =EN15 -> 0
C29: 【算定除外期間】：夏季休暇（8月13日～8月15日）、年末年始（12月29日～翌年1月3日）は算定期間の分母・分子に含めない | AS29: 現場閉所率 | AT29: =IFERROR(+AT28/AT27,"") ->  | AU29: =IF(AT29>=0.285,"4週8休以上","週休2日未達成") -> 4週8休以上 | BA29: 【算定除外期間】：夏季休暇（8月13日～8月15日）、年末年始（12月29日～翌年1月3日）は算定期間の分母・分子に含めない | CQ29: 現場閉所率 | CR29: =IFERROR(+CR28/CR27,"") ->  | CS29: =IF(CR29>=0.285,"4週8休以上","週休2日未達成") -> 4週8休以上 | CW29: 【算定除外期間】：夏季休暇（8月13日～8月15日）、年末年始（12月29日～翌年1月3日）は算定期間の分母・分子に含めない | EM29: 現場閉所率 | EN29: =IFERROR(+EN28/EN27,"") ->  | EO29: =IF(EN29>=0.285,"4週8休以上","週休2日未達成") -> 4週8休以上
C30: ※３工事期間の全ての月において、達成状況を確認し、一度でも達成できない月があれば、４週８休以上（月単位）は「未達成」となり、補正の対象とならない。 月によっては、土日を全て閉所しても現場閉所率が28.5％に満たない場合があるが、その月の対象期間の土日日数以上閉所していれば達成とみなす。 ※４工事対象期間のうち、一度でも完全週休２日（月～日で２日以上の現場閉所）を達成できなければ、 完全週休２日は「未達成」となり、補正の対象とならない。 なお、工期始期・終期、年末年始、夏季休暇などにより、７日間に満たない期間は完全週休２日の達成判断の対象外とする。 | AR30: 実施 | AS30: 全対象期間 | AT30: =AT17 ->  | BA30: ※３工事期間の全ての月において、達成状況を確認し、一度でも達成できない月があれば、４週８休以上（月単位）は「未達成」となり、補正の対象とならない。 月によっては、土日を全て閉所しても現場閉所率が28.5％に満たない場合があるが、その月の対象期間の土日日数以上閉所していれば達成とみなす。 ※４工事対象期間のうち、一度でも完全週休２日（月～日で２日以上の現場閉所）を達成できなければ、 完全週休２日は「未達成」となり、補正の対象とならない。 なお、工期始期・終期、年末年始、夏季休暇などにより、７日間に満たない期間は完全週休２日の達成判断の対象外とする。 | CP30: 実施 | CQ30: 全対象期間 | CR30: =CR17 ->  | CW30: ※３工事期間の全ての月において、達成状況を確認し、一度でも達成できない月があれば、４週８休以上（月単位）は「未達成」となり、補正の対象とならない。 月によっては、土日を全て閉所しても現場閉所率が28.5％に満たない場合があるが、その月の対象期間の土日日数以上閉所していれば達成とみなす。 ※４工事対象期間のうち、一度でも完全週休２日（月～日で２日以上の現場閉所）を達成できなければ、 完全週休２日は「未達成」となり、補正の対象とならない。 なお、工期始期・終期、年末年始、夏季休暇などにより、７日間に満たない期間は完全週休２日の達成判断の対象外とする。 | EL30: 実施 | EM30: 全対象期間 | EN30: =EN17 -> 0
AS31: 全現場閉所日数 | AT31: =AT18 ->  | CQ31: 全現場閉所日数 | CR31: =CR18 ->  | EM31: 全現場閉所日数 | EN31: =EN18 -> 0
AS32: 現場閉所率 | AT32: =IFERROR(+AT31/AT30,"") ->  | AU32: =IF(AT32>=0.285,"4週8休以上","週休2日未達成") -> 4週8休以上 | CQ32: 現場閉所率 | CR32: =IFERROR(+CR31/CR30,"") ->  | CS32: =IF(CR32>=0.285,"4週8休以上","週休2日未達成") -> 4週8休以上 | EM32: 現場閉所率 | EN32: =IFERROR(+EN31/EN30,"") ->  | EO32: =IF(EN32>=0.285,"4週8休以上","週休2日未達成") -> 4週8休以上
AS33: 閉所（月単位） | AT33: =IFERROR(COUNTIF(AS14:AS23,"4週8休以上")/(COUNTIF(AS14:AS23,"4週8休以上")+COUNTIF(AS14:AS23,"週休2日未達成")),"") ->  | AU33: =IF(OR(AT33=100%,AT33=""),"達成","未達成") -> 達成 | CQ33: 閉所（月単位） | CR33: =IFERROR(COUNTIF(CQ14:CQ23,"4週8休以上")/(COUNTIF(CQ14:CQ23,"4週8休以上")+COUNTIF(CQ14:CQ23,"週休2日未達成")),"") ->  | CS33: =IF(OR(CR33=100%,CR33=""),"達成","未達成") -> 達成 | EM33: 閉所（月単位） | EN33: =IFERROR(COUNTIF(EM14:EM23,"4週8休以上")/(COUNTIF(EM14:EM23,"4週8休以上")+COUNTIF(EM14:EM23,"週休2日未達成")),"") ->  | EO33: =IF(OR(EN33=100%,EN33=""),"達成","未達成") -> 達成
AS34: 完全週休二日 | AT34: =IF(COUNTIF(AS14:AS23,"OUT")>=1,"OUT","OK") -> OK | AU34: =IF(AT34="OK","達成","未達成") -> 達成 | CQ34: 完全週休二日 | CR34: =IF(COUNTIF(CQ14:CQ23,"OUT")>=1,"OUT","OK") -> OK | CS34: =IF(CR34="OK","達成","未達成") -> 達成 | EM34: 完全週休二日 | EN34: =IF(COUNTIF(EM14:EM23,"OUT")>=1,"OUT","OK") -> OK | EO34: =IF(EN34="OK","達成","未達成") -> 達成
C35: ※必要に応じて各月の完全週休2日（月～日）の達成判定の行を修正してください。（曜日に合わせて修正） | BA35: ※必要に応じて各月の完全週休2日（月～日）の達成判定の行を修正してください。（曜日に合わせて修正） | CW35: ※必要に応じて各月の完全週休2日（月～日）の達成判定の行を修正してください。（曜日に合わせて修正）
C41: 算定除外期間以外の祝日（ＧＷ含む）は、算定期間（分母）の対象＝現場閉所の場合は分子にカウントして現場閉所率を算定 | BA41: 算定除外期間以外の祝日（ＧＷ含む）は、算定期間（分母）の対象＝現場閉所の場合は分子にカウントして現場閉所率を算定 | CW41: 算定除外期間以外の祝日（ＧＷ含む）は、算定期間（分母）の対象＝現場閉所の場合は分子にカウントして現場閉所率を算定
A43: =IF($AT$43="","","対象期間") ->  | C43: 月 | D43: =DATE(YEAR(D14),MONTH(D14)+1,1) -> 2025-05-01 | AI43: =DATE(YEAR(D43),MONTH(D43)+1,1) -> 2025-06-01 | AO43: 現場閉所計 | AP43: 現場閉所累計 | AR43: 計画 | AS43: 対象期間 | AT43: =IF(IF(MONTH(入力表!$E$6)=12,YEAR(入力表!$E$6)+1&"01",YEAR(入力表!$E$6)&TEXT(MONTH(入力表!$E$6)+1,"00"))>YEAR($D43)&TEXT(MONTH($D43),"00"),COUNTIF(D47:AH47,"")+COUNTIF(D47:AH47,"○"),"") ->  | AU43: =IF(COUNTIF(D44:AH44,"／")=0,"",IF(COUNTIF(D44:AH44,"／")=1,IF(AH47="／","","月末「／」漏れ"),IF(COUNTIF(D44:AH44,"／")=2,IF(AND(AG47="／",AH47="／"),"","月末「／」漏れ"),IF(AND(AF47="／",AG47="／",AH47="／"),"","月末「／」漏れ")))) ->  | BA43: 月 | BB43: =DATE(YEAR(BB14),MONTH(BB14)+1,1) -> 2025-05-01 | CG43: =DATE(YEAR(BB43),MONTH(BB43)+1,1) -> 2025-06-01 | CM43: 現場閉所計 | CN43: 現場閉所累計 | CP43: 計画 | CQ43: 対象期間 | CR43: =IF(IF(MONTH($BL$5)=12,YEAR($BL$5)+1&"01",YEAR($BL$5)&TEXT(MONTH($BL$5)+1,"00"))>YEAR(BB43)&TEXT(MONTH(BB43),"00"),COUNTIF(BB47:CF47,"")+COUNTIF(BB47:CF47,"○"),"") -> 20 | CS43: =IF(COUNTIF(BB44:CF44,"／")=0,"",IF(COUNTIF(BB44:CF44,"／")=1,IF(CF47="／","","月末「／」漏れ"),IF(COUNTIF(BB44:CF44,"／")=2,IF(AND(CE47="／",CF47="／"),"","月末「／」漏れ"),IF(AND(CD47="／",CE47="／",CF47="／"),"","月末「／」漏れ")))) ->  | CW43: 月 | CX43: =DATE(YEAR(CX14),MONTH(CX14)+1,1) -> 2025-05-01 | EC43: =DATE(YEAR(CX43),MONTH(CX43)+1,1) -> 2025-06-01 | EI43: 現場閉所計 | EJ43: 現場閉所累計 | EL43: 計画 | EM43: 対象期間 | EN43: =IF(IF(MONTH($BL$5)=12,YEAR($BL$5)+1&"01",YEAR($BL$5)&TEXT(MONTH($BL$5)+1,"00"))>YEAR($CX43)&TEXT(MONTH($CX43),"00"),COUNTIF(CX47:EB47,"")+COUNTIF(CX47:EB47,"○"),"") -> 20 | EO43: =IF(COUNTIF(CX44:EB44,"／")=0,"",IF(COUNTIF(CX44:EB44,"／")=1,IF(EB47="／","","月末「／」漏れ"),IF(COUNTIF(CX44:EB44,"／")=2,IF(AND(EA47="／",EB47="／"),"","月末「／」漏れ"),IF(AND(DZ47="／",EA47="／",EB47="／"),"","月末「／」漏れ")))) -> 
A44: =IF($AT$43="","","対象期間") ->  | C44: 日 | D44: =D43 -> 2025-05-01 | E44: =D44+1 -> 2025-05-02 | F44: =E44+1 -> 2025-05-03 | G44: =F44+1 -> 2025-05-04 | H44: =G44+1 -> 2025-05-05 | I44: =H44+1 -> 2025-05-06 | J44: =I44+1 -> 2025-05-07 | K44: =J44+1 -> 2025-05-08 | L44: =K44+1 -> 2025-05-09 | M44: =L44+1 -> 2025-05-10 | N44: =M44+1 -> 2025-05-11 | O44: =N44+1 -> 2025-05-12 | P44: =O44+1 -> 2025-05-13 | Q44: =P44+1 -> 2025-05-14 | R44: =Q44+1 -> 2025-05-15 | S44: =R44+1 -> 2025-05-16 | T44: =S44+1 -> 2025-05-17 | U44: =T44+1 -> 2025-05-18 | V44: =U44+1 -> 2025-05-19 | W44: =V44+1 -> 2025-05-20 | X44: =W44+1 -> 2025-05-21 | Y44: =X44+1 -> 2025-05-22 | Z44: =Y44+1 -> 2025-05-23 | AA44: =Z44+1 -> 2025-05-24 | AB44: =AA44+1 -> 2025-05-25 | AC44: =AB44+1 -> 2025-05-26 | AD44: =AC44+1 -> 2025-05-27 | AE44: =AD44+1 -> 2025-05-28 | AF44: =IF(AE44="／","／",IF(YEAR($D43)&TEXT(MONTH($D43),"00")<YEAR(AE44+1)&TEXT(MONTH(AE44+1),"00"),"／",AE44+1)) -> 2025-05-29 | AG44: =IF(AF44="／","／",IF(YEAR($D43)&TEXT(MONTH($D43),"00")<YEAR(AF44+1)&TEXT(MONTH(AF44+1),"00"),"／",AF44+1)) -> 2025-05-30 | AH44: =IF(AG44="／","／",IF(YEAR($D43)&TEXT(MONTH($D43),"00")<YEAR(AG44+1)&TEXT(MONTH(AG44+1),"00"),"／",AG44+1)) -> 2025-05-31 | AI44: =AI43 -> 2025-06-01 | AJ44: =AI44+1 -> 2025-06-02 | AK44: =AJ44+1 -> 2025-06-03 | AL44: =AK44+1 -> 2025-06-04 | AM44: =AL44+1 -> 2025-06-05 | AN44: =AM44+1 -> 2025-06-06 | AS44: 閉所日数 | AT44: =IF(IF(MONTH(入力表!$E$6)=12,YEAR(入力表!$E$6)+1&"01",YEAR(入力表!$E$6)&TEXT(MONTH(入力表!$E$6)+1,"00"))>YEAR($D43)&TEXT(MONTH($D43),"00"),COUNTIF(D47:AH47,"○"),"") ->  | AU44: =IF(OR(MONTH(D43)=1,MONTH(D43)=8,MONTH(D43)=12),IF(COUNTIF(D47:AH47,"／")>=3,"","算定除外「／」漏れ"),"") ->  | BA44: 日 | BB44: =BB43 -> 2025-05-01 | BC44: =BB44+1 -> 2025-05-02 | BD44: =BC44+1 -> 2025-05-03 | BE44: =BD44+1 -> 2025-05-04 | BF44: =BE44+1 -> 2025-05-05 | BG44: =BF44+1 -> 2025-05-06 | BH44: =BG44+1 -> 2025-05-07 | BI44: =BH44+1 -> 2025-05-08 | BJ44: =BI44+1 -> 2025-05-09 | BK44: =BJ44+1 -> 2025-05-10 | BL44: =BK44+1 -> 2025-05-11 | BM44: =BL44+1 -> 2025-05-12 | BN44: =BM44+1 -> 2025-05-13 | BO44: =BN44+1 -> 2025-05-14 | BP44: =BO44+1 -> 2025-05-15 | BQ44: =BP44+1 -> 2025-05-16 | BR44: =BQ44+1 -> 2025-05-17 | BS44: =BR44+1 -> 2025-05-18 | BT44: =BS44+1 -> 2025-05-19 | BU44: =BT44+1 -> 2025-05-20 | BV44: =BU44+1 -> 2025-05-21 | BW44: =BV44+1 -> 2025-05-22 | BX44: =BW44+1 -> 2025-05-23 | BY44: =BX44+1 -> 2025-05-24 | BZ44: =BY44+1 -> 2025-05-25 | CA44: =BZ44+1 -> 2025-05-26 | CB44: =CA44+1 -> 2025-05-27 | CC44: =CB44+1 -> 2025-05-28 | CD44: =IF(CC44="／","／",IF(YEAR(BB43)&TEXT(MONTH(BB43),"00")<YEAR(CC44+1)&TEXT(MONTH(CC44+1),"00"),"／",CC44+1)) -> 2025-05-29 | CE44: =IF(CD44="／","／",IF(YEAR(BB43)&TEXT(MONTH(BB43),"00")<YEAR(CD44+1)&TEXT(MONTH(CD44+1),"00"),"／",CD44+1)) -> 2025-05-30 | CF44: =IF(CE44="／","／",IF(YEAR(BB43)&TEXT(MONTH(BB43),"00")<YEAR(CE44+1)&TEXT(MONTH(CE44+1),"00"),"／",CE44+1)) -> 2025-05-31 | CG44: =CG43 -> 2025-06-01 | CH44: =CG44+1 -> 2025-06-02 | CI44: =CH44+1 -> 2025-06-03 | CJ44: =CI44+1 -> 2025-06-04 | CK44: =CJ44+1 -> 2025-06-05 | CL44: =CK44+1 -> 2025-06-06 | CQ44: 閉所日数 | CR44: =IF(IF(MONTH($BL$5)=12,YEAR($BL$5)+1&"01",YEAR($BL$5)&TEXT(MONTH($BL$5)+1,"00"))>YEAR(BB43)&TEXT(MONTH(BB43),"00"),COUNTIF(BB47:CF47,"○"),"") -> 6 | CS44: =IF(OR(MONTH(BB43)=1,MONTH(BB43)=8,MONTH(BB43)=12),IF(COUNTIF(BB47:CF47,"／")>=3,"","算定除外「／」漏れ"),"") ->  | CW44: 日 | CX44: =CX43 -> 2025-05-01 | CY44: =CX44+1 -> 2025-05-02 | CZ44: =CY44+1 -> 2025-05-03 | DA44: =CZ44+1 -> 2025-05-04 | DB44: =DA44+1 -> 2025-05-05 | DC44: =DB44+1 -> 2025-05-06 | DD44: =DC44+1 -> 2025-05-07 | DE44: =DD44+1 -> 2025-05-08 | DF44: =DE44+1 -> 2025-05-09 | DG44: =DF44+1 -> 2025-05-10 | DH44: =DG44+1 -> 2025-05-11 | DI44: =DH44+1 -> 2025-05-12 | DJ44: =DI44+1 -> 2025-05-13 | DK44: =DJ44+1 -> 2025-05-14 | DL44: =DK44+1 -> 2025-05-15 | DM44: =DL44+1 -> 2025-05-16 | DN44: =DM44+1 -> 2025-05-17 | DO44: =DN44+1 -> 2025-05-18 | DP44: =DO44+1 -> 2025-05-19 | DQ44: =DP44+1 -> 2025-05-20 | DR44: =DQ44+1 -> 2025-05-21 | DS44: =DR44+1 -> 2025-05-22 | DT44: =DS44+1 -> 2025-05-23 | DU44: =DT44+1 -> 2025-05-24 | DV44: =DU44+1 -> 2025-05-25 | DW44: =DV44+1 -> 2025-05-26 | DX44: =DW44+1 -> 2025-05-27 | DY44: =DX44+1 -> 2025-05-28 | DZ44: =IF(DY44="／","／",IF(YEAR(CX43)&TEXT(MONTH(CX43),"00")<YEAR(DY44+1)&TEXT(MONTH(DY44+1),"00"),"／",DY44+1)) -> 2025-05-29 | EA44: =IF(DZ44="／","／",IF(YEAR(CX43)&TEXT(MONTH(CX43),"00")<YEAR(DZ44+1)&TEXT(MONTH(DZ44+1),"00"),"／",DZ44+1)) -> 2025-05-30 | EB44: =IF(EA44="／","／",IF(YEAR(CX43)&TEXT(MONTH(CX43),"00")<YEAR(EA44+1)&TEXT(MONTH(EA44+1),"00"),"／",EA44+1)) -> 2025-05-31 | EC44: =EC43 -> 2025-06-01 | ED44: =EC44+1 -> 2025-06-02 | EE44: =ED44+1 -> 2025-06-03 | EF44: =EE44+1 -> 2025-06-04 | EG44: =EF44+1 -> 2025-06-05 | EH44: =EG44+1 -> 2025-06-06 | EM44: 閉所日数 | EN44: =IF(IF(MONTH($BL$5)=12,YEAR($BL$5)+1&"01",YEAR($BL$5)&TEXT(MONTH($BL$5)+1,"00"))>YEAR($CX43)&TEXT(MONTH($CX43),"00"),COUNTIF(CX47:EB47,"○"),"") -> 6 | EO44: =IF(OR(MONTH(CX43)=1,MONTH(CX43)=8,MONTH(CX43)=12),IF(COUNTIF(CX47:EB47,"／")>=3,"","算定除外「／」漏れ"),"") -> 
C45: 曜日 | D45: =TEXT(WEEKDAY(+D44),"aaa") -> 木 | E45: =TEXT(WEEKDAY(+E44),"aaa") -> 金 | F45: 土 | G45: 日 | H45: 月 | I45: =TEXT(WEEKDAY(+I44),"aaa") -> 火 | J45: =TEXT(WEEKDAY(+J44),"aaa") -> 水 | K45: 木 | L45: 金 | M45: 土 | N45: 日 | O45: 月 | P45: 火 | Q45: 水 | R45: 木 | S45: 金 | T45: 土 | U45: 日 | V45: 月 | W45: 火 | X45: 水 | Y45: 木 | Z45: =TEXT(WEEKDAY(+Z44),"aaa") -> 金 | AA45: =TEXT(WEEKDAY(+AA44),"aaa") -> 土 | AB45: 日 | AC45: 月 | AD45: 火 | AE45: 水 | AF45: =IF(AF44="／","／",TEXT(WEEKDAY(+AF44),"aaa")) -> 木 | AG45: =IF(AG44="／","／",TEXT(WEEKDAY(+AG44),"aaa")) -> 金 | AH45: 土 | AI45: =TEXT(WEEKDAY(+AI44),"aaa") -> 日 | AJ45: =TEXT(WEEKDAY(+AJ44),"aaa") -> 月 | AK45: 火 | AL45: 水 | AM45: 木 | AN45: 金 | AS45: 現場閉所率 | AT45: =IFERROR(+AT44/AT43,"") ->  | AU45: =IF(AT45="","",IF(COUNTIF(D47:AH47,"○")>=COUNTIF(D50:AH50,"◎"),"4週8休以上",IF(AT45>=0.285,"4週8休以上","週休2日未達成"))) ->  | BA45: 曜日 | BB45: =TEXT(WEEKDAY(+BB44),"aaa") -> 木 | BC45: =TEXT(WEEKDAY(+BC44),"aaa") -> 金 | BD45: 土 | BE45: 日 | BF45: 月 | BG45: =TEXT(WEEKDAY(+BG44),"aaa") -> 火 | BH45: =TEXT(WEEKDAY(+BH44),"aaa") -> 水 | BI45: 木 | BJ45: 金 | BK45: 土 | BL45: 日 | BM45: 月 | BN45: 火 | BO45: 水 | BP45: 木 | BQ45: 金 | BR45: 土 | BS45: 日 | BT45: 月 | BU45: 火 | BV45: 水 | BW45: 木 | BX45: =TEXT(WEEKDAY(+BX44),"aaa") -> 金 | BY45: =TEXT(WEEKDAY(+BY44),"aaa") -> 土 | BZ45: 日 | CA45: 月 | CB45: 火 | CC45: 水 | CD45: =IF(CD44="／","／",TEXT(WEEKDAY(+CD44),"aaa")) -> 木 | CE45: =IF(CE44="／","／",TEXT(WEEKDAY(+CE44),"aaa")) -> 金 | CF45: 土 | CG45: =TEXT(WEEKDAY(+CG44),"aaa") -> 日 | CH45: =TEXT(WEEKDAY(+CH44),"aaa") -> 月 | CI45: 火 | CJ45: 水 | CK45: 木 | CL45: 金 | CQ45: 現場閉所率 | CR45: =IFERROR(+CR44/CR43,"") -> 0.3 | CS45: =IF(CR45="","",IF(COUNTIF(BB47:CF47,"○")>=COUNTIF(BB50:CF50,"◎"),"4週8休以上",IF(CR45>=0.285,"4週8休以上","週休2日未達成"))) -> 4週8休以上 | CW45: 曜日 | CX45: =TEXT(WEEKDAY(+CX44),"aaa") -> 木 | CY45: =TEXT(WEEKDAY(+CY44),"aaa") -> 金 | CZ45: 土 | DA45: 日 | DB45: 月 | DC45: =TEXT(WEEKDAY(+DC44),"aaa") -> 火 | DD45: =TEXT(WEEKDAY(+DD44),"aaa") -> 水 | DE45: 木 | DF45: 金 | DG45: 土 | DH45: 日 | DI45: 月 | DJ45: 火 | DK45: 水 | DL45: 木 | DM45: 金 | DN45: 土 | DO45: 日 | DP45: 月 | DQ45: 火 | DR45: 水 | DS45: 木 | DT45: =TEXT(WEEKDAY(+DT44),"aaa") -> 金 | DU45: =TEXT(WEEKDAY(+DU44),"aaa") -> 土 | DV45: 日 | DW45: 月 | DX45: 火 | DY45: 水 | DZ45: =IF(DZ44="／","／",TEXT(WEEKDAY(+DZ44),"aaa")) -> 木 | EA45: =IF(EA44="／","／",TEXT(WEEKDAY(+EA44),"aaa")) -> 金 | EB45: 土 | EC45: =TEXT(WEEKDAY(+EC44),"aaa") -> 日 | ED45: =TEXT(WEEKDAY(+ED44),"aaa") -> 月 | EE45: 火 | EF45: 水 | EG45: 木 | EH45: 金 | EM45: 現場閉所率 | EN45: =IFERROR(+EN44/EN43,"") -> 0.3 | EO45: =IF(EN45="","",IF(COUNTIF(CX47:EB47,"○")>=COUNTIF(CX50:EB50,"◎"),"4週8休以上",IF(EN45>=0.285,"4週8休以上","週休2日未達成"))) -> 4週8休以上
C46: 行事 | AI46: =IF(D75="","",D75) ->  | AJ46: =IF(E75="","",E75) ->  | AK46: =IF(F75="","",F75) ->  | AL46: =IF(G75="","",G75) ->  | AM46: =IF(H75="","",H75) ->  | AN46: =IF(I75="","",I75) ->  | AR46: 実施 | AS46: 対象期間 | AT46: =IF(IF(MONTH(入力表!$E$6)=12,YEAR(入力表!$E$6)+1&"01",YEAR(入力表!$E$6)&TEXT(MONTH(入力表!$E$6)+1,"00"))>YEAR($D43)&TEXT(MONTH($D43),"00"),COUNTIF(D48:AH48,"")+COUNTIF(D48:AH48,"●"),"") ->  | AU46: =IF(COUNTIF(D44:AH44,"／")=0,"",IF(COUNTIF(D44:AH44,"／")=1,IF(AH48="／","","月末「／」漏れ"),IF(COUNTIF(D44:AH44,"／")=2,IF(AND(AG48="／",AH48="／"),"","月末「／」漏れ"),IF(AND(AF48="／",AG48="／",AH48="／"),"","月末「／」漏れ")))) ->  | BA46: 行事 | BM46: 工事着手日 | CG46: =IF(BB75="","",BB75) ->  | CH46: =IF(BC75="","",BC75) ->  | CI46: =IF(BD75="","",BD75) ->  | CJ46: =IF(BE75="","",BE75) ->  | CK46: =IF(BF75="","",BF75) ->  | CL46: =IF(BG75="","",BG75) ->  | CP46: 実施 | CQ46: 対象期間 | CR46: =IF(IF(MONTH($BL$5)=12,YEAR($BL$5)+1&"01",YEAR($BL$5)&TEXT(MONTH($BL$5)+1,"00"))>YEAR(BB43)&TEXT(MONTH(BB43),"00"),COUNTIF(BB48:CF48,"")+COUNTIF(BB48:CF48,"●"),"") -> 20 | CS46: =IF(COUNTIF(BB44:CF44,"／")=0,"",IF(COUNTIF(BB44:CF44,"／")=1,IF(CF48="／","","月末「／」漏れ"),IF(COUNTIF(BB44:CF44,"／")=2,IF(AND(CE48="／",CF48="／"),"","月末「／」漏れ"),IF(AND(CD48="／",CE48="／",CF48="／"),"","月末「／」漏れ")))) ->  | CW46: 行事 | DI46: 工事着手日 | EC46: =IF(CX75="","",CX75) ->  | ED46: =IF(CY75="","",CY75) ->  | EE46: =IF(CZ75="","",CZ75) ->  | EF46: =IF(DA75="","",DA75) ->  | EG46: =IF(DB75="","",DB75) ->  | EH46: =IF(DC75="","",DC75) ->  | EL46: 実施 | EM46: 対象期間 | EN46: =IF(IF(MONTH($BL$5)=12,YEAR($BL$5)+1&"01",YEAR($BL$5)&TEXT(MONTH($BL$5)+1,"00"))>YEAR($CX43)&TEXT(MONTH($CX43),"00"),COUNTIF(CX48:EB48,"")+COUNTIF(CX48:EB48,"●"),"") -> 20 | EO46: =IF(COUNTIF(CX44:EB44,"／")=0,"",IF(COUNTIF(CX44:EB44,"／")=1,IF(EB48="／","","月末「／」漏れ"),IF(COUNTIF(CX44:EB44,"／")=2,IF(AND(EA48="／",EB48="／"),"","月末「／」漏れ"),IF(AND(DZ48="／",EA48="／",EB48="／"),"","月末「／」漏れ")))) -> 
C47: 計画 | AI47: =IF(D76="","",D76) ->  | AJ47: =IF(E76="","",E76) ->  | AK47: =IF(F76="","",F76) ->  | AL47: =IF(G76="","",G76) ->  | AM47: =IF(H76="","",H76) ->  | AN47: =IF(I76="","",I76) ->  | AO47: =COUNTIF(D47:AG47,"○") -> 0 | AP47: =+AO47 -> 0 | AS47: 閉所日数 | AT47: =IF(IF(MONTH(入力表!$E$6)=12,YEAR(入力表!$E$6)+1&"01",YEAR(入力表!$E$6)&TEXT(MONTH(入力表!$E$6)+1,"00"))>YEAR($D43)&TEXT(MONTH($D43),"00"),COUNTIF(D48:AH48,"●"),"") ->  | AU47: =IF(OR(MONTH(D43)=1,MONTH(D43)=8,MONTH(D43)=12),IF(COUNTIF(D48:AH48,"／")>=3,"","算定除外「／」漏れ"),"") ->  | BA47: 計画 | BB47: ／ | BC47: ／ | BD47: ／ | BE47: ／ | BF47: ／ | BG47: ／ | BH47: ／ | BI47: ／ | BJ47: ／ | BK47: ／ | BL47: ／ | BR47: ○ | BS47: ○ | BT47: ○ | BY47: ○ | BZ47: ○ | CF47: ○ | CG47: =IF(BB76="","",BB76) -> ○ | CM47: =COUNTIF(BB47:CE47,"○") -> 5 | CN47: =+CM47 -> 5 | CQ47: 閉所日数 | CR47: =IF(IF(MONTH($BL$5)=12,YEAR($BL$5)+1&"01",YEAR($BL$5)&TEXT(MONTH($BL$5)+1,"00"))>YEAR(BB43)&TEXT(MONTH(BB43),"00"),COUNTIF(BB48:CF48,"●"),"") -> 0 | CS47: =IF(OR(MONTH(BB43)=1,MONTH(BB43)=8,MONTH(BB43)=12),IF(COUNTIF(BB48:CF48,"／")>=3,"","算定除外「／」漏れ"),"") ->  | CW47: 計画 | CX47: ／ | CY47: ／ | CZ47: ／ | DA47: ／ | DB47: ／ | DC47: ／ | DD47: ／ | DE47: ／ | DF47: ／ | DG47: ／ | DH47: ／ | DN47: ○ | DO47: ○ | DP47: ○ | DU47: ○ | DV47: ○ | EB47: ○ | EC47: =IF(CX76="","",CX76) -> ○ | EI47: =COUNTIF(CX47:EA47,"○") -> 5 | EJ47: =+EI47 -> 5 | EM47: 閉所日数 | EN47: =IF(IF(MONTH($BL$5)=12,YEAR($BL$5)+1&"01",YEAR($BL$5)&TEXT(MONTH($BL$5)+1,"00"))>YEAR($CX43)&TEXT(MONTH($CX43),"00"),COUNTIF(CX48:EB48,"●"),"") -> 6 | EO47: =IF(OR(MONTH(CX43)=1,MONTH(CX43)=8,MONTH(CX43)=12),IF(COUNTIF(CX48:EB48,"／")>=3,"","算定除外「／」漏れ"),"") -> 
C48: 実施 | AI48: =IF(D77="","",D77) ->  | AJ48: =IF(E77="","",E77) ->  | AK48: =IF(F77="","",F77) ->  | AL48: =IF(G77="","",G77) ->  | AM48: =IF(H77="","",H77) ->  | AN48: =IF(I77="","",I77) ->  | AO48: =COUNTIF(D48:AG48,"●") -> 0 | AP48: =+AO48 -> 0 | AS48: 現場閉所率 | AT48: =IFERROR(+AT47/AT46,"") ->  | AU48: =IF(AT48="","",IF(COUNTIF(D48:AH48,"●")>=COUNTIF(D51:AH51,"◎"),"4週8休以上",IF(AT48>=0.285,"4週8休以上","週休2日未達成"))) ->  | BA48: 実施 | BB48: ／ | BC48: ／ | BD48: ／ | BE48: ／ | BF48: ／ | BG48: ／ | BH48: ／ | BI48: ／ | BJ48: ／ | BK48: ／ | BL48: ／ | CG48: =IF(BB77="","",BB77) ->  | CH48: =IF(BC77="","",BC77) ->  | CI48: =IF(BD77="","",BD77) ->  | CJ48: =IF(BE77="","",BE77) ->  | CK48: =IF(BF77="","",BF77) ->  | CL48: =IF(BG77="","",BG77) ->  | CM48: =COUNTIF(BB48:CE48,"●") -> 0 | CN48: =+CM48 -> 0 | CQ48: 現場閉所率 | CR48: =IFERROR(+CR47/CR46,"") -> 0 | CS48: =IF(CR48="","",IF(COUNTIF(BB48:CF48,"●")>=COUNTIF(BB51:CF51,"◎"),"4週8休以上",IF(CR48>=0.285,"4週8休以上","週休2日未達成"))) -> 週休2日未達成 | CW48: 実施 | CX48: ／ | CY48: ／ | CZ48: ／ | DA48: ／ | DB48: ／ | DC48: ／ | DD48: ／ | DE48: ／ | DF48: ／ | DG48: ／ | DH48: ／ | DN48: ● | DO48: ● | DP48: ● | DS48: ● | DV48: ● | EB48: ● | EC48: =IF(CX77="","",CX77) -> ● | ED48: =IF(CY77="","",CY77) ->  | EE48: =IF(CZ77="","",CZ77) ->  | EF48: =IF(DA77="","",DA77) ->  | EG48: =IF(DB77="","",DB77) ->  | EH48: =IF(DC77="","",DC77) ->  | EI48: =COUNTIF(CX48:EA48,"●") -> 5 | EJ48: =+EI48 -> 5 | EM48: 現場閉所率 | EN48: =IFERROR(+EN47/EN46,"") -> 0.3 | EO48: =IF(EN48="","",IF(COUNTIF(CX48:EB48,"●")>=COUNTIF(CX51:EB51,"◎"),"4週8休以上",IF(EN48>=0.285,"4週8休以上","週休2日未達成"))) -> 4週8休以上
D49: 1 | E49: 2 | F49: 3 | G49: 4 | H49: 5 | I49: 6 | J49: 7 | K49: 8 | L49: 9 | M49: 10 | N49: 11 | O49: 12 | P49: 13 | Q49: 14 | R49: 15 | S49: 16 | T49: 17 | U49: 18 | V49: 19 | W49: 20 | X49: 21 | Y49: 22 | Z49: 23 | AA49: 24 | AB49: 25 | AC49: 26 | AD49: 27 | AE49: 28 | AF49: 29 | AG49: 30 | AH49: 31 | AI49: 32 | AJ49: 33 | AK49: 34 | AL49: 35 | AM49: 36 | AN49: 37 | AS49: =AU48 ->  | BB49: 1 | BC49: 2 | BD49: 3 | BE49: 4 | BF49: 5 | BG49: 6 | BH49: 7 | BI49: 8 | BJ49: 9 | BK49: 10 | BL49: 11 | BM49: 12 | BN49: 13 | BO49: 14 | BP49: 15 | BQ49: 16 | BR49: 17 | BS49: 18 | BT49: 19 | BU49: 20 | BV49: 21 | BW49: 22 | BX49: 23 | BY49: 24 | BZ49: 25 | CA49: 26 | CB49: 27 | CC49: 28 | CD49: 29 | CE49: 30 | CF49: 31 | CG49: 32 | CH49: 33 | CI49: 34 | CJ49: 35 | CK49: 36 | CL49: 37 | CQ49: =CS48 -> 週休2日未達成 | CX49: 1 | CY49: 2 | CZ49: 3 | DA49: 4 | DB49: 5 | DC49: 6 | DD49: 7 | DE49: 8 | DF49: 9 | DG49: 10 | DH49: 11 | DI49: 12 | DJ49: 13 | DK49: 14 | DL49: 15 | DM49: 16 | DN49: 17 | DO49: 18 | DP49: 19 | DQ49: 20 | DR49: 21 | DS49: 22 | DT49: 23 | DU49: 24 | DV49: 25 | DW49: 26 | DX49: 27 | DY49: 28 | DZ49: 29 | EA49: 30 | EB49: 31 | EC49: 32 | ED49: 33 | EE49: 34 | EF49: 35 | EG49: 36 | EH49: 37 | EM49: =EO48 -> 4週8休以上
C50: 計画 | D50: =IF(D47="／","／",IF(OR(D45="土",D45="日"),"◎","")) ->  | F50: ◎ | G50: ◎ | M50: ◎ | N50: ◎ | T50: ◎ | U50: ◎ | AA50: ◎ | AB50: ◎ | AD50: =IF(AD47="／","／",IF(OR(AD45="土",AD45="日"),"◎","")) ->  | AE50: =IF(AE47="／","／",IF(OR(AE45="土",AE45="日"),"◎","")) ->  | AH50: ◎ | AI50: ◎ | AS50: =AT52 ->  | BA50: 計画 | BB50: =IF(BB47="／","／",IF(OR(BB45="土",BB45="日"),"◎","")) -> ／ | BC50: ／ | BD50: ／ | BE50: ／ | BF50: ／ | BG50: ／ | BH50: ／ | BI50: ／ | BJ50: ／ | BK50: ／ | BL50: ／ | BN50: =IF(BN47="／","／",IF(OR(BN45="土",BN45="日"),"◎","")) ->  | BO50: =IF(BO47="／","／",IF(OR(BO45="土",BO45="日"),"◎","")) ->  | BR50: ◎ | BS50: ◎ | BY50: ◎ | BZ50: ◎ | CB50: =IF(CB47="／","／",IF(OR(CB45="土",CB45="日"),"◎","")) ->  | CC50: =IF(CC47="／","／",IF(OR(CC45="土",CC45="日"),"◎","")) ->  | CF50: ◎ | CG50: ◎ | CQ50: =CR52 -> OUT | CW50: 計画 | CX50: =IF(CX47="／","／",IF(OR(CX45="土",CX45="日"),"◎","")) -> ／ | CY50: ／ | CZ50: ／ | DA50: ／ | DB50: ／ | DC50: ／ | DD50: ／ | DE50: ／ | DF50: ／ | DG50: ／ | DH50: ／ | DJ50: =IF(DJ47="／","／",IF(OR(DJ45="土",DJ45="日"),"◎","")) ->  | DK50: =IF(DK47="／","／",IF(OR(DK45="土",DK45="日"),"◎","")) ->  | DN50: ◎ | DO50: ◎ | DU50: ◎ | DV50: ◎ | DX50: =IF(DX47="／","／",IF(OR(DX45="土",DX45="日"),"◎","")) ->  | DY50: =IF(DY47="／","／",IF(OR(DY45="土",DY45="日"),"◎","")) ->  | EB50: ◎ | EC50: ◎ | EM50: =EN52 -> OK
C51: 実施 | D51: =IF(D48="／","／",IF(OR(D45="土",D45="日"),"◎","")) ->  | E51: =IF(E48="／","／",IF(OR(E45="土",E45="日"),"◎","")) ->  | F51: ◎ | G51: ◎ | M51: ◎ | N51: ◎ | T51: ◎ | U51: ◎ | AA51: ◎ | AB51: ◎ | AH51: ◎ | AI51: ◎ | BA51: 実施 | BB51: =IF(BB48="／","／",IF(OR(BB45="土",BB45="日"),"◎","")) -> ／ | BC51: =IF(BC48="／","／",IF(OR(BC45="土",BC45="日"),"◎","")) -> ／ | BD51: ／ | BE51: ／ | BF51: ／ | BG51: ／ | BH51: ／ | BI51: ／ | BJ51: ／ | BK51: ／ | BL51: ／ | BR51: ◎ | BS51: ◎ | BY51: ◎ | BZ51: ◎ | CF51: ◎ | CG51: ◎ | CW51: 実施 | CX51: =IF(CX48="／","／",IF(OR(CX45="土",CX45="日"),"◎","")) -> ／ | CY51: =IF(CY48="／","／",IF(OR(CY45="土",CY45="日"),"◎","")) -> ／ | CZ51: ／ | DA51: ／ | DB51: ／ | DC51: ／ | DD51: ／ | DE51: ／ | DF51: ／ | DG51: ／ | DH51: ／ | DN51: ◎ | DO51: ◎ | DU51: ◎ | DV51: ◎ | EB51: ◎ | EC51: ◎
C52: 完全 | D52: =IF(WEEKDAY(DATE(YEAR(D43),MONTH(D43),1),2)=1,DATE(YEAR(D43),MONTH(D43),1),EOMONTH(D43,-1)-MOD(WEEKDAY(EOMONTH(D43,-1),2)+6,7)) -> 2025-04-28 | E52: ～ | F52: =DATE(YEAR(D43),MONTH(D43),1)+MOD(7-WEEKDAY(DATE(YEAR(D43),MONTH(D43),1),2),7) -> 2025-05-04 | G52: =IF(DAY(D52)=1,IF(COUNTIF(D48:J48,"／")>=1,"対象外",IF(COUNTIF(INDEX(D48:AN48,DAY(D52)):INDEX(D48:AN48,HLOOKUP(F52,D44:AN49,6,FALSE)),"")+COUNTIF(INDEX(D48:AN48,DAY(D52)):INDEX(D48:AN48,HLOOKUP(F52,D44:AN49,6,FALSE)),"●")=7,IF(COUNTIF(INDEX(D48:AN48,DAY(D52)):INDEX(D48:AN48,HLOOKUP(F52,D44:AN49,6,FALSE)),"●")>=2,"OK","OUT"),IF(COUNTIF(INDEX(D48:AN48,DAY(D52)):INDEX(D48:AN48,HLOOKUP(F52,D44:AN49,6,FALSE)),"●")>=COUNTIF(INDEX(D51:AN51,DAY(D52)):INDEX(D51:AN51,HLOOKUP(F52,D44:AN49,6,FALSE)),"○"),"OK","OUT"))),IF(AND(AK23="",AE23=""),Y23,IF(AK23="",AE23,AK23))) -> 「／」漏れ | J52: =F52+1 -> 2025-05-05 | K52: ～ | L52: =F52+7 -> 2025-05-11 | M52: =IF(COUNTIF(INDEX(D48:AN48,DAY(J52)):INDEX(D48:AN48,HLOOKUP(L52,D44:AN49,6,FALSE)),"")+COUNTIF(INDEX(D48:AN48,DAY(J52)):INDEX(D48:AN48,HLOOKUP(L52,D44:AN49,6,FALSE)),"●")=7,IF(COUNTIF(INDEX(D48:AN48,DAY(J52)):INDEX(D48:AN48,HLOOKUP(L52,D44:AN49,6,FALSE)),"●")>=2,"OK","OUT"),"対象外") -> OUT | P52: =L52+1 -> 2025-05-12 | Q52: ～ | R52: =L52+7 -> 2025-05-18 | S52: =IF(COUNTIF(INDEX(D48:AN48,DAY(P52)):INDEX(D48:AN48,HLOOKUP(R52,D44:AN49,6,FALSE)),"")+COUNTIF(INDEX(D48:AN48,DAY(P52)):INDEX(D48:AN48,HLOOKUP(R52,D44:AN49,6,FALSE)),"●")=7,IF(COUNTIF(INDEX(D48:AN48,DAY(P52)):INDEX(D48:AN48,HLOOKUP(R52,D44:AN49,6,FALSE)),"●")>=2,"OK","OUT"),"対象外") -> OUT | V52: =R52+1 -> 2025-05-19 | W52: ～ | X52: =R52+7 -> 2025-05-25 | Y52: =IF(COUNTIF(INDEX(D48:AN48,DAY(V52)):INDEX(D48:AN48,HLOOKUP(X52,D44:AN49,6,FALSE)),"")+COUNTIF(INDEX(D48:AN48,DAY(V52)):INDEX(D48:AN48,HLOOKUP(X52,D44:AN49,6,FALSE)),"●")=7,IF(COUNTIF(INDEX(D48:AN48,DAY(V52)):INDEX(D48:AN48,HLOOKUP(X52,D44:AN49,6,FALSE)),"●")>=2,"OK","OUT"),"対象外") -> OUT | AB52: =IF(AND(DAY(X52+7)<23,DAY(X52+7)>=7),"",X52+1) -> 2025-05-26 | AC52: =IF(AND(DAY(X52+7)<23,DAY(X52+7)>=7),"","～") -> ～ | AD52: =IF(AND(DAY(X52+7)<23,DAY(X52+7)>=7),"",X52+7) -> 2025-06-01 | AE52: =IF(AND(DAY(X52+7)<23,DAY(X52+7)>=7),"",IF(COUNTIF(INDEX(D48:AN48,DAY(AB52)):INDEX(D48:AN48,HLOOKUP(AD52,D44:AN49,6,FALSE)),"")+COUNTIF(INDEX(D48:AN48,DAY(AB52)):INDEX(D48:AN48,HLOOKUP(AD52,D44:AN49,6,FALSE)),"●")=7,IF(COUNTIF(INDEX(D48:AN48,DAY(AB52)):INDEX(D48:AN48,HLOOKUP(AD52,D44:AN49,6,FALSE)),"●")>=2,"OK","OUT"),IF(COUNTIF(INDEX(D48:AN48,DAY(AB52)):INDEX(D48:AN48,HLOOKUP(AD52,D44:AN49,6,FALSE)),"")+COUNTIF(INDEX(D48:AN48,DAY(AB52)):INDEX(D48:AN48,HLOOKUP(AD52,D44:AN49,6,FALSE)),"●")>7,"「／」漏れ","対象外"))) -> OUT | AH52: =IF(AE52="","",IF(AND(DAY(AD52+7)<23,DAY(AD52+7)>=7),"",AD52+1)) ->  | AI52: =IF(AE52="","",IF(AND(DAY(AD52+7)<23,DAY(AD52+7)>=7),"","～")) ->  | AJ52: =IF(AE52="","",IF(AND(DAY(AD52+7)<23,DAY(AD52+7)>=7),"",AD52+7)) ->  | AK52: =IF(AE52="","",IF(AND(DAY(AD52+7)<23,DAY(AD52+7)>=7),"",IF(COUNTIF(INDEX(D48:AN48,DAY(AH52)):INDEX(D48:AN48,HLOOKUP(AJ52,D44:AN49,6,FALSE)),"")+COUNTIF(INDEX(D48:AN48,DAY(AH52)):INDEX(D48:AN48,HLOOKUP(AJ52,D44:AN49,6,FALSE)),"●")=7,IF(COUNTIF(INDEX(D48:AN48,DAY(AH52)):INDEX(D48:AN48,HLOOKUP(AJ52,D44:AN49,6,FALSE)),"●")>=2,"OK","OUT"),IF(COUNTIF(INDEX(D48:AN48,HLOOKUP(AH52,D44:AN49,6,FALSE)):INDEX(D48:AN48,HLOOKUP(AJ52,D44:AN49,6,FALSE)),"")+COUNTIF(INDEX(D48:AN48,HLOOKUP(AH52,D44:AN49,6,FALSE)):INDEX(D48:AN48,HLOOKUP(AJ52,D44:AN49,6,FALSE)),"●")>7,"「／」漏れ","対象外")))) ->  | AS52: 完全週休二日 | AT52: =IF(AT43="","",IF(COUNTIF(D52:AN52,"OUT")>=1,"OUT","OK")) ->  | BA52: 完全 | BB52: =IF(WEEKDAY(DATE(YEAR(BB43),MONTH(BB43),1),2)=1,DATE(YEAR(BB43),MONTH(BB43),1),EOMONTH(BB43,-1)-MOD(WEEKDAY(EOMONTH(BB43,-1),2)+6,7)) -> 2025-04-28 | BC52: ～ | BD52: =DATE(YEAR(BB43),MONTH(BB43),1)+MOD(7-WEEKDAY(DATE(YEAR(BB43),MONTH(BB43),1),2),7) -> 2025-05-04 | BE52: =IF(DAY(BB52)=1,IF(COUNTIF(BB48:BH48,"／")>=1,"対象外",IF(COUNTIF(INDEX(BB48:CL48,DAY(BB52)):INDEX(BB48:CL48,HLOOKUP(BD52,BB44:CL49,6,FALSE)),"")+COUNTIF(INDEX(BB48:CL48,DAY(BB52)):INDEX(BB48:CL48,HLOOKUP(BD52,BB44:CL49,6,FALSE)),"●")=7,IF(COUNTIF(INDEX(BB48:CL48,DAY(BB52)):INDEX(BB48:CL48,HLOOKUP(BD52,BB44:CL49,6,FALSE)),"●")>=2,"OK","OUT"),IF(COUNTIF(INDEX(BB48:CL48,DAY(BB52)):INDEX(BB48:CL48,HLOOKUP(BD52,BB44:CL49,6,FALSE)),"●")>=COUNTIF(INDEX(BB51:CL51,DAY(BB52)):INDEX(BB51:CL51,HLOOKUP(BD52,BB44:CL49,6,FALSE)),"○"),"OK","OUT"))),IF(AND(CI23="",CC23=""),BW23,IF(CI23="",CC23,CI23))) -> 対象外 | BH52: =BD52+1 -> 2025-05-05 | BI52: ～ | BJ52: =BD52+7 -> 2025-05-11 | BK52: =IF(COUNTIF(INDEX(BB48:CL48,DAY(BH52)):INDEX(BB48:CL48,HLOOKUP(BJ52,BB44:CL49,6,FALSE)),"")+COUNTIF(INDEX(BB48:CL48,DAY(BH52)):INDEX(BB48:CL48,HLOOKUP(BJ52,BB44:CL49,6,FALSE)),"●")=7,IF(COUNTIF(INDEX(BB48:CL48,DAY(BH52)):INDEX(BB48:CL48,HLOOKUP(BJ52,BB44:CL49,6,FALSE)),"●")>=2,"OK","OUT"),"対象外") -> 対象外 | BN52: =BJ52+1 -> 2025-05-12 | BO52: ～ | BP52: =BJ52+7 -> 2025-05-18 | BQ52: =IF(COUNTIF(INDEX(BB48:CL48,DAY(BN52)):INDEX(BB48:CL48,HLOOKUP(BP52,BB44:CL49,6,FALSE)),"")+COUNTIF(INDEX(BB48:CL48,DAY(BN52)):INDEX(BB48:CL48,HLOOKUP(BP52,BB44:CL49,6,FALSE)),"●")=7,IF(COUNTIF(INDEX(BB48:CL48,DAY(BN52)):INDEX(BB48:CL48,HLOOKUP(BP52,BB44:CL49,6,FALSE)),"●")>=2,"OK","OUT"),"対象外") -> OUT | BT52: =BP52+1 -> 2025-05-19 | BU52: ～ | BV52: =BP52+7 -> 2025-05-25 | BW52: =IF(COUNTIF(INDEX(BB48:CL48,DAY(BT52)):INDEX(BB48:CL48,HLOOKUP(BV52,BB44:CL49,6,FALSE)),"")+COUNTIF(INDEX(BB48:CL48,DAY(BT52)):INDEX(BB48:CL48,HLOOKUP(BV52,BB44:CL49,6,FALSE)),"●")=7,IF(COUNTIF(INDEX(BB48:CL48,DAY(BT52)):INDEX(BB48:CL48,HLOOKUP(BV52,BB44:CL49,6,FALSE)),"●")>=2,"OK","OUT"),"対象外") -> OUT | BZ52: =IF(AND(DAY(BV52+7)<23,DAY(BV52+7)>=7),"",BV52+1) -> 2025-05-26 | CA52: =IF(AND(DAY(BV52+7)<23,DAY(BV52+7)>=7),"","～") -> ～ | CB52: =IF(AND(DAY(BV52+7)<23,DAY(BV52+7)>=7),"",BV52+7) -> 2025-06-01 | CC52: =IF(AND(DAY(BV52+7)<23,DAY(BV52+7)>=7),"",IF(COUNTIF(INDEX(BB48:CL48,DAY(BZ52)):INDEX(BB48:CL48,HLOOKUP(CB52,BB44:CL49,6,FALSE)),"")+COUNTIF(INDEX(BB48:CL48,DAY(BZ52)):INDEX(BB48:CL48,HLOOKUP(CB52,BB44:CL49,6,FALSE)),"●")=7,IF(COUNTIF(INDEX(BB48:CL48,DAY(BZ52)):INDEX(BB48:CL48,HLOOKUP(CB52,BB44:CL49,6,FALSE)),"●")>=2,"OK","OUT"),IF(COUNTIF(INDEX(BB48:CL48,DAY(BZ52)):INDEX(BB48:CL48,HLOOKUP(CB52,BB44:CL49,6,FALSE)),"")+COUNTIF(INDEX(BB48:CL48,DAY(BZ52)):INDEX(BB48:CL48,HLOOKUP(CB52,BB44:CL49,6,FALSE)),"●")>7,"「／」漏れ","対象外"))) -> OUT | CF52: =IF(CC52="","",IF(AND(DAY(CB52+7)<23,DAY(CB52+7)>=7),"",CB52+1)) ->  | CG52: =IF(CC52="","",IF(AND(DAY(CB52+7)<23,DAY(CB52+7)>=7),"","～")) ->  | CH52: =IF(CC52="","",IF(AND(DAY(CB52+7)<23,DAY(CB52+7)>=7),"",CB52+7)) ->  | CI52: =IF(CC52="","",IF(AND(DAY(CB52+7)<23,DAY(CB52+7)>=7),"",IF(COUNTIF(INDEX(BB48:CL48,DAY(CF52)):INDEX(BB48:CL48,HLOOKUP(CH52,BB44:CL49,6,FALSE)),"")+COUNTIF(INDEX(BB48:CL48,DAY(CF52)):INDEX(BB48:CL48,HLOOKUP(CH52,BB44:CL49,6,FALSE)),"●")=7,IF(COUNTIF(INDEX(BB48:CL48,DAY(CF52)):INDEX(BB48:CL48,HLOOKUP(CH52,BB44:CL49,6,FALSE)),"●")>=2,"OK","OUT"),IF(COUNTIF(INDEX(BB48:CL48,HLOOKUP(CF52,BB44:CL49,6,FALSE)):INDEX(BB48:CL48,HLOOKUP(CH52,BB44:CL49,6,FALSE)),"")+COUNTIF(INDEX(BB48:CL48,HLOOKUP(CF52,BB44:CL49,6,FALSE)):INDEX(BB48:CL48,HLOOKUP(CH52,BB44:CL49,6,FALSE)),"●")>7,"「／」漏れ","対象外")))) ->  | CQ52: 完全週休二日 | CR52: =IF(CR43="","",IF(COUNTIF(BB52:CL52,"OUT")>=1,"OUT","OK")) -> OUT | CW52: 完全 | CX52: =IF(WEEKDAY(DATE(YEAR(CX43),MONTH(CX43),1),2)=1,DATE(YEAR(CX43),MONTH(CX43),1),EOMONTH(CX43,-1)-MOD(WEEKDAY(EOMONTH(CX43,-1),2)+6,7)) -> 2025-04-28 | CY52: ～ | CZ52: =DATE(YEAR(CX43),MONTH(CX43),1)+MOD(7-WEEKDAY(DATE(YEAR(CX43),MONTH(CX43),1),2),7) -> 2025-05-04 | DA52: =IF(DAY(CX52)=1,IF(COUNTIF(CX48:DD48,"／")>=1,"対象外",IF(COUNTIF(INDEX(CX48:EH48,DAY(CX52)):INDEX(CX48:EH48,HLOOKUP(CZ52,CX44:EH49,6,FALSE)),"")+COUNTIF(INDEX(CX48:EH48,DAY(CX52)):INDEX(CX48:EH48,HLOOKUP(CZ52,CX44:EH49,6,FALSE)),"●")=7,IF(COUNTIF(INDEX(CX48:EH48,DAY(CX52)):INDEX(CX48:EH48,HLOOKUP(CZ52,CX44:EH49,6,FALSE)),"●")>=2,"OK","OUT"),IF(COUNTIF(INDEX(CX48:EH48,DAY(CX52)):INDEX(CX48:EH48,HLOOKUP(CZ52,CX44:EH49,6,FALSE)),"●")>=COUNTIF(INDEX(CX51:EH51,DAY(CX52)):INDEX(CX51:EH51,HLOOKUP(CZ52,CX44:EH49,6,FALSE)),"○"),"OK","OUT"))),IF(AND(EE23="",DY23=""),DS23,IF(EE23="",DY23,EE23))) -> 対象外 | DD52: =CZ52+1 -> 2025-05-05 | DE52: ～ | DF52: =CZ52+7 -> 2025-05-11 | DG52: =IF(COUNTIF(INDEX(CX48:EH48,DAY(DD52)):INDEX(CX48:EH48,HLOOKUP(DF52,CX44:EH49,6,FALSE)),"")+COUNTIF(INDEX(CX48:EH48,DAY(DD52)):INDEX(CX48:EH48,HLOOKUP(DF52,CX44:EH49,6,FALSE)),"●")=7,IF(COUNTIF(INDEX(CX48:EH48,DAY(DD52)):INDEX(CX48:EH48,HLOOKUP(DF52,CX44:EH49,6,FALSE)),"●")>=2,"OK","OUT"),"対象外") -> 対象外 | DJ52: =DF52+1 -> 2025-05-12 | DK52: ～ | DL52: =DF52+7 -> 2025-05-18 | DM52: =IF(COUNTIF(INDEX(CX48:EH48,DAY(DJ52)):INDEX(CX48:EH48,HLOOKUP(DL52,CX44:EH49,6,FALSE)),"")+COUNTIF(INDEX(CX48:EH48,DAY(DJ52)):INDEX(CX48:EH48,HLOOKUP(DL52,CX44:EH49,6,FALSE)),"●")=7,IF(COUNTIF(INDEX(CX48:EH48,DAY(DJ52)):INDEX(CX48:EH48,HLOOKUP(DL52,CX44:EH49,6,FALSE)),"●")>=2,"OK","OUT"),"対象外") -> OK | DP52: =DL52+1 -> 2025-05-19 | DQ52: ～ | DR52: =DL52+7 -> 2025-05-25 | DS52: =IF(COUNTIF(INDEX(CX48:EH48,DAY(DP52)):INDEX(CX48:EH48,HLOOKUP(DR52,CX44:EH49,6,FALSE)),"")+COUNTIF(INDEX(CX48:EH48,DAY(DP52)):INDEX(CX48:EH48,HLOOKUP(DR52,CX44:EH49,6,FALSE)),"●")=7,IF(COUNTIF(INDEX(CX48:EH48,DAY(DP52)):INDEX(CX48:EH48,HLOOKUP(DR52,CX44:EH49,6,FALSE)),"●")>=2,"OK","OUT"),"対象外") -> OK | DV52: =IF(AND(DAY(DR52+7)<23,DAY(DR52+7)>=7),"",DR52+1) -> 2025-05-26 | DW52: =IF(AND(DAY(DR52+7)<23,DAY(DR52+7)>=7),"","～") -> ～ | DX52: =IF(AND(DAY(DR52+7)<23,DAY(DR52+7)>=7),"",DR52+7) -> 2025-06-01 | DY52: =IF(AND(DAY(DR52+7)<23,DAY(DR52+7)>=7),"",IF(COUNTIF(INDEX(CX48:EH48,DAY(DV52)):INDEX(CX48:EH48,HLOOKUP(DX52,CX44:EH49,6,FALSE)),"")+COUNTIF(INDEX(CX48:EH48,DAY(DV52)):INDEX(CX48:EH48,HLOOKUP(DX52,CX44:EH49,6,FALSE)),"●")=7,IF(COUNTIF(INDEX(CX48:EH48,DAY(DV52)):INDEX(CX48:EH48,HLOOKUP(DX52,CX44:EH49,6,FALSE)),"●")>=2,"OK","OUT"),IF(COUNTIF(INDEX(CX48:EH48,DAY(DV52)):INDEX(CX48:EH48,HLOOKUP(DX52,CX44:EH49,6,FALSE)),"")+COUNTIF(INDEX(CX48:EH48,DAY(DV52)):INDEX(CX48:EH48,HLOOKUP(DX52,CX44:EH49,6,FALSE)),"●")>7,"「／」漏れ","対象外"))) -> OK | EB52: =IF(DY52="","",IF(AND(DAY(DX52+7)<23,DAY(DX52+7)>=7),"",DX52+1)) ->  | EC52: =IF(DY52="","",IF(AND(DAY(DX52+7)<23,DAY(DX52+7)>=7),"","～")) ->  | ED52: =IF(DY52="","",IF(AND(DAY(DX52+7)<23,DAY(DX52+7)>=7),"",DX52+7)) ->  | EE52: =IF(DY52="","",IF(AND(DAY(DX52+7)<23,DAY(DX52+7)>=7),"",IF(COUNTIF(INDEX(CX48:EH48,DAY(EB52)):INDEX(CX48:EH48,HLOOKUP(ED52,CX44:EH49,6,FALSE)),"")+COUNTIF(INDEX(CX48:EH48,DAY(EB52)):INDEX(CX48:EH48,HLOOKUP(ED52,CX44:EH49,6,FALSE)),"●")=7,IF(COUNTIF(INDEX(CX48:EH48,DAY(EB52)):INDEX(CX48:EH48,HLOOKUP(ED52,CX44:EH49,6,FALSE)),"●")>=2,"OK","OUT"),IF(COUNTIF(INDEX(CX48:EH48,HLOOKUP(EB52,CX44:EH49,6,FALSE)):INDEX(CX48:EH48,HLOOKUP(ED52,CX44:EH49,6,FALSE)),"")+COUNTIF(INDEX(CX48:EH48,HLOOKUP(EB52,CX44:EH49,6,FALSE)):INDEX(CX48:EH48,HLOOKUP(ED52,CX44:EH49,6,FALSE)),"●")>7,"「／」漏れ","対象外")))) ->  | EM52: 完全週休二日 | EN52: =IF(EN43="","",IF(COUNTIF(CX52:EH52,"OUT")>=1,"OUT","OK")) -> OK
A54: =IF(AND(NOT($AT$43=""),$AT$72=""),"対象期間","") -> 
A55: =IF(AND(NOT($AT$43=""),$AT$72=""),"対象期間","") ->  | C55: ※１工事着手日：始期日以降に準備工事（現場事務所の建設・測量等）、工場製作を含む工事における工場製作工に着手した日 | AR55: 工事全体の確認 | BA55: ※１工事着手日：始期日以降に準備工事（現場事務所の建設・測量等）、工場製作を含む工事における工場製作工に着手した日 | CP55: 工事全体の確認 | CW55: ※１工事着手日：始期日以降に準備工事（現場事務所の建設・測量等）、工場製作を含む工事における工場製作工に着手した日 | EL55: 工事全体の確認
C56: ※２作業完了日：工事施工範囲内で全ての作業（後片付けを含む）が完了した日 （工事現場事務所は工事施工範囲外に設置するため、ここでいう後片付けの対象に含まない） | AR56: 計画 | AS56: 全対象期間 | AT56: =IFERROR(AT27+AT43,"") ->  | BA56: ※２作業完了日：工事施工範囲内で全ての作業（後片付けを含む）が完了した日 （工事現場事務所は工事施工範囲外に設置するため、ここでいう後片付けの対象に含まない） | CP56: 計画 | CQ56: 全対象期間 | CR56: =IFERROR(CR27+CR43,"") ->  | CW56: ※２作業完了日：工事施工範囲内で全ての作業（後片付けを含む）が完了した日 （工事現場事務所は工事施工範囲外に設置するため、ここでいう後片付けの対象に含まない） | EL56: 計画 | EM56: 全対象期間 | EN56: =IFERROR(EN27+EN43,"") -> 20
AS57: 全現場閉所日数 | AT57: =IFERROR(AT28+AT44,"") ->  | CQ57: 全現場閉所日数 | CR57: =IFERROR(CR28+CR44,"") ->  | EM57: 全現場閉所日数 | EN57: =IFERROR(EN28+EN44,"") -> 6
C58: 【算定除外期間】：夏季休暇（8月13日～8月15日）、年末年始（12月29日～翌年1月3日）は算定期間の分母・分子に含めない | AS58: 現場閉所率 | AT58: =IFERROR(+AT57/AT56,"") ->  | AU58: =IF(AT58>=0.285,"4週8休以上","週休2日未達成") -> 4週8休以上 | BA58: 【算定除外期間】：夏季休暇（8月13日～8月15日）、年末年始（12月29日～翌年1月3日）は算定期間の分母・分子に含めない | CQ58: 現場閉所率 | CR58: =IFERROR(+CR57/CR56,"") ->  | CS58: =IF(CR58>=0.285,"4週8休以上","週休2日未達成") -> 4週8休以上 | CW58: 【算定除外期間】：夏季休暇（8月13日～8月15日）、年末年始（12月29日～翌年1月3日）は算定期間の分母・分子に含めない | EM58: 現場閉所率 | EN58: =IFERROR(+EN57/EN56,"") -> 0.3 | EO58: =IF(EN58>=0.285,"4週8休以上","週休2日未達成") -> 4週8休以上
C59: ※３工事期間の全ての月において、達成状況を確認し、一度でも達成できない月があれば、４週８休以上（月単位）は「未達成」となり、補正の対象とならない。 月によっては、土日を全て閉所しても現場閉所率が28.5％に満たない場合があるが、その月の対象期間の土日日数以上閉所していれば達成とみなす。 ※４工事対象期間のうち、一度でも完全週休２日（月～日で２日以上の現場閉所）を達成できなければ、 完全週休２日は「未達成」となり、補正の対象とならない。 なお、工期始期・終期、年末年始、夏季休暇などにより、７日間に満たない期間は完全週休２日の達成判断の対象外とする。 | AR59: 実施 | AS59: 全対象期間 | AT59: =IFERROR(AT30+AT46,"") ->  | BA59: ※３工事期間の全ての月において、達成状況を確認し、一度でも達成できない月があれば、４週８休以上（月単位）は「未達成」となり、補正の対象とならない。 月によっては、土日を全て閉所しても現場閉所率が28.5％に満たない場合があるが、その月の対象期間の土日日数以上閉所していれば達成とみなす。 ※４工事対象期間のうち、一度でも完全週休２日（月～日で２日以上の現場閉所）を達成できなければ、 完全週休２日は「未達成」となり、補正の対象とならない。 なお、工期始期・終期、年末年始、夏季休暇などにより、７日間に満たない期間は完全週休２日の達成判断の対象外とする。 | CP59: 実施 | CQ59: 全対象期間 | CR59: =IFERROR(CR30+CR46,"") ->  | CW59: ※３工事期間の全ての月において、達成状況を確認し、一度でも達成できない月があれば、４週８休以上（月単位）は「未達成」となり、補正の対象とならない。 月によっては、土日を全て閉所しても現場閉所率が28.5％に満たない場合があるが、その月の対象期間の土日日数以上閉所していれば達成とみなす。 ※４工事対象期間のうち、一度でも完全週休２日（月～日で２日以上の現場閉所）を達成できなければ、 完全週休２日は「未達成」となり、補正の対象とならない。 なお、工期始期・終期、年末年始、夏季休暇などにより、７日間に満たない期間は完全週休２日の達成判断の対象外とする。 | EL59: 実施 | EM59: 全対象期間 | EN59: =IFERROR(EN30+EN46,"") -> 20
AS60: 全現場閉所日数 | AT60: =IFERROR(AT31+AT47,"") ->  | CQ60: 全現場閉所日数 | CR60: =IFERROR(CR31+CR47,"") ->  | EM60: 全現場閉所日数 | EN60: =IFERROR(EN31+EN47,"") -> 6
AS61: 現場閉所率 | AT61: =IFERROR(+AT60/AT59,"") ->  | AU61: =IF(AT61>=0.285,"4週8休以上","週休2日未達成") -> 4週8休以上 | CQ61: 現場閉所率 | CR61: =IFERROR(+CR60/CR59,"") ->  | CS61: =IF(CR61>=0.285,"4週8休以上","週休2日未達成") -> 4週8休以上 | EM61: 現場閉所率 | EN61: =IFERROR(+EN60/EN59,"") -> 0.3 | EO61: =IF(EN61>=0.285,"4週8休以上","週休2日未達成") -> 4週8休以上
AS62: 閉所（月単位） | AT62: =IFERROR(COUNTIF(AS$14:$AS52,"4週8休以上")/(COUNTIF(AS$14:$AS52,"4週8休以上")+COUNTIF(AS$14:$AS52,"週休2日未達成")),"") ->  | AU62: =IF(OR(AT62=100%,AT62=""),"達成","未達成") -> 達成 | CQ62: 閉所（月単位） | CR62: =IFERROR(COUNTIF(CQ$14:$CQ52,"4週8休以上")/(COUNTIF(CQ$14:$CQ52,"4週8休以上")+COUNTIF(CQ$14:$CQ52,"週休2日未達成")),"") -> 0 | CS62: =IF(OR(CR62=100%,CR62=""),"達成","未達成") -> 未達成 | EM62: 閉所（月単位） | EN62: =IFERROR(COUNTIF($EM$14:EM52,"4週8休以上")/(COUNTIF($EM$14:EM52,"4週8休以上")+COUNTIF($EM$14:EM52,"週休2日未達成")),"") -> 1 | EO62: =IF(OR(EN62=100%,EN62=""),"達成","未達成") -> 達成
AS63: 完全週休二日 | AT63: =IF(COUNTIF(AS$14:$AS52,"OUT")>=1,"OUT","OK") -> OK | AU63: =IF(AT63="OK","達成","未達成") -> 達成 | CQ63: 完全週休二日 | CR63: =IF(COUNTIF(CQ$14:$CQ52,"OUT")>=1,"OUT","OK") -> OUT | CS63: =IF(CR63="OK","達成","未達成") -> 未達成 | EM63: 完全週休二日 | EN63: =IF(COUNTIF($EM$14:EM52,"OUT")>=1,"OUT","OK") -> OK | EO63: =IF(EN63="OK","達成","未達成") -> 達成
C64: ※必要に応じて各月の完全週休2日（月～日）の達成判定の行を修正してください。（曜日に合わせて修正） | BA64: ※必要に応じて各月の完全週休2日（月～日）の達成判定の行を修正してください。（曜日に合わせて修正） | CW64: ※必要に応じて各月の完全週休2日（月～日）の達成判定の行を修正してください。（曜日に合わせて修正）
C70: 算定除外期間以外の祝日（ＧＷ含む）は、算定期間（分母）の対象＝現場閉所の場合は分子にカウントして現場閉所率を算定 | BA70: 算定除外期間以外の祝日（ＧＷ含む）は、算定期間（分母）の対象＝現場閉所の場合は分子にカウントして現場閉所率を算定 | CW70: 算定除外期間以外の祝日（ＧＷ含む）は、算定期間（分母）の対象＝現場閉所の場合は分子にカウントして現場閉所率を算定
A72: =IF($AT$72="","","対象期間") ->  | C72: 月 | D72: =DATE(YEAR(D43),MONTH(D43)+1,1) -> 2025-06-01 | AI72: =DATE(YEAR(D72),MONTH(D72)+1,1) -> 2025-07-01 | AO72: 現場閉所計 | AP72: 現場閉所累計 | AR72: 計画 | AS72: 対象期間 | AT72: =IF(IF(MONTH(入力表!$E$6)=12,YEAR(入力表!$E$6)+1&"01",YEAR(入力表!$E$6)&TEXT(MONTH(入力表!$E$6)+1,"00"))>YEAR($D72)&TEXT(MONTH($D72),"00"),COUNTIF(D76:AH76,"")+COUNTIF(D76:AH76,"○"),"") ->  | AU72: =IF(COUNTIF(D73:AH73,"／")=0,"",IF(COUNTIF(D73:AH73,"／")=1,IF(AH76="／","","月末「／」漏れ"),IF(COUNTIF(D73:AH73,"／")=2,IF(AND(AG76="／",AH76="／"),"","月末「／」漏れ"),IF(AND(AF76="／",AG76="／",AH76="／"),"","月末「／」漏れ")))) -> 月末「／」漏れ | BA72: 月 | BB72: =DATE(YEAR(BB43),MONTH(BB43)+1,1) -> 2025-06-01 | CG72: =DATE(YEAR(BB72),MONTH(BB72)+1,1) -> 2025-07-01 | CM72: 現場閉所計 | CN72: 現場閉所累計 | CP72: 計画 | CQ72: 対象期間 | CR72: =IF(IF(MONTH($BL$5)=12,YEAR($BL$5)+1&"01",YEAR($BL$5)&TEXT(MONTH($BL$5)+1,"00"))>YEAR(BB72)&TEXT(MONTH(BB72),"00"),COUNTIF(BB76:CF76,"")+COUNTIF(BB76:CF76,"○"),"") -> 30 | CS72: =IF(COUNTIF(BB73:CF73,"／")=0,"",IF(COUNTIF(BB73:CF73,"／")=1,IF(CF76="／","","月末「／」漏れ"),IF(COUNTIF(BB73:CF73,"／")=2,IF(AND(CE76="／",CF76="／"),"","月末「／」漏れ"),IF(AND(CD76="／",CE76="／",CF76="／"),"","月末「／」漏れ")))) ->  | CW72: 月 | CX72: =DATE(YEAR(CX43),MONTH(CX43)+1,1) -> 2025-06-01 | EC72: =DATE(YEAR(CX72),MONTH(CX72)+1,1) -> 2025-07-01 | EI72: 現場閉所計 | EJ72: 現場閉所累計 | EL72: 計画 | EM72: 対象期間 | EN72: =IF(IF(MONTH($BL$5)=12,YEAR($BL$5)+1&"01",YEAR($BL$5)&TEXT(MONTH($BL$5)+1,"00"))>YEAR($CX72)&TEXT(MONTH($CX72),"00"),COUNTIF(CX76:EB76,"")+COUNTIF(CX76:EB76,"○"),"") -> 30 | EO72: =IF(COUNTIF(CX73:EB73,"／")=0,"",IF(COUNTIF(CX73:EB73,"／")=1,IF(EB76="／","","月末「／」漏れ"),IF(COUNTIF(CX73:EB73,"／")=2,IF(AND(EA76="／",EB76="／"),"","月末「／」漏れ"),IF(AND(DZ76="／",EA76="／",EB76="／"),"","月末「／」漏れ")))) -> 
A73: =IF($AT$72="","","対象期間") ->  | C73: 日 | D73: =D72 -> 2025-06-01 | E73: =D73+1 -> 2025-06-02 | F73: =E73+1 -> 2025-06-03 | G73: =F73+1 -> 2025-06-04 | H73: =G73+1 -> 2025-06-05 | I73: =H73+1 -> 2025-06-06 | J73: =I73+1 -> 2025-06-07 | K73: =J73+1 -> 2025-06-08 | L73: =K73+1 -> 2025-06-09 | M73: =L73+1 -> 2025-06-10 | N73: =M73+1 -> 2025-06-11 | O73: =N73+1 -> 2025-06-12 | P73: =O73+1 -> 2025-06-13 | Q73: =P73+1 -> 2025-06-14 | R73: =Q73+1 -> 2025-06-15 | S73: =R73+1 -> 2025-06-16 | T73: =S73+1 -> 2025-06-17 | U73: =T73+1 -> 2025-06-18 | V73: =U73+1 -> 2025-06-19 | W73: =V73+1 -> 2025-06-20 | X73: =W73+1 -> 2025-06-21 | Y73: =X73+1 -> 2025-06-22 | Z73: =Y73+1 -> 2025-06-23 | AA73: =Z73+1 -> 2025-06-24 | AB73: =AA73+1 -> 2025-06-25 | AC73: =AB73+1 -> 2025-06-26 | AD73: =AC73+1 -> 2025-06-27 | AE73: =AD73+1 -> 2025-06-28 | AF73: =IF(AE73="／","／",IF(YEAR($D72)&TEXT(MONTH($D72),"00")<YEAR(AE73+1)&TEXT(MONTH(AE73+1),"00"),"／",AE73+1)) -> 2025-06-29 | AG73: =IF(AF73="／","／",IF(YEAR($D72)&TEXT(MONTH($D72),"00")<YEAR(AF73+1)&TEXT(MONTH(AF73+1),"00"),"／",AF73+1)) -> 2025-06-30 | AH73: =IF(AG73="／","／",IF(YEAR($D72)&TEXT(MONTH($D72),"00")<YEAR(AG73+1)&TEXT(MONTH(AG73+1),"00"),"／",AG73+1)) -> ／ | AI73: =AI72 -> 2025-07-01 | AJ73: =AI73+1 -> 2025-07-02 | AK73: =AJ73+1 -> 2025-07-03 | AL73: =AK73+1 -> 2025-07-04 | AM73: =AL73+1 -> 2025-07-05 | AN73: =AM73+1 -> 2025-07-06 | AS73: 閉所日数 | AT73: =IF(IF(MONTH(入力表!$E$6)=12,YEAR(入力表!$E$6)+1&"01",YEAR(入力表!$E$6)&TEXT(MONTH(入力表!$E$6)+1,"00"))>YEAR($D72)&TEXT(MONTH($D72),"00"),COUNTIF(D76:AH76,"○"),"") ->  | AU73: =IF(OR(MONTH(D72)=1,MONTH(D72)=8,MONTH(D72)=12),IF(COUNTIF(D76:AH76,"／")>=3,"","算定除外「／」漏れ"),"") ->  | BA73: 日 | BB73: =BB72 -> 2025-06-01 | BC73: =BB73+1 -> 2025-06-02 | BD73: =BC73+1 -> 2025-06-03 | BE73: =BD73+1 -> 2025-06-04 | BF73: =BE73+1 -> 2025-06-05 | BG73: =BF73+1 -> 2025-06-06 | BH73: =BG73+1 -> 2025-06-07 | BI73: =BH73+1 -> 2025-06-08 | BJ73: =BI73+1 -> 2025-06-09 | BK73: =BJ73+1 -> 2025-06-10 | BL73: =BK73+1 -> 2025-06-11 | BM73: =BL73+1 -> 2025-06-12 | BN73: =BM73+1 -> 2025-06-13 | BO73: =BN73+1 -> 2025-06-14 | BP73: =BO73+1 -> 2025-06-15 | BQ73: =BP73+1 -> 2025-06-16 | BR73: =BQ73+1 -> 2025-06-17 | BS73: =BR73+1 -> 2025-06-18 | BT73: =BS73+1 -> 2025-06-19 | BU73: =BT73+1 -> 2025-06-20 | BV73: =BU73+1 -> 2025-06-21 | BW73: =BV73+1 -> 2025-06-22 | BX73: =BW73+1 -> 2025-06-23 | BY73: =BX73+1 -> 2025-06-24 | BZ73: =BY73+1 -> 2025-06-25 | CA73: =BZ73+1 -> 2025-06-26 | CB73: =CA73+1 -> 2025-06-27 | CC73: =CB73+1 -> 2025-06-28 | CD73: =IF(CC73="／","／",IF(YEAR(BB72)&TEXT(MONTH(BB72),"00")<YEAR(CC73+1)&TEXT(MONTH(CC73+1),"00"),"／",CC73+1)) -> 2025-06-29 | CE73: =IF(CD73="／","／",IF(YEAR(BB72)&TEXT(MONTH(BB72),"00")<YEAR(CD73+1)&TEXT(MONTH(CD73+1),"00"),"／",CD73+1)) -> 2025-06-30 | CF73: =IF(CE73="／","／",IF(YEAR(BB72)&TEXT(MONTH(BB72),"00")<YEAR(CE73+1)&TEXT(MONTH(CE73+1),"00"),"／",CE73+1)) -> ／ | CG73: =CG72 -> 2025-07-01 | CH73: =CG73+1 -> 2025-07-02 | CI73: =CH73+1 -> 2025-07-03 | CJ73: =CI73+1 -> 2025-07-04 | CK73: =CJ73+1 -> 2025-07-05 | CL73: =CK73+1 -> 2025-07-06 | CQ73: 閉所日数 | CR73: =IF(IF(MONTH($BL$5)=12,YEAR($BL$5)+1&"01",YEAR($BL$5)&TEXT(MONTH($BL$5)+1,"00"))>YEAR(BB72)&TEXT(MONTH(BB72),"00"),COUNTIF(BB76:CF76,"○"),"") -> 9 | CS73: =IF(OR(MONTH(BB72)=1,MONTH(BB72)=8,MONTH(BB72)=12),IF(COUNTIF(BB76:CF76,"／")>=3,"","算定除外「／」漏れ"),"") ->  | CW73: 日 | CX73: =CX72 -> 2025-06-01 | CY73: =CX73+1 -> 2025-06-02 | CZ73: =CY73+1 -> 2025-06-03 | DA73: =CZ73+1 -> 2025-06-04 | DB73: =DA73+1 -> 2025-06-05 | DC73: =DB73+1 -> 2025-06-06 | DD73: =DC73+1 -> 2025-06-07 | DE73: =DD73+1 -> 2025-06-08 | DF73: =DE73+1 -> 2025-06-09 | DG73: =DF73+1 -> 2025-06-10 | DH73: =DG73+1 -> 2025-06-11 | DI73: =DH73+1 -> 2025-06-12 | DJ73: =DI73+1 -> 2025-06-13 | DK73: =DJ73+1 -> 2025-06-14 | DL73: =DK73+1 -> 2025-06-15 | DM73: =DL73+1 -> 2025-06-16 | DN73: =DM73+1 -> 2025-06-17 | DO73: =DN73+1 -> 2025-06-18 | DP73: =DO73+1 -> 2025-06-19 | DQ73: =DP73+1 -> 2025-06-20 | DR73: =DQ73+1 -> 2025-06-21 | DS73: =DR73+1 -> 2025-06-22 | DT73: =DS73+1 -> 2025-06-23 | DU73: =DT73+1 -> 2025-06-24 | DV73: =DU73+1 -> 2025-06-25 | DW73: =DV73+1 -> 2025-06-26 | DX73: =DW73+1 -> 2025-06-27 | DY73: =DX73+1 -> 2025-06-28 | DZ73: =IF(DY73="／","／",IF(YEAR(CX72)&TEXT(MONTH(CX72),"00")<YEAR(DY73+1)&TEXT(MONTH(DY73+1),"00"),"／",DY73+1)) -> 2025-06-29 | EA73: =IF(DZ73="／","／",IF(YEAR(CX72)&TEXT(MONTH(CX72),"00")<YEAR(DZ73+1)&TEXT(MONTH(DZ73+1),"00"),"／",DZ73+1)) -> 2025-06-30 | EB73: =IF(EA73="／","／",IF(YEAR(CX72)&TEXT(MONTH(CX72),"00")<YEAR(EA73+1)&TEXT(MONTH(EA73+1),"00"),"／",EA73+1)) -> ／ | EC73: =EC72 -> 2025-07-01 | ED73: =EC73+1 -> 2025-07-02 | EE73: =ED73+1 -> 2025-07-03 | EF73: =EE73+1 -> 2025-07-04 | EG73: =EF73+1 -> 2025-07-05 | EH73: =EG73+1 -> 2025-07-06 | EM73: 閉所日数 | EN73: =IF(IF(MONTH($BL$5)=12,YEAR($BL$5)+1&"01",YEAR($BL$5)&TEXT(MONTH($BL$5)+1,"00"))>YEAR($CX72)&TEXT(MONTH($CX72),"00"),COUNTIF(CX76:EB76,"○"),"") -> 9 | EO73: =IF(OR(MONTH(CX72)=1,MONTH(CX72)=8,MONTH(CX72)=12),IF(COUNTIF(CX76:EB76,"／")>=3,"","算定除外「／」漏れ"),"") -> 
C74: 曜日 | D74: =TEXT(WEEKDAY(+D73),"aaa") -> 日 | E74: =TEXT(WEEKDAY(+E73),"aaa") -> 月 | F74: 火 | G74: 水 | H74: 木 | I74: =TEXT(WEEKDAY(+I73),"aaa") -> 金 | J74: =TEXT(WEEKDAY(+J73),"aaa") -> 土 | K74: 日 | L74: 月 | M74: 火 | N74: 水 | O74: 木 | P74: 金 | Q74: 土 | R74: 日 | S74: 月 | T74: 火 | U74: 水 | V74: 木 | W74: 金 | X74: 土 | Y74: 日 | Z74: =TEXT(WEEKDAY(+Z73),"aaa") -> 月 | AA74: =TEXT(WEEKDAY(+AA73),"aaa") -> 火 | AB74: 水 | AC74: 木 | AD74: 金 | AE74: 土 | AF74: =IF(AF73="／","／",TEXT(WEEKDAY(+AF73),"aaa")) -> 日 | AG74: =IF(AG73="／","／",TEXT(WEEKDAY(+AG73),"aaa")) -> 月 | AH74: ／ | AI74: =TEXT(WEEKDAY(+AI73),"aaa") -> 火 | AJ74: =TEXT(WEEKDAY(+AJ73),"aaa") -> 水 | AK74: 木 | AL74: 金 | AM74: 土 | AN74: 日 | AS74: 現場閉所率 | AT74: =IFERROR(+AT73/AT72,"") ->  | AU74: =IF(AT74="","",IF(COUNTIF(D76:AH76,"○")>=COUNTIF(D79:AH79,"◎"),"4週8休以上",IF(AT74>=0.285,"4週8休以上","週休2日未達成"))) ->  | BA74: 曜日 | BB74: =TEXT(WEEKDAY(+BB73),"aaa") -> 日 | BC74: =TEXT(WEEKDAY(+BC73),"aaa") -> 月 | BD74: 火 | BE74: 水 | BF74: 木 | BG74: =TEXT(WEEKDAY(+BG73),"aaa") -> 金 | BH74: =TEXT(WEEKDAY(+BH73),"aaa") -> 土 | BI74: 日 | BJ74: 月 | BK74: 火 | BL74: 水 | BM74: 木 | BN74: 金 | BO74: 土 | BP74: 日 | BQ74: 月 | BR74: 火 | BS74: 水 | BT74: 木 | BU74: 金 | BV74: 土 | BW74: 日 | BX74: =TEXT(WEEKDAY(+BX73),"aaa") -> 月 | BY74: =TEXT(WEEKDAY(+BY73),"aaa") -> 火 | BZ74: 水 | CA74: 木 | CB74: 金 | CC74: 土 | CD74: =IF(CD73="／","／",TEXT(WEEKDAY(+CD73),"aaa")) -> 日 | CE74: =IF(CE73="／","／",TEXT(WEEKDAY(+CE73),"aaa")) -> 月 | CF74: ／ | CG74: =TEXT(WEEKDAY(+CG73),"aaa") -> 火 | CH74: =TEXT(WEEKDAY(+CH73),"aaa") -> 水 | CI74: 木 | CJ74: 金 | CK74: 土 | CL74: 日 | CQ74: 現場閉所率 | CR74: =IFERROR(+CR73/CR72,"") -> 0.3 | CS74: =IF(CR74="","",IF(COUNTIF(BB76:CF76,"○")>=COUNTIF(BB79:CF79,"◎"),"4週8休以上",IF(CR74>=0.285,"4週8休以上","週休2日未達成"))) -> 4週8休以上 | CW74: 曜日 | CX74: =TEXT(WEEKDAY(+CX73),"aaa") -> 日 | CY74: =TEXT(WEEKDAY(+CY73),"aaa") -> 月 | CZ74: 火 | DA74: 水 | DB74: 木 | DC74: =TEXT(WEEKDAY(+DC73),"aaa") -> 金 | DD74: =TEXT(WEEKDAY(+DD73),"aaa") -> 土 | DE74: 日 | DF74: 月 | DG74: 火 | DH74: 水 | DI74: 木 | DJ74: 金 | DK74: 土 | DL74: 日 | DM74: 月 | DN74: 火 | DO74: 水 | DP74: 木 | DQ74: 金 | DR74: 土 | DS74: 日 | DT74: =TEXT(WEEKDAY(+DT73),"aaa") -> 月 | DU74: =TEXT(WEEKDAY(+DU73),"aaa") -> 火 | DV74: 水 | DW74: 木 | DX74: 金 | DY74: 土 | DZ74: =IF(DZ73="／","／",TEXT(WEEKDAY(+DZ73),"aaa")) -> 日 | EA74: =IF(EA73="／","／",TEXT(WEEKDAY(+EA73),"aaa")) -> 月 | EB74: ／ | EC74: =TEXT(WEEKDAY(+EC73),"aaa") -> 火 | ED74: =TEXT(WEEKDAY(+ED73),"aaa") -> 水 | EE74: 木 | EF74: 金 | EG74: 土 | EH74: 日 | EM74: 現場閉所率 | EN74: =IFERROR(+EN73/EN72,"") -> 0.3 | EO74: =IF(EN74="","",IF(COUNTIF(CX76:EB76,"○")>=COUNTIF(CX79:EB79,"◎"),"4週8休以上",IF(EN74>=0.285,"4週8休以上","週休2日未達成"))) -> 4週8休以上
C75: 行事 | AI75: =IF(D104="","",D104) ->  | AJ75: =IF(E104="","",E104) ->  | AK75: =IF(F104="","",F104) ->  | AL75: =IF(G104="","",G104) ->  | AM75: =IF(H104="","",H104) ->  | AN75: =IF(I104="","",I104) ->  | AR75: 実施 | AS75: 対象期間 | AT75: =IF(IF(MONTH(入力表!$E$6)=12,YEAR(入力表!$E$6)+1&"01",YEAR(入力表!$E$6)&TEXT(MONTH(入力表!$E$6)+1,"00"))>YEAR($D72)&TEXT(MONTH($D72),"00"),COUNTIF(D77:AH77,"")+COUNTIF(D77:AH77,"●"),"") ->  | AU75: =IF(COUNTIF(D73:AH73,"／")=0,"",IF(COUNTIF(D73:AH73,"／")=1,IF(AH77="／","","月末「／」漏れ"),IF(COUNTIF(D73:AH73,"／")=2,IF(AND(AG77="／",AH77="／"),"","月末「／」漏れ"),IF(AND(AF77="／",AG77="／",AH77="／"),"","月末「／」漏れ")))) -> 月末「／」漏れ | BA75: 行事 | CG75: =IF(BB104="","",BB104) ->  | CH75: =IF(BC104="","",BC104) ->  | CI75: =IF(BD104="","",BD104) ->  | CJ75: =IF(BE104="","",BE104) ->  | CK75: =IF(BF104="","",BF104) ->  | CL75: =IF(BG104="","",BG104) ->  | CP75: 実施 | CQ75: 対象期間 | CR75: =IF(IF(MONTH($BL$5)=12,YEAR($BL$5)+1&"01",YEAR($BL$5)&TEXT(MONTH($BL$5)+1,"00"))>YEAR(BB72)&TEXT(MONTH(BB72),"00"),COUNTIF(BB77:CF77,"")+COUNTIF(BB77:CF77,"●"),"") -> 30 | CS75: =IF(COUNTIF(BB73:CF73,"／")=0,"",IF(COUNTIF(BB73:CF73,"／")=1,IF(CF77="／","","月末「／」漏れ"),IF(COUNTIF(BB73:CF73,"／")=2,IF(AND(CE77="／",CF77="／"),"","月末「／」漏れ"),IF(AND(CD77="／",CE77="／",CF77="／"),"","月末「／」漏れ")))) ->  | CW75: 行事 | EC75: =IF(CX104="","",CX104) ->  | ED75: =IF(CY104="","",CY104) ->  | EE75: =IF(CZ104="","",CZ104) ->  | EF75: =IF(DA104="","",DA104) ->  | EG75: =IF(DB104="","",DB104) ->  | EH75: =IF(DC104="","",DC104) ->  | EL75: 実施 | EM75: 対象期間 | EN75: =IF(IF(MONTH($BL$5)=12,YEAR($BL$5)+1&"01",YEAR($BL$5)&TEXT(MONTH($BL$5)+1,"00"))>YEAR($CX72)&TEXT(MONTH($CX72),"00"),COUNTIF(CX77:EB77,"")+COUNTIF(CX77:EB77,"●"),"") -> 30 | EO75: =IF(COUNTIF(CX73:EB73,"／")=0,"",IF(COUNTIF(CX73:EB73,"／")=1,IF(EB77="／","","月末「／」漏れ"),IF(COUNTIF(CX73:EB73,"／")=2,IF(AND(EA77="／",EB77="／"),"","月末「／」漏れ"),IF(AND(DZ77="／",EA77="／",EB77="／"),"","月末「／」漏れ")))) -> 
C76: 計画 | AI76: =IF(D105="","",D105) ->  | AJ76: =IF(E105="","",E105) ->  | AK76: =IF(F105="","",F105) ->  | AL76: =IF(G105="","",G105) ->  | AM76: =IF(H105="","",H105) ->  | AN76: =IF(I105="","",I105) ->  | AO76: =COUNTIF(D76:AG76,"○") -> 0 | AP76: =+AO76+AP47 -> 0 | AS76: 閉所日数 | AT76: =IF(IF(MONTH(入力表!$E$6)=12,YEAR(入力表!$E$6)+1&"01",YEAR(入力表!$E$6)&TEXT(MONTH(入力表!$E$6)+1,"00"))>YEAR($D72)&TEXT(MONTH($D72),"00"),COUNTIF(D77:AH77,"●"),"") ->  | AU76: =IF(OR(MONTH(D72)=1,MONTH(D72)=8,MONTH(D72)=12),IF(COUNTIF(D77:AH77,"／")>=3,"","算定除外「／」漏れ"),"") ->  | BA76: 計画 | BB76: ○ | BH76: ○ | BI76: ○ | BO76: ○ | BP76: ○ | BV76: ○ | BW76: ○ | CC76: ○ | CD76: ○ | CF76: ／ | CG76: =IF(BB105="","",BB105) ->  | CK76: ○ | CL76: ○ | CM76: =COUNTIF(BB76:CE76,"○") -> 9 | CN76: =+CM76+CN47 -> 14 | CQ76: 閉所日数 | CR76: =IF(IF(MONTH($BL$5)=12,YEAR($BL$5)+1&"01",YEAR($BL$5)&TEXT(MONTH($BL$5)+1,"00"))>YEAR(BB72)&TEXT(MONTH(BB72),"00"),COUNTIF(BB77:CF77,"●"),"") -> 0 | CS76: =IF(OR(MONTH(BB72)=1,MONTH(BB72)=8,MONTH(BB72)=12),IF(COUNTIF(BB77:CF77,"／")>=3,"","算定除外「／」漏れ"),"") ->  | CW76: 計画 | CX76: ○ | DD76: ○ | DE76: ○ | DK76: ○ | DL76: ○ | DR76: ○ | DS76: ○ | DY76: ○ | DZ76: ○ | EB76: ／ | EC76: =IF(CX105="","",CX105) ->  | EG76: ○ | EH76: ○ | EI76: =COUNTIF(CX76:EA76,"○") -> 9 | EJ76: =+EI76+EJ47 -> 14 | EM76: 閉所日数 | EN76: =IF(IF(MONTH($BL$5)=12,YEAR($BL$5)+1&"01",YEAR($BL$5)&TEXT(MONTH($BL$5)+1,"00"))>YEAR($CX72)&TEXT(MONTH($CX72),"00"),COUNTIF(CX77:EB77,"●"),"") -> 10 | EO76: =IF(OR(MONTH(CX72)=1,MONTH(CX72)=8,MONTH(CX72)=12),IF(COUNTIF(CX77:EB77,"／")>=3,"","算定除外「／」漏れ"),"") -> 
C77: 実施 | AI77: =IF(D106="","",D106) ->  | AJ77: =IF(E106="","",E106) ->  | AK77: =IF(F106="","",F106) ->  | AL77: =IF(G106="","",G106) ->  | AM77: =IF(H106="","",H106) ->  | AN77: =IF(I106="","",I106) ->  | AO77: =COUNTIF(D77:AG77,"●") -> 0 | AP77: =+AO77+AP48 -> 0 | AS77: 現場閉所率 | AT77: =IFERROR(+AT76/AT75,"") ->  | AU77: =IF(AT77="","",IF(COUNTIF(D77:AH77,"●")>=COUNTIF(D80:AH80,"◎"),"4週8休以上",IF(AT77>=0.285,"4週8休以上","週休2日未達成"))) ->  | BA77: 実施 | CF77: ／ | CG77: =IF(BB106="","",BB106) ->  | CH77: =IF(BC106="","",BC106) ->  | CI77: =IF(BD106="","",BD106) ->  | CJ77: =IF(BE106="","",BE106) ->  | CK77: =IF(BF106="","",BF106) ->  | CL77: =IF(BG106="","",BG106) ->  | CM77: =COUNTIF(BB77:CE77,"●") -> 0 | CN77: =+CM77+CN48 -> 0 | CQ77: 現場閉所率 | CR77: =IFERROR(+CR76/CR75,"") -> 0 | CS77: =IF(CR77="","",IF(COUNTIF(BB77:CF77,"●")>=COUNTIF(BB80:CF80,"◎"),"4週8休以上",IF(CR77>=0.285,"4週8休以上","週休2日未達成"))) -> 週休2日未達成 | CW77: 実施 | CX77: ● | DD77: ● | DE77: ● | DK77: ● | DL77: ● | DM77: ● | DR77: ● | DS77: ● | DY77: ● | DZ77: ● | EB77: ／ | EC77: =IF(CX106="","",CX106) ->  | ED77: =IF(CY106="","",CY106) ->  | EE77: =IF(CZ106="","",CZ106) ->  | EF77: =IF(DA106="","",DA106) ->  | EG77: =IF(DB106="","",DB106) -> ● | EH77: =IF(DC106="","",DC106) -> ● | EI77: =COUNTIF(CX77:EA77,"●") -> 10 | EJ77: =+EI77+EJ48 -> 15 | EM77: 現場閉所率 | EN77: =IFERROR(+EN76/EN75,"") -> 0.3333333333 | EO77: =IF(EN77="","",IF(COUNTIF(CX77:EB77,"●")>=COUNTIF(CX80:EB80,"◎"),"4週8休以上",IF(EN77>=0.285,"4週8休以上","週休2日未達成"))) -> 4週8休以上
D78: 1 | E78: 2 | F78: 3 | G78: 4 | H78: 5 | I78: 6 | J78: 7 | K78: 8 | L78: 9 | M78: 10 | N78: 11 | O78: 12 | P78: 13 | Q78: 14 | R78: 15 | S78: 16 | T78: 17 | U78: 18 | V78: 19 | W78: 20 | X78: 21 | Y78: 22 | Z78: 23 | AA78: 24 | AB78: 25 | AC78: 26 | AD78: 27 | AE78: 28 | AF78: 29 | AG78: 30 | AH78: 31 | AI78: 32 | AJ78: 33 | AK78: 34 | AL78: 35 | AM78: 36 | AN78: 37 | AS78: =AU77 ->  | BB78: 1 | BC78: 2 | BD78: 3 | BE78: 4 | BF78: 5 | BG78: 6 | BH78: 7 | BI78: 8 | BJ78: 9 | BK78: 10 | BL78: 11 | BM78: 12 | BN78: 13 | BO78: 14 | BP78: 15 | BQ78: 16 | BR78: 17 | BS78: 18 | BT78: 19 | BU78: 20 | BV78: 21 | BW78: 22 | BX78: 23 | BY78: 24 | BZ78: 25 | CA78: 26 | CB78: 27 | CC78: 28 | CD78: 29 | CE78: 30 | CF78: 31 | CG78: 32 | CH78: 33 | CI78: 34 | CJ78: 35 | CK78: 36 | CL78: 37 | CQ78: =CS77 -> 週休2日未達成 | CX78: 1 | CY78: 2 | CZ78: 3 | DA78: 4 | DB78: 5 | DC78: 6 | DD78: 7 | DE78: 8 | DF78: 9 | DG78: 10 | DH78: 11 | DI78: 12 | DJ78: 13 | DK78: 14 | DL78: 15 | DM78: 16 | DN78: 17 | DO78: 18 | DP78: 19 | DQ78: 20 | DR78: 21 | DS78: 22 | DT78: 23 | DU78: 24 | DV78: 25 | DW78: 26 | DX78: 27 | DY78: 28 | DZ78: 29 | EA78: 30 | EB78: 31 | EC78: 32 | ED78: 33 | EE78: 34 | EF78: 35 | EG78: 36 | EH78: 37 | EM78: =EO77 -> 4週8休以上
C79: 計画 | D79: =IF(D76="／","／",IF(OR(D74="土",D74="日"),"◎","")) -> ◎ | J79: ◎ | K79: ◎ | Q79: ◎ | R79: ◎ | X79: ◎ | Y79: ◎ | AD79: =IF(AD76="／","／",IF(OR(AD74="土",AD74="日"),"◎","")) ->  | AE79: =IF(AE76="／","／",IF(OR(AE74="土",AE74="日"),"◎","")) -> ◎ | AF79: ◎ | AM79: ◎ | AN79: ◎ | AS79: =AT81 ->  | BA79: 計画 | BB79: =IF(BB76="／","／",IF(OR(BB74="土",BB74="日"),"◎","")) -> ◎ | BH79: ◎ | BI79: ◎ | BN79: =IF(BN76="／","／",IF(OR(BN74="土",BN74="日"),"◎","")) ->  | BO79: =IF(BO76="／","／",IF(OR(BO74="土",BO74="日"),"◎","")) -> ◎ | BP79: ◎ | BV79: ◎ | BW79: ◎ | CB79: =IF(CB76="／","／",IF(OR(CB74="土",CB74="日"),"◎","")) ->  | CC79: =IF(CC76="／","／",IF(OR(CC74="土",CC74="日"),"◎","")) -> ◎ | CD79: ◎ | CF79: ／ | CK79: ◎ | CL79: ◎ | CQ79: =CR81 -> OUT | CW79: 計画 | CX79: =IF(CX76="／","／",IF(OR(CX74="土",CX74="日"),"◎","")) -> ◎ | DD79: ◎ | DE79: ◎ | DJ79: =IF(DJ76="／","／",IF(OR(DJ74="土",DJ74="日"),"◎","")) ->  | DK79: =IF(DK76="／","／",IF(OR(DK74="土",DK74="日"),"◎","")) -> ◎ | DL79: ◎ | DR79: ◎ | DS79: ◎ | DX79: =IF(DX76="／","／",IF(OR(DX74="土",DX74="日"),"◎","")) ->  | DY79: =IF(DY76="／","／",IF(OR(DY74="土",DY74="日"),"◎","")) -> ◎ | DZ79: ◎ | EB79: ／ | EG79: ◎ | EH79: ◎ | EM79: =EN81 -> OK
C80: 実施 | D80: =IF(D77="／","／",IF(OR(D74="土",D74="日"),"◎","")) -> ◎ | E80: =IF(E77="／","／",IF(OR(E74="土",E74="日"),"◎","")) ->  | J80: ◎ | K80: ◎ | Q80: ◎ | R80: ◎ | X80: ◎ | Y80: ◎ | AE80: ◎ | AF80: ◎ | AM80: ◎ | AN80: ◎ | BA80: 実施 | BB80: =IF(BB77="／","／",IF(OR(BB74="土",BB74="日"),"◎","")) -> ◎ | BC80: =IF(BC77="／","／",IF(OR(BC74="土",BC74="日"),"◎","")) ->  | BH80: ◎ | BI80: ◎ | BO80: ◎ | BP80: ◎ | BV80: ◎ | BW80: ◎ | CC80: ◎ | CD80: ◎ | CF80: ／ | CK80: ◎ | CL80: ◎ | CW80: 実施 | CX80: =IF(CX77="／","／",IF(OR(CX74="土",CX74="日"),"◎","")) -> ◎ | CY80: =IF(CY77="／","／",IF(OR(CY74="土",CY74="日"),"◎","")) ->  | DD80: ◎ | DE80: ◎ | DK80: ◎ | DL80: ◎ | DR80: ◎ | DS80: ◎ | DY80: ◎ | DZ80: ◎ | EB80: ／ | EG80: ◎ | EH80: ◎
C81: 完全 | D81: =IF(WEEKDAY(DATE(YEAR(D72),MONTH(D72),1),2)=1,DATE(YEAR(D72),MONTH(D72),1),EOMONTH(D72,-1)-MOD(WEEKDAY(EOMONTH(D72,-1),2)+6,7)) -> 2025-05-26 | E81: ～ | F81: =DATE(YEAR(D72),MONTH(D72),1)+MOD(7-WEEKDAY(DATE(YEAR(D72),MONTH(D72),1),2),7) -> 2025-06-01 | G81: =IF(DAY(D81)=1,IF(COUNTIF(D77:J77,"／")>=1,"対象外",IF(COUNTIF(INDEX(D77:AN77,DAY(D81)):INDEX(D77:AN77,HLOOKUP(F81,D73:AN78,6,FALSE)),"")+COUNTIF(INDEX(D77:AN77,DAY(D81)):INDEX(D77:AN77,HLOOKUP(F81,D73:AN78,6,FALSE)),"●")=7,IF(COUNTIF(INDEX(D77:AN77,DAY(D81)):INDEX(D77:AN77,HLOOKUP(F81,D73:AN78,6,FALSE)),"●")>=2,"OK","OUT"),IF(COUNTIF(INDEX(D77:AN77,DAY(D81)):INDEX(D77:AN77,HLOOKUP(F81,D73:AN78,6,FALSE)),"●")>=COUNTIF(INDEX(D80:AN80,DAY(D81)):INDEX(D80:AN80,HLOOKUP(F81,D73:AN78,6,FALSE)),"○"),"OK","OUT"))),IF(AND(AK52="",AE52=""),Y52,IF(AK52="",AE52,AK52))) -> OUT | J81: =F81+1 -> 2025-06-02 | K81: ～ | L81: =F81+7 -> 2025-06-08 | M81: =IF(COUNTIF(INDEX(D77:AN77,DAY(J81)):INDEX(D77:AN77,HLOOKUP(L81,D73:AN78,6,FALSE)),"")+COUNTIF(INDEX(D77:AN77,DAY(J81)):INDEX(D77:AN77,HLOOKUP(L81,D73:AN78,6,FALSE)),"●")=7,IF(COUNTIF(INDEX(D77:AN77,DAY(J81)):INDEX(D77:AN77,HLOOKUP(L81,D73:AN78,6,FALSE)),"●")>=2,"OK","OUT"),"対象外") -> OUT | P81: =L81+1 -> 2025-06-09 | Q81: ～ | R81: =L81+7 -> 2025-06-15 | S81: =IF(COUNTIF(INDEX(D77:AN77,DAY(P81)):INDEX(D77:AN77,HLOOKUP(R81,D73:AN78,6,FALSE)),"")+COUNTIF(INDEX(D77:AN77,DAY(P81)):INDEX(D77:AN77,HLOOKUP(R81,D73:AN78,6,FALSE)),"●")=7,IF(COUNTIF(INDEX(D77:AN77,DAY(P81)):INDEX(D77:AN77,HLOOKUP(R81,D73:AN78,6,FALSE)),"●")>=2,"OK","OUT"),"対象外") -> OUT | V81: =R81+1 -> 2025-06-16 | W81: ～ | X81: =R81+7 -> 2025-06-22 | Y81: =IF(COUNTIF(INDEX(D77:AN77,DAY(V81)):INDEX(D77:AN77,HLOOKUP(X81,D73:AN78,6,FALSE)),"")+COUNTIF(INDEX(D77:AN77,DAY(V81)):INDEX(D77:AN77,HLOOKUP(X81,D73:AN78,6,FALSE)),"●")=7,IF(COUNTIF(INDEX(D77:AN77,DAY(V81)):INDEX(D77:AN77,HLOOKUP(X81,D73:AN78,6,FALSE)),"●")>=2,"OK","OUT"),"対象外") -> OUT | AB81: =IF(AND(DAY(X81+7)<23,DAY(X81+7)>=7),"",X81+1) -> 2025-06-23 | AC81: =IF(AND(DAY(X81+7)<23,DAY(X81+7)>=7),"","～") -> ～ | AD81: =IF(AND(DAY(X81+7)<23,DAY(X81+7)>=7),"",X81+7) -> 2025-06-29 | AE81: =IF(AND(DAY(X81+7)<23,DAY(X81+7)>=7),"",IF(COUNTIF(INDEX(D77:AN77,DAY(AB81)):INDEX(D77:AN77,HLOOKUP(AD81,D73:AN78,6,FALSE)),"")+COUNTIF(INDEX(D77:AN77,DAY(AB81)):INDEX(D77:AN77,HLOOKUP(AD81,D73:AN78,6,FALSE)),"●")=7,IF(COUNTIF(INDEX(D77:AN77,DAY(AB81)):INDEX(D77:AN77,HLOOKUP(AD81,D73:AN78,6,FALSE)),"●")>=2,"OK","OUT"),IF(COUNTIF(INDEX(D77:AN77,DAY(AB81)):INDEX(D77:AN77,HLOOKUP(AD81,D73:AN78,6,FALSE)),"")+COUNTIF(INDEX(D77:AN77,DAY(AB81)):INDEX(D77:AN77,HLOOKUP(AD81,D73:AN78,6,FALSE)),"●")>7,"「／」漏れ","対象外"))) -> OUT | AH81: =IF(AE81="","",IF(AND(DAY(AD81+7)<23,DAY(AD81+7)>=7),"",AD81+1)) -> 2025-06-30 | AI81: =IF(AE81="","",IF(AND(DAY(AD81+7)<23,DAY(AD81+7)>=7),"","～")) -> ～ | AJ81: =IF(AE81="","",IF(AND(DAY(AD81+7)<23,DAY(AD81+7)>=7),"",AD81+7)) -> 2025-07-06 | AK81: =IF(AE81="","",IF(AND(DAY(AD81+7)<23,DAY(AD81+7)>=7),"",IF(COUNTIF(INDEX(D77:AN77,DAY(AH81)):INDEX(D77:AN77,HLOOKUP(AJ81,D73:AN78,6,FALSE)),"")+COUNTIF(INDEX(D77:AN77,DAY(AH81)):INDEX(D77:AN77,HLOOKUP(AJ81,D73:AN78,6,FALSE)),"●")=7,IF(COUNTIF(INDEX(D77:AN77,DAY(AH81)):INDEX(D77:AN77,HLOOKUP(AJ81,D73:AN78,6,FALSE)),"●")>=2,"OK","OUT"),IF(COUNTIF(INDEX(D77:AN77,HLOOKUP(AH81,D73:AN78,6,FALSE)):INDEX(D77:AN77,HLOOKUP(AJ81,D73:AN78,6,FALSE)),"")+COUNTIF(INDEX(D77:AN77,HLOOKUP(AH81,D73:AN78,6,FALSE)):INDEX(D77:AN77,HLOOKUP(AJ81,D73:AN78,6,FALSE)),"●")>7,"「／」漏れ","対象外")))) -> 「／」漏れ | AS81: 完全週休二日 | AT81: =IF(AT72="","",IF(COUNTIF(D81:AN81,"OUT")>=1,"OUT","OK")) ->  | BA81: 完全 | BB81: =IF(WEEKDAY(DATE(YEAR(BB72),MONTH(BB72),1),2)=1,DATE(YEAR(BB72),MONTH(BB72),1),EOMONTH(BB72,-1)-MOD(WEEKDAY(EOMONTH(BB72,-1),2)+6,7)) -> 2025-05-26 | BC81: ～ | BD81: =DATE(YEAR(BB72),MONTH(BB72),1)+MOD(7-WEEKDAY(DATE(YEAR(BB72),MONTH(BB72),1),2),7) -> 2025-06-01 | BE81: =IF(DAY(BB81)=1,IF(COUNTIF(BB77:BH77,"／")>=1,"対象外",IF(COUNTIF(INDEX(BB77:CL77,DAY(BB81)):INDEX(BB77:CL77,HLOOKUP(BD81,BB73:CL78,6,FALSE)),"")+COUNTIF(INDEX(BB77:CL77,DAY(BB81)):INDEX(BB77:CL77,HLOOKUP(BD81,BB73:CL78,6,FALSE)),"●")=7,IF(COUNTIF(INDEX(BB77:CL77,DAY(BB81)):INDEX(BB77:CL77,HLOOKUP(BD81,BB73:CL78,6,FALSE)),"●")>=2,"OK","OUT"),IF(COUNTIF(INDEX(BB77:CL77,DAY(BB81)):INDEX(BB77:CL77,HLOOKUP(BD81,BB73:CL78,6,FALSE)),"●")>=COUNTIF(INDEX(BB80:CL80,DAY(BB81)):INDEX(BB80:CL80,HLOOKUP(BD81,BB73:CL78,6,FALSE)),"○"),"OK","OUT"))),IF(AND(CI52="",CC52=""),BW52,IF(CI52="",CC52,CI52))) -> OUT | BH81: =BD81+1 -> 2025-06-02 | BI81: ～ | BJ81: =BD81+7 -> 2025-06-08 | BK81: =IF(COUNTIF(INDEX(BB77:CL77,DAY(BH81)):INDEX(BB77:CL77,HLOOKUP(BJ81,BB73:CL78,6,FALSE)),"")+COUNTIF(INDEX(BB77:CL77,DAY(BH81)):INDEX(BB77:CL77,HLOOKUP(BJ81,BB73:CL78,6,FALSE)),"●")=7,IF(COUNTIF(INDEX(BB77:CL77,DAY(BH81)):INDEX(BB77:CL77,HLOOKUP(BJ81,BB73:CL78,6,FALSE)),"●")>=2,"OK","OUT"),"対象外") -> OUT | BN81: =BJ81+1 -> 2025-06-09 | BO81: ～ | BP81: =BJ81+7 -> 2025-06-15 | BQ81: =IF(COUNTIF(INDEX(BB77:CL77,DAY(BN81)):INDEX(BB77:CL77,HLOOKUP(BP81,BB73:CL78,6,FALSE)),"")+COUNTIF(INDEX(BB77:CL77,DAY(BN81)):INDEX(BB77:CL77,HLOOKUP(BP81,BB73:CL78,6,FALSE)),"●")=7,IF(COUNTIF(INDEX(BB77:CL77,DAY(BN81)):INDEX(BB77:CL77,HLOOKUP(BP81,BB73:CL78,6,FALSE)),"●")>=2,"OK","OUT"),"対象外") -> OUT | BT81: =BP81+1 -> 2025-06-16 | BU81: ～ | BV81: =BP81+7 -> 2025-06-22 | BW81: =IF(COUNTIF(INDEX(BB77:CL77,DAY(BT81)):INDEX(BB77:CL77,HLOOKUP(BV81,BB73:CL78,6,FALSE)),"")+COUNTIF(INDEX(BB77:CL77,DAY(BT81)):INDEX(BB77:CL77,HLOOKUP(BV81,BB73:CL78,6,FALSE)),"●")=7,IF(COUNTIF(INDEX(BB77:CL77,DAY(BT81)):INDEX(BB77:CL77,HLOOKUP(BV81,BB73:CL78,6,FALSE)),"●")>=2,"OK","OUT"),"対象外") -> OUT | BZ81: =IF(AND(DAY(BV81+7)<23,DAY(BV81+7)>=7),"",BV81+1) -> 2025-06-23 | CA81: =IF(AND(DAY(BV81+7)<23,DAY(BV81+7)>=7),"","～") -> ～ | CB81: =IF(AND(DAY(BV81+7)<23,DAY(BV81+7)>=7),"",BV81+7) -> 2025-06-29 | CC81: =IF(AND(DAY(BV81+7)<23,DAY(BV81+7)>=7),"",IF(COUNTIF(INDEX(BB77:CL77,DAY(BZ81)):INDEX(BB77:CL77,HLOOKUP(CB81,BB73:CL78,6,FALSE)),"")+COUNTIF(INDEX(BB77:CL77,DAY(BZ81)):INDEX(BB77:CL77,HLOOKUP(CB81,BB73:CL78,6,FALSE)),"●")=7,IF(COUNTIF(INDEX(BB77:CL77,DAY(BZ81)):INDEX(BB77:CL77,HLOOKUP(CB81,BB73:CL78,6,FALSE)),"●")>=2,"OK","OUT"),IF(COUNTIF(INDEX(BB77:CL77,DAY(BZ81)):INDEX(BB77:CL77,HLOOKUP(CB81,BB73:CL78,6,FALSE)),"")+COUNTIF(INDEX(BB77:CL77,DAY(BZ81)):INDEX(BB77:CL77,HLOOKUP(CB81,BB73:CL78,6,FALSE)),"●")>7,"「／」漏れ","対象外"))) -> OUT | CF81: =IF(CC81="","",IF(AND(DAY(CB81+7)<23,DAY(CB81+7)>=7),"",CB81+1)) -> 2025-06-30 | CG81: =IF(CC81="","",IF(AND(DAY(CB81+7)<23,DAY(CB81+7)>=7),"","～")) -> ～ | CH81: =IF(CC81="","",IF(AND(DAY(CB81+7)<23,DAY(CB81+7)>=7),"",CB81+7)) -> 2025-07-06 | CI81: =IF(CC81="","",IF(AND(DAY(CB81+7)<23,DAY(CB81+7)>=7),"",IF(COUNTIF(INDEX(BB77:CL77,DAY(CF81)):INDEX(BB77:CL77,HLOOKUP(CH81,BB73:CL78,6,FALSE)),"")+COUNTIF(INDEX(BB77:CL77,DAY(CF81)):INDEX(BB77:CL77,HLOOKUP(CH81,BB73:CL78,6,FALSE)),"●")=7,IF(COUNTIF(INDEX(BB77:CL77,DAY(CF81)):INDEX(BB77:CL77,HLOOKUP(CH81,BB73:CL78,6,FALSE)),"●")>=2,"OK","OUT"),IF(COUNTIF(INDEX(BB77:CL77,HLOOKUP(CF81,BB73:CL78,6,FALSE)):INDEX(BB77:CL77,HLOOKUP(CH81,BB73:CL78,6,FALSE)),"")+COUNTIF(INDEX(BB77:CL77,HLOOKUP(CF81,BB73:CL78,6,FALSE)):INDEX(BB77:CL77,HLOOKUP(CH81,BB73:CL78,6,FALSE)),"●")>7,"「／」漏れ","対象外")))) -> OUT | CQ81: 完全週休二日 | CR81: =IF(CR72="","",IF(COUNTIF(BB81:CL81,"OUT")>=1,"OUT","OK")) -> OUT | CW81: 完全 | CX81: =IF(WEEKDAY(DATE(YEAR(CX72),MONTH(CX72),1),2)=1,DATE(YEAR(CX72),MONTH(CX72),1),EOMONTH(CX72,-1)-MOD(WEEKDAY(EOMONTH(CX72,-1),2)+6,7)) -> 2025-05-26 | CY81: ～ | CZ81: =DATE(YEAR(CX72),MONTH(CX72),1)+MOD(7-WEEKDAY(DATE(YEAR(CX72),MONTH(CX72),1),2),7) -> 2025-06-01 | DA81: =IF(DAY(CX81)=1,IF(COUNTIF(CX77:DD77,"／")>=1,"対象外",IF(COUNTIF(INDEX(CX77:EH77,DAY(CX81)):INDEX(CX77:EH77,HLOOKUP(CZ81,CX73:EH78,6,FALSE)),"")+COUNTIF(INDEX(CX77:EH77,DAY(CX81)):INDEX(CX77:EH77,HLOOKUP(CZ81,CX73:EH78,6,FALSE)),"●")=7,IF(COUNTIF(INDEX(CX77:EH77,DAY(CX81)):INDEX(CX77:EH77,HLOOKUP(CZ81,CX73:EH78,6,FALSE)),"●")>=2,"OK","OUT"),IF(COUNTIF(INDEX(CX77:EH77,DAY(CX81)):INDEX(CX77:EH77,HLOOKUP(CZ81,CX73:EH78,6,FALSE)),"●")>=COUNTIF(INDEX(CX80:EH80,DAY(CX81)):INDEX(CX80:EH80,HLOOKUP(CZ81,CX73:EH78,6,FALSE)),"○"),"OK","OUT"))),IF(AND(EE52="",DY52=""),DS52,IF(EE52="",DY52,EE52))) -> OK | DD81: =CZ81+1 -> 2025-06-02 | DE81: ～ | DF81: =CZ81+7 -> 2025-06-08 | DG81: =IF(COUNTIF(INDEX(CX77:EH77,DAY(DD81)):INDEX(CX77:EH77,HLOOKUP(DF81,CX73:EH78,6,FALSE)),"")+COUNTIF(INDEX(CX77:EH77,DAY(DD81)):INDEX(CX77:EH77,HLOOKUP(DF81,CX73:EH78,6,FALSE)),"●")=7,IF(COUNTIF(INDEX(CX77:EH77,DAY(DD81)):INDEX(CX77:EH77,HLOOKUP(DF81,CX73:EH78,6,FALSE)),"●")>=2,"OK","OUT"),"対象外") -> OK | DJ81: =DF81+1 -> 2025-06-09 | DK81: ～ | DL81: =DF81+7 -> 2025-06-15 | DM81: =IF(COUNTIF(INDEX(CX77:EH77,DAY(DJ81)):INDEX(CX77:EH77,HLOOKUP(DL81,CX73:EH78,6,FALSE)),"")+COUNTIF(INDEX(CX77:EH77,DAY(DJ81)):INDEX(CX77:EH77,HLOOKUP(DL81,CX73:EH78,6,FALSE)),"●")=7,IF(COUNTIF(INDEX(CX77:EH77,DAY(DJ81)):INDEX(CX77:EH77,HLOOKUP(DL81,CX73:EH78,6,FALSE)),"●")>=2,"OK","OUT"),"対象外") -> OK | DP81: =DL81+1 -> 2025-06-16 | DQ81: ～ | DR81: =DL81+7 -> 2025-06-22 | DS81: =IF(COUNTIF(INDEX(CX77:EH77,DAY(DP81)):INDEX(CX77:EH77,HLOOKUP(DR81,CX73:EH78,6,FALSE)),"")+COUNTIF(INDEX(CX77:EH77,DAY(DP81)):INDEX(CX77:EH77,HLOOKUP(DR81,CX73:EH78,6,FALSE)),"●")=7,IF(COUNTIF(INDEX(CX77:EH77,DAY(DP81)):INDEX(CX77:EH77,HLOOKUP(DR81,CX73:EH78,6,FALSE)),"●")>=2,"OK","OUT"),"対象外") -> OK | DV81: =IF(AND(DAY(DR81+7)<23,DAY(DR81+7)>=7),"",DR81+1) -> 2025-06-23 | DW81: =IF(AND(DAY(DR81+7)<23,DAY(DR81+7)>=7),"","～") -> ～ | DX81: =IF(AND(DAY(DR81+7)<23,DAY(DR81+7)>=7),"",DR81+7) -> 2025-06-29 | DY81: =IF(AND(DAY(DR81+7)<23,DAY(DR81+7)>=7),"",IF(COUNTIF(INDEX(CX77:EH77,DAY(DV81)):INDEX(CX77:EH77,HLOOKUP(DX81,CX73:EH78,6,FALSE)),"")+COUNTIF(INDEX(CX77:EH77,DAY(DV81)):INDEX(CX77:EH77,HLOOKUP(DX81,CX73:EH78,6,FALSE)),"●")=7,IF(COUNTIF(INDEX(CX77:EH77,DAY(DV81)):INDEX(CX77:EH77,HLOOKUP(DX81,CX73:EH78,6,FALSE)),"●")>=2,"OK","OUT"),IF(COUNTIF(INDEX(CX77:EH77,DAY(DV81)):INDEX(CX77:EH77,HLOOKUP(DX81,CX73:EH78,6,FALSE)),"")+COUNTIF(INDEX(CX77:EH77,DAY(DV81)):INDEX(CX77:EH77,HLOOKUP(DX81,CX73:EH78,6,FALSE)),"●")>7,"「／」漏れ","対象外"))) -> OK | EB81: =IF(DY81="","",IF(AND(DAY(DX81+7)<23,DAY(DX81+7)>=7),"",DX81+1)) -> 2025-06-30 | EC81: =IF(DY81="","",IF(AND(DAY(DX81+7)<23,DAY(DX81+7)>=7),"","～")) -> ～ | ED81: =IF(DY81="","",IF(AND(DAY(DX81+7)<23,DAY(DX81+7)>=7),"",DX81+7)) -> 2025-07-06 | EE81: =IF(DY81="","",IF(AND(DAY(DX81+7)<23,DAY(DX81+7)>=7),"",IF(COUNTIF(INDEX(CX77:EH77,DAY(EB81)):INDEX(CX77:EH77,HLOOKUP(ED81,CX73:EH78,6,FALSE)),"")+COUNTIF(INDEX(CX77:EH77,DAY(EB81)):INDEX(CX77:EH77,HLOOKUP(ED81,CX73:EH78,6,FALSE)),"●")=7,IF(COUNTIF(INDEX(CX77:EH77,DAY(EB81)):INDEX(CX77:EH77,HLOOKUP(ED81,CX73:EH78,6,FALSE)),"●")>=2,"OK","OUT"),IF(COUNTIF(INDEX(CX77:EH77,HLOOKUP(EB81,CX73:EH78,6,FALSE)):INDEX(CX77:EH77,HLOOKUP(ED81,CX73:EH78,6,FALSE)),"")+COUNTIF(INDEX(CX77:EH77,HLOOKUP(EB81,CX73:EH78,6,FALSE)):INDEX(CX77:EH77,HLOOKUP(ED81,CX73:EH78,6,FALSE)),"●")>7,"「／」漏れ","対象外")))) -> OK | EM81: 完全週休二日 | EN81: =IF(EN72="","",IF(COUNTIF(CX81:EH81,"OUT")>=1,"OUT","OK")) -> OK
A83: =IF(AND(NOT($AT$72=""),$AT$101=""),"対象期間","") -> 
A84: =IF(AND(NOT($AT$72=""),$AT$101=""),"対象期間","") ->  | C84: ※１工事着手日：始期日以降に準備工事（現場事務所の建設・測量等）、工場製作を含む工事における工場製作工に着手した日 | AR84: 工事全体の確認 | BA84: ※１工事着手日：始期日以降に準備工事（現場事務所の建設・測量等）、工場製作を含む工事における工場製作工に着手した日 | CP84: 工事全体の確認 | CW84: ※１工事着手日：始期日以降に準備工事（現場事務所の建設・測量等）、工場製作を含む工事における工場製作工に着手した日 | EL84: 工事全体の確認
C85: ※２作業完了日：工事施工範囲内で全ての作業（後片付けを含む）が完了した日 （工事現場事務所は工事施工範囲外に設置するため、ここでいう後片付けの対象に含まない） | AR85: 計画 | AS85: 全対象期間 | AT85: =IFERROR(AT56+AT72,"") ->  | BA85: ※２作業完了日：工事施工範囲内で全ての作業（後片付けを含む）が完了した日 （工事現場事務所は工事施工範囲外に設置するため、ここでいう後片付けの対象に含まない） | CP85: 計画 | CQ85: 全対象期間 | CR85: =IFERROR(CR56+CR72,"") ->  | CW85: ※２作業完了日：工事施工範囲内で全ての作業（後片付けを含む）が完了した日 （工事現場事務所は工事施工範囲外に設置するため、ここでいう後片付けの対象に含まない） | EL85: 計画 | EM85: 全対象期間 | EN85: =IFERROR(EN56+EN72,"") -> 50
AS86: 全現場閉所日数 | AT86: =IFERROR(AT57+AT73,"") ->  | CQ86: 全現場閉所日数 | CR86: =IFERROR(CR57+CR73,"") ->  | EM86: 全現場閉所日数 | EN86: =IFERROR(EN57+EN73,"") -> 15
C87: 【算定除外期間】：夏季休暇（8月13日～8月15日）、年末年始（12月29日～翌年1月3日）は算定期間の分母・分子に含めない | AS87: 現場閉所率 | AT87: =IFERROR(+AT86/AT85,"") ->  | AU87: =IF(AT87>=0.285,"4週8休以上","週休2日未達成") -> 4週8休以上 | BA87: 【算定除外期間】：夏季休暇（8月13日～8月15日）、年末年始（12月29日～翌年1月3日）は算定期間の分母・分子に含めない | CQ87: 現場閉所率 | CR87: =IFERROR(+CR86/CR85,"") ->  | CS87: =IF(CR87>=0.285,"4週8休以上","週休2日未達成") -> 4週8休以上 | CW87: 【算定除外期間】：夏季休暇（8月13日～8月15日）、年末年始（12月29日～翌年1月3日）は算定期間の分母・分子に含めない | EM87: 現場閉所率 | EN87: =IFERROR(+EN86/EN85,"") -> 0.3 | EO87: =IF(EN87>=0.285,"4週8休以上","週休2日未達成") -> 4週8休以上
C88: ※３工事期間の全ての月において、達成状況を確認し、一度でも達成できない月があれば、４週８休以上（月単位）は「未達成」となり、補正の対象とならない。 月によっては、土日を全て閉所しても現場閉所率が28.5％に満たない場合があるが、その月の対象期間の土日日数以上閉所していれば達成とみなす。 ※４工事対象期間のうち、一度でも完全週休２日（月～日で２日以上の現場閉所）を達成できなければ、 完全週休２日は「未達成」となり、補正の対象とならない。 なお、工期始期・終期、年末年始、夏季休暇などにより、７日間に満たない期間は完全週休２日の達成判断の対象外とする。 | AR88: 実施 | AS88: 全対象期間 | AT88: =IFERROR(AT59+AT75,"") ->  | BA88: ※３工事期間の全ての月において、達成状況を確認し、一度でも達成できない月があれば、４週８休以上（月単位）は「未達成」となり、補正の対象とならない。 月によっては、土日を全て閉所しても現場閉所率が28.5％に満たない場合があるが、その月の対象期間の土日日数以上閉所していれば達成とみなす。 ※４工事対象期間のうち、一度でも完全週休２日（月～日で２日以上の現場閉所）を達成できなければ、 完全週休２日は「未達成」となり、補正の対象とならない。 なお、工期始期・終期、年末年始、夏季休暇などにより、７日間に満たない期間は完全週休２日の達成判断の対象外とする。 | CP88: 実施 | CQ88: 全対象期間 | CR88: =IFERROR(CR59+CR75,"") ->  | CW88: ※３工事期間の全ての月において、達成状況を確認し、一度でも達成できない月があれば、４週８休以上（月単位）は「未達成」となり、補正の対象とならない。 月によっては、土日を全て閉所しても現場閉所率が28.5％に満たない場合があるが、その月の対象期間の土日日数以上閉所していれば達成とみなす。 ※４工事対象期間のうち、一度でも完全週休２日（月～日で２日以上の現場閉所）を達成できなければ、 完全週休２日は「未達成」となり、補正の対象とならない。 なお、工期始期・終期、年末年始、夏季休暇などにより、７日間に満たない期間は完全週休２日の達成判断の対象外とする。 | EL88: 実施 | EM88: 全対象期間 | EN88: =IFERROR(EN59+EN75,"") -> 50
AS89: 全現場閉所日数 | AT89: =IFERROR(AT60+AT76,"") ->  | CQ89: 全現場閉所日数 | CR89: =IFERROR(CR60+CR76,"") ->  | EM89: 全現場閉所日数 | EN89: =IFERROR(EN60+EN76,"") -> 16
AS90: 現場閉所率 | AT90: =IFERROR(+AT89/AT88,"") ->  | AU90: =IF(AT90>=0.285,"4週8休以上","週休2日未達成") -> 4週8休以上 | CQ90: 現場閉所率 | CR90: =IFERROR(+CR89/CR88,"") ->  | CS90: =IF(CR90>=0.285,"4週8休以上","週休2日未達成") -> 4週8休以上 | EM90: 現場閉所率 | EN90: =IFERROR(+EN89/EN88,"") -> 0.32 | EO90: =IF(EN90>=0.285,"4週8休以上","週休2日未達成") -> 4週8休以上
AS91: 閉所（月単位） | AT91: =IFERROR(COUNTIF(AS$14:$AS81,"4週8休以上")/(COUNTIF(AS$14:$AS81,"4週8休以上")+COUNTIF(AS$14:$AS81,"週休2日未達成")),"") ->  | AU91: =IF(OR(AT91=100%,AT91=""),"達成","未達成") -> 達成 | CQ91: 閉所（月単位） | CR91: =IFERROR(COUNTIF(CQ$14:$CQ81,"4週8休以上")/(COUNTIF(CQ$14:$CQ81,"4週8休以上")+COUNTIF(CQ$14:$CQ81,"週休2日未達成")),"") -> 0 | CS91: =IF(OR(CR91=100%,CR91=""),"達成","未達成") -> 未達成 | EM91: 閉所（月単位） | EN91: =IFERROR(COUNTIF($EM$14:EM81,"4週8休以上")/(COUNTIF($EM$14:EM81,"4週8休以上")+COUNTIF($EM$14:EM81,"週休2日未達成")),"") -> 1 | EO91: =IF(OR(EN91=100%,EN91=""),"達成","未達成") -> 達成
AS92: 完全週休二日 | AT92: =IF(COUNTIF(AS$14:$AS81,"OUT")>=1,"OUT","OK") -> OK | AU92: =IF(AT92="OK","達成","未達成") -> 達成 | CQ92: 完全週休二日 | CR92: =IF(COUNTIF(CQ$14:$CQ81,"OUT")>=1,"OUT","OK") -> OUT | CS92: =IF(CR92="OK","達成","未達成") -> 未達成 | EM92: 完全週休二日 | EN92: =IF(COUNTIF($EM$14:EM81,"OUT")>=1,"OUT","OK") -> OK | EO92: =IF(EN92="OK","達成","未達成") -> 達成
C93: ※必要に応じて各月の完全週休2日（月～日）の達成判定の行を修正してください。（曜日に合わせて修正） | BA93: ※必要に応じて各月の完全週休2日（月～日）の達成判定の行を修正してください。（曜日に合わせて修正） | CW93: ※必要に応じて各月の完全週休2日（月～日）の達成判定の行を修正してください。（曜日に合わせて修正）
C99: 算定除外期間以外の祝日（ＧＷ含む）は、算定期間（分母）の対象＝現場閉所の場合は分子にカウントして現場閉所率を算定 | BA99: 算定除外期間以外の祝日（ＧＷ含む）は、算定期間（分母）の対象＝現場閉所の場合は分子にカウントして現場閉所率を算定 | CW99: 算定除外期間以外の祝日（ＧＷ含む）は、算定期間（分母）の対象＝現場閉所の場合は分子にカウントして現場閉所率を算定
A101: =IF($AT$101="","","対象期間") ->  | C101: 月 | D101: =DATE(YEAR(D72),MONTH(D72)+1,1) -> 2025-07-01 | AI101: =DATE(YEAR(D101),MONTH(D101)+1,1) -> 2025-08-01 | AO101: 現場閉所計 | AP101: 現場閉所累計 | AR101: 計画 | AS101: 対象期間 | AT101: =IF(IF(MONTH(入力表!$E$6)=12,YEAR(入力表!$E$6)+1&"01",YEAR(入力表!$E$6)&TEXT(MONTH(入力表!$E$6)+1,"00"))>YEAR($D101)&TEXT(MONTH($D101),"00"),COUNTIF(D105:AH105,"")+COUNTIF(D105:AH105,"○"),"") ->  | AU101: =IF(COUNTIF(D102:AH102,"／")=0,"",IF(COUNTIF(D102:AH102,"／")=1,IF(AH105="／","","月末「／」漏れ"),IF(COUNTIF(D102:AH102,"／")=2,IF(AND(AG105="／",AH105="／"),"","月末「／」漏れ"),IF(AND(AF105="／",AG105="／",AH105="／"),"","月末「／」漏れ")))) ->  | BA101: 月 | BB101: =DATE(YEAR(BB72),MONTH(BB72)+1,1) -> 2025-07-01 | CG101: =DATE(YEAR(BB101),MONTH(BB101)+1,1) -> 2025-08-01 | CM101: 現場閉所計 | CN101: 現場閉所累計 | CP101: 計画 | CQ101: 対象期間 | CR101: =IF(IF(MONTH($BL$5)=12,YEAR($BL$5)+1&"01",YEAR($BL$5)&TEXT(MONTH($BL$5)+1,"00"))>YEAR(BB101)&TEXT(MONTH(BB101),"00"),COUNTIF(BB105:CF105,"")+COUNTIF(BB105:CF105,"○"),"") -> 31 | CS101: =IF(COUNTIF(BB102:CF102,"／")=0,"",IF(COUNTIF(BB102:CF102,"／")=1,IF(CF105="／","","月末「／」漏れ"),IF(COUNTIF(BB102:CF102,"／")=2,IF(AND(CE105="／",CF105="／"),"","月末「／」漏れ"),IF(AND(CD105="／",CE105="／",CF105="／"),"","月末「／」漏れ")))) ->  | CW101: 月 | CX101: =DATE(YEAR(CX72),MONTH(CX72)+1,1) -> 2025-07-01 | EC101: =DATE(YEAR(CX101),MONTH(CX101)+1,1) -> 2025-08-01 | EI101: 現場閉所計 | EJ101: 現場閉所累計 | EL101: 計画 | EM101: 対象期間 | EN101: =IF(IF(MONTH($BL$5)=12,YEAR($BL$5)+1&"01",YEAR($BL$5)&TEXT(MONTH($BL$5)+1,"00"))>YEAR($CX101)&TEXT(MONTH($CX101),"00"),COUNTIF(CX105:EB105,"")+COUNTIF(CX105:EB105,"○"),"") -> 31 | EO101: =IF(COUNTIF(CX102:EB102,"／")=0,"",IF(COUNTIF(CX102:EB102,"／")=1,IF(EB105="／","","月末「／」漏れ"),IF(COUNTIF(CX102:EB102,"／")=2,IF(AND(EA105="／",EB105="／"),"","月末「／」漏れ"),IF(AND(DZ105="／",EA105="／",EB105="／"),"","月末「／」漏れ")))) -> 
A102: =IF($AT$101="","","対象期間") ->  | C102: 日 | D102: =D101 -> 2025-07-01 | E102: =D102+1 -> 2025-07-02 | F102: =E102+1 -> 2025-07-03 | G102: =F102+1 -> 2025-07-04 | H102: =G102+1 -> 2025-07-05 | I102: =H102+1 -> 2025-07-06 | J102: =I102+1 -> 2025-07-07 | K102: =J102+1 -> 2025-07-08 | L102: =K102+1 -> 2025-07-09 | M102: =L102+1 -> 2025-07-10 | N102: =M102+1 -> 2025-07-11 | O102: =N102+1 -> 2025-07-12 | P102: =O102+1 -> 2025-07-13 | Q102: =P102+1 -> 2025-07-14 | R102: =Q102+1 -> 2025-07-15 | S102: =R102+1 -> 2025-07-16 | T102: =S102+1 -> 2025-07-17 | U102: =T102+1 -> 2025-07-18 | V102: =U102+1 -> 2025-07-19 | W102: =V102+1 -> 2025-07-20 | X102: =W102+1 -> 2025-07-21 | Y102: =X102+1 -> 2025-07-22 | Z102: =Y102+1 -> 2025-07-23 | AA102: =Z102+1 -> 2025-07-24 | AB102: =AA102+1 -> 2025-07-25 | AC102: =AB102+1 -> 2025-07-26 | AD102: =AC102+1 -> 2025-07-27 | AE102: =AD102+1 -> 2025-07-28 | AF102: =IF(AE102="／","／",IF(YEAR($D101)&TEXT(MONTH($D101),"00")<YEAR(AE102+1)&TEXT(MONTH(AE102+1),"00"),"／",AE102+1)) -> 2025-07-29 | AG102: =IF(AF102="／","／",IF(YEAR($D101)&TEXT(MONTH($D101),"00")<YEAR(AF102+1)&TEXT(MONTH(AF102+1),"00"),"／",AF102+1)) -> 2025-07-30 | AH102: =IF(AG102="／","／",IF(YEAR($D101)&TEXT(MONTH($D101),"00")<YEAR(AG102+1)&TEXT(MONTH(AG102+1),"00"),"／",AG102+1)) -> 2025-07-31 | AI102: =AI101 -> 2025-08-01 | AJ102: =AI102+1 -> 2025-08-02 | AK102: =AJ102+1 -> 2025-08-03 | AL102: =AK102+1 -> 2025-08-04 | AM102: =AL102+1 -> 2025-08-05 | AN102: =AM102+1 -> 2025-08-06 | AS102: 閉所日数 | AT102: =IF(IF(MONTH(入力表!$E$6)=12,YEAR(入力表!$E$6)+1&"01",YEAR(入力表!$E$6)&TEXT(MONTH(入力表!$E$6)+1,"00"))>YEAR($D101)&TEXT(MONTH($D101),"00"),COUNTIF(D105:AH105,"○"),"") ->  | AU102: =IF(OR(MONTH(D101)=1,MONTH(D101)=8,MONTH(D101)=12),IF(COUNTIF(D105:AH105,"／")>=3,"","算定除外「／」漏れ"),"") ->  | BA102: 日 | BB102: =BB101 -> 2025-07-01 | BC102: =BB102+1 -> 2025-07-02 | BD102: =BC102+1 -> 2025-07-03 | BE102: =BD102+1 -> 2025-07-04 | BF102: =BE102+1 -> 2025-07-05 | BG102: =BF102+1 -> 2025-07-06 | BH102: =BG102+1 -> 2025-07-07 | BI102: =BH102+1 -> 2025-07-08 | BJ102: =BI102+1 -> 2025-07-09 | BK102: =BJ102+1 -> 2025-07-10 | BL102: =BK102+1 -> 2025-07-11 | BM102: =BL102+1 -> 2025-07-12 | BN102: =BM102+1 -> 2025-07-13 | BO102: =BN102+1 -> 2025-07-14 | BP102: =BO102+1 -> 2025-07-15 | BQ102: =BP102+1 -> 2025-07-16 | BR102: =BQ102+1 -> 2025-07-17 | BS102: =BR102+1 -> 2025-07-18 | BT102: =BS102+1 -> 2025-07-19 | BU102: =BT102+1 -> 2025-07-20 | BV102: =BU102+1 -> 2025-07-21 | BW102: =BV102+1 -> 2025-07-22 | BX102: =BW102+1 -> 2025-07-23 | BY102: =BX102+1 -> 2025-07-24 | BZ102: =BY102+1 -> 2025-07-25 | CA102: =BZ102+1 -> 2025-07-26 | CB102: =CA102+1 -> 2025-07-27 | CC102: =CB102+1 -> 2025-07-28 | CD102: =IF(CC102="／","／",IF(YEAR(BB101)&TEXT(MONTH(BB101),"00")<YEAR(CC102+1)&TEXT(MONTH(CC102+1),"00"),"／",CC102+1)) -> 2025-07-29 | CE102: =IF(CD102="／","／",IF(YEAR(BB101)&TEXT(MONTH(BB101),"00")<YEAR(CD102+1)&TEXT(MONTH(CD102+1),"00"),"／",CD102+1)) -> 2025-07-30 | CF102: =IF(CE102="／","／",IF(YEAR(BB101)&TEXT(MONTH(BB101),"00")<YEAR(CE102+1)&TEXT(MONTH(CE102+1),"00"),"／",CE102+1)) -> 2025-07-31 | CG102: =CG101 -> 2025-08-01 | CH102: =CG102+1 -> 2025-08-02 | CI102: =CH102+1 -> 2025-08-03 | CJ102: =CI102+1 -> 2025-08-04 | CK102: =CJ102+1 -> 2025-08-05 | CL102: =CK102+1 -> 2025-08-06 | CQ102: 閉所日数 | CR102: =IF(IF(MONTH($BL$5)=12,YEAR($BL$5)+1&"01",YEAR($BL$5)&TEXT(MONTH($BL$5)+1,"00"))>YEAR(BB101)&TEXT(MONTH(BB101),"00"),COUNTIF(BB105:CF105,"○"),"") -> 9 | CS102: =IF(OR(MONTH(BB101)=1,MONTH(BB101)=8,MONTH(BB101)=12),IF(COUNTIF(BB105:CF105,"／")>=3,"","算定除外「／」漏れ"),"") ->  | CW102: 日 | CX102: =CX101 -> 2025-07-01 | CY102: =CX102+1 -> 2025-07-02 | CZ102: =CY102+1 -> 2025-07-03 | DA102: =CZ102+1 -> 2025-07-04 | DB102: =DA102+1 -> 2025-07-05 | DC102: =DB102+1 -> 2025-07-06 | DD102: =DC102+1 -> 2025-07-07 | DE102: =DD102+1 -> 2025-07-08 | DF102: =DE102+1 -> 2025-07-09 | DG102: =DF102+1 -> 2025-07-10 | DH102: =DG102+1 -> 2025-07-11 | DI102: =DH102+1 -> 2025-07-12 | DJ102: =DI102+1 -> 2025-07-13 | DK102: =DJ102+1 -> 2025-07-14 | DL102: =DK102+1 -> 2025-07-15 | DM102: =DL102+1 -> 2025-07-16 | DN102: =DM102+1 -> 2025-07-17 | DO102: =DN102+1 -> 2025-07-18 | DP102: =DO102+1 -> 2025-07-19 | DQ102: =DP102+1 -> 2025-07-20 | DR102: =DQ102+1 -> 2025-07-21 | DS102: =DR102+1 -> 2025-07-22 | DT102: =DS102+1 -> 2025-07-23 | DU102: =DT102+1 -> 2025-07-24 | DV102: =DU102+1 -> 2025-07-25 | DW102: =DV102+1 -> 2025-07-26 | DX102: =DW102+1 -> 2025-07-27 | DY102: =DX102+1 -> 2025-07-28 | DZ102: =IF(DY102="／","／",IF(YEAR(CX101)&TEXT(MONTH(CX101),"00")<YEAR(DY102+1)&TEXT(MONTH(DY102+1),"00"),"／",DY102+1)) -> 2025-07-29 | EA102: =IF(DZ102="／","／",IF(YEAR(CX101)&TEXT(MONTH(CX101),"00")<YEAR(DZ102+1)&TEXT(MONTH(DZ102+1),"00"),"／",DZ102+1)) -> 2025-07-30 | EB102: =IF(EA102="／","／",IF(YEAR(CX101)&TEXT(MONTH(CX101),"00")<YEAR(EA102+1)&TEXT(MONTH(EA102+1),"00"),"／",EA102+1)) -> 2025-07-31 | EC102: =EC101 -> 2025-08-01 | ED102: =EC102+1 -> 2025-08-02 | EE102: =ED102+1 -> 2025-08-03 | EF102: =EE102+1 -> 2025-08-04 | EG102: =EF102+1 -> 2025-08-05 | EH102: =EG102+1 -> 2025-08-06 | EM102: 閉所日数 | EN102: =IF(IF(MONTH($BL$5)=12,YEAR($BL$5)+1&"01",YEAR($BL$5)&TEXT(MONTH($BL$5)+1,"00"))>YEAR($CX101)&TEXT(MONTH($CX101),"00"),COUNTIF(CX105:EB105,"○"),"") -> 9 | EO102: =IF(OR(MONTH(CX101)=1,MONTH(CX101)=8,MONTH(CX101)=12),IF(COUNTIF(CX105:EB105,"／")>=3,"","算定除外「／」漏れ"),"") -> 
C103: 曜日 | D103: =TEXT(WEEKDAY(+D102),"aaa") -> 火 | E103: =TEXT(WEEKDAY(+E102),"aaa") -> 水 | F103: 木 | G103: 金 | H103: 土 | I103: =TEXT(WEEKDAY(+I102),"aaa") -> 日 | J103: =TEXT(WEEKDAY(+J102),"aaa") -> 月 | K103: 火 | L103: 水 | M103: 木 | N103: 金 | O103: 土 | P103: 日 | Q103: 月 | R103: 火 | S103: 水 | T103: 木 | U103: 金 | V103: 土 | W103: 日 | X103: 月 | Y103: 火 | Z103: =TEXT(WEEKDAY(+Z102),"aaa") -> 水 | AA103: =TEXT(WEEKDAY(+AA102),"aaa") -> 木 | AB103: 金 | AC103: 土 | AD103: 日 | AE103: 月 | AF103: =IF(AF102="／","／",TEXT(WEEKDAY(+AF102),"aaa")) -> 火 | AG103: =IF(AG102="／","／",TEXT(WEEKDAY(+AG102),"aaa")) -> 水 | AH103: 木 | AI103: =TEXT(WEEKDAY(+AI102),"aaa") -> 金 | AJ103: =TEXT(WEEKDAY(+AJ102),"aaa") -> 土 | AK103: 日 | AL103: 月 | AM103: 火 | AN103: 水 | AS103: 現場閉所率 | AT103: =IFERROR(+AT102/AT101,"") ->  | AU103: =IF(AT103="","",IF(COUNTIF(D105:AH105,"○")>=COUNTIF(D108:AH108,"◎"),"4週8休以上",IF(AT103>=0.285,"4週8休以上","週休2日未達成"))) ->  | BA103: 曜日 | BB103: =TEXT(WEEKDAY(+BB102),"aaa") -> 火 | BC103: =TEXT(WEEKDAY(+BC102),"aaa") -> 水 | BD103: 木 | BE103: 金 | BF103: 土 | BG103: =TEXT(WEEKDAY(+BG102),"aaa") -> 日 | BH103: =TEXT(WEEKDAY(+BH102),"aaa") -> 月 | BI103: 火 | BJ103: 水 | BK103: 木 | BL103: 金 | BM103: 土 | BN103: 日 | BO103: 月 | BP103: 火 | BQ103: 水 | BR103: 木 | BS103: 金 | BT103: 土 | BU103: 日 | BV103: 月 | BW103: 火 | BX103: =TEXT(WEEKDAY(+BX102),"aaa") -> 水 | BY103: =TEXT(WEEKDAY(+BY102),"aaa") -> 木 | BZ103: 金 | CA103: 土 | CB103: 日 | CC103: 月 | CD103: =IF(CD102="／","／",TEXT(WEEKDAY(+CD102),"aaa")) -> 火 | CE103: =IF(CE102="／","／",TEXT(WEEKDAY(+CE102),"aaa")) -> 水 | CF103: 木 | CG103: =TEXT(WEEKDAY(+CG102),"aaa") -> 金 | CH103: =TEXT(WEEKDAY(+CH102),"aaa") -> 土 | CI103: 日 | CJ103: 月 | CK103: 火 | CL103: 水 | CQ103: 現場閉所率 | CR103: =IFERROR(+CR102/CR101,"") -> 0.2903225806 | CS103: =IF(CR103="","",IF(COUNTIF(BB105:CF105,"○")>=COUNTIF(BB108:CF108,"◎"),"4週8休以上",IF(CR103>=0.285,"4週8休以上","週休2日未達成"))) -> 4週8休以上 | CW103: 曜日 | CX103: =TEXT(WEEKDAY(+CX102),"aaa") -> 火 | CY103: =TEXT(WEEKDAY(+CY102),"aaa") -> 水 | CZ103: 木 | DA103: 金 | DB103: 土 | DC103: =TEXT(WEEKDAY(+DC102),"aaa") -> 日 | DD103: =TEXT(WEEKDAY(+DD102),"aaa") -> 月 | DE103: 火 | DF103: 水 | DG103: 木 | DH103: 金 | DI103: 土 | DJ103: 日 | DK103: 月 | DL103: 火 | DM103: 水 | DN103: 木 | DO103: 金 | DP103: 土 | DQ103: 日 | DR103: 月 | DS103: 火 | DT103: =TEXT(WEEKDAY(+DT102),"aaa") -> 水 | DU103: =TEXT(WEEKDAY(+DU102),"aaa") -> 木 | DV103: 金 | DW103: 土 | DX103: 日 | DY103: 月 | DZ103: =IF(DZ102="／","／",TEXT(WEEKDAY(+DZ102),"aaa")) -> 火 | EA103: =IF(EA102="／","／",TEXT(WEEKDAY(+EA102),"aaa")) -> 水 | EB103: 木 | EC103: =TEXT(WEEKDAY(+EC102),"aaa") -> 金 | ED103: =TEXT(WEEKDAY(+ED102),"aaa") -> 土 | EE103: 日 | EF103: 月 | EG103: 火 | EH103: 水 | EM103: 現場閉所率 | EN103: =IFERROR(+EN102/EN101,"") -> 0.2903225806 | EO103: =IF(EN103="","",IF(COUNTIF(CX105:EB105,"○")>=COUNTIF(CX108:EB108,"◎"),"4週8休以上",IF(EN103>=0.285,"4週8休以上","週休2日未達成"))) -> 4週8休以上
C104: 行事 | AI104: =IF(D133="","",D133) ->  | AJ104: =IF(E133="","",E133) ->  | AK104: =IF(F133="","",F133) ->  | AL104: =IF(G133="","",G133) ->  | AM104: =IF(H133="","",H133) ->  | AN104: =IF(I133="","",I133) ->  | AR104: 実施 | AS104: 対象期間 | AT104: =IF(IF(MONTH(入力表!$E$6)=12,YEAR(入力表!$E$6)+1&"01",YEAR(入力表!$E$6)&TEXT(MONTH(入力表!$E$6)+1,"00"))>YEAR($D101)&TEXT(MONTH($D101),"00"),COUNTIF(D106:AH106,"")+COUNTIF(D106:AH106,"●"),"") ->  | AU104: =IF(COUNTIF(D102:AH102,"／")=0,"",IF(COUNTIF(D102:AH102,"／")=1,IF(AH106="／","","月末「／」漏れ"),IF(COUNTIF(D102:AH102,"／")=2,IF(AND(AG106="／",AH106="／"),"","月末「／」漏れ"),IF(AND(AF106="／",AG106="／",AH106="／"),"","月末「／」漏れ")))) ->  | BA104: 行事 | CG104: =IF(BB133="","",BB133) ->  | CH104: =IF(BC133="","",BC133) ->  | CI104: =IF(BD133="","",BD133) ->  | CJ104: =IF(BE133="","",BE133) ->  | CK104: =IF(BF133="","",BF133) ->  | CL104: =IF(BG133="","",BG133) ->  | CP104: 実施 | CQ104: 対象期間 | CR104: =IF(IF(MONTH($BL$5)=12,YEAR($BL$5)+1&"01",YEAR($BL$5)&TEXT(MONTH($BL$5)+1,"00"))>YEAR(BB101)&TEXT(MONTH(BB101),"00"),COUNTIF(BB106:CF106,"")+COUNTIF(BB106:CF106,"●"),"") -> 31 | CS104: =IF(COUNTIF(BB102:CF102,"／")=0,"",IF(COUNTIF(BB102:CF102,"／")=1,IF(CF106="／","","月末「／」漏れ"),IF(COUNTIF(BB102:CF102,"／")=2,IF(AND(CE106="／",CF106="／"),"","月末「／」漏れ"),IF(AND(CD106="／",CE106="／",CF106="／"),"","月末「／」漏れ")))) ->  | CW104: 行事 | EC104: =IF(CX133="","",CX133) ->  | ED104: =IF(CY133="","",CY133) ->  | EE104: =IF(CZ133="","",CZ133) ->  | EF104: =IF(DA133="","",DA133) ->  | EG104: =IF(DB133="","",DB133) ->  | EH104: =IF(DC133="","",DC133) ->  | EL104: 実施 | EM104: 対象期間 | EN104: =IF(IF(MONTH($BL$5)=12,YEAR($BL$5)+1&"01",YEAR($BL$5)&TEXT(MONTH($BL$5)+1,"00"))>YEAR($CX101)&TEXT(MONTH($CX101),"00"),COUNTIF(CX106:EB106,"")+COUNTIF(CX106:EB106,"●"),"") -> 31 | EO104: =IF(COUNTIF(CX102:EB102,"／")=0,"",IF(COUNTIF(CX102:EB102,"／")=1,IF(EB106="／","","月末「／」漏れ"),IF(COUNTIF(CX102:EB102,"／")=2,IF(AND(EA106="／",EB106="／"),"","月末「／」漏れ"),IF(AND(DZ106="／",EA106="／",EB106="／"),"","月末「／」漏れ")))) -> 
C105: 計画 | AI105: =IF(D134="","",D134) ->  | AJ105: =IF(E134="","",E134) ->  | AK105: =IF(F134="","",F134) ->  | AL105: =IF(G134="","",G134) ->  | AM105: =IF(H134="","",H134) ->  | AN105: =IF(I134="","",I134) ->  | AO105: =COUNTIF(D105:AH105,"○") -> 0 | AP105: =+AO105+AP76 -> 0 | AS105: 閉所日数 | AT105: =IF(IF(MONTH(入力表!$E$6)=12,YEAR(入力表!$E$6)+1&"01",YEAR(入力表!$E$6)&TEXT(MONTH(入力表!$E$6)+1,"00"))>YEAR($D101)&TEXT(MONTH($D101),"00"),COUNTIF(D106:AH106,"●"),"") ->  | AU105: =IF(OR(MONTH(D101)=1,MONTH(D101)=8,MONTH(D101)=12),IF(COUNTIF(D106:AH106,"／")>=3,"","算定除外「／」漏れ"),"") ->  | BA105: 計画 | BF105: ○ | BG105: ○ | BM105: ○ | BN105: ○ | BT105: ○ | BU105: ○ | BV105: ○ | CA105: ○ | CB105: ○ | CG105: =IF(BB134="","",BB134) ->  | CH105: ○ | CI105: ○ | CM105: =COUNTIF(BB105:CF105,"○") -> 9 | CN105: =+CM105+CN76 -> 23 | CQ105: 閉所日数 | CR105: =IF(IF(MONTH($BL$5)=12,YEAR($BL$5)+1&"01",YEAR($BL$5)&TEXT(MONTH($BL$5)+1,"00"))>YEAR(BB101)&TEXT(MONTH(BB101),"00"),COUNTIF(BB106:CF106,"●"),"") -> 0 | CS105: =IF(OR(MONTH(BB101)=1,MONTH(BB101)=8,MONTH(BB101)=12),IF(COUNTIF(BB106:CF106,"／")>=3,"","算定除外「／」漏れ"),"") ->  | CW105: 計画 | DB105: ○ | DC105: ○ | DI105: ○ | DJ105: ○ | DP105: ○ | DQ105: ○ | DR105: ○ | DW105: ○ | DX105: ○ | EC105: =IF(CX134="","",CX134) ->  | ED105: ○ | EE105: ○ | EI105: =COUNTIF(CX105:EB105,"○") -> 9 | EJ105: =+EI105+EJ76 -> 23 | EM105: 閉所日数 | EN105: =IF(IF(MONTH($BL$5)=12,YEAR($BL$5)+1&"01",YEAR($BL$5)&TEXT(MONTH($BL$5)+1,"00"))>YEAR($CX101)&TEXT(MONTH($CX101),"00"),COUNTIF(CX106:EB106,"●"),"") -> 9 | EO105: =IF(OR(MONTH(CX101)=1,MONTH(CX101)=8,MONTH(CX101)=12),IF(COUNTIF(CX106:EB106,"／")>=3,"","算定除外「／」漏れ"),"") -> 
C106: 実施 | AI106: =IF(D135="","",D135) ->  | AJ106: =IF(E135="","",E135) ->  | AK106: =IF(F135="","",F135) ->  | AL106: =IF(G135="","",G135) ->  | AM106: =IF(H135="","",H135) ->  | AN106: =IF(I135="","",I135) ->  | AO106: =COUNTIF(D106:AH106,"●") -> 0 | AP106: =+AO106+AP77 -> 0 | AS106: 現場閉所率 | AT106: =IFERROR(+AT105/AT104,"") ->  | AU106: =IF(AT106="","",IF(COUNTIF(D106:AH106,"●")>=COUNTIF(D109:AH109,"◎"),"4週8休以上",IF(AT106>=0.285,"4週8休以上","週休2日未達成"))) ->  | BA106: 実施 | CG106: =IF(BB135="","",BB135) ->  | CH106: =IF(BC135="","",BC135) ->  | CI106: =IF(BD135="","",BD135) ->  | CJ106: =IF(BE135="","",BE135) ->  | CK106: =IF(BF135="","",BF135) ->  | CL106: =IF(BG135="","",BG135) ->  | CM106: =COUNTIF(BB106:CF106,"●") -> 0 | CN106: =+CM106+CN77 -> 0 | CQ106: 現場閉所率 | CR106: =IFERROR(+CR105/CR104,"") -> 0 | CS106: =IF(CR106="","",IF(COUNTIF(BB106:CF106,"●")>=COUNTIF(BB109:CF109,"◎"),"4週8休以上",IF(CR106>=0.285,"4週8休以上","週休2日未達成"))) -> 週休2日未達成 | CW106: 実施 | DB106: ● | DC106: ● | DI106: ● | DJ106: ● | DP106: ● | DQ106: ● | DR106: ● | DW106: ● | DX106: ● | EC106: =IF(CX135="","",CX135) ->  | ED106: =IF(CY135="","",CY135) -> ● | EE106: =IF(CZ135="","",CZ135) -> ● | EF106: =IF(DA135="","",DA135) ->  | EG106: =IF(DB135="","",DB135) ->  | EH106: =IF(DC135="","",DC135) ->  | EI106: =COUNTIF(CX106:EB106,"●") -> 9 | EJ106: =+EI106+EJ77 -> 24 | EM106: 現場閉所率 | EN106: =IFERROR(+EN105/EN104,"") -> 0.2903225806 | EO106: =IF(EN106="","",IF(COUNTIF(CX106:EB106,"●")>=COUNTIF(CX109:EB109,"◎"),"4週8休以上",IF(EN106>=0.285,"4週8休以上","週休2日未達成"))) -> 4週8休以上
D107: 1 | E107: 2 | F107: 3 | G107: 4 | H107: 5 | I107: 6 | J107: 7 | K107: 8 | L107: 9 | M107: 10 | N107: 11 | O107: 12 | P107: 13 | Q107: 14 | R107: 15 | S107: 16 | T107: 17 | U107: 18 | V107: 19 | W107: 20 | X107: 21 | Y107: 22 | Z107: 23 | AA107: 24 | AB107: 25 | AC107: 26 | AD107: 27 | AE107: 28 | AF107: 29 | AG107: 30 | AH107: 31 | AI107: 32 | AJ107: 33 | AK107: 34 | AL107: 35 | AM107: 36 | AN107: 37 | AS107: =AU106 ->  | BB107: 1 | BC107: 2 | BD107: 3 | BE107: 4 | BF107: 5 | BG107: 6 | BH107: 7 | BI107: 8 | BJ107: 9 | BK107: 10 | BL107: 11 | BM107: 12 | BN107: 13 | BO107: 14 | BP107: 15 | BQ107: 16 | BR107: 17 | BS107: 18 | BT107: 19 | BU107: 20 | BV107: 21 | BW107: 22 | BX107: 23 | BY107: 24 | BZ107: 25 | CA107: 26 | CB107: 27 | CC107: 28 | CD107: 29 | CE107: 30 | CF107: 31 | CG107: 32 | CH107: 33 | CI107: 34 | CJ107: 35 | CK107: 36 | CL107: 37 | CQ107: =CS106 -> 週休2日未達成 | CX107: 1 | CY107: 2 | CZ107: 3 | DA107: 4 | DB107: 5 | DC107: 6 | DD107: 7 | DE107: 8 | DF107: 9 | DG107: 10 | DH107: 11 | DI107: 12 | DJ107: 13 | DK107: 14 | DL107: 15 | DM107: 16 | DN107: 17 | DO107: 18 | DP107: 19 | DQ107: 20 | DR107: 21 | DS107: 22 | DT107: 23 | DU107: 24 | DV107: 25 | DW107: 26 | DX107: 27 | DY107: 28 | DZ107: 29 | EA107: 30 | EB107: 31 | EC107: 32 | ED107: 33 | EE107: 34 | EF107: 35 | EG107: 36 | EH107: 37 | EM107: =EO106 -> 4週8休以上
C108: 計画 | D108: =IF(D105="／","／",IF(OR(D103="土",D103="日"),"◎","")) ->  | E108: =IF(E105="／","／",IF(OR(E103="土",E103="日"),"◎","")) ->  | H108: ◎ | I108: ◎ | O108: ◎ | P108: ◎ | V108: ◎ | W108: ◎ | AC108: ◎ | AD108: =IF(AD105="／","／",IF(OR(AD103="土",AD103="日"),"◎","")) -> ◎ | AE108: =IF(AE105="／","／",IF(OR(AE103="土",AE103="日"),"◎","")) ->  | AJ108: ◎ | AK108: ◎ | AS108: =AT110 ->  | BA108: 計画 | BB108: =IF(BB105="／","／",IF(OR(BB103="土",BB103="日"),"◎","")) ->  | BF108: ◎ | BG108: ◎ | BM108: ◎ | BN108: =IF(BN105="／","／",IF(OR(BN103="土",BN103="日"),"◎","")) -> ◎ | BO108: =IF(BO105="／","／",IF(OR(BO103="土",BO103="日"),"◎","")) ->  | BT108: ◎ | BU108: ◎ | CA108: ◎ | CB108: =IF(CB105="／","／",IF(OR(CB103="土",CB103="日"),"◎","")) -> ◎ | CC108: =IF(CC105="／","／",IF(OR(CC103="土",CC103="日"),"◎","")) ->  | CH108: ◎ | CI108: ◎ | CQ108: =CR110 -> OUT | CW108: 計画 | CX108: =IF(CX105="／","／",IF(OR(CX103="土",CX103="日"),"◎","")) ->  | DB108: ◎ | DC108: ◎ | DI108: ◎ | DJ108: =IF(DJ105="／","／",IF(OR(DJ103="土",DJ103="日"),"◎","")) -> ◎ | DK108: =IF(DK105="／","／",IF(OR(DK103="土",DK103="日"),"◎","")) ->  | DP108: ◎ | DQ108: ◎ | DW108: ◎ | DX108: =IF(DX105="／","／",IF(OR(DX103="土",DX103="日"),"◎","")) -> ◎ | DY108: =IF(DY105="／","／",IF(OR(DY103="土",DY103="日"),"◎","")) ->  | ED108: ◎ | EE108: ◎ | EM108: =EN110 -> OK
C109: 実施 | D109: =IF(D106="／","／",IF(OR(D103="土",D103="日"),"◎","")) ->  | E109: =IF(E106="／","／",IF(OR(E103="土",E103="日"),"◎","")) ->  | H109: ◎ | I109: ◎ | O109: ◎ | P109: ◎ | V109: ◎ | W109: ◎ | AC109: ◎ | AD109: ◎ | AJ109: ◎ | AK109: ◎ | BA109: 実施 | BB109: =IF(BB106="／","／",IF(OR(BB103="土",BB103="日"),"◎","")) ->  | BC109: =IF(BC106="／","／",IF(OR(BC103="土",BC103="日"),"◎","")) ->  | BF109: ◎ | BG109: ◎ | BM109: ◎ | BN109: ◎ | BT109: ◎ | BU109: ◎ | CA109: ◎ | CB109: ◎ | CH109: ◎ | CI109: ◎ | CW109: 実施 | CX109: =IF(CX106="／","／",IF(OR(CX103="土",CX103="日"),"◎","")) ->  | CY109: =IF(CY106="／","／",IF(OR(CY103="土",CY103="日"),"◎","")) ->  | DB109: ◎ | DC109: ◎ | DI109: ◎ | DJ109: ◎ | DP109: ◎ | DQ109: ◎ | DW109: ◎ | DX109: ◎ | ED109: ◎ | EE109: ◎
C110: 完全 | D110: =IF(WEEKDAY(DATE(YEAR(D101),MONTH(D101),1),2)=1,DATE(YEAR(D101),MONTH(D101),1),EOMONTH(D101,-1)-MOD(WEEKDAY(EOMONTH(D101,-1),2)+6,7)) -> 2025-06-30 | E110: ～ | F110: =DATE(YEAR(D101),MONTH(D101),1)+MOD(7-WEEKDAY(DATE(YEAR(D101),MONTH(D101),1),2),7) -> 2025-07-06 | G110: =IF(DAY(D110)=1,IF(COUNTIF(D106:J106,"／")>=1,"対象外",IF(COUNTIF(INDEX(D106:AN106,DAY(D110)):INDEX(D106:AN106,HLOOKUP(F110,D102:AN107,6,FALSE)),"")+COUNTIF(INDEX(D106:AN106,DAY(D110)):INDEX(D106:AN106,HLOOKUP(F110,D102:AN107,6,FALSE)),"●")=7,IF(COUNTIF(INDEX(D106:AN106,DAY(D110)):INDEX(D106:AN106,HLOOKUP(F110,D102:AN107,6,FALSE)),"●")>=2,"OK","OUT"),IF(COUNTIF(INDEX(D106:AN106,DAY(D110)):INDEX(D106:AN106,HLOOKUP(F110,D102:AN107,6,FALSE)),"●")>=COUNTIF(INDEX(D109:AN109,DAY(D110)):INDEX(D109:AN109,HLOOKUP(F110,D102:AN107,6,FALSE)),"○"),"OK","OUT"))),IF(AND(AK81="",AE81=""),Y81,IF(AK81="",AE81,AK81))) -> 「／」漏れ | J110: =F110+1 -> 2025-07-07 | K110: ～ | L110: =F110+7 -> 2025-07-13 | M110: =IF(COUNTIF(INDEX(D106:AN106,DAY(J110)):INDEX(D106:AN106,HLOOKUP(L110,D102:AN107,6,FALSE)),"")+COUNTIF(INDEX(D106:AN106,DAY(J110)):INDEX(D106:AN106,HLOOKUP(L110,D102:AN107,6,FALSE)),"●")=7,IF(COUNTIF(INDEX(D106:AN106,DAY(J110)):INDEX(D106:AN106,HLOOKUP(L110,D102:AN107,6,FALSE)),"●")>=2,"OK","OUT"),"対象外") -> OUT | P110: =L110+1 -> 2025-07-14 | Q110: ～ | R110: =L110+7 -> 2025-07-20 | S110: =IF(COUNTIF(INDEX(D106:AN106,DAY(P110)):INDEX(D106:AN106,HLOOKUP(R110,D102:AN107,6,FALSE)),"")+COUNTIF(INDEX(D106:AN106,DAY(P110)):INDEX(D106:AN106,HLOOKUP(R110,D102:AN107,6,FALSE)),"●")=7,IF(COUNTIF(INDEX(D106:AN106,DAY(P110)):INDEX(D106:AN106,HLOOKUP(R110,D102:AN107,6,FALSE)),"●")>=2,"OK","OUT"),"対象外") -> OUT | V110: =R110+1 -> 2025-07-21 | W110: ～ | X110: =R110+7 -> 2025-07-27 | Y110: =IF(COUNTIF(INDEX(D106:AN106,DAY(V110)):INDEX(D106:AN106,HLOOKUP(X110,D102:AN107,6,FALSE)),"")+COUNTIF(INDEX(D106:AN106,DAY(V110)):INDEX(D106:AN106,HLOOKUP(X110,D102:AN107,6,FALSE)),"●")=7,IF(COUNTIF(INDEX(D106:AN106,DAY(V110)):INDEX(D106:AN106,HLOOKUP(X110,D102:AN107,6,FALSE)),"●")>=2,"OK","OUT"),"対象外") -> OUT | AB110: =IF(AND(DAY(X110+7)<23,DAY(X110+7)>=7),"",X110+1) -> 2025-07-28 | AC110: =IF(AND(DAY(X110+7)<23,DAY(X110+7)>=7),"","～") -> ～ | AD110: =IF(AND(DAY(X110+7)<23,DAY(X110+7)>=7),"",X110+7) -> 2025-08-03 | AE110: =IF(AND(DAY(X110+7)<23,DAY(X110+7)>=7),"",IF(COUNTIF(INDEX(D106:AN106,DAY(AB110)):INDEX(D106:AN106,HLOOKUP(AD110,D102:AN107,6,FALSE)),"")+COUNTIF(INDEX(D106:AN106,DAY(AB110)):INDEX(D106:AN106,HLOOKUP(AD110,D102:AN107,6,FALSE)),"●")=7,IF(COUNTIF(INDEX(D106:AN106,DAY(AB110)):INDEX(D106:AN106,HLOOKUP(AD110,D102:AN107,6,FALSE)),"●")>=2,"OK","OUT"),IF(COUNTIF(INDEX(D106:AN106,DAY(AB110)):INDEX(D106:AN106,HLOOKUP(AD110,D102:AN107,6,FALSE)),"")+COUNTIF(INDEX(D106:AN106,DAY(AB110)):INDEX(D106:AN106,HLOOKUP(AD110,D102:AN107,6,FALSE)),"●")>7,"「／」漏れ","対象外"))) -> OUT | AH110: =IF(AE110="","",IF(AND(DAY(AD110+7)<23,DAY(AD110+7)>=7),"",AD110+1)) ->  | AI110: =IF(AE110="","",IF(AND(DAY(AD110+7)<23,DAY(AD110+7)>=7),"","～")) ->  | AJ110: =IF(AE110="","",IF(AND(DAY(AD110+7)<23,DAY(AD110+7)>=7),"",AD110+7)) ->  | AK110: =IF(AE110="","",IF(AND(DAY(AD110+7)<23,DAY(AD110+7)>=7),"",IF(COUNTIF(INDEX(D106:AN106,DAY(AH110)):INDEX(D106:AN106,HLOOKUP(AJ110,D102:AN107,6,FALSE)),"")+COUNTIF(INDEX(D106:AN106,DAY(AH110)):INDEX(D106:AN106,HLOOKUP(AJ110,D102:AN107,6,FALSE)),"●")=7,IF(COUNTIF(INDEX(D106:AN106,DAY(AH110)):INDEX(D106:AN106,HLOOKUP(AJ110,D102:AN107,6,FALSE)),"●")>=2,"OK","OUT"),IF(COUNTIF(INDEX(D106:AN106,HLOOKUP(AH110,D102:AN107,6,FALSE)):INDEX(D106:AN106,HLOOKUP(AJ110,D102:AN107,6,FALSE)),"")+COUNTIF(INDEX(D106:AN106,HLOOKUP(AH110,D102:AN107,6,FALSE)):INDEX(D106:AN106,HLOOKUP(AJ110,D102:AN107,6,FALSE)),"●")>7,"「／」漏れ","対象外")))) ->  | AS110: 完全週休二日 | AT110: =IF(AT101="","",IF(COUNTIF(D110:AN110,"OUT")>=1,"OUT","OK")) ->  | BA110: 完全 | BB110: =IF(WEEKDAY(DATE(YEAR(BB101),MONTH(BB101),1),2)=1,DATE(YEAR(BB101),MONTH(BB101),1),EOMONTH(BB101,-1)-MOD(WEEKDAY(EOMONTH(BB101,-1),2)+6,7)) -> 2025-06-30 | BC110: ～ | BD110: =DATE(YEAR(BB101),MONTH(BB101),1)+MOD(7-WEEKDAY(DATE(YEAR(BB101),MONTH(BB101),1),2),7) -> 2025-07-06 | BE110: =IF(DAY(BB110)=1,IF(COUNTIF(BB106:BH106,"／")>=1,"対象外",IF(COUNTIF(INDEX(BB106:CL106,DAY(BB110)):INDEX(BB106:CL106,HLOOKUP(BD110,BB102:CL107,6,FALSE)),"")+COUNTIF(INDEX(BB106:CL106,DAY(BB110)):INDEX(BB106:CL106,HLOOKUP(BD110,BB102:CL107,6,FALSE)),"●")=7,IF(COUNTIF(INDEX(BB106:CL106,DAY(BB110)):INDEX(BB106:CL106,HLOOKUP(BD110,BB102:CL107,6,FALSE)),"●")>=2,"OK","OUT"),IF(COUNTIF(INDEX(BB106:CL106,DAY(BB110)):INDEX(BB106:CL106,HLOOKUP(BD110,BB102:CL107,6,FALSE)),"●")>=COUNTIF(INDEX(BB109:CL109,DAY(BB110)):INDEX(BB109:CL109,HLOOKUP(BD110,BB102:CL107,6,FALSE)),"○"),"OK","OUT"))),IF(AND(CI81="",CC81=""),BW81,IF(CI81="",CC81,CI81))) -> OUT | BH110: =BD110+1 -> 2025-07-07 | BI110: ～ | BJ110: =BD110+7 -> 2025-07-13 | BK110: =IF(COUNTIF(INDEX(BB106:CL106,DAY(BH110)):INDEX(BB106:CL106,HLOOKUP(BJ110,BB102:CL107,6,FALSE)),"")+COUNTIF(INDEX(BB106:CL106,DAY(BH110)):INDEX(BB106:CL106,HLOOKUP(BJ110,BB102:CL107,6,FALSE)),"●")=7,IF(COUNTIF(INDEX(BB106:CL106,DAY(BH110)):INDEX(BB106:CL106,HLOOKUP(BJ110,BB102:CL107,6,FALSE)),"●")>=2,"OK","OUT"),"対象外") -> OUT | BN110: =BJ110+1 -> 2025-07-14 | BO110: ～ | BP110: =BJ110+7 -> 2025-07-20 | BQ110: =IF(COUNTIF(INDEX(BB106:CL106,DAY(BN110)):INDEX(BB106:CL106,HLOOKUP(BP110,BB102:CL107,6,FALSE)),"")+COUNTIF(INDEX(BB106:CL106,DAY(BN110)):INDEX(BB106:CL106,HLOOKUP(BP110,BB102:CL107,6,FALSE)),"●")=7,IF(COUNTIF(INDEX(BB106:CL106,DAY(BN110)):INDEX(BB106:CL106,HLOOKUP(BP110,BB102:CL107,6,FALSE)),"●")>=2,"OK","OUT"),"対象外") -> OUT | BT110: =BP110+1 -> 2025-07-21 | BU110: ～ | BV110: =BP110+7 -> 2025-07-27 | BW110: =IF(COUNTIF(INDEX(BB106:CL106,DAY(BT110)):INDEX(BB106:CL106,HLOOKUP(BV110,BB102:CL107,6,FALSE)),"")+COUNTIF(INDEX(BB106:CL106,DAY(BT110)):INDEX(BB106:CL106,HLOOKUP(BV110,BB102:CL107,6,FALSE)),"●")=7,IF(COUNTIF(INDEX(BB106:CL106,DAY(BT110)):INDEX(BB106:CL106,HLOOKUP(BV110,BB102:CL107,6,FALSE)),"●")>=2,"OK","OUT"),"対象外") -> OUT | BZ110: =IF(AND(DAY(BV110+7)<23,DAY(BV110+7)>=7),"",BV110+1) -> 2025-07-28 | CA110: =IF(AND(DAY(BV110+7)<23,DAY(BV110+7)>=7),"","～") -> ～ | CB110: =IF(AND(DAY(BV110+7)<23,DAY(BV110+7)>=7),"",BV110+7) -> 2025-08-03 | CC110: =IF(AND(DAY(BV110+7)<23,DAY(BV110+7)>=7),"",IF(COUNTIF(INDEX(BB106:CL106,DAY(BZ110)):INDEX(BB106:CL106,HLOOKUP(CB110,BB102:CL107,6,FALSE)),"")+COUNTIF(INDEX(BB106:CL106,DAY(BZ110)):INDEX(BB106:CL106,HLOOKUP(CB110,BB102:CL107,6,FALSE)),"●")=7,IF(COUNTIF(INDEX(BB106:CL106,DAY(BZ110)):INDEX(BB106:CL106,HLOOKUP(CB110,BB102:CL107,6,FALSE)),"●")>=2,"OK","OUT"),IF(COUNTIF(INDEX(BB106:CL106,DAY(BZ110)):INDEX(BB106:CL106,HLOOKUP(CB110,BB102:CL107,6,FALSE)),"")+COUNTIF(INDEX(BB106:CL106,DAY(BZ110)):INDEX(BB106:CL106,HLOOKUP(CB110,BB102:CL107,6,FALSE)),"●")>7,"「／」漏れ","対象外"))) -> OUT | CF110: =IF(CC110="","",IF(AND(DAY(CB110+7)<23,DAY(CB110+7)>=7),"",CB110+1)) ->  | CG110: =IF(CC110="","",IF(AND(DAY(CB110+7)<23,DAY(CB110+7)>=7),"","～")) ->  | CH110: =IF(CC110="","",IF(AND(DAY(CB110+7)<23,DAY(CB110+7)>=7),"",CB110+7)) ->  | CI110: =IF(CC110="","",IF(AND(DAY(CB110+7)<23,DAY(CB110+7)>=7),"",IF(COUNTIF(INDEX(BB106:CL106,DAY(CF110)):INDEX(BB106:CL106,HLOOKUP(CH110,BB102:CL107,6,FALSE)),"")+COUNTIF(INDEX(BB106:CL106,DAY(CF110)):INDEX(BB106:CL106,HLOOKUP(CH110,BB102:CL107,6,FALSE)),"●")=7,IF(COUNTIF(INDEX(BB106:CL106,DAY(CF110)):INDEX(BB106:CL106,HLOOKUP(CH110,BB102:CL107,6,FALSE)),"●")>=2,"OK","OUT"),IF(COUNTIF(INDEX(BB106:CL106,HLOOKUP(CF110,BB102:CL107,6,FALSE)):INDEX(BB106:CL106,HLOOKUP(CH110,BB102:CL107,6,FALSE)),"")+COUNTIF(INDEX(BB106:CL106,HLOOKUP(CF110,BB102:CL107,6,FALSE)):INDEX(BB106:CL106,HLOOKUP(CH110,BB102:CL107,6,FALSE)),"●")>7,"「／」漏れ","対象外")))) ->  | CQ110: 完全週休二日 | CR110: =IF(CR101="","",IF(COUNTIF(BB110:CL110,"OUT")>=1,"OUT","OK")) -> OUT | CW110: 完全 | CX110: =IF(WEEKDAY(DATE(YEAR(CX101),MONTH(CX101),1),2)=1,DATE(YEAR(CX101),MONTH(CX101),1),EOMONTH(CX101,-1)-MOD(WEEKDAY(EOMONTH(CX101,-1),2)+6,7)) -> 2025-06-30 | CY110: ～ | CZ110: =DATE(YEAR(CX101),MONTH(CX101),1)+MOD(7-WEEKDAY(DATE(YEAR(CX101),MONTH(CX101),1),2),7) -> 2025-07-06 | DA110: =IF(DAY(CX110)=1,IF(COUNTIF(CX106:DD106,"／")>=1,"対象外",IF(COUNTIF(INDEX(CX106:EH106,DAY(CX110)):INDEX(CX106:EH106,HLOOKUP(CZ110,CX102:EH107,6,FALSE)),"")+COUNTIF(INDEX(CX106:EH106,DAY(CX110)):INDEX(CX106:EH106,HLOOKUP(CZ110,CX102:EH107,6,FALSE)),"●")=7,IF(COUNTIF(INDEX(CX106:EH106,DAY(CX110)):INDEX(CX106:EH106,HLOOKUP(CZ110,CX102:EH107,6,FALSE)),"●")>=2,"OK","OUT"),IF(COUNTIF(INDEX(CX106:EH106,DAY(CX110)):INDEX(CX106:EH106,HLOOKUP(CZ110,CX102:EH107,6,FALSE)),"●")>=COUNTIF(INDEX(CX109:EH109,DAY(CX110)):INDEX(CX109:EH109,HLOOKUP(CZ110,CX102:EH107,6,FALSE)),"○"),"OK","OUT"))),IF(AND(EE81="",DY81=""),DS81,IF(EE81="",DY81,EE81))) -> OK | DD110: =CZ110+1 -> 2025-07-07 | DE110: ～ | DF110: =CZ110+7 -> 2025-07-13 | DG110: =IF(COUNTIF(INDEX(CX106:EH106,DAY(DD110)):INDEX(CX106:EH106,HLOOKUP(DF110,CX102:EH107,6,FALSE)),"")+COUNTIF(INDEX(CX106:EH106,DAY(DD110)):INDEX(CX106:EH106,HLOOKUP(DF110,CX102:EH107,6,FALSE)),"●")=7,IF(COUNTIF(INDEX(CX106:EH106,DAY(DD110)):INDEX(CX106:EH106,HLOOKUP(DF110,CX102:EH107,6,FALSE)),"●")>=2,"OK","OUT"),"対象外") -> OK | DJ110: =DF110+1 -> 2025-07-14 | DK110: ～ | DL110: =DF110+7 -> 2025-07-20 | DM110: =IF(COUNTIF(INDEX(CX106:EH106,DAY(DJ110)):INDEX(CX106:EH106,HLOOKUP(DL110,CX102:EH107,6,FALSE)),"")+COUNTIF(INDEX(CX106:EH106,DAY(DJ110)):INDEX(CX106:EH106,HLOOKUP(DL110,CX102:EH107,6,FALSE)),"●")=7,IF(COUNTIF(INDEX(CX106:EH106,DAY(DJ110)):INDEX(CX106:EH106,HLOOKUP(DL110,CX102:EH107,6,FALSE)),"●")>=2,"OK","OUT"),"対象外") -> OK | DP110: =DL110+1 -> 2025-07-21 | DQ110: ～ | DR110: =DL110+7 -> 2025-07-27 | DS110: =IF(COUNTIF(INDEX(CX106:EH106,DAY(DP110)):INDEX(CX106:EH106,HLOOKUP(DR110,CX102:EH107,6,FALSE)),"")+COUNTIF(INDEX(CX106:EH106,DAY(DP110)):INDEX(CX106:EH106,HLOOKUP(DR110,CX102:EH107,6,FALSE)),"●")=7,IF(COUNTIF(INDEX(CX106:EH106,DAY(DP110)):INDEX(CX106:EH106,HLOOKUP(DR110,CX102:EH107,6,FALSE)),"●")>=2,"OK","OUT"),"対象外") -> OK | DV110: =IF(AND(DAY(DR110+7)<23,DAY(DR110+7)>=7),"",DR110+1) -> 2025-07-28 | DW110: =IF(AND(DAY(DR110+7)<23,DAY(DR110+7)>=7),"","～") -> ～ | DX110: =IF(AND(DAY(DR110+7)<23,DAY(DR110+7)>=7),"",DR110+7) -> 2025-08-03 | DY110: =IF(AND(DAY(DR110+7)<23,DAY(DR110+7)>=7),"",IF(COUNTIF(INDEX(CX106:EH106,DAY(DV110)):INDEX(CX106:EH106,HLOOKUP(DX110,CX102:EH107,6,FALSE)),"")+COUNTIF(INDEX(CX106:EH106,DAY(DV110)):INDEX(CX106:EH106,HLOOKUP(DX110,CX102:EH107,6,FALSE)),"●")=7,IF(COUNTIF(INDEX(CX106:EH106,DAY(DV110)):INDEX(CX106:EH106,HLOOKUP(DX110,CX102:EH107,6,FALSE)),"●")>=2,"OK","OUT"),IF(COUNTIF(INDEX(CX106:EH106,DAY(DV110)):INDEX(CX106:EH106,HLOOKUP(DX110,CX102:EH107,6,FALSE)),"")+COUNTIF(INDEX(CX106:EH106,DAY(DV110)):INDEX(CX106:EH106,HLOOKUP(DX110,CX102:EH107,6,FALSE)),"●")>7,"「／」漏れ","対象外"))) -> OK | EB110: =IF(DY110="","",IF(AND(DAY(DX110+7)<23,DAY(DX110+7)>=7),"",DX110+1)) ->  | EC110: =IF(DY110="","",IF(AND(DAY(DX110+7)<23,DAY(DX110+7)>=7),"","～")) ->  | ED110: =IF(DY110="","",IF(AND(DAY(DX110+7)<23,DAY(DX110+7)>=7),"",DX110+7)) ->  | EE110: =IF(DY110="","",IF(AND(DAY(DX110+7)<23,DAY(DX110+7)>=7),"",IF(COUNTIF(INDEX(CX106:EH106,DAY(EB110)):INDEX(CX106:EH106,HLOOKUP(ED110,CX102:EH107,6,FALSE)),"")+COUNTIF(INDEX(CX106:EH106,DAY(EB110)):INDEX(CX106:EH106,HLOOKUP(ED110,CX102:EH107,6,FALSE)),"●")=7,IF(COUNTIF(INDEX(CX106:EH106,DAY(EB110)):INDEX(CX106:EH106,HLOOKUP(ED110,CX102:EH107,6,FALSE)),"●")>=2,"OK","OUT"),IF(COUNTIF(INDEX(CX106:EH106,HLOOKUP(EB110,CX102:EH107,6,FALSE)):INDEX(CX106:EH106,HLOOKUP(ED110,CX102:EH107,6,FALSE)),"")+COUNTIF(INDEX(CX106:EH106,HLOOKUP(EB110,CX102:EH107,6,FALSE)):INDEX(CX106:EH106,HLOOKUP(ED110,CX102:EH107,6,FALSE)),"●")>7,"「／」漏れ","対象外")))) ->  | EM110: 完全週休二日 | EN110: =IF(EN101="","",IF(COUNTIF(CX110:EH110,"OUT")>=1,"OUT","OK")) -> OK
A112: =IF(AND(NOT($AT$101=""),$AT$130=""),"対象期間","") -> 
A113: =IF(AND(NOT($AT$101=""),$AT$130=""),"対象期間","") ->  | C113: ※１工事着手日：始期日以降に準備工事（現場事務所の建設・測量等）、工場製作を含む工事における工場製作工に着手した日 | AR113: 工事全体の確認 | BA113: ※１工事着手日：始期日以降に準備工事（現場事務所の建設・測量等）、工場製作を含む工事における工場製作工に着手した日 | CP113: 工事全体の確認 | CW113: ※１工事着手日：始期日以降に準備工事（現場事務所の建設・測量等）、工場製作を含む工事における工場製作工に着手した日 | EL113: 工事全体の確認
C114: ※２作業完了日：工事施工範囲内で全ての作業（後片付けを含む）が完了した日 （工事現場事務所は工事施工範囲外に設置するため、ここでいう後片付けの対象に含まない） | AR114: 計画 | AS114: 全対象期間 | AT114: =IFERROR(AT85+AT101,"") ->  | BA114: ※２作業完了日：工事施工範囲内で全ての作業（後片付けを含む）が完了した日 （工事現場事務所は工事施工範囲外に設置するため、ここでいう後片付けの対象に含まない） | CP114: 計画 | CQ114: 全対象期間 | CR114: =IFERROR(CR85+CR101,"") ->  | CW114: ※２作業完了日：工事施工範囲内で全ての作業（後片付けを含む）が完了した日 （工事現場事務所は工事施工範囲外に設置するため、ここでいう後片付けの対象に含まない） | EL114: 計画 | EM114: 全対象期間 | EN114: =IFERROR(EN85+EN101,"") -> 81
AS115: 全現場閉所日数 | AT115: =IFERROR(AT86+AT102,"") ->  | CQ115: 全現場閉所日数 | CR115: =IFERROR(CR86+CR102,"") ->  | EM115: 全現場閉所日数 | EN115: =IFERROR(EN86+EN102,"") -> 24
C116: 【算定除外期間】：夏季休暇（8月13日～8月15日）、年末年始（12月29日～翌年1月3日）は算定期間の分母・分子に含めない | AS116: 現場閉所率 | AT116: =IFERROR(+AT115/AT114,"") ->  | AU116: =IF(AT116>=0.285,"4週8休以上","週休2日未達成") -> 4週8休以上 | BA116: 【算定除外期間】：夏季休暇（8月13日～8月15日）、年末年始（12月29日～翌年1月3日）は算定期間の分母・分子に含めない | CQ116: 現場閉所率 | CR116: =IFERROR(+CR115/CR114,"") ->  | CS116: =IF(CR116>=0.285,"4週8休以上","週休2日未達成") -> 4週8休以上 | CW116: 【算定除外期間】：夏季休暇（8月13日～8月15日）、年末年始（12月29日～翌年1月3日）は算定期間の分母・分子に含めない | EM116: 現場閉所率 | EN116: =IFERROR(+EN115/EN114,"") -> 0.2962962963 | EO116: =IF(EN116>=0.285,"4週8休以上","週休2日未達成") -> 4週8休以上
C117: ※３工事期間の全ての月において、達成状況を確認し、一度でも達成できない月があれば、４週８休以上（月単位）は「未達成」となり、補正の対象とならない。 月によっては、土日を全て閉所しても現場閉所率が28.5％に満たない場合があるが、その月の対象期間の土日日数以上閉所していれば達成とみなす。 ※４工事対象期間のうち、一度でも完全週休２日（月～日で２日以上の現場閉所）を達成できなければ、 完全週休２日は「未達成」となり、補正の対象とならない。 なお、工期始期・終期、年末年始、夏季休暇などにより、７日間に満たない期間は完全週休２日の達成判断の対象外とする。 | AR117: 実施 | AS117: 全対象期間 | AT117: =IFERROR(AT88+AT104,"") ->  | BA117: ※３工事期間の全ての月において、達成状況を確認し、一度でも達成できない月があれば、４週８休以上（月単位）は「未達成」となり、補正の対象とならない。 月によっては、土日を全て閉所しても現場閉所率が28.5％に満たない場合があるが、その月の対象期間の土日日数以上閉所していれば達成とみなす。 ※４工事対象期間のうち、一度でも完全週休２日（月～日で２日以上の現場閉所）を達成できなければ、 完全週休２日は「未達成」となり、補正の対象とならない。 なお、工期始期・終期、年末年始、夏季休暇などにより、７日間に満たない期間は完全週休２日の達成判断の対象外とする。 | CP117: 実施 | CQ117: 全対象期間 | CR117: =IFERROR(CR88+CR104,"") ->  | CW117: ※３工事期間の全ての月において、達成状況を確認し、一度でも達成できない月があれば、４週８休以上（月単位）は「未達成」となり、補正の対象とならない。 月によっては、土日を全て閉所しても現場閉所率が28.5％に満たない場合があるが、その月の対象期間の土日日数以上閉所していれば達成とみなす。 ※４工事対象期間のうち、一度でも完全週休２日（月～日で２日以上の現場閉所）を達成できなければ、 完全週休２日は「未達成」となり、補正の対象とならない。 なお、工期始期・終期、年末年始、夏季休暇などにより、７日間に満たない期間は完全週休２日の達成判断の対象外とする。 | EL117: 実施 | EM117: 全対象期間 | EN117: =IFERROR(EN88+EN104,"") -> 81
AS118: 全現場閉所日数 | AT118: =IFERROR(AT89+AT105,"") ->  | CQ118: 全現場閉所日数 | CR118: =IFERROR(CR89+CR105,"") ->  | EM118: 全現場閉所日数 | EN118: =IFERROR(EN89+EN105,"") -> 25
AS119: 現場閉所率 | AT119: =IFERROR(+AT118/AT117,"") ->  | AU119: =IF(AT119>=0.285,"4週8休以上","週休2日未達成") -> 4週8休以上 | CQ119: 現場閉所率 | CR119: =IFERROR(+CR118/CR117,"") ->  | CS119: =IF(CR119>=0.285,"4週8休以上","週休2日未達成") -> 4週8休以上 | EM119: 現場閉所率 | EN119: =IFERROR(+EN118/EN117,"") -> 0.3086419753 | EO119: =IF(EN119>=0.285,"4週8休以上","週休2日未達成") -> 4週8休以上
AS120: 閉所（月単位） | AT120: =IFERROR(COUNTIF(AS$14:$AS110,"4週8休以上")/(COUNTIF(AS$14:$AS110,"4週8休以上")+COUNTIF(AS$14:$AS110,"週休2日未達成")),"") ->  | AU120: =IF(OR(AT120=100%,AT120=""),"達成","未達成") -> 達成 | CQ120: 閉所（月単位） | CR120: =IFERROR(COUNTIF(CQ$14:$CQ110,"4週8休以上")/(COUNTIF(CQ$14:$CQ110,"4週8休以上")+COUNTIF(CQ$14:$CQ110,"週休2日未達成")),"") -> 0 | CS120: =IF(OR(CR120=100%,CR120=""),"達成","未達成") -> 未達成 | EM120: 閉所（月単位） | EN120: =IFERROR(COUNTIF($EM$14:EM110,"4週8休以上")/(COUNTIF($EM$14:EM110,"4週8休以上")+COUNTIF($EM$14:EM110,"週休2日未達成")),"") -> 1 | EO120: =IF(OR(EN120=100%,EN120=""),"達成","未達成") -> 達成
AS121: 完全週休二日 | AT121: =IF(COUNTIF(AS$14:$AS110,"OUT")>=1,"OUT","OK") -> OK | AU121: =IF(AT121="OK","達成","未達成") -> 達成 | CQ121: 完全週休二日 | CR121: =IF(COUNTIF(CQ$14:$CQ110,"OUT")>=1,"OUT","OK") -> OUT | CS121: =IF(CR121="OK","達成","未達成") -> 未達成 | EM121: 完全週休二日 | EN121: =IF(COUNTIF($EM$14:EM110,"OUT")>=1,"OUT","OK") -> OK | EO121: =IF(EN121="OK","達成","未達成") -> 達成
C122: ※必要に応じて各月の完全週休2日（月～日）の達成判定の行を修正してください。（曜日に合わせて修正） | BA122: ※必要に応じて各月の完全週休2日（月～日）の達成判定の行を修正してください。（曜日に合わせて修正） | CW122: ※必要に応じて各月の完全週休2日（月～日）の達成判定の行を修正してください。（曜日に合わせて修正）
C128: 算定除外期間以外の祝日（ＧＷ含む）は、算定期間（分母）の対象＝現場閉所の場合は分子にカウントして現場閉所率を算定 | BA128: 算定除外期間以外の祝日（ＧＷ含む）は、算定期間（分母）の対象＝現場閉所の場合は分子にカウントして現場閉所率を算定 | CW128: 算定除外期間以外の祝日（ＧＷ含む）は、算定期間（分母）の対象＝現場閉所の場合は分子にカウントして現場閉所率を算定
A130: =IF($AT$130="","","対象期間") ->  | C130: 月 | D130: =DATE(YEAR(D101),MONTH(D101)+1,1) -> 2025-08-01 | AI130: =DATE(YEAR(D130),MONTH(D130)+1,1) -> 2025-09-01 | AO130: 現場閉所計 | AP130: 現場閉所累計 | AR130: 計画 | AS130: 対象期間 | AT130: =IF(IF(MONTH(入力表!$E$6)=12,YEAR(入力表!$E$6)+1&"01",YEAR(入力表!$E$6)&TEXT(MONTH(入力表!$E$6)+1,"00"))>YEAR($D130)&TEXT(MONTH($D130),"00"),COUNTIF(D134:AH134,"")+COUNTIF(D134:AH134,"○"),"") ->  | AU130: =IF(COUNTIF(D131:AH131,"／")=0,"",IF(COUNTIF(D131:AH131,"／")=1,IF(AH134="／","","月末「／」漏れ"),IF(COUNTIF(D131:AH131,"／")=2,IF(AND(AG134="／",AH134="／"),"","月末「／」漏れ"),IF(AND(AF134="／",AG134="／",AH134="／"),"","月末「／」漏れ")))) ->  | BA130: 月 | BB130: =DATE(YEAR(BB101),MONTH(BB101)+1,1) -> 2025-08-01 | CG130: =DATE(YEAR(BB130),MONTH(BB130)+1,1) -> 2025-09-01 | CM130: 現場閉所計 | CN130: 現場閉所累計 | CP130: 計画 | CQ130: 対象期間 | CR130: =IF(IF(MONTH($BL$5)=12,YEAR($BL$5)+1&"01",YEAR($BL$5)&TEXT(MONTH($BL$5)+1,"00"))>YEAR(BB130)&TEXT(MONTH(BB130),"00"),COUNTIF(BB134:CF134,"")+COUNTIF(BB134:CF134,"○"),"") -> 28 | CS130: =IF(COUNTIF(BB131:CF131,"／")=0,"",IF(COUNTIF(BB131:CF131,"／")=1,IF(CF134="／","","月末「／」漏れ"),IF(COUNTIF(BB131:CF131,"／")=2,IF(AND(CE134="／",CF134="／"),"","月末「／」漏れ"),IF(AND(CD134="／",CE134="／",CF134="／"),"","月末「／」漏れ")))) ->  | CW130: 月 | CX130: =DATE(YEAR(CX101),MONTH(CX101)+1,1) -> 2025-08-01 | EC130: =DATE(YEAR(CX130),MONTH(CX130)+1,1) -> 2025-09-01 | EI130: 現場閉所計 | EJ130: 現場閉所累計 | EL130: 計画 | EM130: 対象期間 | EN130: =IF(IF(MONTH($BL$5)=12,YEAR($BL$5)+1&"01",YEAR($BL$5)&TEXT(MONTH($BL$5)+1,"00"))>YEAR($CX130)&TEXT(MONTH($CX130),"00"),COUNTIF(CX134:EB134,"")+COUNTIF(CX134:EB134,"○"),"") -> 28 | EO130: =IF(COUNTIF(CX131:EB131,"／")=0,"",IF(COUNTIF(CX131:EB131,"／")=1,IF(EB134="／","","月末「／」漏れ"),IF(COUNTIF(CX131:EB131,"／")=2,IF(AND(EA134="／",EB134="／"),"","月末「／」漏れ"),IF(AND(DZ134="／",EA134="／",EB134="／"),"","月末「／」漏れ")))) -> 
A131: =IF($AT$130="","","対象期間") ->  | C131: 日 | D131: =D130 -> 2025-08-01 | E131: =D131+1 -> 2025-08-02 | F131: =E131+1 -> 2025-08-03 | G131: =F131+1 -> 2025-08-04 | H131: =G131+1 -> 2025-08-05 | I131: =H131+1 -> 2025-08-06 | J131: =I131+1 -> 2025-08-07 | K131: =J131+1 -> 2025-08-08 | L131: =K131+1 -> 2025-08-09 | M131: =L131+1 -> 2025-08-10 | N131: =M131+1 -> 2025-08-11 | O131: =N131+1 -> 2025-08-12 | P131: =O131+1 -> 2025-08-13 | Q131: =P131+1 -> 2025-08-14 | R131: =Q131+1 -> 2025-08-15 | S131: =R131+1 -> 2025-08-16 | T131: =S131+1 -> 2025-08-17 | U131: =T131+1 -> 2025-08-18 | V131: =U131+1 -> 2025-08-19 | W131: =V131+1 -> 2025-08-20 | X131: =W131+1 -> 2025-08-21 | Y131: =X131+1 -> 2025-08-22 | Z131: =Y131+1 -> 2025-08-23 | AA131: =Z131+1 -> 2025-08-24 | AB131: =AA131+1 -> 2025-08-25 | AC131: =AB131+1 -> 2025-08-26 | AD131: =AC131+1 -> 2025-08-27 | AE131: =AD131+1 -> 2025-08-28 | AF131: =IF(AE131="／","／",IF(YEAR($D130)&TEXT(MONTH($D130),"00")<YEAR(AE131+1)&TEXT(MONTH(AE131+1),"00"),"／",AE131+1)) -> 2025-08-29 | AG131: =IF(AF131="／","／",IF(YEAR($D130)&TEXT(MONTH($D130),"00")<YEAR(AF131+1)&TEXT(MONTH(AF131+1),"00"),"／",AF131+1)) -> 2025-08-30 | AH131: =IF(AG131="／","／",IF(YEAR($D130)&TEXT(MONTH($D130),"00")<YEAR(AG131+1)&TEXT(MONTH(AG131+1),"00"),"／",AG131+1)) -> 2025-08-31 | AI131: =AI130 -> 2025-09-01 | AJ131: =AI131+1 -> 2025-09-02 | AK131: =AJ131+1 -> 2025-09-03 | AL131: =AK131+1 -> 2025-09-04 | AM131: =AL131+1 -> 2025-09-05 | AN131: =AM131+1 -> 2025-09-06 | AS131: 閉所日数 | AT131: =IF(IF(MONTH(入力表!$E$6)=12,YEAR(入力表!$E$6)+1&"01",YEAR(入力表!$E$6)&TEXT(MONTH(入力表!$E$6)+1,"00"))>YEAR($D130)&TEXT(MONTH($D130),"00"),COUNTIF(D134:AH134,"○"),"") ->  | AU131: =IF(OR(MONTH(D130)=1,MONTH(D130)=8,MONTH(D130)=12),IF(COUNTIF(D134:AH134,"／")>=3,"","算定除外「／」漏れ"),"") -> 算定除外「／」漏れ | BA131: 日 | BB131: =BB130 -> 2025-08-01 | BC131: =BB131+1 -> 2025-08-02 | BD131: =BC131+1 -> 2025-08-03 | BE131: =BD131+1 -> 2025-08-04 | BF131: =BE131+1 -> 2025-08-05 | BG131: =BF131+1 -> 2025-08-06 | BH131: =BG131+1 -> 2025-08-07 | BI131: =BH131+1 -> 2025-08-08 | BJ131: =BI131+1 -> 2025-08-09 | BK131: =BJ131+1 -> 2025-08-10 | BL131: =BK131+1 -> 2025-08-11 | BM131: =BL131+1 -> 2025-08-12 | BN131: =BM131+1 -> 2025-08-13 | BO131: =BN131+1 -> 2025-08-14 | BP131: =BO131+1 -> 2025-08-15 | BQ131: =BP131+1 -> 2025-08-16 | BR131: =BQ131+1 -> 2025-08-17 | BS131: =BR131+1 -> 2025-08-18 | BT131: =BS131+1 -> 2025-08-19 | BU131: =BT131+1 -> 2025-08-20 | BV131: =BU131+1 -> 2025-08-21 | BW131: =BV131+1 -> 2025-08-22 | BX131: =BW131+1 -> 2025-08-23 | BY131: =BX131+1 -> 2025-08-24 | BZ131: =BY131+1 -> 2025-08-25 | CA131: =BZ131+1 -> 2025-08-26 | CB131: =CA131+1 -> 2025-08-27 | CC131: =CB131+1 -> 2025-08-28 | CD131: =IF(CC131="／","／",IF(YEAR(BB130)&TEXT(MONTH(BB130),"00")<YEAR(CC131+1)&TEXT(MONTH(CC131+1),"00"),"／",CC131+1)) -> 2025-08-29 | CE131: =IF(CD131="／","／",IF(YEAR(BB130)&TEXT(MONTH(BB130),"00")<YEAR(CD131+1)&TEXT(MONTH(CD131+1),"00"),"／",CD131+1)) -> 2025-08-30 | CF131: =IF(CE131="／","／",IF(YEAR(BB130)&TEXT(MONTH(BB130),"00")<YEAR(CE131+1)&TEXT(MONTH(CE131+1),"00"),"／",CE131+1)) -> 2025-08-31 | CG131: =CG130 -> 2025-09-01 | CH131: =CG131+1 -> 2025-09-02 | CI131: =CH131+1 -> 2025-09-03 | CJ131: =CI131+1 -> 2025-09-04 | CK131: =CJ131+1 -> 2025-09-05 | CL131: =CK131+1 -> 2025-09-06 | CQ131: 閉所日数 | CR131: =IF(IF(MONTH($BL$5)=12,YEAR($BL$5)+1&"01",YEAR($BL$5)&TEXT(MONTH($BL$5)+1,"00"))>YEAR(BB130)&TEXT(MONTH(BB130),"00"),COUNTIF(BB134:CF134,"○"),"") -> 10 | CS131: =IF(OR(MONTH(BB130)=1,MONTH(BB130)=8,MONTH(BB130)=12),IF(COUNTIF(BB134:CF134,"／")>=3,"","算定除外「／」漏れ"),"") ->  | CW131: 日 | CX131: =CX130 -> 2025-08-01 | CY131: =CX131+1 -> 2025-08-02 | CZ131: =CY131+1 -> 2025-08-03 | DA131: =CZ131+1 -> 2025-08-04 | DB131: =DA131+1 -> 2025-08-05 | DC131: =DB131+1 -> 2025-08-06 | DD131: =DC131+1 -> 2025-08-07 | DE131: =DD131+1 -> 2025-08-08 | DF131: =DE131+1 -> 2025-08-09 | DG131: =DF131+1 -> 2025-08-10 | DH131: =DG131+1 -> 2025-08-11 | DI131: =DH131+1 -> 2025-08-12 | DJ131: =DI131+1 -> 2025-08-13 | DK131: =DJ131+1 -> 2025-08-14 | DL131: =DK131+1 -> 2025-08-15 | DM131: =DL131+1 -> 2025-08-16 | DN131: =DM131+1 -> 2025-08-17 | DO131: =DN131+1 -> 2025-08-18 | DP131: =DO131+1 -> 2025-08-19 | DQ131: =DP131+1 -> 2025-08-20 | DR131: =DQ131+1 -> 2025-08-21 | DS131: =DR131+1 -> 2025-08-22 | DT131: =DS131+1 -> 2025-08-23 | DU131: =DT131+1 -> 2025-08-24 | DV131: =DU131+1 -> 2025-08-25 | DW131: =DV131+1 -> 2025-08-26 | DX131: =DW131+1 -> 2025-08-27 | DY131: =DX131+1 -> 2025-08-28 | DZ131: =IF(DY131="／","／",IF(YEAR(CX130)&TEXT(MONTH(CX130),"00")<YEAR(DY131+1)&TEXT(MONTH(DY131+1),"00"),"／",DY131+1)) -> 2025-08-29 | EA131: =IF(DZ131="／","／",IF(YEAR(CX130)&TEXT(MONTH(CX130),"00")<YEAR(DZ131+1)&TEXT(MONTH(DZ131+1),"00"),"／",DZ131+1)) -> 2025-08-30 | EB131: =IF(EA131="／","／",IF(YEAR(CX130)&TEXT(MONTH(CX130),"00")<YEAR(EA131+1)&TEXT(MONTH(EA131+1),"00"),"／",EA131+1)) -> 2025-08-31 | EC131: =EC130 -> 2025-09-01 | ED131: =EC131+1 -> 2025-09-02 | EE131: =ED131+1 -> 2025-09-03 | EF131: =EE131+1 -> 2025-09-04 | EG131: =EF131+1 -> 2025-09-05 | EH131: =EG131+1 -> 2025-09-06 | EM131: 閉所日数 | EN131: =IF(IF(MONTH($BL$5)=12,YEAR($BL$5)+1&"01",YEAR($BL$5)&TEXT(MONTH($BL$5)+1,"00"))>YEAR($CX130)&TEXT(MONTH($CX130),"00"),COUNTIF(CX134:EB134,"○"),"") -> 10 | EO131: =IF(OR(MONTH(CX130)=1,MONTH(CX130)=8,MONTH(CX130)=12),IF(COUNTIF(CX134:EB134,"／")>=3,"","算定除外「／」漏れ"),"") -> 
C132: 曜日 | D132: =TEXT(WEEKDAY(+D131),"aaa") -> 金 | E132: =TEXT(WEEKDAY(+E131),"aaa") -> 土 | F132: 日 | G132: 月 | H132: 火 | I132: =TEXT(WEEKDAY(+I131),"aaa") -> 水 | J132: =TEXT(WEEKDAY(+J131),"aaa") -> 木 | K132: 金 | L132: 土 | M132: 日 | N132: 月 | O132: 火 | P132: 水 | Q132: 木 | R132: 金 | S132: 土 | T132: 日 | U132: 月 | V132: 火 | W132: 水 | X132: 木 | Y132: 金 | Z132: =TEXT(WEEKDAY(+Z131),"aaa") -> 土 | AA132: =TEXT(WEEKDAY(+AA131),"aaa") -> 日 | AB132: 月 | AC132: 火 | AD132: 水 | AE132: 木 | AF132: =IF(AF131="／","／",TEXT(WEEKDAY(+AF131),"aaa")) -> 金 | AG132: =IF(AG131="／","／",TEXT(WEEKDAY(+AG131),"aaa")) -> 土 | AH132: 日 | AI132: =TEXT(WEEKDAY(+AI131),"aaa") -> 月 | AJ132: =TEXT(WEEKDAY(+AJ131),"aaa") -> 火 | AK132: 水 | AL132: 木 | AM132: 金 | AN132: 土 | AS132: 現場閉所率 | AT132: =IFERROR(+AT131/AT130,"") ->  | AU132: =IF(AT132="","",IF(COUNTIF(D134:AH134,"○")>=COUNTIF(D137:AH137,"◎"),"4週8休以上",IF(AT132>=0.285,"4週8休以上","週休2日未達成"))) ->  | BA132: 曜日 | BB132: =TEXT(WEEKDAY(+BB131),"aaa") -> 金 | BC132: =TEXT(WEEKDAY(+BC131),"aaa") -> 土 | BD132: 日 | BE132: 月 | BF132: 火 | BG132: =TEXT(WEEKDAY(+BG131),"aaa") -> 水 | BH132: =TEXT(WEEKDAY(+BH131),"aaa") -> 木 | BI132: 金 | BJ132: 土 | BK132: 日 | BL132: 月 | BM132: 火 | BN132: 水 | BO132: 木 | BP132: 金 | BQ132: 土 | BR132: 日 | BS132: 月 | BT132: 火 | BU132: 水 | BV132: 木 | BW132: 金 | BX132: =TEXT(WEEKDAY(+BX131),"aaa") -> 土 | BY132: =TEXT(WEEKDAY(+BY131),"aaa") -> 日 | BZ132: 月 | CA132: 火 | CB132: 水 | CC132: 木 | CD132: =IF(CD131="／","／",TEXT(WEEKDAY(+CD131),"aaa")) -> 金 | CE132: =IF(CE131="／","／",TEXT(WEEKDAY(+CE131),"aaa")) -> 土 | CF132: 日 | CG132: =TEXT(WEEKDAY(+CG131),"aaa") -> 月 | CH132: =TEXT(WEEKDAY(+CH131),"aaa") -> 火 | CI132: 水 | CJ132: 木 | CK132: 金 | CL132: 土 | CQ132: 現場閉所率 | CR132: =IFERROR(+CR131/CR130,"") -> 0.3571428571 | CS132: =IF(CR132="","",IF(COUNTIF(BB134:CF134,"○")>=COUNTIF(BB137:CF137,"◎"),"4週8休以上",IF(CR132>=0.285,"4週8休以上","週休2日未達成"))) -> 4週8休以上 | CW132: 曜日 | CX132: =TEXT(WEEKDAY(+CX131),"aaa") -> 金 | CY132: =TEXT(WEEKDAY(+CY131),"aaa") -> 土 | CZ132: 日 | DA132: 月 | DB132: 火 | DC132: =TEXT(WEEKDAY(+DC131),"aaa") -> 水 | DD132: =TEXT(WEEKDAY(+DD131),"aaa") -> 木 | DE132: 金 | DF132: 土 | DG132: 日 | DH132: 月 | DI132: 火 | DJ132: 水 | DK132: 木 | DL132: 金 | DM132: 土 | DN132: 日 | DO132: 月 | DP132: 火 | DQ132: 水 | DR132: 木 | DS132: 金 | DT132: =TEXT(WEEKDAY(+DT131),"aaa") -> 土 | DU132: =TEXT(WEEKDAY(+DU131),"aaa") -> 日 | DV132: 月 | DW132: 火 | DX132: 水 | DY132: 木 | DZ132: =IF(DZ131="／","／",TEXT(WEEKDAY(+DZ131),"aaa")) -> 金 | EA132: =IF(EA131="／","／",TEXT(WEEKDAY(+EA131),"aaa")) -> 土 | EB132: 日 | EC132: =TEXT(WEEKDAY(+EC131),"aaa") -> 月 | ED132: =TEXT(WEEKDAY(+ED131),"aaa") -> 火 | EE132: 水 | EF132: 木 | EG132: 金 | EH132: 土 | EM132: 現場閉所率 | EN132: =IFERROR(+EN131/EN130,"") -> 0.3571428571 | EO132: =IF(EN132="","",IF(COUNTIF(CX134:EB134,"○")>=COUNTIF(CX137:EB137,"◎"),"4週8休以上",IF(EN132>=0.285,"4週8休以上","週休2日未達成"))) -> 4週8休以上
C133: 行事 | AI133: =IF(D162="","",D162) ->  | AJ133: =IF(E162="","",E162) ->  | AK133: =IF(F162="","",F162) ->  | AL133: =IF(G162="","",G162) ->  | AM133: =IF(H162="","",H162) ->  | AN133: =IF(I162="","",I162) ->  | AR133: 実施 | AS133: 対象期間 | AT133: =IF(IF(MONTH(入力表!$E$6)=12,YEAR(入力表!$E$6)+1&"01",YEAR(入力表!$E$6)&TEXT(MONTH(入力表!$E$6)+1,"00"))>YEAR($D130)&TEXT(MONTH($D130),"00"),COUNTIF(D135:AH135,"")+COUNTIF(D135:AH135,"●"),"") ->  | AU133: =IF(COUNTIF(D131:AH131,"／")=0,"",IF(COUNTIF(D131:AH131,"／")=1,IF(AH135="／","","月末「／」漏れ"),IF(COUNTIF(D131:AH131,"／")=2,IF(AND(AG135="／",AH135="／"),"","月末「／」漏れ"),IF(AND(AF135="／",AG135="／",AH135="／"),"","月末「／」漏れ")))) ->  | BA133: 行事 | CG133: =IF(BB162="","",BB162) ->  | CH133: =IF(BC162="","",BC162) ->  | CI133: =IF(BD162="","",BD162) ->  | CJ133: =IF(BE162="","",BE162) ->  | CK133: =IF(BF162="","",BF162) ->  | CL133: =IF(BG162="","",BG162) ->  | CP133: 実施 | CQ133: 対象期間 | CR133: =IF(IF(MONTH($BL$5)=12,YEAR($BL$5)+1&"01",YEAR($BL$5)&TEXT(MONTH($BL$5)+1,"00"))>YEAR(BB130)&TEXT(MONTH(BB130),"00"),COUNTIF(BB135:CF135,"")+COUNTIF(BB135:CF135,"●"),"") -> 28 | CS133: =IF(COUNTIF(BB131:CF131,"／")=0,"",IF(COUNTIF(BB131:CF131,"／")=1,IF(CF135="／","","月末「／」漏れ"),IF(COUNTIF(BB131:CF131,"／")=2,IF(AND(CE135="／",CF135="／"),"","月末「／」漏れ"),IF(AND(CD135="／",CE135="／",CF135="／"),"","月末「／」漏れ")))) ->  | CW133: 行事 | EC133: =IF(CX162="","",CX162) ->  | ED133: =IF(CY162="","",CY162) ->  | EE133: =IF(CZ162="","",CZ162) ->  | EF133: =IF(DA162="","",DA162) ->  | EG133: =IF(DB162="","",DB162) ->  | EH133: =IF(DC162="","",DC162) ->  | EL133: 実施 | EM133: 対象期間 | EN133: =IF(IF(MONTH($BL$5)=12,YEAR($BL$5)+1&"01",YEAR($BL$5)&TEXT(MONTH($BL$5)+1,"00"))>YEAR($CX130)&TEXT(MONTH($CX130),"00"),COUNTIF(CX135:EB135,"")+COUNTIF(CX135:EB135,"●"),"") -> 28 | EO133: =IF(COUNTIF(CX131:EB131,"／")=0,"",IF(COUNTIF(CX131:EB131,"／")=1,IF(EB135="／","","月末「／」漏れ"),IF(COUNTIF(CX131:EB131,"／")=2,IF(AND(EA135="／",EB135="／"),"","月末「／」漏れ"),IF(AND(DZ135="／",EA135="／",EB135="／"),"","月末「／」漏れ")))) -> 
C134: 計画 | AI134: =IF(D163="","",D163) ->  | AJ134: =IF(E163="","",E163) ->  | AK134: =IF(F163="","",F163) ->  | AL134: =IF(G163="","",G163) ->  | AM134: =IF(H163="","",H163) ->  | AN134: =IF(I163="","",I163) ->  | AO134: =COUNTIF(D134:AH134,"○") -> 0 | AP134: =+AO134+AP105 -> 0 | AS134: 閉所日数 | AT134: =IF(IF(MONTH(入力表!$E$6)=12,YEAR(入力表!$E$6)+1&"01",YEAR(入力表!$E$6)&TEXT(MONTH(入力表!$E$6)+1,"00"))>YEAR($D130)&TEXT(MONTH($D130),"00"),COUNTIF(D135:AH135,"●"),"") ->  | AU134: =IF(OR(MONTH(D130)=1,MONTH(D130)=8,MONTH(D130)=12),IF(COUNTIF(D135:AH135,"／")>=3,"","算定除外「／」漏れ"),"") -> 算定除外「／」漏れ | BA134: 計画 | BC134: ○ | BD134: ○ | BJ134: ○ | BK134: ○ | BN134: ／ | BO134: ／ | BP134: ／ | BQ134: ○ | BR134: ○ | BX134: ○ | BY134: ○ | CE134: ○ | CF134: ○ | CG134: =IF(BB163="","",BB163) ->  | CL134: ○ | CM134: =COUNTIF(BB134:CF134,"○") -> 10 | CN134: =+CM134+CN105 -> 33 | CQ134: 閉所日数 | CR134: =IF(IF(MONTH($BL$5)=12,YEAR($BL$5)+1&"01",YEAR($BL$5)&TEXT(MONTH($BL$5)+1,"00"))>YEAR(BB130)&TEXT(MONTH(BB130),"00"),COUNTIF(BB135:CF135,"●"),"") -> 0 | CS134: =IF(OR(MONTH(BB130)=1,MONTH(BB130)=8,MONTH(BB130)=12),IF(COUNTIF(BB135:CF135,"／")>=3,"","算定除外「／」漏れ"),"") ->  | CW134: 計画 | CY134: ○ | CZ134: ○ | DF134: ○ | DG134: ○ | DJ134: ／ | DK134: ／ | DL134: ／ | DM134: ○ | DN134: ○ | DT134: ○ | DU134: ○ | EA134: ○ | EB134: ○ | EC134: =IF(CX163="","",CX163) ->  | EH134: ○ | EI134: =COUNTIF(CX134:EB134,"○") -> 10 | EJ134: =+EI134+EJ105 -> 33 | EM134: 閉所日数 | EN134: =IF(IF(MONTH($BL$5)=12,YEAR($BL$5)+1&"01",YEAR($BL$5)&TEXT(MONTH($BL$5)+1,"00"))>YEAR($CX130)&TEXT(MONTH($CX130),"00"),COUNTIF(CX135:EB135,"●"),"") -> 10 | EO134: =IF(OR(MONTH(CX130)=1,MONTH(CX130)=8,MONTH(CX130)=12),IF(COUNTIF(CX135:EB135,"／")>=3,"","算定除外「／」漏れ"),"") -> 
C135: 実施 | AI135: =IF(D164="","",D164) ->  | AJ135: =IF(E164="","",E164) ->  | AK135: =IF(F164="","",F164) ->  | AL135: =IF(G164="","",G164) ->  | AM135: =IF(H164="","",H164) ->  | AN135: =IF(I164="","",I164) ->  | AO135: =COUNTIF(D135:AH135,"●") -> 0 | AP135: =+AO135+AP106 -> 0 | AS135: 現場閉所率 | AT135: =IFERROR(+AT134/AT133,"") ->  | AU135: =IF(AT135="","",IF(COUNTIF(D135:AH135,"●")>=COUNTIF(D138:AH138,"◎"),"4週8休以上",IF(AT135>=0.285,"4週8休以上","週休2日未達成"))) ->  | BA135: 実施 | BN135: ／ | BO135: ／ | BP135: ／ | CG135: =IF(BB164="","",BB164) ->  | CH135: =IF(BC164="","",BC164) ->  | CI135: =IF(BD164="","",BD164) ->  | CJ135: =IF(BE164="","",BE164) ->  | CK135: =IF(BF164="","",BF164) ->  | CL135: =IF(BG164="","",BG164) ->  | CM135: =COUNTIF(BB135:CF135,"●") -> 0 | CN135: =+CM135+CN106 -> 0 | CQ135: 現場閉所率 | CR135: =IFERROR(+CR134/CR133,"") -> 0 | CS135: =IF(CR135="","",IF(COUNTIF(BB135:CF135,"●")>=COUNTIF(BB138:CF138,"◎"),"4週8休以上",IF(CR135>=0.285,"4週8休以上","週休2日未達成"))) -> 週休2日未達成 | CW135: 実施 | CY135: ● | CZ135: ● | DF135: ● | DG135: ● | DJ135: ／ | DK135: ／ | DL135: ／ | DM135: ● | DN135: ● | DT135: ● | DU135: ● | EA135: ● | EB135: ● | EC135: =IF(CX164="","",CX164) ->  | ED135: =IF(CY164="","",CY164) ->  | EE135: =IF(CZ164="","",CZ164) ->  | EF135: =IF(DA164="","",DA164) ->  | EG135: =IF(DB164="","",DB164) ->  | EH135: =IF(DC164="","",DC164) -> ● | EI135: =COUNTIF(CX135:EB135,"●") -> 10 | EJ135: =+EI135+EJ106 -> 34 | EM135: 現場閉所率 | EN135: =IFERROR(+EN134/EN133,"") -> 0.3571428571 | EO135: =IF(EN135="","",IF(COUNTIF(CX135:EB135,"●")>=COUNTIF(CX138:EB138,"◎"),"4週8休以上",IF(EN135>=0.285,"4週8休以上","週休2日未達成"))) -> 4週8休以上
D136: 1 | E136: 2 | F136: 3 | G136: 4 | H136: 5 | I136: 6 | J136: 7 | K136: 8 | L136: 9 | M136: 10 | N136: 11 | O136: 12 | P136: 13 | Q136: 14 | R136: 15 | S136: 16 | T136: 17 | U136: 18 | V136: 19 | W136: 20 | X136: 21 | Y136: 22 | Z136: 23 | AA136: 24 | AB136: 25 | AC136: 26 | AD136: 27 | AE136: 28 | AF136: 29 | AG136: 30 | AH136: 31 | AI136: 32 | AJ136: 33 | AK136: 34 | AL136: 35 | AM136: 36 | AN136: 37 | AS136: =AU135 ->  | BB136: 1 | BC136: 2 | BD136: 3 | BE136: 4 | BF136: 5 | BG136: 6 | BH136: 7 | BI136: 8 | BJ136: 9 | BK136: 10 | BL136: 11 | BM136: 12 | BN136: 13 | BO136: 14 | BP136: 15 | BQ136: 16 | BR136: 17 | BS136: 18 | BT136: 19 | BU136: 20 | BV136: 21 | BW136: 22 | BX136: 23 | BY136: 24 | BZ136: 25 | CA136: 26 | CB136: 27 | CC136: 28 | CD136: 29 | CE136: 30 | CF136: 31 | CG136: 32 | CH136: 33 | CI136: 34 | CJ136: 35 | CK136: 36 | CL136: 37 | CQ136: =CS135 -> 週休2日未達成 | CX136: 1 | CY136: 2 | CZ136: 3 | DA136: 4 | DB136: 5 | DC136: 6 | DD136: 7 | DE136: 8 | DF136: 9 | DG136: 10 | DH136: 11 | DI136: 12 | DJ136: 13 | DK136: 14 | DL136: 15 | DM136: 16 | DN136: 17 | DO136: 18 | DP136: 19 | DQ136: 20 | DR136: 21 | DS136: 22 | DT136: 23 | DU136: 24 | DV136: 25 | DW136: 26 | DX136: 27 | DY136: 28 | DZ136: 29 | EA136: 30 | EB136: 31 | EC136: 32 | ED136: 33 | EE136: 34 | EF136: 35 | EG136: 36 | EH136: 37 | EM136: =EO135 -> 4週8休以上
C137: 計画 | D137: =IF(D134="／","／",IF(OR(D132="土",D132="日"),"◎","")) ->  | E137: =IF(E134="／","／",IF(OR(E132="土",E132="日"),"◎","")) -> ◎ | F137: ◎ | L137: ◎ | M137: ◎ | S137: ◎ | T137: ◎ | Z137: ◎ | AA137: ◎ | AD137: =IF(AD134="／","／",IF(OR(AD132="土",AD132="日"),"◎","")) ->  | AE137: =IF(AE134="／","／",IF(OR(AE132="土",AE132="日"),"◎","")) ->  | AG137: ◎ | AH137: ◎ | AN137: ◎ | AS137: =AT139 ->  | BA137: 計画 | BB137: =IF(BB134="／","／",IF(OR(BB132="土",BB132="日"),"◎","")) ->  | BC137: ◎ | BD137: ◎ | BJ137: ◎ | BK137: ◎ | BN137: =IF(BN134="／","／",IF(OR(BN132="土",BN132="日"),"◎","")) -> ／ | BO137: =IF(BO134="／","／",IF(OR(BO132="土",BO132="日"),"◎","")) -> ／ | BP137: ／ | BQ137: ◎ | BR137: ◎ | BX137: ◎ | BY137: ◎ | CB137: =IF(CB134="／","／",IF(OR(CB132="土",CB132="日"),"◎","")) ->  | CC137: =IF(CC134="／","／",IF(OR(CC132="土",CC132="日"),"◎","")) ->  | CE137: ◎ | CF137: ◎ | CL137: ◎ | CQ137: =CR139 -> OUT | CW137: 計画 | CX137: =IF(CX134="／","／",IF(OR(CX132="土",CX132="日"),"◎","")) ->  | CY137: ◎ | CZ137: ◎ | DF137: ◎ | DG137: ◎ | DJ137: =IF(DJ134="／","／",IF(OR(DJ132="土",DJ132="日"),"◎","")) -> ／ | DK137: =IF(DK134="／","／",IF(OR(DK132="土",DK132="日"),"◎","")) -> ／ | DL137: ／ | DM137: ◎ | DN137: ◎ | DT137: ◎ | DU137: ◎ | DX137: =IF(DX134="／","／",IF(OR(DX132="土",DX132="日"),"◎","")) ->  | DY137: =IF(DY134="／","／",IF(OR(DY132="土",DY132="日"),"◎","")) ->  | EA137: ◎ | EB137: ◎ | EH137: ◎ | EM137: =EN139 -> OK
C138: 実施 | D138: =IF(D135="／","／",IF(OR(D132="土",D132="日"),"◎","")) ->  | E138: =IF(E135="／","／",IF(OR(E132="土",E132="日"),"◎","")) -> ◎ | F138: ◎ | L138: ◎ | M138: ◎ | S138: ◎ | T138: ◎ | Z138: ◎ | AA138: ◎ | AG138: ◎ | AH138: ◎ | AN138: ◎ | BA138: 実施 | BB138: =IF(BB135="／","／",IF(OR(BB132="土",BB132="日"),"◎","")) ->  | BC138: =IF(BC135="／","／",IF(OR(BC132="土",BC132="日"),"◎","")) -> ◎ | BD138: ◎ | BJ138: ◎ | BK138: ◎ | BN138: ／ | BO138: ／ | BP138: ／ | BQ138: ◎ | BR138: ◎ | BX138: ◎ | BY138: ◎ | CE138: ◎ | CF138: ◎ | CL138: ◎ | CW138: 実施 | CX138: =IF(CX135="／","／",IF(OR(CX132="土",CX132="日"),"◎","")) ->  | CY138: =IF(CY135="／","／",IF(OR(CY132="土",CY132="日"),"◎","")) -> ◎ | CZ138: ◎ | DF138: ◎ | DG138: ◎ | DJ138: ／ | DK138: ／ | DL138: ／ | DM138: ◎ | DN138: ◎ | DT138: ◎ | DU138: ◎ | EA138: ◎ | EB138: ◎ | EH138: ◎
C139: 完全 | D139: =IF(WEEKDAY(DATE(YEAR(D130),MONTH(D130),1),2)=1,DATE(YEAR(D130),MONTH(D130),1),EOMONTH(D130,-1)-MOD(WEEKDAY(EOMONTH(D130,-1),2)+6,7)) -> 2025-07-28 | E139: ～ | F139: =DATE(YEAR(D130),MONTH(D130),1)+MOD(7-WEEKDAY(DATE(YEAR(D130),MONTH(D130),1),2),7) -> 2025-08-03 | G139: =IF(DAY(D139)=1,IF(COUNTIF(D135:J135,"／")>=1,"対象外",IF(COUNTIF(INDEX(D135:AN135,DAY(D139)):INDEX(D135:AN135,HLOOKUP(F139,D131:AN136,6,FALSE)),"")+COUNTIF(INDEX(D135:AN135,DAY(D139)):INDEX(D135:AN135,HLOOKUP(F139,D131:AN136,6,FALSE)),"●")=7,IF(COUNTIF(INDEX(D135:AN135,DAY(D139)):INDEX(D135:AN135,HLOOKUP(F139,D131:AN136,6,FALSE)),"●")>=2,"OK","OUT"),IF(COUNTIF(INDEX(D135:AN135,DAY(D139)):INDEX(D135:AN135,HLOOKUP(F139,D131:AN136,6,FALSE)),"●")>=COUNTIF(INDEX(D138:AN138,DAY(D139)):INDEX(D138:AN138,HLOOKUP(F139,D131:AN136,6,FALSE)),"○"),"OK","OUT"))),IF(AND(AK110="",AE110=""),Y110,IF(AK110="",AE110,AK110))) -> OUT | J139: =F139+1 -> 2025-08-04 | K139: ～ | L139: =F139+7 -> 2025-08-10 | M139: =IF(COUNTIF(INDEX(D135:AN135,DAY(J139)):INDEX(D135:AN135,HLOOKUP(L139,D131:AN136,6,FALSE)),"")+COUNTIF(INDEX(D135:AN135,DAY(J139)):INDEX(D135:AN135,HLOOKUP(L139,D131:AN136,6,FALSE)),"●")=7,IF(COUNTIF(INDEX(D135:AN135,DAY(J139)):INDEX(D135:AN135,HLOOKUP(L139,D131:AN136,6,FALSE)),"●")>=2,"OK","OUT"),"対象外") -> OUT | P139: =L139+1 -> 2025-08-11 | Q139: ～ | R139: =L139+7 -> 2025-08-17 | S139: =IF(COUNTIF(INDEX(D135:AN135,DAY(P139)):INDEX(D135:AN135,HLOOKUP(R139,D131:AN136,6,FALSE)),"")+COUNTIF(INDEX(D135:AN135,DAY(P139)):INDEX(D135:AN135,HLOOKUP(R139,D131:AN136,6,FALSE)),"●")=7,IF(COUNTIF(INDEX(D135:AN135,DAY(P139)):INDEX(D135:AN135,HLOOKUP(R139,D131:AN136,6,FALSE)),"●")>=2,"OK","OUT"),"対象外") -> OUT | V139: =R139+1 -> 2025-08-18 | W139: ～ | X139: =R139+7 -> 2025-08-24 | Y139: =IF(COUNTIF(INDEX(D135:AN135,DAY(V139)):INDEX(D135:AN135,HLOOKUP(X139,D131:AN136,6,FALSE)),"")+COUNTIF(INDEX(D135:AN135,DAY(V139)):INDEX(D135:AN135,HLOOKUP(X139,D131:AN136,6,FALSE)),"●")=7,IF(COUNTIF(INDEX(D135:AN135,DAY(V139)):INDEX(D135:AN135,HLOOKUP(X139,D131:AN136,6,FALSE)),"●")>=2,"OK","OUT"),"対象外") -> OUT | AB139: =IF(AND(DAY(X139+7)<23,DAY(X139+7)>=7),"",X139+1) -> 2025-08-25 | AC139: =IF(AND(DAY(X139+7)<23,DAY(X139+7)>=7),"","～") -> ～ | AD139: =IF(AND(DAY(X139+7)<23,DAY(X139+7)>=7),"",X139+7) -> 2025-08-31 | AE139: =IF(AND(DAY(X139+7)<23,DAY(X139+7)>=7),"",IF(COUNTIF(INDEX(D135:AN135,DAY(AB139)):INDEX(D135:AN135,HLOOKUP(AD139,D131:AN136,6,FALSE)),"")+COUNTIF(INDEX(D135:AN135,DAY(AB139)):INDEX(D135:AN135,HLOOKUP(AD139,D131:AN136,6,FALSE)),"●")=7,IF(COUNTIF(INDEX(D135:AN135,DAY(AB139)):INDEX(D135:AN135,HLOOKUP(AD139,D131:AN136,6,FALSE)),"●")>=2,"OK","OUT"),IF(COUNTIF(INDEX(D135:AN135,DAY(AB139)):INDEX(D135:AN135,HLOOKUP(AD139,D131:AN136,6,FALSE)),"")+COUNTIF(INDEX(D135:AN135,DAY(AB139)):INDEX(D135:AN135,HLOOKUP(AD139,D131:AN136,6,FALSE)),"●")>7,"「／」漏れ","対象外"))) -> OUT | AH139: =IF(AE139="","",IF(AND(DAY(AD139+7)<23,DAY(AD139+7)>=7),"",AD139+1)) ->  | AI139: =IF(AE139="","",IF(AND(DAY(AD139+7)<23,DAY(AD139+7)>=7),"","～")) ->  | AJ139: =IF(AE139="","",IF(AND(DAY(AD139+7)<23,DAY(AD139+7)>=7),"",AD139+7)) ->  | AK139: =IF(AE139="","",IF(AND(DAY(AD139+7)<23,DAY(AD139+7)>=7),"",IF(COUNTIF(INDEX(D135:AN135,DAY(AH139)):INDEX(D135:AN135,HLOOKUP(AJ139,D131:AN136,6,FALSE)),"")+COUNTIF(INDEX(D135:AN135,DAY(AH139)):INDEX(D135:AN135,HLOOKUP(AJ139,D131:AN136,6,FALSE)),"●")=7,IF(COUNTIF(INDEX(D135:AN135,DAY(AH139)):INDEX(D135:AN135,HLOOKUP(AJ139,D131:AN136,6,FALSE)),"●")>=2,"OK","OUT"),IF(COUNTIF(INDEX(D135:AN135,HLOOKUP(AH139,D131:AN136,6,FALSE)):INDEX(D135:AN135,HLOOKUP(AJ139,D131:AN136,6,FALSE)),"")+COUNTIF(INDEX(D135:AN135,HLOOKUP(AH139,D131:AN136,6,FALSE)):INDEX(D135:AN135,HLOOKUP(AJ139,D131:AN136,6,FALSE)),"●")>7,"「／」漏れ","対象外")))) ->  | AS139: 完全週休二日 | AT139: =IF(AT130="","",IF(COUNTIF(D139:AN139,"OUT")>=1,"OUT","OK")) ->  | BA139: 完全 | BB139: =IF(WEEKDAY(DATE(YEAR(BB130),MONTH(BB130),1),2)=1,DATE(YEAR(BB130),MONTH(BB130),1),EOMONTH(BB130,-1)-MOD(WEEKDAY(EOMONTH(BB130,-1),2)+6,7)) -> 2025-07-28 | BC139: ～ | BD139: =DATE(YEAR(BB130),MONTH(BB130),1)+MOD(7-WEEKDAY(DATE(YEAR(BB130),MONTH(BB130),1),2),7) -> 2025-08-03 | BE139: =IF(DAY(BB139)=1,IF(COUNTIF(BB135:BH135,"／")>=1,"対象外",IF(COUNTIF(INDEX(BB135:CL135,DAY(BB139)):INDEX(BB135:CL135,HLOOKUP(BD139,BB131:CL136,6,FALSE)),"")+COUNTIF(INDEX(BB135:CL135,DAY(BB139)):INDEX(BB135:CL135,HLOOKUP(BD139,BB131:CL136,6,FALSE)),"●")=7,IF(COUNTIF(INDEX(BB135:CL135,DAY(BB139)):INDEX(BB135:CL135,HLOOKUP(BD139,BB131:CL136,6,FALSE)),"●")>=2,"OK","OUT"),IF(COUNTIF(INDEX(BB135:CL135,DAY(BB139)):INDEX(BB135:CL135,HLOOKUP(BD139,BB131:CL136,6,FALSE)),"●")>=COUNTIF(INDEX(BB138:CL138,DAY(BB139)):INDEX(BB138:CL138,HLOOKUP(BD139,BB131:CL136,6,FALSE)),"○"),"OK","OUT"))),IF(AND(CI110="",CC110=""),BW110,IF(CI110="",CC110,CI110))) -> OUT | BH139: =BD139+1 -> 2025-08-04 | BI139: ～ | BJ139: =BD139+7 -> 2025-08-10 | BK139: =IF(COUNTIF(INDEX(BB135:CL135,DAY(BH139)):INDEX(BB135:CL135,HLOOKUP(BJ139,BB131:CL136,6,FALSE)),"")+COUNTIF(INDEX(BB135:CL135,DAY(BH139)):INDEX(BB135:CL135,HLOOKUP(BJ139,BB131:CL136,6,FALSE)),"●")=7,IF(COUNTIF(INDEX(BB135:CL135,DAY(BH139)):INDEX(BB135:CL135,HLOOKUP(BJ139,BB131:CL136,6,FALSE)),"●")>=2,"OK","OUT"),"対象外") -> OUT | BN139: =BJ139+1 -> 2025-08-11 | BO139: ～ | BP139: =BJ139+7 -> 2025-08-17 | BQ139: =IF(COUNTIF(INDEX(BB135:CL135,DAY(BN139)):INDEX(BB135:CL135,HLOOKUP(BP139,BB131:CL136,6,FALSE)),"")+COUNTIF(INDEX(BB135:CL135,DAY(BN139)):INDEX(BB135:CL135,HLOOKUP(BP139,BB131:CL136,6,FALSE)),"●")=7,IF(COUNTIF(INDEX(BB135:CL135,DAY(BN139)):INDEX(BB135:CL135,HLOOKUP(BP139,BB131:CL136,6,FALSE)),"●")>=2,"OK","OUT"),"対象外") -> 対象外 | BT139: =BP139+1 -> 2025-08-18 | BU139: ～ | BV139: =BP139+7 -> 2025-08-24 | BW139: =IF(COUNTIF(INDEX(BB135:CL135,DAY(BT139)):INDEX(BB135:CL135,HLOOKUP(BV139,BB131:CL136,6,FALSE)),"")+COUNTIF(INDEX(BB135:CL135,DAY(BT139)):INDEX(BB135:CL135,HLOOKUP(BV139,BB131:CL136,6,FALSE)),"●")=7,IF(COUNTIF(INDEX(BB135:CL135,DAY(BT139)):INDEX(BB135:CL135,HLOOKUP(BV139,BB131:CL136,6,FALSE)),"●")>=2,"OK","OUT"),"対象外") -> OUT | BZ139: =IF(AND(DAY(BV139+7)<23,DAY(BV139+7)>=7),"",BV139+1) -> 2025-08-25 | CA139: =IF(AND(DAY(BV139+7)<23,DAY(BV139+7)>=7),"","～") -> ～ | CB139: =IF(AND(DAY(BV139+7)<23,DAY(BV139+7)>=7),"",BV139+7) -> 2025-08-31 | CC139: =IF(AND(DAY(BV139+7)<23,DAY(BV139+7)>=7),"",IF(COUNTIF(INDEX(BB135:CL135,DAY(BZ139)):INDEX(BB135:CL135,HLOOKUP(CB139,BB131:CL136,6,FALSE)),"")+COUNTIF(INDEX(BB135:CL135,DAY(BZ139)):INDEX(BB135:CL135,HLOOKUP(CB139,BB131:CL136,6,FALSE)),"●")=7,IF(COUNTIF(INDEX(BB135:CL135,DAY(BZ139)):INDEX(BB135:CL135,HLOOKUP(CB139,BB131:CL136,6,FALSE)),"●")>=2,"OK","OUT"),IF(COUNTIF(INDEX(BB135:CL135,DAY(BZ139)):INDEX(BB135:CL135,HLOOKUP(CB139,BB131:CL136,6,FALSE)),"")+COUNTIF(INDEX(BB135:CL135,DAY(BZ139)):INDEX(BB135:CL135,HLOOKUP(CB139,BB131:CL136,6,FALSE)),"●")>7,"「／」漏れ","対象外"))) -> OUT | CF139: =IF(CC139="","",IF(AND(DAY(CB139+7)<23,DAY(CB139+7)>=7),"",CB139+1)) ->  | CG139: =IF(CC139="","",IF(AND(DAY(CB139+7)<23,DAY(CB139+7)>=7),"","～")) ->  | CH139: =IF(CC139="","",IF(AND(DAY(CB139+7)<23,DAY(CB139+7)>=7),"",CB139+7)) ->  | CI139: =IF(CC139="","",IF(AND(DAY(CB139+7)<23,DAY(CB139+7)>=7),"",IF(COUNTIF(INDEX(BB135:CL135,DAY(CF139)):INDEX(BB135:CL135,HLOOKUP(CH139,BB131:CL136,6,FALSE)),"")+COUNTIF(INDEX(BB135:CL135,DAY(CF139)):INDEX(BB135:CL135,HLOOKUP(CH139,BB131:CL136,6,FALSE)),"●")=7,IF(COUNTIF(INDEX(BB135:CL135,DAY(CF139)):INDEX(BB135:CL135,HLOOKUP(CH139,BB131:CL136,6,FALSE)),"●")>=2,"OK","OUT"),IF(COUNTIF(INDEX(BB135:CL135,HLOOKUP(CF139,BB131:CL136,6,FALSE)):INDEX(BB135:CL135,HLOOKUP(CH139,BB131:CL136,6,FALSE)),"")+COUNTIF(INDEX(BB135:CL135,HLOOKUP(CF139,BB131:CL136,6,FALSE)):INDEX(BB135:CL135,HLOOKUP(CH139,BB131:CL136,6,FALSE)),"●")>7,"「／」漏れ","対象外")))) ->  | CQ139: 完全週休二日 | CR139: =IF(CR130="","",IF(COUNTIF(BB139:CL139,"OUT")>=1,"OUT","OK")) -> OUT | CW139: 完全 | CX139: =IF(WEEKDAY(DATE(YEAR(CX130),MONTH(CX130),1),2)=1,DATE(YEAR(CX130),MONTH(CX130),1),EOMONTH(CX130,-1)-MOD(WEEKDAY(EOMONTH(CX130,-1),2)+6,7)) -> 2025-07-28 | CY139: ～ | CZ139: =DATE(YEAR(CX130),MONTH(CX130),1)+MOD(7-WEEKDAY(DATE(YEAR(CX130),MONTH(CX130),1),2),7) -> 2025-08-03 | DA139: =IF(DAY(CX139)=1,IF(COUNTIF(CX135:DD135,"／")>=1,"対象外",IF(COUNTIF(INDEX(CX135:EH135,DAY(CX139)):INDEX(CX135:EH135,HLOOKUP(CZ139,CX131:EH136,6,FALSE)),"")+COUNTIF(INDEX(CX135:EH135,DAY(CX139)):INDEX(CX135:EH135,HLOOKUP(CZ139,CX131:EH136,6,FALSE)),"●")=7,IF(COUNTIF(INDEX(CX135:EH135,DAY(CX139)):INDEX(CX135:EH135,HLOOKUP(CZ139,CX131:EH136,6,FALSE)),"●")>=2,"OK","OUT"),IF(COUNTIF(INDEX(CX135:EH135,DAY(CX139)):INDEX(CX135:EH135,HLOOKUP(CZ139,CX131:EH136,6,FALSE)),"●")>=COUNTIF(INDEX(CX138:EH138,DAY(CX139)):INDEX(CX138:EH138,HLOOKUP(CZ139,CX131:EH136,6,FALSE)),"○"),"OK","OUT"))),IF(AND(EE110="",DY110=""),DS110,IF(EE110="",DY110,EE110))) -> OK | DD139: =CZ139+1 -> 2025-08-04 | DE139: ～ | DF139: =CZ139+7 -> 2025-08-10 | DG139: =IF(COUNTIF(INDEX(CX135:EH135,DAY(DD139)):INDEX(CX135:EH135,HLOOKUP(DF139,CX131:EH136,6,FALSE)),"")+COUNTIF(INDEX(CX135:EH135,DAY(DD139)):INDEX(CX135:EH135,HLOOKUP(DF139,CX131:EH136,6,FALSE)),"●")=7,IF(COUNTIF(INDEX(CX135:EH135,DAY(DD139)):INDEX(CX135:EH135,HLOOKUP(DF139,CX131:EH136,6,FALSE)),"●")>=2,"OK","OUT"),"対象外") -> OK | DJ139: =DF139+1 -> 2025-08-11 | DK139: ～ | DL139: =DF139+7 -> 2025-08-17 | DM139: =IF(COUNTIF(INDEX(CX135:EH135,DAY(DJ139)):INDEX(CX135:EH135,HLOOKUP(DL139,CX131:EH136,6,FALSE)),"")+COUNTIF(INDEX(CX135:EH135,DAY(DJ139)):INDEX(CX135:EH135,HLOOKUP(DL139,CX131:EH136,6,FALSE)),"●")=7,IF(COUNTIF(INDEX(CX135:EH135,DAY(DJ139)):INDEX(CX135:EH135,HLOOKUP(DL139,CX131:EH136,6,FALSE)),"●")>=2,"OK","OUT"),"対象外") -> 対象外 | DP139: =DL139+1 -> 2025-08-18 | DQ139: ～ | DR139: =DL139+7 -> 2025-08-24 | DS139: =IF(COUNTIF(INDEX(CX135:EH135,DAY(DP139)):INDEX(CX135:EH135,HLOOKUP(DR139,CX131:EH136,6,FALSE)),"")+COUNTIF(INDEX(CX135:EH135,DAY(DP139)):INDEX(CX135:EH135,HLOOKUP(DR139,CX131:EH136,6,FALSE)),"●")=7,IF(COUNTIF(INDEX(CX135:EH135,DAY(DP139)):INDEX(CX135:EH135,HLOOKUP(DR139,CX131:EH136,6,FALSE)),"●")>=2,"OK","OUT"),"対象外") -> OK | DV139: =IF(AND(DAY(DR139+7)<23,DAY(DR139+7)>=7),"",DR139+1) -> 2025-08-25 | DW139: =IF(AND(DAY(DR139+7)<23,DAY(DR139+7)>=7),"","～") -> ～ | DX139: =IF(AND(DAY(DR139+7)<23,DAY(DR139+7)>=7),"",DR139+7) -> 2025-08-31 | DY139: =IF(AND(DAY(DR139+7)<23,DAY(DR139+7)>=7),"",IF(COUNTIF(INDEX(CX135:EH135,DAY(DV139)):INDEX(CX135:EH135,HLOOKUP(DX139,CX131:EH136,6,FALSE)),"")+COUNTIF(INDEX(CX135:EH135,DAY(DV139)):INDEX(CX135:EH135,HLOOKUP(DX139,CX131:EH136,6,FALSE)),"●")=7,IF(COUNTIF(INDEX(CX135:EH135,DAY(DV139)):INDEX(CX135:EH135,HLOOKUP(DX139,CX131:EH136,6,FALSE)),"●")>=2,"OK","OUT"),IF(COUNTIF(INDEX(CX135:EH135,DAY(DV139)):INDEX(CX135:EH135,HLOOKUP(DX139,CX131:EH136,6,FALSE)),"")+COUNTIF(INDEX(CX135:EH135,DAY(DV139)):INDEX(CX135:EH135,HLOOKUP(DX139,CX131:EH136,6,FALSE)),"●")>7,"「／」漏れ","対象外"))) -> OK | EB139: =IF(DY139="","",IF(AND(DAY(DX139+7)<23,DAY(DX139+7)>=7),"",DX139+1)) ->  | EC139: =IF(DY139="","",IF(AND(DAY(DX139+7)<23,DAY(DX139+7)>=7),"","～")) ->  | ED139: =IF(DY139="","",IF(AND(DAY(DX139+7)<23,DAY(DX139+7)>=7),"",DX139+7)) ->  | EE139: =IF(DY139="","",IF(AND(DAY(DX139+7)<23,DAY(DX139+7)>=7),"",IF(COUNTIF(INDEX(CX135:EH135,DAY(EB139)):INDEX(CX135:EH135,HLOOKUP(ED139,CX131:EH136,6,FALSE)),"")+COUNTIF(INDEX(CX135:EH135,DAY(EB139)):INDEX(CX135:EH135,HLOOKUP(ED139,CX131:EH136,6,FALSE)),"●")=7,IF(COUNTIF(INDEX(CX135:EH135,DAY(EB139)):INDEX(CX135:EH135,HLOOKUP(ED139,CX131:EH136,6,FALSE)),"●")>=2,"OK","OUT"),IF(COUNTIF(INDEX(CX135:EH135,HLOOKUP(EB139,CX131:EH136,6,FALSE)):INDEX(CX135:EH135,HLOOKUP(ED139,CX131:EH136,6,FALSE)),"")+COUNTIF(INDEX(CX135:EH135,HLOOKUP(EB139,CX131:EH136,6,FALSE)):INDEX(CX135:EH135,HLOOKUP(ED139,CX131:EH136,6,FALSE)),"●")>7,"「／」漏れ","対象外")))) ->  | EM139: 完全週休二日 | EN139: =IF(EN130="","",IF(COUNTIF(CX139:EH139,"OUT")>=1,"OUT","OK")) -> OK
A141: =IF(AND(NOT($AT$130=""),$AT$159=""),"対象期間","") -> 
A142: =IF(AND(NOT($AT$130=""),$AT$159=""),"対象期間","") ->  | C142: ※１工事着手日：始期日以降に準備工事（現場事務所の建設・測量等）、工場製作を含む工事における工場製作工に着手した日 | AR142: 工事全体の確認 | BA142: ※１工事着手日：始期日以降に準備工事（現場事務所の建設・測量等）、工場製作を含む工事における工場製作工に着手した日 | CP142: 工事全体の確認 | CW142: ※１工事着手日：始期日以降に準備工事（現場事務所の建設・測量等）、工場製作を含む工事における工場製作工に着手した日 | EL142: 工事全体の確認
C143: ※２作業完了日：工事施工範囲内で全ての作業（後片付けを含む）が完了した日 （工事現場事務所は工事施工範囲外に設置するため、ここでいう後片付けの対象に含まない） | AR143: 計画 | AS143: 全対象期間 | AT143: =IFERROR(AT114+AT130,"") ->  | BA143: ※２作業完了日：工事施工範囲内で全ての作業（後片付けを含む）が完了した日 （工事現場事務所は工事施工範囲外に設置するため、ここでいう後片付けの対象に含まない） | CP143: 計画 | CQ143: 全対象期間 | CR143: =IFERROR(CR114+CR130,"") ->  | CW143: ※２作業完了日：工事施工範囲内で全ての作業（後片付けを含む）が完了した日 （工事現場事務所は工事施工範囲外に設置するため、ここでいう後片付けの対象に含まない） | EL143: 計画 | EM143: 全対象期間 | EN143: =IFERROR(EN114+EN130,"") -> 109
AS144: 全現場閉所日数 | AT144: =IFERROR(AT115+AT131,"") ->  | CQ144: 全現場閉所日数 | CR144: =IFERROR(CR115+CR131,"") ->  | EM144: 全現場閉所日数 | EN144: =IFERROR(EN115+EN131,"") -> 34
C145: 【算定除外期間】：夏季休暇（8月13日～8月15日）、年末年始（12月29日～翌年1月3日）は算定期間の分母・分子に含めない | AS145: 現場閉所率 | AT145: =IFERROR(+AT144/AT143,"") ->  | AU145: =IF(AT145>=0.285,"4週8休以上","週休2日未達成") -> 4週8休以上 | BA145: 【算定除外期間】：夏季休暇（8月13日～8月15日）、年末年始（12月29日～翌年1月3日）は算定期間の分母・分子に含めない | CQ145: 現場閉所率 | CR145: =IFERROR(+CR144/CR143,"") ->  | CS145: =IF(CR145>=0.285,"4週8休以上","週休2日未達成") -> 4週8休以上 | CW145: 【算定除外期間】：夏季休暇（8月13日～8月15日）、年末年始（12月29日～翌年1月3日）は算定期間の分母・分子に含めない | EM145: 現場閉所率 | EN145: =IFERROR(+EN144/EN143,"") -> 0.3119266055 | EO145: =IF(EN145>=0.285,"4週8休以上","週休2日未達成") -> 4週8休以上
C146: ※３工事期間の全ての月において、達成状況を確認し、一度でも達成できない月があれば、４週８休以上（月単位）は「未達成」となり、補正の対象とならない。 月によっては、土日を全て閉所しても現場閉所率が28.5％に満たない場合があるが、その月の対象期間の土日日数以上閉所していれば達成とみなす。 ※４工事対象期間のうち、一度でも完全週休２日（月～日で２日以上の現場閉所）を達成できなければ、 完全週休２日は「未達成」となり、補正の対象とならない。 なお、工期始期・終期、年末年始、夏季休暇などにより、７日間に満たない期間は完全週休２日の達成判断の対象外とする。 | AR146: 実施 | AS146: 全対象期間 | AT146: =IFERROR(AT117+AT133,"") ->  | BA146: ※３工事期間の全ての月において、達成状況を確認し、一度でも達成できない月があれば、４週８休以上（月単位）は「未達成」となり、補正の対象とならない。 月によっては、土日を全て閉所しても現場閉所率が28.5％に満たない場合があるが、その月の対象期間の土日日数以上閉所していれば達成とみなす。 ※４工事対象期間のうち、一度でも完全週休２日（月～日で２日以上の現場閉所）を達成できなければ、 完全週休２日は「未達成」となり、補正の対象とならない。 なお、工期始期・終期、年末年始、夏季休暇などにより、７日間に満たない期間は完全週休２日の達成判断の対象外とする。 | CP146: 実施 | CQ146: 全対象期間 | CR146: =IFERROR(CR117+CR133,"") ->  | CW146: ※３工事期間の全ての月において、達成状況を確認し、一度でも達成できない月があれば、４週８休以上（月単位）は「未達成」となり、補正の対象とならない。 月によっては、土日を全て閉所しても現場閉所率が28.5％に満たない場合があるが、その月の対象期間の土日日数以上閉所していれば達成とみなす。 ※４工事対象期間のうち、一度でも完全週休２日（月～日で２日以上の現場閉所）を達成できなければ、 完全週休２日は「未達成」となり、補正の対象とならない。 なお、工期始期・終期、年末年始、夏季休暇などにより、７日間に満たない期間は完全週休２日の達成判断の対象外とする。 | EL146: 実施 | EM146: 全対象期間 | EN146: =IFERROR(EN117+EN133,"") -> 109
AS147: 全現場閉所日数 | AT147: =IFERROR(AT118+AT134,"") ->  | CQ147: 全現場閉所日数 | CR147: =IFERROR(CR118+CR134,"") ->  | EM147: 全現場閉所日数 | EN147: =IFERROR(EN118+EN134,"") -> 35
AS148: 現場閉所率 | AT148: =IFERROR(+AT147/AT146,"") ->  | AU148: =IF(AT148>=0.285,"4週8休以上","週休2日未達成") -> 4週8休以上 | CQ148: 現場閉所率 | CR148: =IFERROR(+CR147/CR146,"") ->  | CS148: =IF(CR148>=0.285,"4週8休以上","週休2日未達成") -> 4週8休以上 | EM148: 現場閉所率 | EN148: =IFERROR(+EN147/EN146,"") -> 0.3211009174 | EO148: =IF(EN148>=0.285,"4週8休以上","週休2日未達成") -> 4週8休以上
AS149: 閉所（月単位） | AT149: =IFERROR(COUNTIF(AS$14:$AS139,"4週8休以上")/(COUNTIF(AS$14:$AS139,"4週8休以上")+COUNTIF(AS$14:$AS139,"週休2日未達成")),"") ->  | AU149: =IF(OR(AT149=100%,AT149=""),"達成","未達成") -> 達成 | CQ149: 閉所（月単位） | CR149: =IFERROR(COUNTIF(CQ$14:$CQ139,"4週8休以上")/(COUNTIF(CQ$14:$CQ139,"4週8休以上")+COUNTIF(CQ$14:$CQ139,"週休2日未達成")),"") -> 0 | CS149: =IF(OR(CR149=100%,CR149=""),"達成","未達成") -> 未達成 | EM149: 閉所（月単位） | EN149: =IFERROR(COUNTIF($EM$14:EM139,"4週8休以上")/(COUNTIF($EM$14:EM139,"4週8休以上")+COUNTIF($EM$14:EM139,"週休2日未達成")),"") -> 1 | EO149: =IF(OR(EN149=100%,EN149=""),"達成","未達成") -> 達成
AS150: 完全週休二日 | AT150: =IF(COUNTIF(AS$14:$AS139,"OUT")>=1,"OUT","OK") -> OK | AU150: =IF(AT150="OK","達成","未達成") -> 達成 | CQ150: 完全週休二日 | CR150: =IF(COUNTIF(CQ$14:$CQ139,"OUT")>=1,"OUT","OK") -> OUT | CS150: =IF(CR150="OK","達成","未達成") -> 未達成 | EM150: 完全週休二日 | EN150: =IF(COUNTIF($EM$14:EM139,"OUT")>=1,"OUT","OK") -> OK | EO150: =IF(EN150="OK","達成","未達成") -> 達成
C151: ※必要に応じて各月の完全週休2日（月～日）の達成判定の行を修正してください。（曜日に合わせて修正） | BA151: ※必要に応じて各月の完全週休2日（月～日）の達成判定の行を修正してください。（曜日に合わせて修正） | CW151: ※必要に応じて各月の完全週休2日（月～日）の達成判定の行を修正してください。（曜日に合わせて修正）
C157: 算定除外期間以外の祝日（ＧＷ含む）は、算定期間（分母）の対象＝現場閉所の場合は分子にカウントして現場閉所率を算定 | BA157: 算定除外期間以外の祝日（ＧＷ含む）は、算定期間（分母）の対象＝現場閉所の場合は分子にカウントして現場閉所率を算定 | CW157: 算定除外期間以外の祝日（ＧＷ含む）は、算定期間（分母）の対象＝現場閉所の場合は分子にカウントして現場閉所率を算定
A159: =IF($AT$159="","","対象期間") ->  | C159: 月 | D159: =DATE(YEAR(D130),MONTH(D130)+1,1) -> 2025-09-01 | AI159: =DATE(YEAR(D159),MONTH(D159)+1,1) -> 2025-10-01 | AO159: 現場閉所計 | AP159: 現場閉所累計 | AR159: 計画 | AS159: 対象期間 | AT159: =IF(IF(MONTH(入力表!$E$6)=12,YEAR(入力表!$E$6)+1&"01",YEAR(入力表!$E$6)&TEXT(MONTH(入力表!$E$6)+1,"00"))>YEAR($D159)&TEXT(MONTH($D159),"00"),COUNTIF(D163:AH163,"")+COUNTIF(D163:AH163,"○"),"") ->  | AU159: =IF(COUNTIF(D160:AH160,"／")=0,"",IF(COUNTIF(D160:AH160,"／")=1,IF(AH163="／","","月末「／」漏れ"),IF(COUNTIF(D160:AH160,"／")=2,IF(AND(AG163="／",AH163="／"),"","月末「／」漏れ"),IF(AND(AF163="／",AG163="／",AH163="／"),"","月末「／」漏れ")))) -> 月末「／」漏れ | BA159: 月 | BB159: =DATE(YEAR(BB130),MONTH(BB130)+1,1) -> 2025-09-01 | CG159: =DATE(YEAR(BB159),MONTH(BB159)+1,1) -> 2025-10-01 | CM159: 現場閉所計 | CN159: 現場閉所累計 | CP159: 計画 | CQ159: 対象期間 | CR159: =IF(IF(MONTH($BL$5)=12,YEAR($BL$5)+1&"01",YEAR($BL$5)&TEXT(MONTH($BL$5)+1,"00"))>YEAR(BB159)&TEXT(MONTH(BB159),"00"),COUNTIF(BB163:CF163,"")+COUNTIF(BB163:CF163,"○"),"") -> 30 | CS159: =IF(COUNTIF(BB160:CF160,"／")=0,"",IF(COUNTIF(BB160:CF160,"／")=1,IF(CF163="／","","月末「／」漏れ"),IF(COUNTIF(BB160:CF160,"／")=2,IF(AND(CE163="／",CF163="／"),"","月末「／」漏れ"),IF(AND(CD163="／",CE163="／",CF163="／"),"","月末「／」漏れ")))) ->  | CW159: 月 | CX159: =DATE(YEAR(CX130),MONTH(CX130)+1,1) -> 2025-09-01 | EC159: =DATE(YEAR(CX159),MONTH(CX159)+1,1) -> 2025-10-01 | EI159: 現場閉所計 | EJ159: 現場閉所累計 | EL159: 計画 | EM159: 対象期間 | EN159: =IF(IF(MONTH($BL$5)=12,YEAR($BL$5)+1&"01",YEAR($BL$5)&TEXT(MONTH($BL$5)+1,"00"))>YEAR($CX159)&TEXT(MONTH($CX159),"00"),COUNTIF(CX163:EB163,"")+COUNTIF(CX163:EB163,"○"),"") -> 30 | EO159: =IF(COUNTIF(CX160:EB160,"／")=0,"",IF(COUNTIF(CX160:EB160,"／")=1,IF(EB163="／","","月末「／」漏れ"),IF(COUNTIF(CX160:EB160,"／")=2,IF(AND(EA163="／",EB163="／"),"","月末「／」漏れ"),IF(AND(DZ163="／",EA163="／",EB163="／"),"","月末「／」漏れ")))) -> 
A160: =IF($AT$159="","","対象期間") ->  | C160: 日 | D160: =D159 -> 2025-09-01 | E160: =D160+1 -> 2025-09-02 | F160: =E160+1 -> 2025-09-03 | G160: =F160+1 -> 2025-09-04 | H160: =G160+1 -> 2025-09-05 | I160: =H160+1 -> 2025-09-06 | J160: =I160+1 -> 2025-09-07 | K160: =J160+1 -> 2025-09-08 | L160: =K160+1 -> 2025-09-09 | M160: =L160+1 -> 2025-09-10 | N160: =M160+1 -> 2025-09-11 | O160: =N160+1 -> 2025-09-12 | P160: =O160+1 -> 2025-09-13 | Q160: =P160+1 -> 2025-09-14 | R160: =Q160+1 -> 2025-09-15 | S160: =R160+1 -> 2025-09-16 | T160: =S160+1 -> 2025-09-17 | U160: =T160+1 -> 2025-09-18 | V160: =U160+1 -> 2025-09-19 | W160: =V160+1 -> 2025-09-20 | X160: =W160+1 -> 2025-09-21 | Y160: =X160+1 -> 2025-09-22 | Z160: =Y160+1 -> 2025-09-23 | AA160: =Z160+1 -> 2025-09-24 | AB160: =AA160+1 -> 2025-09-25 | AC160: =AB160+1 -> 2025-09-26 | AD160: =AC160+1 -> 2025-09-27 | AE160: =AD160+1 -> 2025-09-28 | AF160: =IF(AE160="／","／",IF(YEAR($D159)&TEXT(MONTH($D159),"00")<YEAR(AE160+1)&TEXT(MONTH(AE160+1),"00"),"／",AE160+1)) -> 2025-09-29 | AG160: =IF(AF160="／","／",IF(YEAR($D159)&TEXT(MONTH($D159),"00")<YEAR(AF160+1)&TEXT(MONTH(AF160+1),"00"),"／",AF160+1)) -> 2025-09-30 | AH160: =IF(AG160="／","／",IF(YEAR($D159)&TEXT(MONTH($D159),"00")<YEAR(AG160+1)&TEXT(MONTH(AG160+1),"00"),"／",AG160+1)) -> ／ | AI160: =AI159 -> 2025-10-01 | AJ160: =AI160+1 -> 2025-10-02 | AK160: =AJ160+1 -> 2025-10-03 | AL160: =AK160+1 -> 2025-10-04 | AM160: =AL160+1 -> 2025-10-05 | AN160: =AM160+1 -> 2025-10-06 | AS160: 閉所日数 | AT160: =IF(IF(MONTH(入力表!$E$6)=12,YEAR(入力表!$E$6)+1&"01",YEAR(入力表!$E$6)&TEXT(MONTH(入力表!$E$6)+1,"00"))>YEAR($D159)&TEXT(MONTH($D159),"00"),COUNTIF(D163:AH163,"○"),"") ->  | AU160: =IF(OR(MONTH(D159)=1,MONTH(D159)=8,MONTH(D159)=12),IF(COUNTIF(D163:AH163,"／")>=3,"","算定除外「／」漏れ"),"") ->  | BA160: 日 | BB160: =BB159 -> 2025-09-01 | BC160: =BB160+1 -> 2025-09-02 | BD160: =BC160+1 -> 2025-09-03 | BE160: =BD160+1 -> 2025-09-04 | BF160: =BE160+1 -> 2025-09-05 | BG160: =BF160+1 -> 2025-09-06 | BH160: =BG160+1 -> 2025-09-07 | BI160: =BH160+1 -> 2025-09-08 | BJ160: =BI160+1 -> 2025-09-09 | BK160: =BJ160+1 -> 2025-09-10 | BL160: =BK160+1 -> 2025-09-11 | BM160: =BL160+1 -> 2025-09-12 | BN160: =BM160+1 -> 2025-09-13 | BO160: =BN160+1 -> 2025-09-14 | BP160: =BO160+1 -> 2025-09-15 | BQ160: =BP160+1 -> 2025-09-16 | BR160: =BQ160+1 -> 2025-09-17 | BS160: =BR160+1 -> 2025-09-18 | BT160: =BS160+1 -> 2025-09-19 | BU160: =BT160+1 -> 2025-09-20 | BV160: =BU160+1 -> 2025-09-21 | BW160: =BV160+1 -> 2025-09-22 | BX160: =BW160+1 -> 2025-09-23 | BY160: =BX160+1 -> 2025-09-24 | BZ160: =BY160+1 -> 2025-09-25 | CA160: =BZ160+1 -> 2025-09-26 | CB160: =CA160+1 -> 2025-09-27 | CC160: =CB160+1 -> 2025-09-28 | CD160: =IF(CC160="／","／",IF(YEAR(BB159)&TEXT(MONTH(BB159),"00")<YEAR(CC160+1)&TEXT(MONTH(CC160+1),"00"),"／",CC160+1)) -> 2025-09-29 | CE160: =IF(CD160="／","／",IF(YEAR(BB159)&TEXT(MONTH(BB159),"00")<YEAR(CD160+1)&TEXT(MONTH(CD160+1),"00"),"／",CD160+1)) -> 2025-09-30 | CF160: =IF(CE160="／","／",IF(YEAR(BB159)&TEXT(MONTH(BB159),"00")<YEAR(CE160+1)&TEXT(MONTH(CE160+1),"00"),"／",CE160+1)) -> ／ | CG160: =CG159 -> 2025-10-01 | CH160: =CG160+1 -> 2025-10-02 | CI160: =CH160+1 -> 2025-10-03 | CJ160: =CI160+1 -> 2025-10-04 | CK160: =CJ160+1 -> 2025-10-05 | CL160: =CK160+1 -> 2025-10-06 | CQ160: 閉所日数 | CR160: =IF(IF(MONTH($BL$5)=12,YEAR($BL$5)+1&"01",YEAR($BL$5)&TEXT(MONTH($BL$5)+1,"00"))>YEAR(BB159)&TEXT(MONTH(BB159),"00"),COUNTIF(BB163:CF163,"○"),"") -> 10 | CS160: =IF(OR(MONTH(BB159)=1,MONTH(BB159)=8,MONTH(BB159)=12),IF(COUNTIF(BB163:CF163,"／")>=3,"","算定除外「／」漏れ"),"") ->  | CW160: 日 | CX160: =CX159 -> 2025-09-01 | CY160: =CX160+1 -> 2025-09-02 | CZ160: =CY160+1 -> 2025-09-03 | DA160: =CZ160+1 -> 2025-09-04 | DB160: =DA160+1 -> 2025-09-05 | DC160: =DB160+1 -> 2025-09-06 | DD160: =DC160+1 -> 2025-09-07 | DE160: =DD160+1 -> 2025-09-08 | DF160: =DE160+1 -> 2025-09-09 | DG160: =DF160+1 -> 2025-09-10 | DH160: =DG160+1 -> 2025-09-11 | DI160: =DH160+1 -> 2025-09-12 | DJ160: =DI160+1 -> 2025-09-13 | DK160: =DJ160+1 -> 2025-09-14 | DL160: =DK160+1 -> 2025-09-15 | DM160: =DL160+1 -> 2025-09-16 | DN160: =DM160+1 -> 2025-09-17 | DO160: =DN160+1 -> 2025-09-18 | DP160: =DO160+1 -> 2025-09-19 | DQ160: =DP160+1 -> 2025-09-20 | DR160: =DQ160+1 -> 2025-09-21 | DS160: =DR160+1 -> 2025-09-22 | DT160: =DS160+1 -> 2025-09-23 | DU160: =DT160+1 -> 2025-09-24 | DV160: =DU160+1 -> 2025-09-25 | DW160: =DV160+1 -> 2025-09-26 | DX160: =DW160+1 -> 2025-09-27 | DY160: =DX160+1 -> 2025-09-28 | DZ160: =IF(DY160="／","／",IF(YEAR(CX159)&TEXT(MONTH(CX159),"00")<YEAR(DY160+1)&TEXT(MONTH(DY160+1),"00"),"／",DY160+1)) -> 2025-09-29 | EA160: =IF(DZ160="／","／",IF(YEAR(CX159)&TEXT(MONTH(CX159),"00")<YEAR(DZ160+1)&TEXT(MONTH(DZ160+1),"00"),"／",DZ160+1)) -> 2025-09-30 | EB160: =IF(EA160="／","／",IF(YEAR(CX159)&TEXT(MONTH(CX159),"00")<YEAR(EA160+1)&TEXT(MONTH(EA160+1),"00"),"／",EA160+1)) -> ／ | EC160: =EC159 -> 2025-10-01 | ED160: =EC160+1 -> 2025-10-02 | EE160: =ED160+1 -> 2025-10-03 | EF160: =EE160+1 -> 2025-10-04 | EG160: =EF160+1 -> 2025-10-05 | EH160: =EG160+1 -> 2025-10-06 | EM160: 閉所日数 | EN160: =IF(IF(MONTH($BL$5)=12,YEAR($BL$5)+1&"01",YEAR($BL$5)&TEXT(MONTH($BL$5)+1,"00"))>YEAR($CX159)&TEXT(MONTH($CX159),"00"),COUNTIF(CX163:EB163,"○"),"") -> 10 | EO160: =IF(OR(MONTH(CX159)=1,MONTH(CX159)=8,MONTH(CX159)=12),IF(COUNTIF(CX163:EB163,"／")>=3,"","算定除外「／」漏れ"),"") -> 
C161: 曜日 | D161: =TEXT(WEEKDAY(+D160),"aaa") -> 月 | E161: =TEXT(WEEKDAY(+E160),"aaa") -> 火 | F161: 水 | G161: 木 | H161: 金 | I161: =TEXT(WEEKDAY(+I160),"aaa") -> 土 | J161: =TEXT(WEEKDAY(+J160),"aaa") -> 日 | K161: 月 | L161: 火 | M161: 水 | N161: 木 | O161: 金 | P161: 土 | Q161: 日 | R161: 月 | S161: 火 | T161: 水 | U161: 木 | V161: 金 | W161: 土 | X161: 日 | Y161: 月 | Z161: =TEXT(WEEKDAY(+Z160),"aaa") -> 火 | AA161: =TEXT(WEEKDAY(+AA160),"aaa") -> 水 | AB161: 木 | AC161: 金 | AD161: 土 | AE161: 日 | AF161: =IF(AF160="／","／",TEXT(WEEKDAY(+AF160),"aaa")) -> 月 | AG161: =IF(AG160="／","／",TEXT(WEEKDAY(+AG160),"aaa")) -> 火 | AH161: ／ | AI161: =TEXT(WEEKDAY(+AI160),"aaa") -> 水 | AJ161: =TEXT(WEEKDAY(+AJ160),"aaa") -> 木 | AK161: 金 | AL161: 土 | AM161: 日 | AN161: 月 | AS161: 現場閉所率 | AT161: =IFERROR(+AT160/AT159,"") ->  | AU161: =IF(AT161="","",IF(COUNTIF(D163:AH163,"○")>=COUNTIF(D166:AH166,"◎"),"4週8休以上",IF(AT161>=0.285,"4週8休以上","週休2日未達成"))) ->  | BA161: 曜日 | BB161: =TEXT(WEEKDAY(+BB160),"aaa") -> 月 | BC161: =TEXT(WEEKDAY(+BC160),"aaa") -> 火 | BD161: 水 | BE161: 木 | BF161: 金 | BG161: =TEXT(WEEKDAY(+BG160),"aaa") -> 土 | BH161: =TEXT(WEEKDAY(+BH160),"aaa") -> 日 | BI161: 月 | BJ161: 火 | BK161: 水 | BL161: 木 | BM161: 金 | BN161: 土 | BO161: 日 | BP161: 月 | BQ161: 火 | BR161: 水 | BS161: 木 | BT161: 金 | BU161: 土 | BV161: 日 | BW161: 月 | BX161: =TEXT(WEEKDAY(+BX160),"aaa") -> 火 | BY161: =TEXT(WEEKDAY(+BY160),"aaa") -> 水 | BZ161: 木 | CA161: 金 | CB161: 土 | CC161: 日 | CD161: =IF(CD160="／","／",TEXT(WEEKDAY(+CD160),"aaa")) -> 月 | CE161: =IF(CE160="／","／",TEXT(WEEKDAY(+CE160),"aaa")) -> 火 | CF161: ／ | CG161: =TEXT(WEEKDAY(+CG160),"aaa") -> 水 | CH161: =TEXT(WEEKDAY(+CH160),"aaa") -> 木 | CI161: 金 | CJ161: 土 | CK161: 日 | CL161: 月 | CQ161: 現場閉所率 | CR161: =IFERROR(+CR160/CR159,"") -> 0.3333333333 | CS161: =IF(CR161="","",IF(COUNTIF(BB163:CF163,"○")>=COUNTIF(BB166:CF166,"◎"),"4週8休以上",IF(CR161>=0.285,"4週8休以上","週休2日未達成"))) -> 4週8休以上 | CW161: 曜日 | CX161: =TEXT(WEEKDAY(+CX160),"aaa") -> 月 | CY161: =TEXT(WEEKDAY(+CY160),"aaa") -> 火 | CZ161: 水 | DA161: 木 | DB161: 金 | DC161: =TEXT(WEEKDAY(+DC160),"aaa") -> 土 | DD161: =TEXT(WEEKDAY(+DD160),"aaa") -> 日 | DE161: 月 | DF161: 火 | DG161: 水 | DH161: 木 | DI161: 金 | DJ161: 土 | DK161: 日 | DL161: 月 | DM161: 火 | DN161: 水 | DO161: 木 | DP161: 金 | DQ161: 土 | DR161: 日 | DS161: 月 | DT161: =TEXT(WEEKDAY(+DT160),"aaa") -> 火 | DU161: =TEXT(WEEKDAY(+DU160),"aaa") -> 水 | DV161: 木 | DW161: 金 | DX161: 土 | DY161: 日 | DZ161: =IF(DZ160="／","／",TEXT(WEEKDAY(+DZ160),"aaa")) -> 月 | EA161: =IF(EA160="／","／",TEXT(WEEKDAY(+EA160),"aaa")) -> 火 | EB161: ／ | EC161: =TEXT(WEEKDAY(+EC160),"aaa") -> 水 | ED161: =TEXT(WEEKDAY(+ED160),"aaa") -> 木 | EE161: 金 | EF161: 土 | EG161: 日 | EH161: 月 | EM161: 現場閉所率 | EN161: =IFERROR(+EN160/EN159,"") -> 0.3333333333 | EO161: =IF(EN161="","",IF(COUNTIF(CX163:EB163,"○")>=COUNTIF(CX166:EB166,"◎"),"4週8休以上",IF(EN161>=0.285,"4週8休以上","週休2日未達成"))) -> 4週8休以上
C162: 行事 | AI162: =IF(D191="","",D191) ->  | AJ162: =IF(E191="","",E191) ->  | AK162: =IF(F191="","",F191) ->  | AL162: =IF(G191="","",G191) ->  | AM162: =IF(H191="","",H191) ->  | AN162: =IF(I191="","",I191) ->  | AR162: 実施 | AS162: 対象期間 | AT162: =IF(IF(MONTH(入力表!$E$6)=12,YEAR(入力表!$E$6)+1&"01",YEAR(入力表!$E$6)&TEXT(MONTH(入力表!$E$6)+1,"00"))>YEAR($D159)&TEXT(MONTH($D159),"00"),COUNTIF(D164:AH164,"")+COUNTIF(D164:AH164,"●"),"") ->  | AU162: =IF(COUNTIF(D160:AH160,"／")=0,"",IF(COUNTIF(D160:AH160,"／")=1,IF(AH164="／","","月末「／」漏れ"),IF(COUNTIF(D160:AH160,"／")=2,IF(AND(AG164="／",AH164="／"),"","月末「／」漏れ"),IF(AND(AF164="／",AG164="／",AH164="／"),"","月末「／」漏れ")))) -> 月末「／」漏れ | BA162: 行事 | CG162: =IF(BB191="","",BB191) ->  | CH162: =IF(BC191="","",BC191) ->  | CI162: =IF(BD191="","",BD191) ->  | CJ162: =IF(BE191="","",BE191) ->  | CK162: =IF(BF191="","",BF191) ->  | CL162: =IF(BG191="","",BG191) ->  | CP162: 実施 | CQ162: 対象期間 | CR162: =IF(IF(MONTH($BL$5)=12,YEAR($BL$5)+1&"01",YEAR($BL$5)&TEXT(MONTH($BL$5)+1,"00"))>YEAR(BB159)&TEXT(MONTH(BB159),"00"),COUNTIF(BB164:CF164,"")+COUNTIF(BB164:CF164,"●"),"") -> 30 | CS162: =IF(COUNTIF(BB160:CF160,"／")=0,"",IF(COUNTIF(BB160:CF160,"／")=1,IF(CF164="／","","月末「／」漏れ"),IF(COUNTIF(BB160:CF160,"／")=2,IF(AND(CE164="／",CF164="／"),"","月末「／」漏れ"),IF(AND(CD164="／",CE164="／",CF164="／"),"","月末「／」漏れ")))) ->  | CW162: 行事 | EC162: =IF(CX191="","",CX191) ->  | ED162: =IF(CY191="","",CY191) ->  | EE162: =IF(CZ191="","",CZ191) ->  | EF162: =IF(DA191="","",DA191) ->  | EG162: =IF(DB191="","",DB191) ->  | EH162: =IF(DC191="","",DC191) ->  | EL162: 実施 | EM162: 対象期間 | EN162: =IF(IF(MONTH($BL$5)=12,YEAR($BL$5)+1&"01",YEAR($BL$5)&TEXT(MONTH($BL$5)+1,"00"))>YEAR($CX159)&TEXT(MONTH($CX159),"00"),COUNTIF(CX164:EB164,"")+COUNTIF(CX164:EB164,"●"),"") -> 30 | EO162: =IF(COUNTIF(CX160:EB160,"／")=0,"",IF(COUNTIF(CX160:EB160,"／")=1,IF(EB164="／","","月末「／」漏れ"),IF(COUNTIF(CX160:EB160,"／")=2,IF(AND(EA164="／",EB164="／"),"","月末「／」漏れ"),IF(AND(DZ164="／",EA164="／",EB164="／"),"","月末「／」漏れ")))) -> 
C163: 計画 | AI163: =IF(D192="","",D192) ->  | AJ163: =IF(E192="","",E192) ->  | AK163: =IF(F192="","",F192) ->  | AL163: =IF(G192="","",G192) ->  | AM163: =IF(H192="","",H192) ->  | AN163: =IF(I192="","",I192) ->  | AO163: =COUNTIF(D163:AG163,"○") -> 0 | AP163: =+AO163+AP134 -> 0 | AS163: 閉所日数 | AT163: =IF(IF(MONTH(入力表!$E$6)=12,YEAR(入力表!$E$6)+1&"01",YEAR(入力表!$E$6)&TEXT(MONTH(入力表!$E$6)+1,"00"))>YEAR($D159)&TEXT(MONTH($D159),"00"),COUNTIF(D164:AH164,"●"),"") ->  | AU163: =IF(OR(MONTH(D159)=1,MONTH(D159)=8,MONTH(D159)=12),IF(COUNTIF(D164:AH164,"／")>=3,"","算定除外「／」漏れ"),"") ->  | BA163: 計画 | BG163: ○ | BH163: ○ | BN163: ○ | BO163: ○ | BP163: ○ | BU163: ○ | BV163: ○ | BX163: ○ | CB163: ○ | CC163: ○ | CF163: ／ | CG163: =IF(BB192="","",BB192) ->  | CJ163: ○ | CK163: ○ | CM163: =COUNTIF(BB163:CE163,"○") -> 10 | CN163: =+CM163+CN134 -> 43 | CQ163: 閉所日数 | CR163: =IF(IF(MONTH($BL$5)=12,YEAR($BL$5)+1&"01",YEAR($BL$5)&TEXT(MONTH($BL$5)+1,"00"))>YEAR(BB159)&TEXT(MONTH(BB159),"00"),COUNTIF(BB164:CF164,"●"),"") -> 0 | CS163: =IF(OR(MONTH(BB159)=1,MONTH(BB159)=8,MONTH(BB159)=12),IF(COUNTIF(BB164:CF164,"／")>=3,"","算定除外「／」漏れ"),"") ->  | CW163: 計画 | DC163: ○ | DD163: ○ | DJ163: ○ | DK163: ○ | DL163: ○ | DQ163: ○ | DR163: ○ | DT163: ○ | DX163: ○ | DY163: ○ | EB163: ／ | EC163: =IF(CX192="","",CX192) ->  | EF163: ○ | EG163: ○ | EI163: =COUNTIF(CX163:EA163,"○") -> 10 | EJ163: =+EI163+EJ134 -> 43 | EM163: 閉所日数 | EN163: =IF(IF(MONTH($BL$5)=12,YEAR($BL$5)+1&"01",YEAR($BL$5)&TEXT(MONTH($BL$5)+1,"00"))>YEAR($CX159)&TEXT(MONTH($CX159),"00"),COUNTIF(CX164:EB164,"●"),"") -> 10 | EO163: =IF(OR(MONTH(CX159)=1,MONTH(CX159)=8,MONTH(CX159)=12),IF(COUNTIF(CX164:EB164,"／")>=3,"","算定除外「／」漏れ"),"") -> 
C164: 実施 | AI164: =IF(D193="","",D193) ->  | AJ164: =IF(E193="","",E193) ->  | AK164: =IF(F193="","",F193) ->  | AL164: =IF(G193="","",G193) ->  | AM164: =IF(H193="","",H193) ->  | AN164: =IF(I193="","",I193) ->  | AO164: =COUNTIF(D164:AG164,"●") -> 0 | AP164: =+AO164+AP135 -> 0 | AS164: 現場閉所率 | AT164: =IFERROR(+AT163/AT162,"") ->  | AU164: =IF(AT164="","",IF(COUNTIF(D164:AH164,"●")>=COUNTIF(D167:AH167,"◎"),"4週8休以上",IF(AT164>=0.285,"4週8休以上","週休2日未達成"))) ->  | BA164: 実施 | CF164: ／ | CG164: =IF(BB193="","",BB193) ->  | CH164: =IF(BC193="","",BC193) ->  | CI164: =IF(BD193="","",BD193) ->  | CJ164: =IF(BE193="","",BE193) ->  | CK164: =IF(BF193="","",BF193) ->  | CL164: =IF(BG193="","",BG193) ->  | CM164: =COUNTIF(BB164:CE164,"●") -> 0 | CN164: =+CM164+CN135 -> 0 | CQ164: 現場閉所率 | CR164: =IFERROR(+CR163/CR162,"") -> 0 | CS164: =IF(CR164="","",IF(COUNTIF(BB164:CF164,"●")>=COUNTIF(BB167:CF167,"◎"),"4週8休以上",IF(CR164>=0.285,"4週8休以上","週休2日未達成"))) -> 週休2日未達成 | CW164: 実施 | DC164: ● | DD164: ● | DJ164: ● | DK164: ● | DL164: ● | DQ164: ● | DR164: ● | DT164: ● | DX164: ● | DY164: ● | EB164: ／ | EC164: =IF(CX193="","",CX193) ->  | ED164: =IF(CY193="","",CY193) ->  | EE164: =IF(CZ193="","",CZ193) ->  | EF164: =IF(DA193="","",DA193) -> ● | EG164: =IF(DB193="","",DB193) -> ● | EH164: =IF(DC193="","",DC193) ->  | EI164: =COUNTIF(CX164:EA164,"●") -> 10 | EJ164: =+EI164+EJ135 -> 44 | EM164: 現場閉所率 | EN164: =IFERROR(+EN163/EN162,"") -> 0.3333333333 | EO164: =IF(EN164="","",IF(COUNTIF(CX164:EB164,"●")>=COUNTIF(CX167:EB167,"◎"),"4週8休以上",IF(EN164>=0.285,"4週8休以上","週休2日未達成"))) -> 4週8休以上
D165: 1 | E165: 2 | F165: 3 | G165: 4 | H165: 5 | I165: 6 | J165: 7 | K165: 8 | L165: 9 | M165: 10 | N165: 11 | O165: 12 | P165: 13 | Q165: 14 | R165: 15 | S165: 16 | T165: 17 | U165: 18 | V165: 19 | W165: 20 | X165: 21 | Y165: 22 | Z165: 23 | AA165: 24 | AB165: 25 | AC165: 26 | AD165: 27 | AE165: 28 | AF165: 29 | AG165: 30 | AH165: 31 | AI165: 32 | AJ165: 33 | AK165: 34 | AL165: 35 | AM165: 36 | AN165: 37 | AS165: =AU164 ->  | BB165: 1 | BC165: 2 | BD165: 3 | BE165: 4 | BF165: 5 | BG165: 6 | BH165: 7 | BI165: 8 | BJ165: 9 | BK165: 10 | BL165: 11 | BM165: 12 | BN165: 13 | BO165: 14 | BP165: 15 | BQ165: 16 | BR165: 17 | BS165: 18 | BT165: 19 | BU165: 20 | BV165: 21 | BW165: 22 | BX165: 23 | BY165: 24 | BZ165: 25 | CA165: 26 | CB165: 27 | CC165: 28 | CD165: 29 | CE165: 30 | CF165: 31 | CG165: 32 | CH165: 33 | CI165: 34 | CJ165: 35 | CK165: 36 | CL165: 37 | CQ165: =CS164 -> 週休2日未達成 | CX165: 1 | CY165: 2 | CZ165: 3 | DA165: 4 | DB165: 5 | DC165: 6 | DD165: 7 | DE165: 8 | DF165: 9 | DG165: 10 | DH165: 11 | DI165: 12 | DJ165: 13 | DK165: 14 | DL165: 15 | DM165: 16 | DN165: 17 | DO165: 18 | DP165: 19 | DQ165: 20 | DR165: 21 | DS165: 22 | DT165: 23 | DU165: 24 | DV165: 25 | DW165: 26 | DX165: 27 | DY165: 28 | DZ165: 29 | EA165: 30 | EB165: 31 | EC165: 32 | ED165: 33 | EE165: 34 | EF165: 35 | EG165: 36 | EH165: 37 | EM165: =EO164 -> 4週8休以上
C166: 計画 | D166: =IF(D163="／","／",IF(OR(D161="土",D161="日"),"◎","")) ->  | E166: =IF(E163="／","／",IF(OR(E161="土",E161="日"),"◎","")) ->  | I166: ◎ | J166: ◎ | P166: ◎ | Q166: ◎ | W166: ◎ | X166: ◎ | AD166: =IF(AD163="／","／",IF(OR(AD161="土",AD161="日"),"◎","")) -> ◎ | AE166: =IF(AE163="／","／",IF(OR(AE161="土",AE161="日"),"◎","")) -> ◎ | AL166: ◎ | AM166: ◎ | AS166: =AT168 ->  | BA166: 計画 | BB166: =IF(BB163="／","／",IF(OR(BB161="土",BB161="日"),"◎","")) ->  | BG166: ◎ | BH166: ◎ | BN166: =IF(BN163="／","／",IF(OR(BN161="土",BN161="日"),"◎","")) -> ◎ | BO166: =IF(BO163="／","／",IF(OR(BO161="土",BO161="日"),"◎","")) -> ◎ | BU166: ◎ | BV166: ◎ | CB166: =IF(CB163="／","／",IF(OR(CB161="土",CB161="日"),"◎","")) -> ◎ | CC166: =IF(CC163="／","／",IF(OR(CC161="土",CC161="日"),"◎","")) -> ◎ | CF166: ／ | CJ166: ◎ | CK166: ◎ | CQ166: =CR168 -> OUT | CW166: 計画 | CX166: =IF(CX163="／","／",IF(OR(CX161="土",CX161="日"),"◎","")) ->  | DC166: ◎ | DD166: ◎ | DJ166: =IF(DJ163="／","／",IF(OR(DJ161="土",DJ161="日"),"◎","")) -> ◎ | DK166: =IF(DK163="／","／",IF(OR(DK161="土",DK161="日"),"◎","")) -> ◎ | DQ166: ◎ | DR166: ◎ | DX166: =IF(DX163="／","／",IF(OR(DX161="土",DX161="日"),"◎","")) -> ◎ | DY166: =IF(DY163="／","／",IF(OR(DY161="土",DY161="日"),"◎","")) -> ◎ | EB166: ／ | EF166: ◎ | EG166: ◎ | EM166: =EN168 -> OK
C167: 実施 | D167: =IF(D164="／","／",IF(OR(D161="土",D161="日"),"◎","")) ->  | E167: =IF(E164="／","／",IF(OR(E161="土",E161="日"),"◎","")) ->  | I167: ◎ | J167: ◎ | P167: ◎ | Q167: ◎ | W167: ◎ | X167: ◎ | AD167: ◎ | AE167: ◎ | AL167: ◎ | AM167: ◎ | BA167: 実施 | BB167: =IF(BB164="／","／",IF(OR(BB161="土",BB161="日"),"◎","")) ->  | BC167: =IF(BC164="／","／",IF(OR(BC161="土",BC161="日"),"◎","")) ->  | BG167: ◎ | BH167: ◎ | BN167: ◎ | BO167: ◎ | BU167: ◎ | BV167: ◎ | CB167: ◎ | CC167: ◎ | CF167: ／ | CJ167: ◎ | CK167: ◎ | CW167: 実施 | CX167: =IF(CX164="／","／",IF(OR(CX161="土",CX161="日"),"◎","")) ->  | CY167: =IF(CY164="／","／",IF(OR(CY161="土",CY161="日"),"◎","")) ->  | DC167: ◎ | DD167: ◎ | DJ167: ◎ | DK167: ◎ | DQ167: ◎ | DR167: ◎ | DX167: ◎ | DY167: ◎ | EB167: ／ | EF167: ◎ | EG167: ◎
C168: 完全 | D168: =IF(WEEKDAY(DATE(YEAR(D159),MONTH(D159),1),2)=1,DATE(YEAR(D159),MONTH(D159),1),EOMONTH(D159,-1)-MOD(WEEKDAY(EOMONTH(D159,-1),2)+6,7)) -> 2025-09-01 | E168: ～ | F168: =DATE(YEAR(D159),MONTH(D159),1)+MOD(7-WEEKDAY(DATE(YEAR(D159),MONTH(D159),1),2),7) -> 2025-09-07 | G168: =IF(DAY(D168)=1,IF(COUNTIF(D164:J164,"／")>=1,"対象外",IF(COUNTIF(INDEX(D164:AN164,DAY(D168)):INDEX(D164:AN164,HLOOKUP(F168,D160:AN165,6,FALSE)),"")+COUNTIF(INDEX(D164:AN164,DAY(D168)):INDEX(D164:AN164,HLOOKUP(F168,D160:AN165,6,FALSE)),"●")=7,IF(COUNTIF(INDEX(D164:AN164,DAY(D168)):INDEX(D164:AN164,HLOOKUP(F168,D160:AN165,6,FALSE)),"●")>=2,"OK","OUT"),IF(COUNTIF(INDEX(D164:AN164,DAY(D168)):INDEX(D164:AN164,HLOOKUP(F168,D160:AN165,6,FALSE)),"●")>=COUNTIF(INDEX(D167:AN167,DAY(D168)):INDEX(D167:AN167,HLOOKUP(F168,D160:AN165,6,FALSE)),"○"),"OK","OUT"))),IF(AND(AK139="",AE139=""),Y139,IF(AK139="",AE139,AK139))) -> OUT | J168: =F168+1 -> 2025-09-08 | K168: ～ | L168: =F168+7 -> 2025-09-14 | M168: =IF(COUNTIF(INDEX(D164:AN164,DAY(J168)):INDEX(D164:AN164,HLOOKUP(L168,D160:AN165,6,FALSE)),"")+COUNTIF(INDEX(D164:AN164,DAY(J168)):INDEX(D164:AN164,HLOOKUP(L168,D160:AN165,6,FALSE)),"●")=7,IF(COUNTIF(INDEX(D164:AN164,DAY(J168)):INDEX(D164:AN164,HLOOKUP(L168,D160:AN165,6,FALSE)),"●")>=2,"OK","OUT"),"対象外") -> OUT | P168: =L168+1 -> 2025-09-15 | Q168: ～ | R168: =L168+7 -> 2025-09-21 | S168: =IF(COUNTIF(INDEX(D164:AN164,DAY(P168)):INDEX(D164:AN164,HLOOKUP(R168,D160:AN165,6,FALSE)),"")+COUNTIF(INDEX(D164:AN164,DAY(P168)):INDEX(D164:AN164,HLOOKUP(R168,D160:AN165,6,FALSE)),"●")=7,IF(COUNTIF(INDEX(D164:AN164,DAY(P168)):INDEX(D164:AN164,HLOOKUP(R168,D160:AN165,6,FALSE)),"●")>=2,"OK","OUT"),"対象外") -> OUT | V168: =R168+1 -> 2025-09-22 | W168: ～ | X168: =R168+7 -> 2025-09-28 | Y168: =IF(COUNTIF(INDEX(D164:AN164,DAY(V168)):INDEX(D164:AN164,HLOOKUP(X168,D160:AN165,6,FALSE)),"")+COUNTIF(INDEX(D164:AN164,DAY(V168)):INDEX(D164:AN164,HLOOKUP(X168,D160:AN165,6,FALSE)),"●")=7,IF(COUNTIF(INDEX(D164:AN164,DAY(V168)):INDEX(D164:AN164,HLOOKUP(X168,D160:AN165,6,FALSE)),"●")>=2,"OK","OUT"),"対象外") -> OUT | AB168: =IF(AND(DAY(X168+7)<23,DAY(X168+7)>=7),"",X168+1) -> 2025-09-29 | AC168: =IF(AND(DAY(X168+7)<23,DAY(X168+7)>=7),"","～") -> ～ | AD168: =IF(AND(DAY(X168+7)<23,DAY(X168+7)>=7),"",X168+7) -> 2025-10-05 | AE168: =IF(AND(DAY(X168+7)<23,DAY(X168+7)>=7),"",IF(COUNTIF(INDEX(D164:AN164,DAY(AB168)):INDEX(D164:AN164,HLOOKUP(AD168,D160:AN165,6,FALSE)),"")+COUNTIF(INDEX(D164:AN164,DAY(AB168)):INDEX(D164:AN164,HLOOKUP(AD168,D160:AN165,6,FALSE)),"●")=7,IF(COUNTIF(INDEX(D164:AN164,DAY(AB168)):INDEX(D164:AN164,HLOOKUP(AD168,D160:AN165,6,FALSE)),"●")>=2,"OK","OUT"),IF(COUNTIF(INDEX(D164:AN164,DAY(AB168)):INDEX(D164:AN164,HLOOKUP(AD168,D160:AN165,6,FALSE)),"")+COUNTIF(INDEX(D164:AN164,DAY(AB168)):INDEX(D164:AN164,HLOOKUP(AD168,D160:AN165,6,FALSE)),"●")>7,"「／」漏れ","対象外"))) -> 「／」漏れ | AH168: =IF(AE168="","",IF(AND(DAY(AD168+7)<23,DAY(AD168+7)>=7),"",AD168+1)) ->  | AI168: =IF(AE168="","",IF(AND(DAY(AD168+7)<23,DAY(AD168+7)>=7),"","～")) ->  | AJ168: =IF(AE168="","",IF(AND(DAY(AD168+7)<23,DAY(AD168+7)>=7),"",AD168+7)) ->  | AK168: =IF(AE168="","",IF(AND(DAY(AD168+7)<23,DAY(AD168+7)>=7),"",IF(COUNTIF(INDEX(D164:AN164,DAY(AH168)):INDEX(D164:AN164,HLOOKUP(AJ168,D160:AN165,6,FALSE)),"")+COUNTIF(INDEX(D164:AN164,DAY(AH168)):INDEX(D164:AN164,HLOOKUP(AJ168,D160:AN165,6,FALSE)),"●")=7,IF(COUNTIF(INDEX(D164:AN164,DAY(AH168)):INDEX(D164:AN164,HLOOKUP(AJ168,D160:AN165,6,FALSE)),"●")>=2,"OK","OUT"),IF(COUNTIF(INDEX(D164:AN164,HLOOKUP(AH168,D160:AN165,6,FALSE)):INDEX(D164:AN164,HLOOKUP(AJ168,D160:AN165,6,FALSE)),"")+COUNTIF(INDEX(D164:AN164,HLOOKUP(AH168,D160:AN165,6,FALSE)):INDEX(D164:AN164,HLOOKUP(AJ168,D160:AN165,6,FALSE)),"●")>7,"「／」漏れ","対象外")))) ->  | AS168: 完全週休二日 | AT168: =IF(AT159="","",IF(COUNTIF(D168:AN168,"OUT")>=1,"OUT","OK")) ->  | BA168: 完全 | BB168: =IF(WEEKDAY(DATE(YEAR(BB159),MONTH(BB159),1),2)=1,DATE(YEAR(BB159),MONTH(BB159),1),EOMONTH(BB159,-1)-MOD(WEEKDAY(EOMONTH(BB159,-1),2)+6,7)) -> 2025-09-01 | BC168: ～ | BD168: =DATE(YEAR(BB159),MONTH(BB159),1)+MOD(7-WEEKDAY(DATE(YEAR(BB159),MONTH(BB159),1),2),7) -> 2025-09-07 | BE168: =IF(DAY(BB168)=1,IF(COUNTIF(BB164:BH164,"／")>=1,"対象外",IF(COUNTIF(INDEX(BB164:CL164,DAY(BB168)):INDEX(BB164:CL164,HLOOKUP(BD168,BB160:CL165,6,FALSE)),"")+COUNTIF(INDEX(BB164:CL164,DAY(BB168)):INDEX(BB164:CL164,HLOOKUP(BD168,BB160:CL165,6,FALSE)),"●")=7,IF(COUNTIF(INDEX(BB164:CL164,DAY(BB168)):INDEX(BB164:CL164,HLOOKUP(BD168,BB160:CL165,6,FALSE)),"●")>=2,"OK","OUT"),IF(COUNTIF(INDEX(BB164:CL164,DAY(BB168)):INDEX(BB164:CL164,HLOOKUP(BD168,BB160:CL165,6,FALSE)),"●")>=COUNTIF(INDEX(BB167:CL167,DAY(BB168)):INDEX(BB167:CL167,HLOOKUP(BD168,BB160:CL165,6,FALSE)),"○"),"OK","OUT"))),IF(AND(CI139="",CC139=""),BW139,IF(CI139="",CC139,CI139))) -> OUT | BH168: =BD168+1 -> 2025-09-08 | BI168: ～ | BJ168: =BD168+7 -> 2025-09-14 | BK168: =IF(COUNTIF(INDEX(BB164:CL164,DAY(BH168)):INDEX(BB164:CL164,HLOOKUP(BJ168,BB160:CL165,6,FALSE)),"")+COUNTIF(INDEX(BB164:CL164,DAY(BH168)):INDEX(BB164:CL164,HLOOKUP(BJ168,BB160:CL165,6,FALSE)),"●")=7,IF(COUNTIF(INDEX(BB164:CL164,DAY(BH168)):INDEX(BB164:CL164,HLOOKUP(BJ168,BB160:CL165,6,FALSE)),"●")>=2,"OK","OUT"),"対象外") -> OUT | BN168: =BJ168+1 -> 2025-09-15 | BO168: ～ | BP168: =BJ168+7 -> 2025-09-21 | BQ168: =IF(COUNTIF(INDEX(BB164:CL164,DAY(BN168)):INDEX(BB164:CL164,HLOOKUP(BP168,BB160:CL165,6,FALSE)),"")+COUNTIF(INDEX(BB164:CL164,DAY(BN168)):INDEX(BB164:CL164,HLOOKUP(BP168,BB160:CL165,6,FALSE)),"●")=7,IF(COUNTIF(INDEX(BB164:CL164,DAY(BN168)):INDEX(BB164:CL164,HLOOKUP(BP168,BB160:CL165,6,FALSE)),"●")>=2,"OK","OUT"),"対象外") -> OUT | BT168: =BP168+1 -> 2025-09-22 | BU168: ～ | BV168: =BP168+7 -> 2025-09-28 | BW168: =IF(COUNTIF(INDEX(BB164:CL164,DAY(BT168)):INDEX(BB164:CL164,HLOOKUP(BV168,BB160:CL165,6,FALSE)),"")+COUNTIF(INDEX(BB164:CL164,DAY(BT168)):INDEX(BB164:CL164,HLOOKUP(BV168,BB160:CL165,6,FALSE)),"●")=7,IF(COUNTIF(INDEX(BB164:CL164,DAY(BT168)):INDEX(BB164:CL164,HLOOKUP(BV168,BB160:CL165,6,FALSE)),"●")>=2,"OK","OUT"),"対象外") -> OUT | BZ168: =IF(AND(DAY(BV168+7)<23,DAY(BV168+7)>=7),"",BV168+1) -> 2025-09-29 | CA168: =IF(AND(DAY(BV168+7)<23,DAY(BV168+7)>=7),"","～") -> ～ | CB168: =IF(AND(DAY(BV168+7)<23,DAY(BV168+7)>=7),"",BV168+7) -> 2025-10-05 | CC168: =IF(AND(DAY(BV168+7)<23,DAY(BV168+7)>=7),"",IF(COUNTIF(INDEX(BB164:CL164,DAY(BZ168)):INDEX(BB164:CL164,HLOOKUP(CB168,BB160:CL165,6,FALSE)),"")+COUNTIF(INDEX(BB164:CL164,DAY(BZ168)):INDEX(BB164:CL164,HLOOKUP(CB168,BB160:CL165,6,FALSE)),"●")=7,IF(COUNTIF(INDEX(BB164:CL164,DAY(BZ168)):INDEX(BB164:CL164,HLOOKUP(CB168,BB160:CL165,6,FALSE)),"●")>=2,"OK","OUT"),IF(COUNTIF(INDEX(BB164:CL164,DAY(BZ168)):INDEX(BB164:CL164,HLOOKUP(CB168,BB160:CL165,6,FALSE)),"")+COUNTIF(INDEX(BB164:CL164,DAY(BZ168)):INDEX(BB164:CL164,HLOOKUP(CB168,BB160:CL165,6,FALSE)),"●")>7,"「／」漏れ","対象外"))) -> OUT | CF168: =IF(CC168="","",IF(AND(DAY(CB168+7)<23,DAY(CB168+7)>=7),"",CB168+1)) ->  | CG168: =IF(CC168="","",IF(AND(DAY(CB168+7)<23,DAY(CB168+7)>=7),"","～")) ->  | CH168: =IF(CC168="","",IF(AND(DAY(CB168+7)<23,DAY(CB168+7)>=7),"",CB168+7)) ->  | CI168: =IF(CC168="","",IF(AND(DAY(CB168+7)<23,DAY(CB168+7)>=7),"",IF(COUNTIF(INDEX(BB164:CL164,DAY(CF168)):INDEX(BB164:CL164,HLOOKUP(CH168,BB160:CL165,6,FALSE)),"")+COUNTIF(INDEX(BB164:CL164,DAY(CF168)):INDEX(BB164:CL164,HLOOKUP(CH168,BB160:CL165,6,FALSE)),"●")=7,IF(COUNTIF(INDEX(BB164:CL164,DAY(CF168)):INDEX(BB164:CL164,HLOOKUP(CH168,BB160:CL165,6,FALSE)),"●")>=2,"OK","OUT"),IF(COUNTIF(INDEX(BB164:CL164,HLOOKUP(CF168,BB160:CL165,6,FALSE)):INDEX(BB164:CL164,HLOOKUP(CH168,BB160:CL165,6,FALSE)),"")+COUNTIF(INDEX(BB164:CL164,HLOOKUP(CF168,BB160:CL165,6,FALSE)):INDEX(BB164:CL164,HLOOKUP(CH168,BB160:CL165,6,FALSE)),"●")>7,"「／」漏れ","対象外")))) ->  | CQ168: 完全週休二日 | CR168: =IF(CR159="","",IF(COUNTIF(BB168:CL168,"OUT")>=1,"OUT","OK")) -> OUT | CW168: 完全 | CX168: =IF(WEEKDAY(DATE(YEAR(CX159),MONTH(CX159),1),2)=1,DATE(YEAR(CX159),MONTH(CX159),1),EOMONTH(CX159,-1)-MOD(WEEKDAY(EOMONTH(CX159,-1),2)+6,7)) -> 2025-09-01 | CY168: ～ | CZ168: =DATE(YEAR(CX159),MONTH(CX159),1)+MOD(7-WEEKDAY(DATE(YEAR(CX159),MONTH(CX159),1),2),7) -> 2025-09-07 | DA168: =IF(DAY(CX168)=1,IF(COUNTIF(CX164:DD164,"／")>=1,"対象外",IF(COUNTIF(INDEX(CX164:EH164,DAY(CX168)):INDEX(CX164:EH164,HLOOKUP(CZ168,CX160:EH165,6,FALSE)),"")+COUNTIF(INDEX(CX164:EH164,DAY(CX168)):INDEX(CX164:EH164,HLOOKUP(CZ168,CX160:EH165,6,FALSE)),"●")=7,IF(COUNTIF(INDEX(CX164:EH164,DAY(CX168)):INDEX(CX164:EH164,HLOOKUP(CZ168,CX160:EH165,6,FALSE)),"●")>=2,"OK","OUT"),IF(COUNTIF(INDEX(CX164:EH164,DAY(CX168)):INDEX(CX164:EH164,HLOOKUP(CZ168,CX160:EH165,6,FALSE)),"●")>=COUNTIF(INDEX(CX167:EH167,DAY(CX168)):INDEX(CX167:EH167,HLOOKUP(CZ168,CX160:EH165,6,FALSE)),"○"),"OK","OUT"))),IF(AND(EE139="",DY139=""),DS139,IF(EE139="",DY139,EE139))) -> OK | DD168: =CZ168+1 -> 2025-09-08 | DE168: ～ | DF168: =CZ168+7 -> 2025-09-14 | DG168: =IF(COUNTIF(INDEX(CX164:EH164,DAY(DD168)):INDEX(CX164:EH164,HLOOKUP(DF168,CX160:EH165,6,FALSE)),"")+COUNTIF(INDEX(CX164:EH164,DAY(DD168)):INDEX(CX164:EH164,HLOOKUP(DF168,CX160:EH165,6,FALSE)),"●")=7,IF(COUNTIF(INDEX(CX164:EH164,DAY(DD168)):INDEX(CX164:EH164,HLOOKUP(DF168,CX160:EH165,6,FALSE)),"●")>=2,"OK","OUT"),"対象外") -> OK | DJ168: =DF168+1 -> 2025-09-15 | DK168: ～ | DL168: =DF168+7 -> 2025-09-21 | DM168: =IF(COUNTIF(INDEX(CX164:EH164,DAY(DJ168)):INDEX(CX164:EH164,HLOOKUP(DL168,CX160:EH165,6,FALSE)),"")+COUNTIF(INDEX(CX164:EH164,DAY(DJ168)):INDEX(CX164:EH164,HLOOKUP(DL168,CX160:EH165,6,FALSE)),"●")=7,IF(COUNTIF(INDEX(CX164:EH164,DAY(DJ168)):INDEX(CX164:EH164,HLOOKUP(DL168,CX160:EH165,6,FALSE)),"●")>=2,"OK","OUT"),"対象外") -> OK | DP168: =DL168+1 -> 2025-09-22 | DQ168: ～ | DR168: =DL168+7 -> 2025-09-28 | DS168: =IF(COUNTIF(INDEX(CX164:EH164,DAY(DP168)):INDEX(CX164:EH164,HLOOKUP(DR168,CX160:EH165,6,FALSE)),"")+COUNTIF(INDEX(CX164:EH164,DAY(DP168)):INDEX(CX164:EH164,HLOOKUP(DR168,CX160:EH165,6,FALSE)),"●")=7,IF(COUNTIF(INDEX(CX164:EH164,DAY(DP168)):INDEX(CX164:EH164,HLOOKUP(DR168,CX160:EH165,6,FALSE)),"●")>=2,"OK","OUT"),"対象外") -> OK | DV168: =IF(AND(DAY(DR168+7)<23,DAY(DR168+7)>=7),"",DR168+1) -> 2025-09-29 | DW168: =IF(AND(DAY(DR168+7)<23,DAY(DR168+7)>=7),"","～") -> ～ | DX168: =IF(AND(DAY(DR168+7)<23,DAY(DR168+7)>=7),"",DR168+7) -> 2025-10-05 | DY168: =IF(AND(DAY(DR168+7)<23,DAY(DR168+7)>=7),"",IF(COUNTIF(INDEX(CX164:EH164,DAY(DV168)):INDEX(CX164:EH164,HLOOKUP(DX168,CX160:EH165,6,FALSE)),"")+COUNTIF(INDEX(CX164:EH164,DAY(DV168)):INDEX(CX164:EH164,HLOOKUP(DX168,CX160:EH165,6,FALSE)),"●")=7,IF(COUNTIF(INDEX(CX164:EH164,DAY(DV168)):INDEX(CX164:EH164,HLOOKUP(DX168,CX160:EH165,6,FALSE)),"●")>=2,"OK","OUT"),IF(COUNTIF(INDEX(CX164:EH164,DAY(DV168)):INDEX(CX164:EH164,HLOOKUP(DX168,CX160:EH165,6,FALSE)),"")+COUNTIF(INDEX(CX164:EH164,DAY(DV168)):INDEX(CX164:EH164,HLOOKUP(DX168,CX160:EH165,6,FALSE)),"●")>7,"「／」漏れ","対象外"))) -> OK | EB168: =IF(DY168="","",IF(AND(DAY(DX168+7)<23,DAY(DX168+7)>=7),"",DX168+1)) ->  | EC168: =IF(DY168="","",IF(AND(DAY(DX168+7)<23,DAY(DX168+7)>=7),"","～")) ->  | ED168: =IF(DY168="","",IF(AND(DAY(DX168+7)<23,DAY(DX168+7)>=7),"",DX168+7)) ->  | EE168: =IF(DY168="","",IF(AND(DAY(DX168+7)<23,DAY(DX168+7)>=7),"",IF(COUNTIF(INDEX(CX164:EH164,DAY(EB168)):INDEX(CX164:EH164,HLOOKUP(ED168,CX160:EH165,6,FALSE)),"")+COUNTIF(INDEX(CX164:EH164,DAY(EB168)):INDEX(CX164:EH164,HLOOKUP(ED168,CX160:EH165,6,FALSE)),"●")=7,IF(COUNTIF(INDEX(CX164:EH164,DAY(EB168)):INDEX(CX164:EH164,HLOOKUP(ED168,CX160:EH165,6,FALSE)),"●")>=2,"OK","OUT"),IF(COUNTIF(INDEX(CX164:EH164,HLOOKUP(EB168,CX160:EH165,6,FALSE)):INDEX(CX164:EH164,HLOOKUP(ED168,CX160:EH165,6,FALSE)),"")+COUNTIF(INDEX(CX164:EH164,HLOOKUP(EB168,CX160:EH165,6,FALSE)):INDEX(CX164:EH164,HLOOKUP(ED168,CX160:EH165,6,FALSE)),"●")>7,"「／」漏れ","対象外")))) ->  | EM168: 完全週休二日 | EN168: =IF(EN159="","",IF(COUNTIF(CX168:EH168,"OUT")>=1,"OUT","OK")) -> OK
A170: =IF(AND(NOT($AT$159=""),$AT$188=""),"対象期間","") -> 
A171: =IF(AND(NOT($AT$159=""),$AT$188=""),"対象期間","") ->  | C171: ※１工事着手日：始期日以降に準備工事（現場事務所の建設・測量等）、工場製作を含む工事における工場製作工に着手した日 | AR171: 工事全体の確認 | BA171: ※１工事着手日：始期日以降に準備工事（現場事務所の建設・測量等）、工場製作を含む工事における工場製作工に着手した日 | CP171: 工事全体の確認 | CW171: ※１工事着手日：始期日以降に準備工事（現場事務所の建設・測量等）、工場製作を含む工事における工場製作工に着手した日 | EL171: 工事全体の確認
C172: ※２作業完了日：工事施工範囲内で全ての作業（後片付けを含む）が完了した日 （工事現場事務所は工事施工範囲外に設置するため、ここでいう後片付けの対象に含まない） | AR172: 計画 | AS172: 全対象期間 | AT172: =IFERROR(AT143+AT159,"") ->  | BA172: ※２作業完了日：工事施工範囲内で全ての作業（後片付けを含む）が完了した日 （工事現場事務所は工事施工範囲外に設置するため、ここでいう後片付けの対象に含まない） | CP172: 計画 | CQ172: 全対象期間 | CR172: =IFERROR(CR143+CR159,"") ->  | CW172: ※２作業完了日：工事施工範囲内で全ての作業（後片付けを含む）が完了した日 （工事現場事務所は工事施工範囲外に設置するため、ここでいう後片付けの対象に含まない） | EL172: 計画 | EM172: 全対象期間 | EN172: =IFERROR(EN143+EN159,"") -> 139
AS173: 全現場閉所日数 | AT173: =IFERROR(AT144+AT160,"") ->  | CQ173: 全現場閉所日数 | CR173: =IFERROR(CR144+CR160,"") ->  | EM173: 全現場閉所日数 | EN173: =IFERROR(EN144+EN160,"") -> 44
C174: 【算定除外期間】：夏季休暇（8月13日～8月15日）、年末年始（12月29日～翌年1月3日）は算定期間の分母・分子に含めない | AS174: 現場閉所率 | AT174: =IFERROR(+AT173/AT172,"") ->  | AU174: =IF(AT174>=0.285,"4週8休以上","週休2日未達成") -> 4週8休以上 | BA174: 【算定除外期間】：夏季休暇（8月13日～8月15日）、年末年始（12月29日～翌年1月3日）は算定期間の分母・分子に含めない | CQ174: 現場閉所率 | CR174: =IFERROR(+CR173/CR172,"") ->  | CS174: =IF(CR174>=0.285,"4週8休以上","週休2日未達成") -> 4週8休以上 | CW174: 【算定除外期間】：夏季休暇（8月13日～8月15日）、年末年始（12月29日～翌年1月3日）は算定期間の分母・分子に含めない | EM174: 現場閉所率 | EN174: =IFERROR(+EN173/EN172,"") -> 0.3165467626 | EO174: =IF(EN174>=0.285,"4週8休以上","週休2日未達成") -> 4週8休以上
C175: ※３工事期間の全ての月において、達成状況を確認し、一度でも達成できない月があれば、４週８休以上（月単位）は「未達成」となり、補正の対象とならない。 月によっては、土日を全て閉所しても現場閉所率が28.5％に満たない場合があるが、その月の対象期間の土日日数以上閉所していれば達成とみなす。 ※４工事対象期間のうち、一度でも完全週休２日（月～日で２日以上の現場閉所）を達成できなければ、 完全週休２日は「未達成」となり、補正の対象とならない。 なお、工期始期・終期、年末年始、夏季休暇などにより、７日間に満たない期間は完全週休２日の達成判断の対象外とする。 | AR175: 実施 | AS175: 全対象期間 | AT175: =IFERROR(AT146+AT162,"") ->  | BA175: ※３工事期間の全ての月において、達成状況を確認し、一度でも達成できない月があれば、４週８休以上（月単位）は「未達成」となり、補正の対象とならない。 月によっては、土日を全て閉所しても現場閉所率が28.5％に満たない場合があるが、その月の対象期間の土日日数以上閉所していれば達成とみなす。 ※４工事対象期間のうち、一度でも完全週休２日（月～日で２日以上の現場閉所）を達成できなければ、 完全週休２日は「未達成」となり、補正の対象とならない。 なお、工期始期・終期、年末年始、夏季休暇などにより、７日間に満たない期間は完全週休２日の達成判断の対象外とする。 | CP175: 実施 | CQ175: 全対象期間 | CR175: =IFERROR(CR146+CR162,"") ->  | CW175: ※３工事期間の全ての月において、達成状況を確認し、一度でも達成できない月があれば、４週８休以上（月単位）は「未達成」となり、補正の対象とならない。 月によっては、土日を全て閉所しても現場閉所率が28.5％に満たない場合があるが、その月の対象期間の土日日数以上閉所していれば達成とみなす。 ※４工事対象期間のうち、一度でも完全週休２日（月～日で２日以上の現場閉所）を達成できなければ、 完全週休２日は「未達成」となり、補正の対象とならない。 なお、工期始期・終期、年末年始、夏季休暇などにより、７日間に満たない期間は完全週休２日の達成判断の対象外とする。 | EL175: 実施 | EM175: 全対象期間 | EN175: =IFERROR(EN146+EN162,"") -> 139
AS176: 全現場閉所日数 | AT176: =IFERROR(AT147+AT163,"") ->  | CQ176: 全現場閉所日数 | CR176: =IFERROR(CR147+CR163,"") ->  | EM176: 全現場閉所日数 | EN176: =IFERROR(EN147+EN163,"") -> 45
AS177: 現場閉所率 | AT177: =IFERROR(+AT176/AT175,"") ->  | AU177: =IF(AT177>=0.285,"4週8休以上","週休2日未達成") -> 4週8休以上 | CQ177: 現場閉所率 | CR177: =IFERROR(+CR176/CR175,"") ->  | CS177: =IF(CR177>=0.285,"4週8休以上","週休2日未達成") -> 4週8休以上 | EM177: 現場閉所率 | EN177: =IFERROR(+EN176/EN175,"") -> 0.3237410072 | EO177: =IF(EN177>=0.285,"4週8休以上","週休2日未達成") -> 4週8休以上
AS178: 閉所（月単位） | AT178: =IFERROR(COUNTIF(AS$14:$AS168,"4週8休以上")/(COUNTIF(AS$14:$AS168,"4週8休以上")+COUNTIF(AS$14:$AS168,"週休2日未達成")),"") ->  | AU178: =IF(OR(AT178=100%,AT178=""),"達成","未達成") -> 達成 | CQ178: 閉所（月単位） | CR178: =IFERROR(COUNTIF(CQ$14:$CQ168,"4週8休以上")/(COUNTIF(CQ$14:$CQ168,"4週8休以上")+COUNTIF(CQ$14:$CQ168,"週休2日未達成")),"") -> 0 | CS178: =IF(OR(CR178=100%,CR178=""),"達成","未達成") -> 未達成 | EM178: 閉所（月単位） | EN178: =IFERROR(COUNTIF($EM$14:EM168,"4週8休以上")/(COUNTIF($EM$14:EM168,"4週8休以上")+COUNTIF($EM$14:EM168,"週休2日未達成")),"") -> 1 | EO178: =IF(OR(EN178=100%,EN178=""),"達成","未達成") -> 達成
AS179: 完全週休二日 | AT179: =IF(COUNTIF(AS$14:$AS168,"OUT")>=1,"OUT","OK") -> OK | AU179: =IF(AT179="OK","達成","未達成") -> 達成 | CQ179: 完全週休二日 | CR179: =IF(COUNTIF(CQ$14:$CQ168,"OUT")>=1,"OUT","OK") -> OUT | CS179: =IF(CR179="OK","達成","未達成") -> 未達成 | EM179: 完全週休二日 | EN179: =IF(COUNTIF($EM$14:EM168,"OUT")>=1,"OUT","OK") -> OK | EO179: =IF(EN179="OK","達成","未達成") -> 達成
C180: ※必要に応じて各月の完全週休2日（月～日）の達成判定の行を修正してください。（曜日に合わせて修正） | BA180: ※必要に応じて各月の完全週休2日（月～日）の達成判定の行を修正してください。（曜日に合わせて修正） | CW180: ※必要に応じて各月の完全週休2日（月～日）の達成判定の行を修正してください。（曜日に合わせて修正）
C186: 算定除外期間以外の祝日（ＧＷ含む）は、算定期間（分母）の対象＝現場閉所の場合は分子にカウントして現場閉所率を算定 | BA186: 算定除外期間以外の祝日（ＧＷ含む）は、算定期間（分母）の対象＝現場閉所の場合は分子にカウントして現場閉所率を算定 | CW186: 算定除外期間以外の祝日（ＧＷ含む）は、算定期間（分母）の対象＝現場閉所の場合は分子にカウントして現場閉所率を算定
A188: =IF($AT$188="","","対象期間") ->  | C188: 月 | D188: =DATE(YEAR(D159),MONTH(D159)+1,1) -> 2025-10-01 | AI188: =DATE(YEAR(D188),MONTH(D188)+1,1) -> 2025-11-01 | AO188: 現場閉所計 | AP188: 現場閉所累計 | AR188: 計画 | AS188: 対象期間 | AT188: =IF(IF(MONTH(入力表!$E$6)=12,YEAR(入力表!$E$6)+1&"01",YEAR(入力表!$E$6)&TEXT(MONTH(入力表!$E$6)+1,"00"))>YEAR($D188)&TEXT(MONTH($D188),"00"),COUNTIF(D192:AH192,"")+COUNTIF(D192:AH192,"○"),"") ->  | AU188: =IF(COUNTIF(D189:AH189,"／")=0,"",IF(COUNTIF(D189:AH189,"／")=1,IF(AH192="／","","月末「／」漏れ"),IF(COUNTIF(D189:AH189,"／")=2,IF(AND(AG192="／",AH192="／"),"","月末「／」漏れ"),IF(AND(AF192="／",AG192="／",AH192="／"),"","月末「／」漏れ")))) ->  | BA188: 月 | BB188: =DATE(YEAR(BB159),MONTH(BB159)+1,1) -> 2025-10-01 | CG188: =DATE(YEAR(BB188),MONTH(BB188)+1,1) -> 2025-11-01 | CM188: 現場閉所計 | CN188: 現場閉所累計 | CP188: 計画 | CQ188: 対象期間 | CR188: =IF(IF(MONTH($BL$5)=12,YEAR($BL$5)+1&"01",YEAR($BL$5)&TEXT(MONTH($BL$5)+1,"00"))>YEAR(BB188)&TEXT(MONTH(BB188),"00"),COUNTIF(BB192:CF192,"")+COUNTIF(BB192:CF192,"○"),"") -> 31 | CS188: =IF(COUNTIF(BB189:CF189,"／")=0,"",IF(COUNTIF(BB189:CF189,"／")=1,IF(CF192="／","","月末「／」漏れ"),IF(COUNTIF(BB189:CF189,"／")=2,IF(AND(CE192="／",CF192="／"),"","月末「／」漏れ"),IF(AND(CD192="／",CE192="／",CF192="／"),"","月末「／」漏れ")))) ->  | CW188: 月 | CX188: =DATE(YEAR(CX159),MONTH(CX159)+1,1) -> 2025-10-01 | EC188: =DATE(YEAR(CX188),MONTH(CX188)+1,1) -> 2025-11-01 | EI188: 現場閉所計 | EJ188: 現場閉所累計 | EL188: 計画 | EM188: 対象期間 | EN188: =IF(IF(MONTH($BL$5)=12,YEAR($BL$5)+1&"01",YEAR($BL$5)&TEXT(MONTH($BL$5)+1,"00"))>YEAR($CX188)&TEXT(MONTH($CX188),"00"),COUNTIF(CX192:EB192,"")+COUNTIF(CX192:EB192,"○"),"") -> 31 | EO188: =IF(COUNTIF(CX189:EB189,"／")=0,"",IF(COUNTIF(CX189:EB189,"／")=1,IF(EB192="／","","月末「／」漏れ"),IF(COUNTIF(CX189:EB189,"／")=2,IF(AND(EA192="／",EB192="／"),"","月末「／」漏れ"),IF(AND(DZ192="／",EA192="／",EB192="／"),"","月末「／」漏れ")))) -> 
A189: =IF($AT$188="","","対象期間") ->  | C189: 日 | D189: =D188 -> 2025-10-01 | E189: =D189+1 -> 2025-10-02 | F189: =E189+1 -> 2025-10-03 | G189: =F189+1 -> 2025-10-04 | H189: =G189+1 -> 2025-10-05 | I189: =H189+1 -> 2025-10-06 | J189: =I189+1 -> 2025-10-07 | K189: =J189+1 -> 2025-10-08 | L189: =K189+1 -> 2025-10-09 | M189: =L189+1 -> 2025-10-10 | N189: =M189+1 -> 2025-10-11 | O189: =N189+1 -> 2025-10-12 | P189: =O189+1 -> 2025-10-13 | Q189: =P189+1 -> 2025-10-14 | R189: =Q189+1 -> 2025-10-15 | S189: =R189+1 -> 2025-10-16 | T189: =S189+1 -> 2025-10-17 | U189: =T189+1 -> 2025-10-18 | V189: =U189+1 -> 2025-10-19 | W189: =V189+1 -> 2025-10-20 | X189: =W189+1 -> 2025-10-21 | Y189: =X189+1 -> 2025-10-22 | Z189: =Y189+1 -> 2025-10-23 | AA189: =Z189+1 -> 2025-10-24 | AB189: =AA189+1 -> 2025-10-25 | AC189: =AB189+1 -> 2025-10-26 | AD189: =AC189+1 -> 2025-10-27 | AE189: =AD189+1 -> 2025-10-28 | AF189: =IF(AE189="／","／",IF(YEAR($D188)&TEXT(MONTH($D188),"00")<YEAR(AE189+1)&TEXT(MONTH(AE189+1),"00"),"／",AE189+1)) -> 2025-10-29 | AG189: =IF(AF189="／","／",IF(YEAR($D188)&TEXT(MONTH($D188),"00")<YEAR(AF189+1)&TEXT(MONTH(AF189+1),"00"),"／",AF189+1)) -> 2025-10-30 | AH189: =IF(AG189="／","／",IF(YEAR($D188)&TEXT(MONTH($D188),"00")<YEAR(AG189+1)&TEXT(MONTH(AG189+1),"00"),"／",AG189+1)) -> 2025-10-31 | AI189: =AI188 -> 2025-11-01 | AJ189: =AI189+1 -> 2025-11-02 | AK189: =AJ189+1 -> 2025-11-03 | AL189: =AK189+1 -> 2025-11-04 | AM189: =AL189+1 -> 2025-11-05 | AN189: =AM189+1 -> 2025-11-06 | AS189: 閉所日数 | AT189: =IF(IF(MONTH(入力表!$E$6)=12,YEAR(入力表!$E$6)+1&"01",YEAR(入力表!$E$6)&TEXT(MONTH(入力表!$E$6)+1,"00"))>YEAR($D188)&TEXT(MONTH($D188),"00"),COUNTIF(D192:AH192,"○"),"") ->  | AU189: =IF(OR(MONTH(D188)=1,MONTH(D188)=8,MONTH(D188)=12),IF(COUNTIF(D192:AH192,"／")>=3,"","算定除外「／」漏れ"),"") ->  | BA189: 日 | BB189: =BB188 -> 2025-10-01 | BC189: =BB189+1 -> 2025-10-02 | BD189: =BC189+1 -> 2025-10-03 | BE189: =BD189+1 -> 2025-10-04 | BF189: =BE189+1 -> 2025-10-05 | BG189: =BF189+1 -> 2025-10-06 | BH189: =BG189+1 -> 2025-10-07 | BI189: =BH189+1 -> 2025-10-08 | BJ189: =BI189+1 -> 2025-10-09 | BK189: =BJ189+1 -> 2025-10-10 | BL189: =BK189+1 -> 2025-10-11 | BM189: =BL189+1 -> 2025-10-12 | BN189: =BM189+1 -> 2025-10-13 | BO189: =BN189+1 -> 2025-10-14 | BP189: =BO189+1 -> 2025-10-15 | BQ189: =BP189+1 -> 2025-10-16 | BR189: =BQ189+1 -> 2025-10-17 | BS189: =BR189+1 -> 2025-10-18 | BT189: =BS189+1 -> 2025-10-19 | BU189: =BT189+1 -> 2025-10-20 | BV189: =BU189+1 -> 2025-10-21 | BW189: =BV189+1 -> 2025-10-22 | BX189: =BW189+1 -> 2025-10-23 | BY189: =BX189+1 -> 2025-10-24 | BZ189: =BY189+1 -> 2025-10-25 | CA189: =BZ189+1 -> 2025-10-26 | CB189: =CA189+1 -> 2025-10-27 | CC189: =CB189+1 -> 2025-10-28 | CD189: =IF(CC189="／","／",IF(YEAR(BB188)&TEXT(MONTH(BB188),"00")<YEAR(CC189+1)&TEXT(MONTH(CC189+1),"00"),"／",CC189+1)) -> 2025-10-29 | CE189: =IF(CD189="／","／",IF(YEAR(BB188)&TEXT(MONTH(BB188),"00")<YEAR(CD189+1)&TEXT(MONTH(CD189+1),"00"),"／",CD189+1)) -> 2025-10-30 | CF189: =IF(CE189="／","／",IF(YEAR(BB188)&TEXT(MONTH(BB188),"00")<YEAR(CE189+1)&TEXT(MONTH(CE189+1),"00"),"／",CE189+1)) -> 2025-10-31 | CG189: =CG188 -> 2025-11-01 | CH189: =CG189+1 -> 2025-11-02 | CI189: =CH189+1 -> 2025-11-03 | CJ189: =CI189+1 -> 2025-11-04 | CK189: =CJ189+1 -> 2025-11-05 | CL189: =CK189+1 -> 2025-11-06 | CQ189: 閉所日数 | CR189: =IF(IF(MONTH($BL$5)=12,YEAR($BL$5)+1&"01",YEAR($BL$5)&TEXT(MONTH($BL$5)+1,"00"))>YEAR(BB188)&TEXT(MONTH(BB188),"00"),COUNTIF(BB192:CF192,"○"),"") -> 9 | CS189: =IF(OR(MONTH(BB188)=1,MONTH(BB188)=8,MONTH(BB188)=12),IF(COUNTIF(BB192:CF192,"／")>=3,"","算定除外「／」漏れ"),"") ->  | CW189: 日 | CX189: =CX188 -> 2025-10-01 | CY189: =CX189+1 -> 2025-10-02 | CZ189: =CY189+1 -> 2025-10-03 | DA189: =CZ189+1 -> 2025-10-04 | DB189: =DA189+1 -> 2025-10-05 | DC189: =DB189+1 -> 2025-10-06 | DD189: =DC189+1 -> 2025-10-07 | DE189: =DD189+1 -> 2025-10-08 | DF189: =DE189+1 -> 2025-10-09 | DG189: =DF189+1 -> 2025-10-10 | DH189: =DG189+1 -> 2025-10-11 | DI189: =DH189+1 -> 2025-10-12 | DJ189: =DI189+1 -> 2025-10-13 | DK189: =DJ189+1 -> 2025-10-14 | DL189: =DK189+1 -> 2025-10-15 | DM189: =DL189+1 -> 2025-10-16 | DN189: =DM189+1 -> 2025-10-17 | DO189: =DN189+1 -> 2025-10-18 | DP189: =DO189+1 -> 2025-10-19 | DQ189: =DP189+1 -> 2025-10-20 | DR189: =DQ189+1 -> 2025-10-21 | DS189: =DR189+1 -> 2025-10-22 | DT189: =DS189+1 -> 2025-10-23 | DU189: =DT189+1 -> 2025-10-24 | DV189: =DU189+1 -> 2025-10-25 | DW189: =DV189+1 -> 2025-10-26 | DX189: =DW189+1 -> 2025-10-27 | DY189: =DX189+1 -> 2025-10-28 | DZ189: =IF(DY189="／","／",IF(YEAR(CX188)&TEXT(MONTH(CX188),"00")<YEAR(DY189+1)&TEXT(MONTH(DY189+1),"00"),"／",DY189+1)) -> 2025-10-29 | EA189: =IF(DZ189="／","／",IF(YEAR(CX188)&TEXT(MONTH(CX188),"00")<YEAR(DZ189+1)&TEXT(MONTH(DZ189+1),"00"),"／",DZ189+1)) -> 2025-10-30 | EB189: =IF(EA189="／","／",IF(YEAR(CX188)&TEXT(MONTH(CX188),"00")<YEAR(EA189+1)&TEXT(MONTH(EA189+1),"00"),"／",EA189+1)) -> 2025-10-31 | EC189: =EC188 -> 2025-11-01 | ED189: =EC189+1 -> 2025-11-02 | EE189: =ED189+1 -> 2025-11-03 | EF189: =EE189+1 -> 2025-11-04 | EG189: =EF189+1 -> 2025-11-05 | EH189: =EG189+1 -> 2025-11-06 | EM189: 閉所日数 | EN189: =IF(IF(MONTH($BL$5)=12,YEAR($BL$5)+1&"01",YEAR($BL$5)&TEXT(MONTH($BL$5)+1,"00"))>YEAR($CX188)&TEXT(MONTH($CX188),"00"),COUNTIF(CX192:EB192,"○"),"") -> 9 | EO189: =IF(OR(MONTH(CX188)=1,MONTH(CX188)=8,MONTH(CX188)=12),IF(COUNTIF(CX192:EB192,"／")>=3,"","算定除外「／」漏れ"),"") -> 
C190: 曜日 | D190: =TEXT(WEEKDAY(+D189),"aaa") -> 水 | E190: =TEXT(WEEKDAY(+E189),"aaa") -> 木 | F190: 金 | G190: 土 | H190: 日 | I190: =TEXT(WEEKDAY(+I189),"aaa") -> 月 | J190: =TEXT(WEEKDAY(+J189),"aaa") -> 火 | K190: 水 | L190: 木 | M190: 金 | N190: 土 | O190: 日 | P190: 月 | Q190: 火 | R190: 水 | S190: 木 | T190: 金 | U190: 土 | V190: 日 | W190: 月 | X190: 火 | Y190: 水 | Z190: =TEXT(WEEKDAY(+Z189),"aaa") -> 木 | AA190: =TEXT(WEEKDAY(+AA189),"aaa") -> 金 | AB190: 土 | AC190: 日 | AD190: 月 | AE190: 火 | AF190: =IF(AF189="／","／",TEXT(WEEKDAY(+AF189),"aaa")) -> 水 | AG190: =IF(AG189="／","／",TEXT(WEEKDAY(+AG189),"aaa")) -> 木 | AH190: 金 | AI190: =TEXT(WEEKDAY(+AI189),"aaa") -> 土 | AJ190: =TEXT(WEEKDAY(+AJ189),"aaa") -> 日 | AK190: 月 | AL190: 火 | AM190: 水 | AN190: 木 | AS190: 現場閉所率 | AT190: =IFERROR(+AT189/AT188,"") ->  | AU190: =IF(AT190="","",IF(COUNTIF(D192:AH192,"○")>=COUNTIF(D195:AH195,"◎"),"4週8休以上",IF(AT190>=0.285,"4週8休以上","週休2日未達成"))) ->  | BA190: 曜日 | BB190: =TEXT(WEEKDAY(+BB189),"aaa") -> 水 | BC190: =TEXT(WEEKDAY(+BC189),"aaa") -> 木 | BD190: 金 | BE190: 土 | BF190: 日 | BG190: =TEXT(WEEKDAY(+BG189),"aaa") -> 月 | BH190: =TEXT(WEEKDAY(+BH189),"aaa") -> 火 | BI190: 水 | BJ190: 木 | BK190: 金 | BL190: 土 | BM190: 日 | BN190: 月 | BO190: 火 | BP190: 水 | BQ190: 木 | BR190: 金 | BS190: 土 | BT190: 日 | BU190: 月 | BV190: 火 | BW190: 水 | BX190: =TEXT(WEEKDAY(+BX189),"aaa") -> 木 | BY190: =TEXT(WEEKDAY(+BY189),"aaa") -> 金 | BZ190: 土 | CA190: 日 | CB190: 月 | CC190: 火 | CD190: =IF(CD189="／","／",TEXT(WEEKDAY(+CD189),"aaa")) -> 水 | CE190: =IF(CE189="／","／",TEXT(WEEKDAY(+CE189),"aaa")) -> 木 | CF190: 金 | CG190: =TEXT(WEEKDAY(+CG189),"aaa") -> 土 | CH190: =TEXT(WEEKDAY(+CH189),"aaa") -> 日 | CI190: 月 | CJ190: 火 | CK190: 水 | CL190: 木 | CQ190: 現場閉所率 | CR190: =IFERROR(+CR189/CR188,"") -> 0.2903225806 | CS190: =IF(CR190="","",IF(COUNTIF(BB192:CF192,"○")>=COUNTIF(BB195:CF195,"◎"),"4週8休以上",IF(CR190>=0.285,"4週8休以上","週休2日未達成"))) -> 4週8休以上 | CW190: 曜日 | CX190: =TEXT(WEEKDAY(+CX189),"aaa") -> 水 | CY190: =TEXT(WEEKDAY(+CY189),"aaa") -> 木 | CZ190: 金 | DA190: 土 | DB190: 日 | DC190: =TEXT(WEEKDAY(+DC189),"aaa") -> 月 | DD190: =TEXT(WEEKDAY(+DD189),"aaa") -> 火 | DE190: 水 | DF190: 木 | DG190: 金 | DH190: 土 | DI190: 日 | DJ190: 月 | DK190: 火 | DL190: 水 | DM190: 木 | DN190: 金 | DO190: 土 | DP190: 日 | DQ190: 月 | DR190: 火 | DS190: 水 | DT190: =TEXT(WEEKDAY(+DT189),"aaa") -> 木 | DU190: =TEXT(WEEKDAY(+DU189),"aaa") -> 金 | DV190: 土 | DW190: 日 | DX190: 月 | DY190: 火 | DZ190: =IF(DZ189="／","／",TEXT(WEEKDAY(+DZ189),"aaa")) -> 水 | EA190: =IF(EA189="／","／",TEXT(WEEKDAY(+EA189),"aaa")) -> 木 | EB190: 金 | EC190: =TEXT(WEEKDAY(+EC189),"aaa") -> 土 | ED190: =TEXT(WEEKDAY(+ED189),"aaa") -> 日 | EE190: 月 | EF190: 火 | EG190: 水 | EH190: 木 | EM190: 現場閉所率 | EN190: =IFERROR(+EN189/EN188,"") -> 0.2903225806 | EO190: =IF(EN190="","",IF(COUNTIF(CX192:EB192,"○")>=COUNTIF(CX195:EB195,"◎"),"4週8休以上",IF(EN190>=0.285,"4週8休以上","週休2日未達成"))) -> 4週8休以上
C191: 行事 | AI191: =IF(D220="","",D220) ->  | AJ191: =IF(E220="","",E220) ->  | AK191: =IF(F220="","",F220) ->  | AL191: =IF(G220="","",G220) ->  | AM191: =IF(H220="","",H220) ->  | AN191: =IF(I220="","",I220) ->  | AR191: 実施 | AS191: 対象期間 | AT191: =IF(IF(MONTH(入力表!$E$6)=12,YEAR(入力表!$E$6)+1&"01",YEAR(入力表!$E$6)&TEXT(MONTH(入力表!$E$6)+1,"00"))>YEAR($D188)&TEXT(MONTH($D188),"00"),COUNTIF(D193:AH193,"")+COUNTIF(D193:AH193,"●"),"") ->  | AU191: =IF(COUNTIF(D189:AH189,"／")=0,"",IF(COUNTIF(D189:AH189,"／")=1,IF(AH193="／","","月末「／」漏れ"),IF(COUNTIF(D189:AH189,"／")=2,IF(AND(AG193="／",AH193="／"),"","月末「／」漏れ"),IF(AND(AF193="／",AG193="／",AH193="／"),"","月末「／」漏れ")))) ->  | BA191: 行事 | CG191: =IF(BB220="","",BB220) ->  | CH191: =IF(BC220="","",BC220) ->  | CI191: =IF(BD220="","",BD220) ->  | CJ191: =IF(BE220="","",BE220) ->  | CK191: =IF(BF220="","",BF220) ->  | CL191: =IF(BG220="","",BG220) ->  | CP191: 実施 | CQ191: 対象期間 | CR191: =IF(IF(MONTH($BL$5)=12,YEAR($BL$5)+1&"01",YEAR($BL$5)&TEXT(MONTH($BL$5)+1,"00"))>YEAR(BB188)&TEXT(MONTH(BB188),"00"),COUNTIF(BB193:CF193,"")+COUNTIF(BB193:CF193,"●"),"") -> 31 | CS191: =IF(COUNTIF(BB189:CF189,"／")=0,"",IF(COUNTIF(BB189:CF189,"／")=1,IF(CF193="／","","月末「／」漏れ"),IF(COUNTIF(BB189:CF189,"／")=2,IF(AND(CE193="／",CF193="／"),"","月末「／」漏れ"),IF(AND(CD193="／",CE193="／",CF193="／"),"","月末「／」漏れ")))) ->  | CW191: 行事 | EC191: =IF(CX220="","",CX220) ->  | ED191: =IF(CY220="","",CY220) ->  | EE191: =IF(CZ220="","",CZ220) ->  | EF191: =IF(DA220="","",DA220) ->  | EG191: =IF(DB220="","",DB220) ->  | EH191: =IF(DC220="","",DC220) ->  | EL191: 実施 | EM191: 対象期間 | EN191: =IF(IF(MONTH($BL$5)=12,YEAR($BL$5)+1&"01",YEAR($BL$5)&TEXT(MONTH($BL$5)+1,"00"))>YEAR($CX188)&TEXT(MONTH($CX188),"00"),COUNTIF(CX193:EB193,"")+COUNTIF(CX193:EB193,"●"),"") -> 31 | EO191: =IF(COUNTIF(CX189:EB189,"／")=0,"",IF(COUNTIF(CX189:EB189,"／")=1,IF(EB193="／","","月末「／」漏れ"),IF(COUNTIF(CX189:EB189,"／")=2,IF(AND(EA193="／",EB193="／"),"","月末「／」漏れ"),IF(AND(DZ193="／",EA193="／",EB193="／"),"","月末「／」漏れ")))) -> 
C192: 計画 | AI192: =IF(D221="","",D221) ->  | AJ192: =IF(E221="","",E221) ->  | AK192: =IF(F221="","",F221) ->  | AL192: =IF(G221="","",G221) ->  | AM192: =IF(H221="","",H221) ->  | AN192: =IF(I221="","",I221) ->  | AO192: =COUNTIF(D192:AH192,"○") -> 0 | AP192: =+AO192+AP163 -> 0 | AS192: 閉所日数 | AT192: =IF(IF(MONTH(入力表!$E$6)=12,YEAR(入力表!$E$6)+1&"01",YEAR(入力表!$E$6)&TEXT(MONTH(入力表!$E$6)+1,"00"))>YEAR($D188)&TEXT(MONTH($D188),"00"),COUNTIF(D193:AH193,"●"),"") ->  | AU192: =IF(OR(MONTH(D188)=1,MONTH(D188)=8,MONTH(D188)=12),IF(COUNTIF(D193:AH193,"／")>=3,"","算定除外「／」漏れ"),"") ->  | BA192: 計画 | BE192: ○ | BF192: ○ | BL192: ○ | BM192: ○ | BN192: ○ | BS192: ○ | BT192: ○ | BZ192: ○ | CA192: ○ | CG192: =IF(BB221="","",BB221) -> ○ | CH192: ○ | CI192: ○ | CM192: =COUNTIF(BB192:CF192,"○") -> 9 | CN192: =+CM192+CN163 -> 52 | CQ192: 閉所日数 | CR192: =IF(IF(MONTH($BL$5)=12,YEAR($BL$5)+1&"01",YEAR($BL$5)&TEXT(MONTH($BL$5)+1,"00"))>YEAR(BB188)&TEXT(MONTH(BB188),"00"),COUNTIF(BB193:CF193,"●"),"") -> 0 | CS192: =IF(OR(MONTH(BB188)=1,MONTH(BB188)=8,MONTH(BB188)=12),IF(COUNTIF(BB193:CF193,"／")>=3,"","算定除外「／」漏れ"),"") ->  | CW192: 計画 | DA192: ○ | DB192: ○ | DH192: ○ | DI192: ○ | DJ192: ○ | DO192: ○ | DP192: ○ | DV192: ○ | DW192: ○ | EC192: =IF(CX221="","",CX221) -> ○ | ED192: ○ | EE192: ○ | EI192: =COUNTIF(CX192:EB192,"○") -> 9 | EJ192: =+EI192+EJ163 -> 52 | EM192: 閉所日数 | EN192: =IF(IF(MONTH($BL$5)=12,YEAR($BL$5)+1&"01",YEAR($BL$5)&TEXT(MONTH($BL$5)+1,"00"))>YEAR($CX188)&TEXT(MONTH($CX188),"00"),COUNTIF(CX193:EB193,"●"),"") -> 8 | EO192: =IF(OR(MONTH(CX188)=1,MONTH(CX188)=8,MONTH(CX188)=12),IF(COUNTIF(CX193:EB193,"／")>=3,"","算定除外「／」漏れ"),"") -> 
C193: 実施 | AI193: =IF(D222="","",D222) ->  | AJ193: =IF(E222="","",E222) ->  | AK193: =IF(F222="","",F222) ->  | AL193: =IF(G222="","",G222) ->  | AM193: =IF(H222="","",H222) ->  | AN193: =IF(I222="","",I222) ->  | AO193: =COUNTIF(D193:AH193,"●") -> 0 | AP193: =+AO193+AP164 -> 0 | AS193: 現場閉所率 | AT193: =IFERROR(+AT192/AT191,"") ->  | AU193: =IF(AT193="","",IF(COUNTIF(D193:AH193,"●")>=COUNTIF(D196:AH196,"◎"),"4週8休以上",IF(AT193>=0.285,"4週8休以上","週休2日未達成"))) ->  | BA193: 実施 | CG193: =IF(BB222="","",BB222) ->  | CH193: =IF(BC222="","",BC222) ->  | CI193: =IF(BD222="","",BD222) ->  | CJ193: =IF(BE222="","",BE222) ->  | CK193: =IF(BF222="","",BF222) ->  | CL193: =IF(BG222="","",BG222) ->  | CM193: =COUNTIF(BB193:CF193,"●") -> 0 | CN193: =+CM193+CN164 -> 0 | CQ193: 現場閉所率 | CR193: =IFERROR(+CR192/CR191,"") -> 0 | CS193: =IF(CR193="","",IF(COUNTIF(BB193:CF193,"●")>=COUNTIF(BB196:CF196,"◎"),"4週8休以上",IF(CR193>=0.285,"4週8休以上","週休2日未達成"))) -> 週休2日未達成 | CW193: 実施 | DA193: ● | DB193: ● | DH193: ● | DI193: ● | DO193: ● | DP193: ● | DV193: ● | DW193: ● | EC193: =IF(CX222="","",CX222) -> ● | ED193: =IF(CY222="","",CY222) -> ● | EE193: =IF(CZ222="","",CZ222) -> ● | EF193: =IF(DA222="","",DA222) ->  | EG193: =IF(DB222="","",DB222) ->  | EH193: =IF(DC222="","",DC222) ->  | EI193: =COUNTIF(CX193:EB193,"●") -> 8 | EJ193: =+EI193+EJ164 -> 52 | EM193: 現場閉所率 | EN193: =IFERROR(+EN192/EN191,"") -> 0.2580645161 | EO193: =IF(EN193="","",IF(COUNTIF(CX193:EB193,"●")>=COUNTIF(CX196:EB196,"◎"),"4週8休以上",IF(EN193>=0.285,"4週8休以上","週休2日未達成"))) -> 4週8休以上
D194: 1 | E194: 2 | F194: 3 | G194: 4 | H194: 5 | I194: 6 | J194: 7 | K194: 8 | L194: 9 | M194: 10 | N194: 11 | O194: 12 | P194: 13 | Q194: 14 | R194: 15 | S194: 16 | T194: 17 | U194: 18 | V194: 19 | W194: 20 | X194: 21 | Y194: 22 | Z194: 23 | AA194: 24 | AB194: 25 | AC194: 26 | AD194: 27 | AE194: 28 | AF194: 29 | AG194: 30 | AH194: 31 | AI194: 32 | AJ194: 33 | AK194: 34 | AL194: 35 | AM194: 36 | AN194: 37 | AS194: =AU193 ->  | BB194: 1 | BC194: 2 | BD194: 3 | BE194: 4 | BF194: 5 | BG194: 6 | BH194: 7 | BI194: 8 | BJ194: 9 | BK194: 10 | BL194: 11 | BM194: 12 | BN194: 13 | BO194: 14 | BP194: 15 | BQ194: 16 | BR194: 17 | BS194: 18 | BT194: 19 | BU194: 20 | BV194: 21 | BW194: 22 | BX194: 23 | BY194: 24 | BZ194: 25 | CA194: 26 | CB194: 27 | CC194: 28 | CD194: 29 | CE194: 30 | CF194: 31 | CG194: 32 | CH194: 33 | CI194: 34 | CJ194: 35 | CK194: 36 | CL194: 37 | CQ194: =CS193 -> 週休2日未達成 | CX194: 1 | CY194: 2 | CZ194: 3 | DA194: 4 | DB194: 5 | DC194: 6 | DD194: 7 | DE194: 8 | DF194: 9 | DG194: 10 | DH194: 11 | DI194: 12 | DJ194: 13 | DK194: 14 | DL194: 15 | DM194: 16 | DN194: 17 | DO194: 18 | DP194: 19 | DQ194: 20 | DR194: 21 | DS194: 22 | DT194: 23 | DU194: 24 | DV194: 25 | DW194: 26 | DX194: 27 | DY194: 28 | DZ194: 29 | EA194: 30 | EB194: 31 | EC194: 32 | ED194: 33 | EE194: 34 | EF194: 35 | EG194: 36 | EH194: 37 | EM194: =EO193 -> 4週8休以上
C195: 計画 | D195: =IF(D192="／","／",IF(OR(D190="土",D190="日"),"◎","")) ->  | E195: =IF(E192="／","／",IF(OR(E190="土",E190="日"),"◎","")) ->  | G195: ◎ | H195: ◎ | N195: ◎ | O195: ◎ | U195: ◎ | V195: ◎ | AB195: ◎ | AC195: ◎ | AD195: =IF(AD192="／","／",IF(OR(AD190="土",AD190="日"),"◎","")) ->  | AE195: =IF(AE192="／","／",IF(OR(AE190="土",AE190="日"),"◎","")) ->  | AI195: ◎ | AJ195: ◎ | AS195: =AT197 ->  | BA195: 計画 | BB195: =IF(BB192="／","／",IF(OR(BB190="土",BB190="日"),"◎","")) ->  | BE195: ◎ | BF195: ◎ | BL195: ◎ | BM195: ◎ | BN195: =IF(BN192="／","／",IF(OR(BN190="土",BN190="日"),"◎","")) ->  | BO195: =IF(BO192="／","／",IF(OR(BO190="土",BO190="日"),"◎","")) ->  | BS195: ◎ | BT195: ◎ | BZ195: ◎ | CA195: ◎ | CB195: =IF(CB192="／","／",IF(OR(CB190="土",CB190="日"),"◎","")) ->  | CC195: =IF(CC192="／","／",IF(OR(CC190="土",CC190="日"),"◎","")) ->  | CG195: ◎ | CH195: ◎ | CQ195: =CR197 -> OUT | CW195: 計画 | CX195: =IF(CX192="／","／",IF(OR(CX190="土",CX190="日"),"◎","")) ->  | DA195: ◎ | DB195: ◎ | DH195: ◎ | DI195: ◎ | DJ195: =IF(DJ192="／","／",IF(OR(DJ190="土",DJ190="日"),"◎","")) ->  | DK195: =IF(DK192="／","／",IF(OR(DK190="土",DK190="日"),"◎","")) ->  | DO195: ◎ | DP195: ◎ | DV195: ◎ | DW195: ◎ | DX195: =IF(DX192="／","／",IF(OR(DX190="土",DX190="日"),"◎","")) ->  | DY195: =IF(DY192="／","／",IF(OR(DY190="土",DY190="日"),"◎","")) ->  | EC195: ◎ | ED195: ◎ | EM195: =EN197 -> OK
C196: 実施 | D196: =IF(D193="／","／",IF(OR(D190="土",D190="日"),"◎","")) ->  | E196: =IF(E193="／","／",IF(OR(E190="土",E190="日"),"◎","")) ->  | G196: ◎ | H196: ◎ | N196: ◎ | O196: ◎ | U196: ◎ | V196: ◎ | AB196: ◎ | AC196: ◎ | AI196: ◎ | AJ196: ◎ | BA196: 実施 | BB196: =IF(BB193="／","／",IF(OR(BB190="土",BB190="日"),"◎","")) ->  | BC196: =IF(BC193="／","／",IF(OR(BC190="土",BC190="日"),"◎","")) ->  | BE196: ◎ | BF196: ◎ | BL196: ◎ | BM196: ◎ | BS196: ◎ | BT196: ◎ | BZ196: ◎ | CA196: ◎ | CG196: ◎ | CH196: ◎ | CW196: 実施 | CX196: =IF(CX193="／","／",IF(OR(CX190="土",CX190="日"),"◎","")) ->  | CY196: =IF(CY193="／","／",IF(OR(CY190="土",CY190="日"),"◎","")) ->  | DA196: ◎ | DB196: ◎ | DH196: ◎ | DI196: ◎ | DO196: ◎ | DP196: ◎ | DV196: ◎ | DW196: ◎ | EC196: ◎ | ED196: ◎
C197: 完全 | D197: =IF(WEEKDAY(DATE(YEAR(D188),MONTH(D188),1),2)=1,DATE(YEAR(D188),MONTH(D188),1),EOMONTH(D188,-1)-MOD(WEEKDAY(EOMONTH(D188,-1),2)+6,7)) -> 2025-09-29 | E197: ～ | F197: =DATE(YEAR(D188),MONTH(D188),1)+MOD(7-WEEKDAY(DATE(YEAR(D188),MONTH(D188),1),2),7) -> 2025-10-05 | G197: =IF(DAY(D197)=1,IF(COUNTIF(D193:J193,"／")>=1,"対象外",IF(COUNTIF(INDEX(D193:AN193,DAY(D197)):INDEX(D193:AN193,HLOOKUP(F197,D189:AN194,6,FALSE)),"")+COUNTIF(INDEX(D193:AN193,DAY(D197)):INDEX(D193:AN193,HLOOKUP(F197,D189:AN194,6,FALSE)),"●")=7,IF(COUNTIF(INDEX(D193:AN193,DAY(D197)):INDEX(D193:AN193,HLOOKUP(F197,D189:AN194,6,FALSE)),"●")>=2,"OK","OUT"),IF(COUNTIF(INDEX(D193:AN193,DAY(D197)):INDEX(D193:AN193,HLOOKUP(F197,D189:AN194,6,FALSE)),"●")>=COUNTIF(INDEX(D196:AN196,DAY(D197)):INDEX(D196:AN196,HLOOKUP(F197,D189:AN194,6,FALSE)),"○"),"OK","OUT"))),IF(AND(AK168="",AE168=""),Y168,IF(AK168="",AE168,AK168))) -> 「／」漏れ | J197: =F197+1 -> 2025-10-06 | K197: ～ | L197: =F197+7 -> 2025-10-12 | M197: =IF(COUNTIF(INDEX(D193:AN193,DAY(J197)):INDEX(D193:AN193,HLOOKUP(L197,D189:AN194,6,FALSE)),"")+COUNTIF(INDEX(D193:AN193,DAY(J197)):INDEX(D193:AN193,HLOOKUP(L197,D189:AN194,6,FALSE)),"●")=7,IF(COUNTIF(INDEX(D193:AN193,DAY(J197)):INDEX(D193:AN193,HLOOKUP(L197,D189:AN194,6,FALSE)),"●")>=2,"OK","OUT"),"対象外") -> OUT | P197: =L197+1 -> 2025-10-13 | Q197: ～ | R197: =L197+7 -> 2025-10-19 | S197: =IF(COUNTIF(INDEX(D193:AN193,DAY(P197)):INDEX(D193:AN193,HLOOKUP(R197,D189:AN194,6,FALSE)),"")+COUNTIF(INDEX(D193:AN193,DAY(P197)):INDEX(D193:AN193,HLOOKUP(R197,D189:AN194,6,FALSE)),"●")=7,IF(COUNTIF(INDEX(D193:AN193,DAY(P197)):INDEX(D193:AN193,HLOOKUP(R197,D189:AN194,6,FALSE)),"●")>=2,"OK","OUT"),"対象外") -> OUT | V197: =R197+1 -> 2025-10-20 | W197: ～ | X197: =R197+7 -> 2025-10-26 | Y197: =IF(COUNTIF(INDEX(D193:AN193,DAY(V197)):INDEX(D193:AN193,HLOOKUP(X197,D189:AN194,6,FALSE)),"")+COUNTIF(INDEX(D193:AN193,DAY(V197)):INDEX(D193:AN193,HLOOKUP(X197,D189:AN194,6,FALSE)),"●")=7,IF(COUNTIF(INDEX(D193:AN193,DAY(V197)):INDEX(D193:AN193,HLOOKUP(X197,D189:AN194,6,FALSE)),"●")>=2,"OK","OUT"),"対象外") -> OUT | AB197: =IF(AND(DAY(X197+7)<23,DAY(X197+7)>=7),"",X197+1) -> 2025-10-27 | AC197: =IF(AND(DAY(X197+7)<23,DAY(X197+7)>=7),"","～") -> ～ | AD197: =IF(AND(DAY(X197+7)<23,DAY(X197+7)>=7),"",X197+7) -> 2025-11-02 | AE197: =IF(AND(DAY(X197+7)<23,DAY(X197+7)>=7),"",IF(COUNTIF(INDEX(D193:AN193,DAY(AB197)):INDEX(D193:AN193,HLOOKUP(AD197,D189:AN194,6,FALSE)),"")+COUNTIF(INDEX(D193:AN193,DAY(AB197)):INDEX(D193:AN193,HLOOKUP(AD197,D189:AN194,6,FALSE)),"●")=7,IF(COUNTIF(INDEX(D193:AN193,DAY(AB197)):INDEX(D193:AN193,HLOOKUP(AD197,D189:AN194,6,FALSE)),"●")>=2,"OK","OUT"),IF(COUNTIF(INDEX(D193:AN193,DAY(AB197)):INDEX(D193:AN193,HLOOKUP(AD197,D189:AN194,6,FALSE)),"")+COUNTIF(INDEX(D193:AN193,DAY(AB197)):INDEX(D193:AN193,HLOOKUP(AD197,D189:AN194,6,FALSE)),"●")>7,"「／」漏れ","対象外"))) -> OUT | AH197: =IF(AE197="","",IF(AND(DAY(AD197+7)<23,DAY(AD197+7)>=7),"",AD197+1)) ->  | AI197: =IF(AE197="","",IF(AND(DAY(AD197+7)<23,DAY(AD197+7)>=7),"","～")) ->  | AJ197: =IF(AE197="","",IF(AND(DAY(AD197+7)<23,DAY(AD197+7)>=7),"",AD197+7)) ->  | AK197: =IF(AE197="","",IF(AND(DAY(AD197+7)<23,DAY(AD197+7)>=7),"",IF(COUNTIF(INDEX(D193:AN193,DAY(AH197)):INDEX(D193:AN193,HLOOKUP(AJ197,D189:AN194,6,FALSE)),"")+COUNTIF(INDEX(D193:AN193,DAY(AH197)):INDEX(D193:AN193,HLOOKUP(AJ197,D189:AN194,6,FALSE)),"●")=7,IF(COUNTIF(INDEX(D193:AN193,DAY(AH197)):INDEX(D193:AN193,HLOOKUP(AJ197,D189:AN194,6,FALSE)),"●")>=2,"OK","OUT"),IF(COUNTIF(INDEX(D193:AN193,HLOOKUP(AH197,D189:AN194,6,FALSE)):INDEX(D193:AN193,HLOOKUP(AJ197,D189:AN194,6,FALSE)),"")+COUNTIF(INDEX(D193:AN193,HLOOKUP(AH197,D189:AN194,6,FALSE)):INDEX(D193:AN193,HLOOKUP(AJ197,D189:AN194,6,FALSE)),"●")>7,"「／」漏れ","対象外")))) ->  | AS197: 完全週休二日 | AT197: =IF(AT188="","",IF(COUNTIF(D197:AN197,"OUT")>=1,"OUT","OK")) ->  | BA197: 完全 | BB197: =IF(WEEKDAY(DATE(YEAR(BB188),MONTH(BB188),1),2)=1,DATE(YEAR(BB188),MONTH(BB188),1),EOMONTH(BB188,-1)-MOD(WEEKDAY(EOMONTH(BB188,-1),2)+6,7)) -> 2025-09-29 | BC197: ～ | BD197: =DATE(YEAR(BB188),MONTH(BB188),1)+MOD(7-WEEKDAY(DATE(YEAR(BB188),MONTH(BB188),1),2),7) -> 2025-10-05 | BE197: =IF(DAY(BB197)=1,IF(COUNTIF(BB193:BH193,"／")>=1,"対象外",IF(COUNTIF(INDEX(BB193:CL193,DAY(BB197)):INDEX(BB193:CL193,HLOOKUP(BD197,BB189:CL194,6,FALSE)),"")+COUNTIF(INDEX(BB193:CL193,DAY(BB197)):INDEX(BB193:CL193,HLOOKUP(BD197,BB189:CL194,6,FALSE)),"●")=7,IF(COUNTIF(INDEX(BB193:CL193,DAY(BB197)):INDEX(BB193:CL193,HLOOKUP(BD197,BB189:CL194,6,FALSE)),"●")>=2,"OK","OUT"),IF(COUNTIF(INDEX(BB193:CL193,DAY(BB197)):INDEX(BB193:CL193,HLOOKUP(BD197,BB189:CL194,6,FALSE)),"●")>=COUNTIF(INDEX(BB196:CL196,DAY(BB197)):INDEX(BB196:CL196,HLOOKUP(BD197,BB189:CL194,6,FALSE)),"○"),"OK","OUT"))),IF(AND(CI168="",CC168=""),BW168,IF(CI168="",CC168,CI168))) -> OUT | BH197: =BD197+1 -> 2025-10-06 | BI197: ～ | BJ197: =BD197+7 -> 2025-10-12 | BK197: =IF(COUNTIF(INDEX(BB193:CL193,DAY(BH197)):INDEX(BB193:CL193,HLOOKUP(BJ197,BB189:CL194,6,FALSE)),"")+COUNTIF(INDEX(BB193:CL193,DAY(BH197)):INDEX(BB193:CL193,HLOOKUP(BJ197,BB189:CL194,6,FALSE)),"●")=7,IF(COUNTIF(INDEX(BB193:CL193,DAY(BH197)):INDEX(BB193:CL193,HLOOKUP(BJ197,BB189:CL194,6,FALSE)),"●")>=2,"OK","OUT"),"対象外") -> OUT | BN197: =BJ197+1 -> 2025-10-13 | BO197: ～ | BP197: =BJ197+7 -> 2025-10-19 | BQ197: =IF(COUNTIF(INDEX(BB193:CL193,DAY(BN197)):INDEX(BB193:CL193,HLOOKUP(BP197,BB189:CL194,6,FALSE)),"")+COUNTIF(INDEX(BB193:CL193,DAY(BN197)):INDEX(BB193:CL193,HLOOKUP(BP197,BB189:CL194,6,FALSE)),"●")=7,IF(COUNTIF(INDEX(BB193:CL193,DAY(BN197)):INDEX(BB193:CL193,HLOOKUP(BP197,BB189:CL194,6,FALSE)),"●")>=2,"OK","OUT"),"対象外") -> OUT | BT197: =BP197+1 -> 2025-10-20 | BU197: ～ | BV197: =BP197+7 -> 2025-10-26 | BW197: =IF(COUNTIF(INDEX(BB193:CL193,DAY(BT197)):INDEX(BB193:CL193,HLOOKUP(BV197,BB189:CL194,6,FALSE)),"")+COUNTIF(INDEX(BB193:CL193,DAY(BT197)):INDEX(BB193:CL193,HLOOKUP(BV197,BB189:CL194,6,FALSE)),"●")=7,IF(COUNTIF(INDEX(BB193:CL193,DAY(BT197)):INDEX(BB193:CL193,HLOOKUP(BV197,BB189:CL194,6,FALSE)),"●")>=2,"OK","OUT"),"対象外") -> OUT | BZ197: =IF(AND(DAY(BV197+7)<23,DAY(BV197+7)>=7),"",BV197+1) -> 2025-10-27 | CA197: =IF(AND(DAY(BV197+7)<23,DAY(BV197+7)>=7),"","～") -> ～ | CB197: =IF(AND(DAY(BV197+7)<23,DAY(BV197+7)>=7),"",BV197+7) -> 2025-11-02 | CC197: =IF(AND(DAY(BV197+7)<23,DAY(BV197+7)>=7),"",IF(COUNTIF(INDEX(BB193:CL193,DAY(BZ197)):INDEX(BB193:CL193,HLOOKUP(CB197,BB189:CL194,6,FALSE)),"")+COUNTIF(INDEX(BB193:CL193,DAY(BZ197)):INDEX(BB193:CL193,HLOOKUP(CB197,BB189:CL194,6,FALSE)),"●")=7,IF(COUNTIF(INDEX(BB193:CL193,DAY(BZ197)):INDEX(BB193:CL193,HLOOKUP(CB197,BB189:CL194,6,FALSE)),"●")>=2,"OK","OUT"),IF(COUNTIF(INDEX(BB193:CL193,DAY(BZ197)):INDEX(BB193:CL193,HLOOKUP(CB197,BB189:CL194,6,FALSE)),"")+COUNTIF(INDEX(BB193:CL193,DAY(BZ197)):INDEX(BB193:CL193,HLOOKUP(CB197,BB189:CL194,6,FALSE)),"●")>7,"「／」漏れ","対象外"))) -> OUT | CF197: =IF(CC197="","",IF(AND(DAY(CB197+7)<23,DAY(CB197+7)>=7),"",CB197+1)) ->  | CG197: =IF(CC197="","",IF(AND(DAY(CB197+7)<23,DAY(CB197+7)>=7),"","～")) ->  | CH197: =IF(CC197="","",IF(AND(DAY(CB197+7)<23,DAY(CB197+7)>=7),"",CB197+7)) ->  | CI197: =IF(CC197="","",IF(AND(DAY(CB197+7)<23,DAY(CB197+7)>=7),"",IF(COUNTIF(INDEX(BB193:CL193,DAY(CF197)):INDEX(BB193:CL193,HLOOKUP(CH197,BB189:CL194,6,FALSE)),"")+COUNTIF(INDEX(BB193:CL193,DAY(CF197)):INDEX(BB193:CL193,HLOOKUP(CH197,BB189:CL194,6,FALSE)),"●")=7,IF(COUNTIF(INDEX(BB193:CL193,DAY(CF197)):INDEX(BB193:CL193,HLOOKUP(CH197,BB189:CL194,6,FALSE)),"●")>=2,"OK","OUT"),IF(COUNTIF(INDEX(BB193:CL193,HLOOKUP(CF197,BB189:CL194,6,FALSE)):INDEX(BB193:CL193,HLOOKUP(CH197,BB189:CL194,6,FALSE)),"")+COUNTIF(INDEX(BB193:CL193,HLOOKUP(CF197,BB189:CL194,6,FALSE)):INDEX(BB193:CL193,HLOOKUP(CH197,BB189:CL194,6,FALSE)),"●")>7,"「／」漏れ","対象外")))) ->  | CQ197: 完全週休二日 | CR197: =IF(CR188="","",IF(COUNTIF(BB197:CL197,"OUT")>=1,"OUT","OK")) -> OUT | CW197: 完全 | CX197: =IF(WEEKDAY(DATE(YEAR(CX188),MONTH(CX188),1),2)=1,DATE(YEAR(CX188),MONTH(CX188),1),EOMONTH(CX188,-1)-MOD(WEEKDAY(EOMONTH(CX188,-1),2)+6,7)) -> 2025-09-29 | CY197: ～ | CZ197: =DATE(YEAR(CX188),MONTH(CX188),1)+MOD(7-WEEKDAY(DATE(YEAR(CX188),MONTH(CX188),1),2),7) -> 2025-10-05 | DA197: =IF(DAY(CX197)=1,IF(COUNTIF(CX193:DD193,"／")>=1,"対象外",IF(COUNTIF(INDEX(CX193:EH193,DAY(CX197)):INDEX(CX193:EH193,HLOOKUP(CZ197,CX189:EH194,6,FALSE)),"")+COUNTIF(INDEX(CX193:EH193,DAY(CX197)):INDEX(CX193:EH193,HLOOKUP(CZ197,CX189:EH194,6,FALSE)),"●")=7,IF(COUNTIF(INDEX(CX193:EH193,DAY(CX197)):INDEX(CX193:EH193,HLOOKUP(CZ197,CX189:EH194,6,FALSE)),"●")>=2,"OK","OUT"),IF(COUNTIF(INDEX(CX193:EH193,DAY(CX197)):INDEX(CX193:EH193,HLOOKUP(CZ197,CX189:EH194,6,FALSE)),"●")>=COUNTIF(INDEX(CX196:EH196,DAY(CX197)):INDEX(CX196:EH196,HLOOKUP(CZ197,CX189:EH194,6,FALSE)),"○"),"OK","OUT"))),IF(AND(EE168="",DY168=""),DS168,IF(EE168="",DY168,EE168))) -> OK | DD197: =CZ197+1 -> 2025-10-06 | DE197: ～ | DF197: =CZ197+7 -> 2025-10-12 | DG197: =IF(COUNTIF(INDEX(CX193:EH193,DAY(DD197)):INDEX(CX193:EH193,HLOOKUP(DF197,CX189:EH194,6,FALSE)),"")+COUNTIF(INDEX(CX193:EH193,DAY(DD197)):INDEX(CX193:EH193,HLOOKUP(DF197,CX189:EH194,6,FALSE)),"●")=7,IF(COUNTIF(INDEX(CX193:EH193,DAY(DD197)):INDEX(CX193:EH193,HLOOKUP(DF197,CX189:EH194,6,FALSE)),"●")>=2,"OK","OUT"),"対象外") -> OK | DJ197: =DF197+1 -> 2025-10-13 | DK197: ～ | DL197: =DF197+7 -> 2025-10-19 | DM197: =IF(COUNTIF(INDEX(CX193:EH193,DAY(DJ197)):INDEX(CX193:EH193,HLOOKUP(DL197,CX189:EH194,6,FALSE)),"")+COUNTIF(INDEX(CX193:EH193,DAY(DJ197)):INDEX(CX193:EH193,HLOOKUP(DL197,CX189:EH194,6,FALSE)),"●")=7,IF(COUNTIF(INDEX(CX193:EH193,DAY(DJ197)):INDEX(CX193:EH193,HLOOKUP(DL197,CX189:EH194,6,FALSE)),"●")>=2,"OK","OUT"),"対象外") -> OK | DP197: =DL197+1 -> 2025-10-20 | DQ197: ～ | DR197: =DL197+7 -> 2025-10-26 | DS197: =IF(COUNTIF(INDEX(CX193:EH193,DAY(DP197)):INDEX(CX193:EH193,HLOOKUP(DR197,CX189:EH194,6,FALSE)),"")+COUNTIF(INDEX(CX193:EH193,DAY(DP197)):INDEX(CX193:EH193,HLOOKUP(DR197,CX189:EH194,6,FALSE)),"●")=7,IF(COUNTIF(INDEX(CX193:EH193,DAY(DP197)):INDEX(CX193:EH193,HLOOKUP(DR197,CX189:EH194,6,FALSE)),"●")>=2,"OK","OUT"),"対象外") -> OK | DV197: =IF(AND(DAY(DR197+7)<23,DAY(DR197+7)>=7),"",DR197+1) -> 2025-10-27 | DW197: =IF(AND(DAY(DR197+7)<23,DAY(DR197+7)>=7),"","～") -> ～ | DX197: =IF(AND(DAY(DR197+7)<23,DAY(DR197+7)>=7),"",DR197+7) -> 2025-11-02 | DY197: =IF(AND(DAY(DR197+7)<23,DAY(DR197+7)>=7),"",IF(COUNTIF(INDEX(CX193:EH193,DAY(DV197)):INDEX(CX193:EH193,HLOOKUP(DX197,CX189:EH194,6,FALSE)),"")+COUNTIF(INDEX(CX193:EH193,DAY(DV197)):INDEX(CX193:EH193,HLOOKUP(DX197,CX189:EH194,6,FALSE)),"●")=7,IF(COUNTIF(INDEX(CX193:EH193,DAY(DV197)):INDEX(CX193:EH193,HLOOKUP(DX197,CX189:EH194,6,FALSE)),"●")>=2,"OK","OUT"),IF(COUNTIF(INDEX(CX193:EH193,DAY(DV197)):INDEX(CX193:EH193,HLOOKUP(DX197,CX189:EH194,6,FALSE)),"")+COUNTIF(INDEX(CX193:EH193,DAY(DV197)):INDEX(CX193:EH193,HLOOKUP(DX197,CX189:EH194,6,FALSE)),"●")>7,"「／」漏れ","対象外"))) -> OK | EB197: =IF(DY197="","",IF(AND(DAY(DX197+7)<23,DAY(DX197+7)>=7),"",DX197+1)) ->  | EC197: =IF(DY197="","",IF(AND(DAY(DX197+7)<23,DAY(DX197+7)>=7),"","～")) ->  | ED197: =IF(DY197="","",IF(AND(DAY(DX197+7)<23,DAY(DX197+7)>=7),"",DX197+7)) ->  | EE197: =IF(DY197="","",IF(AND(DAY(DX197+7)<23,DAY(DX197+7)>=7),"",IF(COUNTIF(INDEX(CX193:EH193,DAY(EB197)):INDEX(CX193:EH193,HLOOKUP(ED197,CX189:EH194,6,FALSE)),"")+COUNTIF(INDEX(CX193:EH193,DAY(EB197)):INDEX(CX193:EH193,HLOOKUP(ED197,CX189:EH194,6,FALSE)),"●")=7,IF(COUNTIF(INDEX(CX193:EH193,DAY(EB197)):INDEX(CX193:EH193,HLOOKUP(ED197,CX189:EH194,6,FALSE)),"●")>=2,"OK","OUT"),IF(COUNTIF(INDEX(CX193:EH193,HLOOKUP(EB197,CX189:EH194,6,FALSE)):INDEX(CX193:EH193,HLOOKUP(ED197,CX189:EH194,6,FALSE)),"")+COUNTIF(INDEX(CX193:EH193,HLOOKUP(EB197,CX189:EH194,6,FALSE)):INDEX(CX193:EH193,HLOOKUP(ED197,CX189:EH194,6,FALSE)),"●")>7,"「／」漏れ","対象外")))) ->  | EM197: 完全週休二日 | EN197: =IF(EN188="","",IF(COUNTIF(CX197:EH197,"OUT")>=1,"OUT","OK")) -> OK
A199: =IF(AND(NOT($AT$188=""),$AT$217=""),"対象期間","") -> 
A200: =IF(AND(NOT($AT$188=""),$AT$217=""),"対象期間","") ->  | C200: ※１工事着手日：始期日以降に準備工事（現場事務所の建設・測量等）、工場製作を含む工事における工場製作工に着手した日 | AR200: 工事全体の確認 | BA200: ※１工事着手日：始期日以降に準備工事（現場事務所の建設・測量等）、工場製作を含む工事における工場製作工に着手した日 | CP200: 工事全体の確認 | CW200: ※１工事着手日：始期日以降に準備工事（現場事務所の建設・測量等）、工場製作を含む工事における工場製作工に着手した日 | EL200: 工事全体の確認
C201: ※２作業完了日：工事施工範囲内で全ての作業（後片付けを含む）が完了した日 （工事現場事務所は工事施工範囲外に設置するため、ここでいう後片付けの対象に含まない） | AR201: 計画 | AS201: 全対象期間 | AT201: =IFERROR(AT172+AT188,"") ->  | BA201: ※２作業完了日：工事施工範囲内で全ての作業（後片付けを含む）が完了した日 （工事現場事務所は工事施工範囲外に設置するため、ここでいう後片付けの対象に含まない） | CP201: 計画 | CQ201: 全対象期間 | CR201: =IFERROR(CR172+CR188,"") ->  | CW201: ※２作業完了日：工事施工範囲内で全ての作業（後片付けを含む）が完了した日 （工事現場事務所は工事施工範囲外に設置するため、ここでいう後片付けの対象に含まない） | EL201: 計画 | EM201: 全対象期間 | EN201: =IFERROR(EN172+EN188,"") -> 170
AS202: 全現場閉所日数 | AT202: =IFERROR(AT173+AT189,"") ->  | CQ202: 全現場閉所日数 | CR202: =IFERROR(CR173+CR189,"") ->  | EM202: 全現場閉所日数 | EN202: =IFERROR(EN173+EN189,"") -> 53
C203: 【算定除外期間】：夏季休暇（8月13日～8月15日）、年末年始（12月29日～翌年1月3日）は算定期間の分母・分子に含めない | AS203: 現場閉所率 | AT203: =IFERROR(+AT202/AT201,"") ->  | AU203: =IF(AT203>=0.285,"4週8休以上","週休2日未達成") -> 4週8休以上 | BA203: 【算定除外期間】：夏季休暇（8月13日～8月15日）、年末年始（12月29日～翌年1月3日）は算定期間の分母・分子に含めない | CQ203: 現場閉所率 | CR203: =IFERROR(+CR202/CR201,"") ->  | CS203: =IF(CR203>=0.285,"4週8休以上","週休2日未達成") -> 4週8休以上 | CW203: 【算定除外期間】：夏季休暇（8月13日～8月15日）、年末年始（12月29日～翌年1月3日）は算定期間の分母・分子に含めない | EM203: 現場閉所率 | EN203: =IFERROR(+EN202/EN201,"") -> 0.3117647059 | EO203: =IF(EN203>=0.285,"4週8休以上","週休2日未達成") -> 4週8休以上
C204: ※３工事期間の全ての月において、達成状況を確認し、一度でも達成できない月があれば、４週８休以上（月単位）は「未達成」となり、補正の対象とならない。 月によっては、土日を全て閉所しても現場閉所率が28.5％に満たない場合があるが、その月の対象期間の土日日数以上閉所していれば達成とみなす。 ※４工事対象期間のうち、一度でも完全週休２日（月～日で２日以上の現場閉所）を達成できなければ、 完全週休２日は「未達成」となり、補正の対象とならない。 なお、工期始期・終期、年末年始、夏季休暇などにより、７日間に満たない期間は完全週休２日の達成判断の対象外とする。 | AR204: 実施 | AS204: 全対象期間 | AT204: =IFERROR(AT175+AT191,"") ->  | BA204: ※３工事期間の全ての月において、達成状況を確認し、一度でも達成できない月があれば、４週８休以上（月単位）は「未達成」となり、補正の対象とならない。 月によっては、土日を全て閉所しても現場閉所率が28.5％に満たない場合があるが、その月の対象期間の土日日数以上閉所していれば達成とみなす。 ※４工事対象期間のうち、一度でも完全週休２日（月～日で２日以上の現場閉所）を達成できなければ、 完全週休２日は「未達成」となり、補正の対象とならない。 なお、工期始期・終期、年末年始、夏季休暇などにより、７日間に満たない期間は完全週休２日の達成判断の対象外とする。 | CP204: 実施 | CQ204: 全対象期間 | CR204: =IFERROR(CR175+CR191,"") ->  | CW204: ※３工事期間の全ての月において、達成状況を確認し、一度でも達成できない月があれば、４週８休以上（月単位）は「未達成」となり、補正の対象とならない。 月によっては、土日を全て閉所しても現場閉所率が28.5％に満たない場合があるが、その月の対象期間の土日日数以上閉所していれば達成とみなす。 ※４工事対象期間のうち、一度でも完全週休２日（月～日で２日以上の現場閉所）を達成できなければ、 完全週休２日は「未達成」となり、補正の対象とならない。 なお、工期始期・終期、年末年始、夏季休暇などにより、７日間に満たない期間は完全週休２日の達成判断の対象外とする。 | EL204: 実施 | EM204: 全対象期間 | EN204: =IFERROR(EN175+EN191,"") -> 170
AS205: 全現場閉所日数 | AT205: =IFERROR(AT176+AT192,"") ->  | CQ205: 全現場閉所日数 | CR205: =IFERROR(CR176+CR192,"") ->  | EM205: 全現場閉所日数 | EN205: =IFERROR(EN176+EN192,"") -> 53
AS206: 現場閉所率 | AT206: =IFERROR(+AT205/AT204,"") ->  | AU206: =IF(AT206>=0.285,"4週8休以上","週休2日未達成") -> 4週8休以上 | CQ206: 現場閉所率 | CR206: =IFERROR(+CR205/CR204,"") ->  | CS206: =IF(CR206>=0.285,"4週8休以上","週休2日未達成") -> 4週8休以上 | EM206: 現場閉所率 | EN206: =IFERROR(+EN205/EN204,"") -> 0.3117647059 | EO206: =IF(EN206>=0.285,"4週8休以上","週休2日未達成") -> 4週8休以上
AS207: 閉所（月単位） | AT207: =IFERROR(COUNTIF(AS$14:$AS197,"4週8休以上")/(COUNTIF(AS$14:$AS197,"4週8休以上")+COUNTIF(AS$14:$AS197,"週休2日未達成")),"") ->  | AU207: =IF(OR(AT207=100%,AT207=""),"達成","未達成") -> 達成 | CQ207: 閉所（月単位） | CR207: =IFERROR(COUNTIF(CQ$14:$CQ197,"4週8休以上")/(COUNTIF(CQ$14:$CQ197,"4週8休以上")+COUNTIF(CQ$14:$CQ197,"週休2日未達成")),"") -> 0 | CS207: =IF(OR(CR207=100%,CR207=""),"達成","未達成") -> 未達成 | EM207: 閉所（月単位） | EN207: =IFERROR(COUNTIF($EM$14:EM197,"4週8休以上")/(COUNTIF($EM$14:EM197,"4週8休以上")+COUNTIF($EM$14:EM197,"週休2日未達成")),"") -> 1 | EO207: =IF(OR(EN207=100%,EN207=""),"達成","未達成") -> 達成
AS208: 完全週休二日 | AT208: =IF(COUNTIF(AS$14:$AS197,"OUT")>=1,"OUT","OK") -> OK | AU208: =IF(AT208="OK","達成","未達成") -> 達成 | CQ208: 完全週休二日 | CR208: =IF(COUNTIF(CQ$14:$CQ197,"OUT")>=1,"OUT","OK") -> OUT | CS208: =IF(CR208="OK","達成","未達成") -> 未達成 | EM208: 完全週休二日 | EN208: =IF(COUNTIF($EM$14:EM197,"OUT")>=1,"OUT","OK") -> OK | EO208: =IF(EN208="OK","達成","未達成") -> 達成
C209: ※必要に応じて各月の完全週休2日（月～日）の達成判定の行を修正してください。（曜日に合わせて修正） | BA209: ※必要に応じて各月の完全週休2日（月～日）の達成判定の行を修正してください。（曜日に合わせて修正） | CW209: ※必要に応じて各月の完全週休2日（月～日）の達成判定の行を修正してください。（曜日に合わせて修正）
C215: 算定除外期間以外の祝日（ＧＷ含む）は、算定期間（分母）の対象＝現場閉所の場合は分子にカウントして現場閉所率を算定 | BA215: 算定除外期間以外の祝日（ＧＷ含む）は、算定期間（分母）の対象＝現場閉所の場合は分子にカウントして現場閉所率を算定 | CW215: 算定除外期間以外の祝日（ＧＷ含む）は、算定期間（分母）の対象＝現場閉所の場合は分子にカウントして現場閉所率を算定
A217: =IF($AT$217="","","対象期間") ->  | C217: 月 | D217: =DATE(YEAR(D188),MONTH(D188)+1,1) -> 2025-11-01 | AI217: =DATE(YEAR(D217),MONTH(D217)+1,1) -> 2025-12-01 | AO217: 現場閉所計 | AP217: 現場閉所累計 | AR217: 計画 | AS217: 対象期間 | AT217: =IF(IF(MONTH(入力表!$E$6)=12,YEAR(入力表!$E$6)+1&"01",YEAR(入力表!$E$6)&TEXT(MONTH(入力表!$E$6)+1,"00"))>YEAR($D217)&TEXT(MONTH($D217),"00"),COUNTIF(D221:AH221,"")+COUNTIF(D221:AH221,"○"),"") ->  | AU217: =IF(COUNTIF(D218:AH218,"／")=0,"",IF(COUNTIF(D218:AH218,"／")=1,IF(AH221="／","","月末「／」漏れ"),IF(COUNTIF(D218:AH218,"／")=2,IF(AND(AG221="／",AH221="／"),"","月末「／」漏れ"),IF(AND(AF221="／",AG221="／",AH221="／"),"","月末「／」漏れ")))) -> 月末「／」漏れ | BA217: 月 | BB217: =DATE(YEAR(BB188),MONTH(BB188)+1,1) -> 2025-11-01 | CG217: =DATE(YEAR(BB217),MONTH(BB217)+1,1) -> 2025-12-01 | CM217: 現場閉所計 | CN217: 現場閉所累計 | CP217: 計画 | CQ217: 対象期間 | CR217: =IF(IF(MONTH($BL$5)=12,YEAR($BL$5)+1&"01",YEAR($BL$5)&TEXT(MONTH($BL$5)+1,"00"))>YEAR(BB217)&TEXT(MONTH(BB217),"00"),COUNTIF(BB221:CF221,"")+COUNTIF(BB221:CF221,"○"),"") -> 30 | CS217: =IF(COUNTIF(BB218:CF218,"／")=0,"",IF(COUNTIF(BB218:CF218,"／")=1,IF(CF221="／","","月末「／」漏れ"),IF(COUNTIF(BB218:CF218,"／")=2,IF(AND(CE221="／",CF221="／"),"","月末「／」漏れ"),IF(AND(CD221="／",CE221="／",CF221="／"),"","月末「／」漏れ")))) ->  | CW217: 月 | CX217: =DATE(YEAR(CX188),MONTH(CX188)+1,1) -> 2025-11-01 | EC217: =DATE(YEAR(CX217),MONTH(CX217)+1,1) -> 2025-12-01 | EI217: 現場閉所計 | EJ217: 現場閉所累計 | EL217: 計画 | EM217: 対象期間 | EN217: =IF(IF(MONTH($BL$5)=12,YEAR($BL$5)+1&"01",YEAR($BL$5)&TEXT(MONTH($BL$5)+1,"00"))>YEAR($CX217)&TEXT(MONTH($CX217),"00"),COUNTIF(CX221:EB221,"")+COUNTIF(CX221:EB221,"○"),"") -> 30 | EO217: =IF(COUNTIF(CX218:EB218,"／")=0,"",IF(COUNTIF(CX218:EB218,"／")=1,IF(EB221="／","","月末「／」漏れ"),IF(COUNTIF(CX218:EB218,"／")=2,IF(AND(EA221="／",EB221="／"),"","月末「／」漏れ"),IF(AND(DZ221="／",EA221="／",EB221="／"),"","月末「／」漏れ")))) -> 
A218: =IF($AT$217="","","対象期間") ->  | C218: 日 | D218: =D217 -> 2025-11-01 | E218: =D218+1 -> 2025-11-02 | F218: =E218+1 -> 2025-11-03 | G218: =F218+1 -> 2025-11-04 | H218: =G218+1 -> 2025-11-05 | I218: =H218+1 -> 2025-11-06 | J218: =I218+1 -> 2025-11-07 | K218: =J218+1 -> 2025-11-08 | L218: =K218+1 -> 2025-11-09 | M218: =L218+1 -> 2025-11-10 | N218: =M218+1 -> 2025-11-11 | O218: =N218+1 -> 2025-11-12 | P218: =O218+1 -> 2025-11-13 | Q218: =P218+1 -> 2025-11-14 | R218: =Q218+1 -> 2025-11-15 | S218: =R218+1 -> 2025-11-16 | T218: =S218+1 -> 2025-11-17 | U218: =T218+1 -> 2025-11-18 | V218: =U218+1 -> 2025-11-19 | W218: =V218+1 -> 2025-11-20 | X218: =W218+1 -> 2025-11-21 | Y218: =X218+1 -> 2025-11-22 | Z218: =Y218+1 -> 2025-11-23 | AA218: =Z218+1 -> 2025-11-24 | AB218: =AA218+1 -> 2025-11-25 | AC218: =AB218+1 -> 2025-11-26 | AD218: =AC218+1 -> 2025-11-27 | AE218: =AD218+1 -> 2025-11-28 | AF218: =IF(AE218="／","／",IF(YEAR($D217)&TEXT(MONTH($D217),"00")<YEAR(AE218+1)&TEXT(MONTH(AE218+1),"00"),"／",AE218+1)) -> 2025-11-29 | AG218: =IF(AF218="／","／",IF(YEAR($D217)&TEXT(MONTH($D217),"00")<YEAR(AF218+1)&TEXT(MONTH(AF218+1),"00"),"／",AF218+1)) -> 2025-11-30 | AH218: =IF(AG218="／","／",IF(YEAR($D217)&TEXT(MONTH($D217),"00")<YEAR(AG218+1)&TEXT(MONTH(AG218+1),"00"),"／",AG218+1)) -> ／ | AI218: =AI217 -> 2025-12-01 | AJ218: =AI218+1 -> 2025-12-02 | AK218: =AJ218+1 -> 2025-12-03 | AL218: =AK218+1 -> 2025-12-04 | AM218: =AL218+1 -> 2025-12-05 | AN218: =AM218+1 -> 2025-12-06 | AS218: 閉所日数 | AT218: =IF(IF(MONTH(入力表!$E$6)=12,YEAR(入力表!$E$6)+1&"01",YEAR(入力表!$E$6)&TEXT(MONTH(入力表!$E$6)+1,"00"))>YEAR($D217)&TEXT(MONTH($D217),"00"),COUNTIF(D221:AH221,"○"),"") ->  | AU218: =IF(OR(MONTH(D217)=1,MONTH(D217)=8,MONTH(D217)=12),IF(COUNTIF(D221:AH221,"／")>=3,"","算定除外「／」漏れ"),"") ->  | BA218: 日 | BB218: =BB217 -> 2025-11-01 | BC218: =BB218+1 -> 2025-11-02 | BD218: =BC218+1 -> 2025-11-03 | BE218: =BD218+1 -> 2025-11-04 | BF218: =BE218+1 -> 2025-11-05 | BG218: =BF218+1 -> 2025-11-06 | BH218: =BG218+1 -> 2025-11-07 | BI218: =BH218+1 -> 2025-11-08 | BJ218: =BI218+1 -> 2025-11-09 | BK218: =BJ218+1 -> 2025-11-10 | BL218: =BK218+1 -> 2025-11-11 | BM218: =BL218+1 -> 2025-11-12 | BN218: =BM218+1 -> 2025-11-13 | BO218: =BN218+1 -> 2025-11-14 | BP218: =BO218+1 -> 2025-11-15 | BQ218: =BP218+1 -> 2025-11-16 | BR218: =BQ218+1 -> 2025-11-17 | BS218: =BR218+1 -> 2025-11-18 | BT218: =BS218+1 -> 2025-11-19 | BU218: =BT218+1 -> 2025-11-20 | BV218: =BU218+1 -> 2025-11-21 | BW218: =BV218+1 -> 2025-11-22 | BX218: =BW218+1 -> 2025-11-23 | BY218: =BX218+1 -> 2025-11-24 | BZ218: =BY218+1 -> 2025-11-25 | CA218: =BZ218+1 -> 2025-11-26 | CB218: =CA218+1 -> 2025-11-27 | CC218: =CB218+1 -> 2025-11-28 | CD218: =IF(CC218="／","／",IF(YEAR(BB217)&TEXT(MONTH(BB217),"00")<YEAR(CC218+1)&TEXT(MONTH(CC218+1),"00"),"／",CC218+1)) -> 2025-11-29 | CE218: =IF(CD218="／","／",IF(YEAR(BB217)&TEXT(MONTH(BB217),"00")<YEAR(CD218+1)&TEXT(MONTH(CD218+1),"00"),"／",CD218+1)) -> 2025-11-30 | CF218: =IF(CE218="／","／",IF(YEAR(BB217)&TEXT(MONTH(BB217),"00")<YEAR(CE218+1)&TEXT(MONTH(CE218+1),"00"),"／",CE218+1)) -> ／ | CG218: =CG217 -> 2025-12-01 | CH218: =CG218+1 -> 2025-12-02 | CI218: =CH218+1 -> 2025-12-03 | CJ218: =CI218+1 -> 2025-12-04 | CK218: =CJ218+1 -> 2025-12-05 | CL218: =CK218+1 -> 2025-12-06 | CQ218: 閉所日数 | CR218: =IF(IF(MONTH($BL$5)=12,YEAR($BL$5)+1&"01",YEAR($BL$5)&TEXT(MONTH($BL$5)+1,"00"))>YEAR(BB217)&TEXT(MONTH(BB217),"00"),COUNTIF(BB221:CF221,"○"),"") -> 11 | CS218: =IF(OR(MONTH(BB217)=1,MONTH(BB217)=8,MONTH(BB217)=12),IF(COUNTIF(BB221:CF221,"／")>=3,"","算定除外「／」漏れ"),"") ->  | CW218: 日 | CX218: =CX217 -> 2025-11-01 | CY218: =CX218+1 -> 2025-11-02 | CZ218: =CY218+1 -> 2025-11-03 | DA218: =CZ218+1 -> 2025-11-04 | DB218: =DA218+1 -> 2025-11-05 | DC218: =DB218+1 -> 2025-11-06 | DD218: =DC218+1 -> 2025-11-07 | DE218: =DD218+1 -> 2025-11-08 | DF218: =DE218+1 -> 2025-11-09 | DG218: =DF218+1 -> 2025-11-10 | DH218: =DG218+1 -> 2025-11-11 | DI218: =DH218+1 -> 2025-11-12 | DJ218: =DI218+1 -> 2025-11-13 | DK218: =DJ218+1 -> 2025-11-14 | DL218: =DK218+1 -> 2025-11-15 | DM218: =DL218+1 -> 2025-11-16 | DN218: =DM218+1 -> 2025-11-17 | DO218: =DN218+1 -> 2025-11-18 | DP218: =DO218+1 -> 2025-11-19 | DQ218: =DP218+1 -> 2025-11-20 | DR218: =DQ218+1 -> 2025-11-21 | DS218: =DR218+1 -> 2025-11-22 | DT218: =DS218+1 -> 2025-11-23 | DU218: =DT218+1 -> 2025-11-24 | DV218: =DU218+1 -> 2025-11-25 | DW218: =DV218+1 -> 2025-11-26 | DX218: =DW218+1 -> 2025-11-27 | DY218: =DX218+1 -> 2025-11-28 | DZ218: =IF(DY218="／","／",IF(YEAR(CX217)&TEXT(MONTH(CX217),"00")<YEAR(DY218+1)&TEXT(MONTH(DY218+1),"00"),"／",DY218+1)) -> 2025-11-29 | EA218: =IF(DZ218="／","／",IF(YEAR(CX217)&TEXT(MONTH(CX217),"00")<YEAR(DZ218+1)&TEXT(MONTH(DZ218+1),"00"),"／",DZ218+1)) -> 2025-11-30 | EB218: =IF(EA218="／","／",IF(YEAR(CX217)&TEXT(MONTH(CX217),"00")<YEAR(EA218+1)&TEXT(MONTH(EA218+1),"00"),"／",EA218+1)) -> ／ | EC218: =EC217 -> 2025-12-01 | ED218: =EC218+1 -> 2025-12-02 | EE218: =ED218+1 -> 2025-12-03 | EF218: =EE218+1 -> 2025-12-04 | EG218: =EF218+1 -> 2025-12-05 | EH218: =EG218+1 -> 2025-12-06 | EM218: 閉所日数 | EN218: =IF(IF(MONTH($BL$5)=12,YEAR($BL$5)+1&"01",YEAR($BL$5)&TEXT(MONTH($BL$5)+1,"00"))>YEAR($CX217)&TEXT(MONTH($CX217),"00"),COUNTIF(CX221:EB221,"○"),"") -> 11 | EO218: =IF(OR(MONTH(CX217)=1,MONTH(CX217)=8,MONTH(CX217)=12),IF(COUNTIF(CX221:EB221,"／")>=3,"","算定除外「／」漏れ"),"") -> 
C219: 曜日 | D219: =TEXT(WEEKDAY(+D218),"aaa") -> 土 | E219: =TEXT(WEEKDAY(+E218),"aaa") -> 日 | F219: 月 | G219: 火 | H219: 水 | I219: =TEXT(WEEKDAY(+I218),"aaa") -> 木 | J219: =TEXT(WEEKDAY(+J218),"aaa") -> 金 | K219: 土 | L219: 日 | M219: 月 | N219: 火 | O219: 水 | P219: 木 | Q219: 金 | R219: 土 | S219: 日 | T219: 月 | U219: 火 | V219: 水 | W219: 木 | X219: 金 | Y219: 土 | Z219: =TEXT(WEEKDAY(+Z218),"aaa") -> 日 | AA219: =TEXT(WEEKDAY(+AA218),"aaa") -> 月 | AB219: 火 | AC219: 水 | AD219: 木 | AE219: 金 | AF219: =IF(AF218="／","／",TEXT(WEEKDAY(+AF218),"aaa")) -> 土 | AG219: =IF(AG218="／","／",TEXT(WEEKDAY(+AG218),"aaa")) -> 日 | AH219: ／ | AI219: =TEXT(WEEKDAY(+AI218),"aaa") -> 月 | AJ219: =TEXT(WEEKDAY(+AJ218),"aaa") -> 火 | AK219: 水 | AL219: 木 | AM219: 金 | AN219: 土 | AS219: 現場閉所率 | AT219: =IFERROR(+AT218/AT217,"") ->  | AU219: =IF(AT219="","",IF(COUNTIF(D221:AH221,"○")>=COUNTIF(D224:AH224,"◎"),"4週8休以上",IF(AT219>=0.285,"4週8休以上","週休2日未達成"))) ->  | BA219: 曜日 | BB219: =TEXT(WEEKDAY(+BB218),"aaa") -> 土 | BC219: =TEXT(WEEKDAY(+BC218),"aaa") -> 日 | BD219: 月 | BE219: 火 | BF219: 水 | BG219: =TEXT(WEEKDAY(+BG218),"aaa") -> 木 | BH219: =TEXT(WEEKDAY(+BH218),"aaa") -> 金 | BI219: 土 | BJ219: 日 | BK219: 月 | BL219: 火 | BM219: 水 | BN219: 木 | BO219: 金 | BP219: 土 | BQ219: 日 | BR219: 月 | BS219: 火 | BT219: 水 | BU219: 木 | BV219: 金 | BW219: 土 | BX219: =TEXT(WEEKDAY(+BX218),"aaa") -> 日 | BY219: =TEXT(WEEKDAY(+BY218),"aaa") -> 月 | BZ219: 火 | CA219: 水 | CB219: 木 | CC219: 金 | CD219: =IF(CD218="／","／",TEXT(WEEKDAY(+CD218),"aaa")) -> 土 | CE219: =IF(CE218="／","／",TEXT(WEEKDAY(+CE218),"aaa")) -> 日 | CF219: ／ | CG219: =TEXT(WEEKDAY(+CG218),"aaa") -> 月 | CH219: =TEXT(WEEKDAY(+CH218),"aaa") -> 火 | CI219: 水 | CJ219: 木 | CK219: 金 | CL219: 土 | CQ219: 現場閉所率 | CR219: =IFERROR(+CR218/CR217,"") -> 0.3666666667 | CS219: =IF(CR219="","",IF(COUNTIF(BB221:CF221,"○")>=COUNTIF(BB224:CF224,"◎"),"4週8休以上",IF(CR219>=0.285,"4週8休以上","週休2日未達成"))) -> 4週8休以上 | CW219: 曜日 | CX219: =TEXT(WEEKDAY(+CX218),"aaa") -> 土 | CY219: =TEXT(WEEKDAY(+CY218),"aaa") -> 日 | CZ219: 月 | DA219: 火 | DB219: 水 | DC219: =TEXT(WEEKDAY(+DC218),"aaa") -> 木 | DD219: =TEXT(WEEKDAY(+DD218),"aaa") -> 金 | DE219: 土 | DF219: 日 | DG219: 月 | DH219: 火 | DI219: 水 | DJ219: 木 | DK219: 金 | DL219: 土 | DM219: 日 | DN219: 月 | DO219: 火 | DP219: 水 | DQ219: 木 | DR219: 金 | DS219: 土 | DT219: =TEXT(WEEKDAY(+DT218),"aaa") -> 日 | DU219: =TEXT(WEEKDAY(+DU218),"aaa") -> 月 | DV219: 火 | DW219: 水 | DX219: 木 | DY219: 金 | DZ219: =IF(DZ218="／","／",TEXT(WEEKDAY(+DZ218),"aaa")) -> 土 | EA219: =IF(EA218="／","／",TEXT(WEEKDAY(+EA218),"aaa")) -> 日 | EB219: ／ | EC219: =TEXT(WEEKDAY(+EC218),"aaa") -> 月 | ED219: =TEXT(WEEKDAY(+ED218),"aaa") -> 火 | EE219: 水 | EF219: 木 | EG219: 金 | EH219: 土 | EM219: 現場閉所率 | EN219: =IFERROR(+EN218/EN217,"") -> 0.3666666667 | EO219: =IF(EN219="","",IF(COUNTIF(CX221:EB221,"○")>=COUNTIF(CX224:EB224,"◎"),"4週8休以上",IF(EN219>=0.285,"4週8休以上","週休2日未達成"))) -> 4週8休以上
C220: 行事 | AI220: =IF(D249="","",D249) ->  | AJ220: =IF(E249="","",E249) ->  | AK220: =IF(F249="","",F249) ->  | AL220: =IF(G249="","",G249) ->  | AM220: =IF(H249="","",H249) ->  | AN220: =IF(I249="","",I249) ->  | AR220: 実施 | AS220: 対象期間 | AT220: =IF(IF(MONTH(入力表!$E$6)=12,YEAR(入力表!$E$6)+1&"01",YEAR(入力表!$E$6)&TEXT(MONTH(入力表!$E$6)+1,"00"))>YEAR($D217)&TEXT(MONTH($D217),"00"),COUNTIF(D222:AH222,"")+COUNTIF(D222:AH222,"●"),"") ->  | AU220: =IF(COUNTIF(D218:AH218,"／")=0,"",IF(COUNTIF(D218:AH218,"／")=1,IF(AH222="／","","月末「／」漏れ"),IF(COUNTIF(D218:AH218,"／")=2,IF(AND(AG222="／",AH222="／"),"","月末「／」漏れ"),IF(AND(AF222="／",AG222="／",AH222="／"),"","月末「／」漏れ")))) -> 月末「／」漏れ | BA220: 行事 | CG220: =IF(BB249="","",BB249) ->  | CH220: =IF(BC249="","",BC249) ->  | CI220: =IF(BD249="","",BD249) ->  | CJ220: =IF(BE249="","",BE249) ->  | CK220: =IF(BF249="","",BF249) ->  | CL220: =IF(BG249="","",BG249) ->  | CP220: 実施 | CQ220: 対象期間 | CR220: =IF(IF(MONTH($BL$5)=12,YEAR($BL$5)+1&"01",YEAR($BL$5)&TEXT(MONTH($BL$5)+1,"00"))>YEAR(BB217)&TEXT(MONTH(BB217),"00"),COUNTIF(BB222:CF222,"")+COUNTIF(BB222:CF222,"●"),"") -> 30 | CS220: =IF(COUNTIF(BB218:CF218,"／")=0,"",IF(COUNTIF(BB218:CF218,"／")=1,IF(CF222="／","","月末「／」漏れ"),IF(COUNTIF(BB218:CF218,"／")=2,IF(AND(CE222="／",CF222="／"),"","月末「／」漏れ"),IF(AND(CD222="／",CE222="／",CF222="／"),"","月末「／」漏れ")))) ->  | CW220: 行事 | EC220: =IF(CX249="","",CX249) ->  | ED220: =IF(CY249="","",CY249) ->  | EE220: =IF(CZ249="","",CZ249) ->  | EF220: =IF(DA249="","",DA249) ->  | EG220: =IF(DB249="","",DB249) ->  | EH220: =IF(DC249="","",DC249) ->  | EL220: 実施 | EM220: 対象期間 | EN220: =IF(IF(MONTH($BL$5)=12,YEAR($BL$5)+1&"01",YEAR($BL$5)&TEXT(MONTH($BL$5)+1,"00"))>YEAR($CX217)&TEXT(MONTH($CX217),"00"),COUNTIF(CX222:EB222,"")+COUNTIF(CX222:EB222,"●"),"") -> 30 | EO220: =IF(COUNTIF(CX218:EB218,"／")=0,"",IF(COUNTIF(CX218:EB218,"／")=1,IF(EB222="／","","月末「／」漏れ"),IF(COUNTIF(CX218:EB218,"／")=2,IF(AND(EA222="／",EB222="／"),"","月末「／」漏れ"),IF(AND(DZ222="／",EA222="／",EB222="／"),"","月末「／」漏れ")))) -> 
C221: 計画 | AI221: =IF(D250="","",D250) ->  | AJ221: =IF(E250="","",E250) ->  | AK221: =IF(F250="","",F250) ->  | AL221: =IF(G250="","",G250) ->  | AM221: =IF(H250="","",H250) ->  | AN221: =IF(I250="","",I250) ->  | AO221: =COUNTIF(D221:AG221,"○") -> 0 | AP221: =+AO221+AP192 -> 0 | AS221: 閉所日数 | AT221: =IF(IF(MONTH(入力表!$E$6)=12,YEAR(入力表!$E$6)+1&"01",YEAR(入力表!$E$6)&TEXT(MONTH(入力表!$E$6)+1,"00"))>YEAR($D217)&TEXT(MONTH($D217),"00"),COUNTIF(D222:AH222,"●"),"") ->  | AU221: =IF(OR(MONTH(D217)=1,MONTH(D217)=8,MONTH(D217)=12),IF(COUNTIF(D222:AH222,"／")>=3,"","算定除外「／」漏れ"),"") ->  | BA221: 計画 | BB221: ○ | BC221: ○ | BD221: ○ | BI221: ○ | BJ221: ○ | BP221: ○ | BQ221: ○ | BW221: ○ | BX221: ○ | CD221: ○ | CE221: ○ | CF221: ／ | CG221: =IF(BB250="","",BB250) ->  | CL221: ○ | CM221: =COUNTIF(BB221:CE221,"○") -> 11 | CN221: =+CM221+CN192 -> 63 | CQ221: 閉所日数 | CR221: =IF(IF(MONTH($BL$5)=12,YEAR($BL$5)+1&"01",YEAR($BL$5)&TEXT(MONTH($BL$5)+1,"00"))>YEAR(BB217)&TEXT(MONTH(BB217),"00"),COUNTIF(BB222:CF222,"●"),"") -> 0 | CS221: =IF(OR(MONTH(BB217)=1,MONTH(BB217)=8,MONTH(BB217)=12),IF(COUNTIF(BB222:CF222,"／")>=3,"","算定除外「／」漏れ"),"") ->  | CW221: 計画 | CX221: ○ | CY221: ○ | CZ221: ○ | DE221: ○ | DF221: ○ | DL221: ○ | DM221: ○ | DS221: ○ | DT221: ○ | DZ221: ○ | EA221: ○ | EB221: ／ | EC221: =IF(CX250="","",CX250) ->  | EH221: ○ | EI221: =COUNTIF(CX221:EA221,"○") -> 11 | EJ221: =+EI221+EJ192 -> 63 | EM221: 閉所日数 | EN221: =IF(IF(MONTH($BL$5)=12,YEAR($BL$5)+1&"01",YEAR($BL$5)&TEXT(MONTH($BL$5)+1,"00"))>YEAR($CX217)&TEXT(MONTH($CX217),"00"),COUNTIF(CX222:EB222,"●"),"") -> 10 | EO221: =IF(OR(MONTH(CX217)=1,MONTH(CX217)=8,MONTH(CX217)=12),IF(COUNTIF(CX222:EB222,"／")>=3,"","算定除外「／」漏れ"),"") -> 
C222: 実施 | AI222: =IF(D251="","",D251) ->  | AJ222: =IF(E251="","",E251) ->  | AK222: =IF(F251="","",F251) ->  | AL222: =IF(G251="","",G251) ->  | AM222: =IF(H251="","",H251) ->  | AN222: =IF(I251="","",I251) ->  | AO222: =COUNTIF(D222:AG222,"●") -> 0 | AP222: =+AO222+AP193 -> 0 | AS222: 現場閉所率 | AT222: =IFERROR(+AT221/AT220,"") ->  | AU222: =IF(AT222="","",IF(COUNTIF(D222:AH222,"●")>=COUNTIF(D225:AH225,"◎"),"4週8休以上",IF(AT222>=0.285,"4週8休以上","週休2日未達成"))) ->  | BA222: 実施 | CF222: ／ | CG222: =IF(BB251="","",BB251) ->  | CH222: =IF(BC251="","",BC251) ->  | CI222: =IF(BD251="","",BD251) ->  | CJ222: =IF(BE251="","",BE251) ->  | CK222: =IF(BF251="","",BF251) ->  | CL222: =IF(BG251="","",BG251) ->  | CM222: =COUNTIF(BB222:CE222,"●") -> 0 | CN222: =+CM222+CN193 -> 0 | CQ222: 現場閉所率 | CR222: =IFERROR(+CR221/CR220,"") -> 0 | CS222: =IF(CR222="","",IF(COUNTIF(BB222:CF222,"●")>=COUNTIF(BB225:CF225,"◎"),"4週8休以上",IF(CR222>=0.285,"4週8休以上","週休2日未達成"))) -> 週休2日未達成 | CW222: 実施 | CX222: ● | CY222: ● | CZ222: ● | DE222: ● | DF222: ● | DM222: ● | DS222: ● | DT222: ● | DZ222: ● | EA222: ● | EB222: ／ | EC222: =IF(CX251="","",CX251) ->  | ED222: =IF(CY251="","",CY251) ->  | EE222: =IF(CZ251="","",CZ251) ->  | EF222: =IF(DA251="","",DA251) ->  | EG222: =IF(DB251="","",DB251) ->  | EH222: =IF(DC251="","",DC251) -> ● | EI222: =COUNTIF(CX222:EA222,"●") -> 10 | EJ222: =+EI222+EJ193 -> 62 | EM222: 現場閉所率 | EN222: =IFERROR(+EN221/EN220,"") -> 0.3333333333 | EO222: =IF(EN222="","",IF(COUNTIF(CX222:EB222,"●")>=COUNTIF(CX225:EB225,"◎"),"4週8休以上",IF(EN222>=0.285,"4週8休以上","週休2日未達成"))) -> 4週8休以上
D223: 1 | E223: 2 | F223: 3 | G223: 4 | H223: 5 | I223: 6 | J223: 7 | K223: 8 | L223: 9 | M223: 10 | N223: 11 | O223: 12 | P223: 13 | Q223: 14 | R223: 15 | S223: 16 | T223: 17 | U223: 18 | V223: 19 | W223: 20 | X223: 21 | Y223: 22 | Z223: 23 | AA223: 24 | AB223: 25 | AC223: 26 | AD223: 27 | AE223: 28 | AF223: 29 | AG223: 30 | AH223: 31 | AI223: 32 | AJ223: 33 | AK223: 34 | AL223: 35 | AM223: 36 | AN223: 37 | AS223: =AU222 ->  | BB223: 1 | BC223: 2 | BD223: 3 | BE223: 4 | BF223: 5 | BG223: 6 | BH223: 7 | BI223: 8 | BJ223: 9 | BK223: 10 | BL223: 11 | BM223: 12 | BN223: 13 | BO223: 14 | BP223: 15 | BQ223: 16 | BR223: 17 | BS223: 18 | BT223: 19 | BU223: 20 | BV223: 21 | BW223: 22 | BX223: 23 | BY223: 24 | BZ223: 25 | CA223: 26 | CB223: 27 | CC223: 28 | CD223: 29 | CE223: 30 | CF223: 31 | CG223: 32 | CH223: 33 | CI223: 34 | CJ223: 35 | CK223: 36 | CL223: 37 | CQ223: =CS222 -> 週休2日未達成 | CX223: 1 | CY223: 2 | CZ223: 3 | DA223: 4 | DB223: 5 | DC223: 6 | DD223: 7 | DE223: 8 | DF223: 9 | DG223: 10 | DH223: 11 | DI223: 12 | DJ223: 13 | DK223: 14 | DL223: 15 | DM223: 16 | DN223: 17 | DO223: 18 | DP223: 19 | DQ223: 20 | DR223: 21 | DS223: 22 | DT223: 23 | DU223: 24 | DV223: 25 | DW223: 26 | DX223: 27 | DY223: 28 | DZ223: 29 | EA223: 30 | EB223: 31 | EC223: 32 | ED223: 33 | EE223: 34 | EF223: 35 | EG223: 36 | EH223: 37 | EM223: =EO222 -> 4週8休以上
C224: 計画 | D224: =IF(D221="／","／",IF(OR(D219="土",D219="日"),"◎","")) -> ◎ | E224: =IF(E221="／","／",IF(OR(E219="土",E219="日"),"◎","")) -> ◎ | K224: ◎ | L224: ◎ | R224: ◎ | S224: ◎ | Y224: ◎ | Z224: ◎ | AD224: =IF(AD221="／","／",IF(OR(AD219="土",AD219="日"),"◎","")) ->  | AE224: =IF(AE221="／","／",IF(OR(AE219="土",AE219="日"),"◎","")) ->  | AF224: ◎ | AG224: ◎ | AN224: ◎ | AS224: =AT226 ->  | BA224: 計画 | BB224: =IF(BB221="／","／",IF(OR(BB219="土",BB219="日"),"◎","")) -> ◎ | BC224: ◎ | BI224: ◎ | BJ224: ◎ | BN224: =IF(BN221="／","／",IF(OR(BN219="土",BN219="日"),"◎","")) ->  | BO224: =IF(BO221="／","／",IF(OR(BO219="土",BO219="日"),"◎","")) ->  | BP224: ◎ | BQ224: ◎ | BW224: ◎ | BX224: ◎ | CB224: =IF(CB221="／","／",IF(OR(CB219="土",CB219="日"),"◎","")) ->  | CC224: =IF(CC221="／","／",IF(OR(CC219="土",CC219="日"),"◎","")) ->  | CD224: ◎ | CE224: ◎ | CF224: ／ | CL224: ◎ | CQ224: =CR226 -> OUT | CW224: 計画 | CX224: =IF(CX221="／","／",IF(OR(CX219="土",CX219="日"),"◎","")) -> ◎ | CY224: ◎ | DE224: ◎ | DF224: ◎ | DJ224: =IF(DJ221="／","／",IF(OR(DJ219="土",DJ219="日"),"◎","")) ->  | DK224: =IF(DK221="／","／",IF(OR(DK219="土",DK219="日"),"◎","")) ->  | DL224: ◎ | DM224: ◎ | DS224: ◎ | DT224: ◎ | DX224: =IF(DX221="／","／",IF(OR(DX219="土",DX219="日"),"◎","")) ->  | DY224: =IF(DY221="／","／",IF(OR(DY219="土",DY219="日"),"◎","")) ->  | DZ224: ◎ | EA224: ◎ | EB224: ／ | EH224: ◎ | EM224: =EN226 -> OUT
C225: 実施 | D225: =IF(D222="／","／",IF(OR(D219="土",D219="日"),"◎","")) -> ◎ | E225: =IF(E222="／","／",IF(OR(E219="土",E219="日"),"◎","")) -> ◎ | K225: ◎ | L225: ◎ | R225: ◎ | S225: ◎ | Y225: ◎ | Z225: ◎ | AF225: ◎ | AG225: ◎ | AN225: ◎ | BA225: 実施 | BB225: =IF(BB222="／","／",IF(OR(BB219="土",BB219="日"),"◎","")) -> ◎ | BC225: =IF(BC222="／","／",IF(OR(BC219="土",BC219="日"),"◎","")) -> ◎ | BI225: ◎ | BJ225: ◎ | BP225: ◎ | BQ225: ◎ | BW225: ◎ | BX225: ◎ | CD225: ◎ | CE225: ◎ | CF225: ／ | CL225: ◎ | CW225: 実施 | CX225: =IF(CX222="／","／",IF(OR(CX219="土",CX219="日"),"◎","")) -> ◎ | CY225: =IF(CY222="／","／",IF(OR(CY219="土",CY219="日"),"◎","")) -> ◎ | DE225: ◎ | DF225: ◎ | DL225: ◎ | DM225: ◎ | DS225: ◎ | DT225: ◎ | DZ225: ◎ | EA225: ◎ | EB225: ／ | EH225: ◎
